Workbook

Sheet Instruções
B1: ..
B2: Instruções
B4: A RenovaCalc é uma ferramenta de cálculo de emissões de Gases de Efeito Estufa (GEE) de biocombustíveis, de acordo com o referencial metodológico estabelecido pelo programa RenovaBio.
B6: O responsável pelo preenchimento deve estar atento às seguintes diretrizes:
B8: 1. Só devem ser preenchidas as células demarcadas em pontilhado: | G8: Ao optar pelo "padrão", estas células serão automaticamente preenchidas pela RenovaCalc
B10: 2. A unidade de preenchimento de cada parâmetro é padrão estará sempre indicada ao lado da célula que deve ser preenchida. Por exemplo: | I10: Ureia | K10: kg N/TC
B12: 2.1. O usuário deve sempre inserir os dados na unidade pré-indicada, sendo considerado incorreto qualquer dado que esteja em outra unidade
B14: 2.2. Ao selecionar a célula a ser preenchida, orientações de como preencher cada parâmetro serão fornecidas. Por exemplo:

Sheet Diretório
B1: ..
B2: DIRETÓRIO DE ROTAS DE PRODUÇÃO DE BIOCOMBUSTÍVEIS
B3: .

Sheet E1GC
B2: Produção de Etanol de cana-de-açúcar
B4: Nome da Usina: | C4: Usina Hipotética
B6: CNPJ | C6: 00.000.000/0000-00
B8: Responsável pelo preenchimento: | C8: GT ACV RenovaCalc
B10: Telefone : | C10: (00) 0000-0000
C13: Etanol Anidro
B15: Intensidade de Carbono (g CO₂eq/MJ) | C15: =SUM(C17:C20) -> 30.35421659 | D15: Nota de Eficiência Energético-Ambiental (g CO₂eq/MJ) | G15: =G18-C15 -> 57.04578341
B17: agrícola | C17: =IF(C13="Etanol Anidro",_E1GC!C5,IF(C13="Etanol Hidratado",_E1GC!E5,"")) -> 28.06283602 | G17: Fóssil de referência: Gasolina
B18: industrial | C18: =IF(C13="Etanol Anidro",_E1GC!C6,IF(C13="Etanol Hidratado",_E1GC!E6,"")) -> 1.049698071 | G18: 87.4
B19: transporte | C19: =IF(C13="Etanol Anidro",_E1GC!C7,IF(C13="Etanol Hidratado",_E1GC!E7,"")) -> 0.8026819585 | G19: Redução de emissões
B20: uso | C20: =IF(C13="Etanol Anidro",_E1GC!C8,IF(C13="Etanol Hidratado",_E1GC!E8,"")) -> 0.4390005404 | G20: =(G18-C15)/G18 -> 0.6526977507
B23: Usina - Área de cana própria | K23: Fornecedores - Dados consolidados | T23: Média ponderada - RenovaCalc | AE23: Default - Cana | AN23: Guarda dados de preenchimento
B24: Informações gerais | K24: Informações gerais | T24: Informações gerais | AE24: Informações gerais | AN24: Informações gerais
B25: Houve supressão de vegetação nativa a partir de 26 de dezembro de 2017? | D25: Não | K25: Houve supressão de vegetação nativa a partir de 26 de dezembro de 2017? | M25: Não | T25: Houve supressão de vegetação nativa a partir de 26 de dezembro de 2017? | V25: =IF(OR(D25="Sim",M25="Sim"),"Sim","Não") -> Não
C26: Usina atende ao ZAE Cana? | D26: Sim | L26: Usina atende ao ZAE Cana? | M26: Sim | U26: Usina atende ao ZAE Cana? | V26: =IF(OR(D26=Listas!$B$4,M26=Listas!$B$4),Listas!$B$4,Listas!$B$3) -> Sim
C28: Número de registro no CAR | D28: UF-1302405-E6D3.395B.6D27.4F42.AE22.DD56.987C.DD51 | L28: Número de registro no CAR | M28: Cadastro de fornecedores | U28: Número de registro no CAR | V28: Cadastro de fornecedores
C30: Situação do CAR | D30: Ativo | L30: Situação do CAR | M30: Ativo | U30: Situação do CAR | V30: =IF(AND(D30=Listas!$B$7,M30=Listas!$B$7),Listas!$B$7,IF(OR(D30=Listas!$B$9,M30=Listas!$B$9),Listas!$B$9,Listas!$B$8)) -> Ativo
C32: Sistema de plantio | D32: Convencional | L32: Sistema de plantio | M32: Convencional | U32: Sistema de plantio | V32: Convencional
C33: Área total | D33: 20000 | E33: ha | L33: Área total | M33: 0 | N33: ha | U33: Área total | V33: =D33+M33 -> 20000 | W33: ha
C35: Produção total colhida para moagem | D35: 1334704.002 | E35: t cana | L35: Produção total colhida para moagem | M35: 0 | N35: t cana | U35: Produção total colhida para moagem | V35: =D35+M35 -> 1334704.002 | W35: t cana
C36: Teor de impurezas vegetais (base úmida) | D36: 50 | E36: kg/t cana | F36: Umidade | G36: 0.5 | L36: Teor de impurezas vegetais (base úmida) | M36: 0 | N36: kg/t cana | O36: Umidade | P36: 0 | U36: Teor de impurezas vegetais (base úmida) | V36: =D36*($D$35/$V$35)+M36*($M$35/$V$35) -> 50 | W36: kg/t cana | X36: Umidade | Y36: =IF((D36*$D$35+M36*$M$35)<>0,(G36*D36*$D$35+P36*M36*$M$35)/(D36*$D$35+M36*$M$35),0) -> 0.5
C37: Teor de impurezas minerais | D37: 20 | E37: kg/t cana | L37: Teor de impurezas minerais | M37: 0 | N37: kg/t cana | U37: Teor de impurezas minerais | V37: 20 | W37: kg/t cana
C38: Palha recolhida (base seca) | D38: 0 | E38: t palha | L38: Palha recolhida (base seca) | M38: 0 | N38: t palha | U38: Palha recolhida (base seca) | V38: =D38+M38 -> 0 | W38: t palha
B40: Tipo de preenchimento | K40: Tipo de preenchimento | T40: Tipo de preenchimento | AE40: Tipo de preenchimento | AN40: Tipo de preenchimento
B41: Tipo de dados forneceidos pela usina: | K41: Tipo de dados forneceidos pelos fornecedores: | T41: Tipo de dados forneceidos: | AG41: Padrão | AP41: Padrão
B42: =AP41 -> Padrão | K42: Em função das informações de cada fornecedor | T42: Em função das informações da usina e de cada fornecedor
B44: Área Queimada | K44: Área Queimada | T44: Área Queimada | AE44: Área Queimada | AN44: Área Queimada
C45: Área queimada | D45: 20000 | E45: ha | L45: Área queimada | M45: 0 | N45: ha | U45: Área queimada | V45: =D45+M45 -> 20000 | W45: ha | AF45: Área queimada | AG45: 1 | AH45: % da área total | AO45: Área queimada | AP45: 3680 | AQ45: % da área total
B47: Corretivos | K47: Corretivos | T47: Corretivos | AE47: Corretivos | AN47: Corretivos
C48: Calcário calcítico | D48: 0 | E48: kg/t cana | L48: Calcário calcítico | M48: 0 | N48: kg/t cana | U48: Calcário calcítico | V48: =D48*($D$35/$V$35)+M48*($M$35/$V$35) -> 0 | W48: kg/t cana | AF48: Calcário calcítico | AG48: 0 | AH48: kg/t cana | AO48: Calcário calcítico | AP48: 0 | AQ48: kg/t cana
C49: Calcário dolomítico | D49: 8.106 | E49: kg/t cana | L49: Calcário dolomítico | M49: 5.79 | N49: kg/t cana | U49: Calcário dolomítico | V49: =D49*($D$35/$V$35)+M49*($M$35/$V$35) -> 8.106 | W49: kg/t cana | AF49: Calcário dolomítico | AG49: 8.106 | AH49: kg/t cana | AO49: Calcário dolomítico | AP49: 5.79 | AQ49: kg/t cana
C50: Gesso | D50: 3.906 | E50: kg/t cana | L50: Gesso | M50: 2.79 | N50: kg/t cana | U50: Gesso | V50: =D50*($D$35/$V$35)+M50*($M$35/$V$35) -> 3.906 | W50: kg/t cana | AF50: Gesso | AG50: 3.906 | AH50: kg/t cana | AO50: Gesso | AP50: 2.79 | AQ50: kg/t cana
B52: Fertilizantes Sintéticos | K52: Fertilizantes Sintéticos | T52: Fertilizantes Sintéticos | AE52: Fertilizantes Sintéticos | AN52: Fertilizantes Sintéticos
C53: Ureia | D53: 1.5498 | E53: kg N/t cana | L53: Ureia | M53: 1.107 | N53: kg N/t cana | U53: Ureia | V53: =D53*($D$35/$V$35)+M53*($M$35/$V$35) -> 1.5498 | W53: kg N/t cana | AF53: Ureia | AG53: 1.5498 | AH53: kg N/TC | AO53: Ureia | AP53: 1.107 | AQ53: kg N/TC
C54: Fosfato monoamônico (MAP) | D54: 0 | E54: kg N/t cana | L54: Fosfato monoamônico (MAP) | M54: 0 | N54: kg N/t cana | U54: Fosfato monoamônico (MAP) | V54: 0 | W54: kg N/t cana | AF54: Fosfato monoamônico (MAP) | AG54: 0 | AH54: kg N/TC | AO54: Fosfato monoamônico (MAP) | AP54: 0 | AQ54: kg N/TC
C55: Fosfato monoamônico (MAP) | D55: 0 | E55: kg P₂O₅/t cana | L55: Fosfato monoamônico (MAP) | M55: 0 | N55: kg P₂O₅/t cana | U55: Fosfato monoamônico (MAP) | V55: 0 | W55: kg P₂O₅/t cana | AF55: Fosfato monoamônico (MAP) | AG55: 0 | AH55: kg P2O5/TC | AO55: Fosfato monoamônico (MAP) | AP55: 0 | AQ55: kg P2O5/TC
C56: Fosfato diamônico (DAP) | D56: 0 | E56: kg N/t cana | L56: Fosfato diamônico (DAP) | M56: 0 | N56: kg N/t cana | U56: Fosfato diamônico (DAP) | V56: 0 | W56: kg N/t cana | AF56: Fosfato diamônico (DAP) | AG56: 0 | AH56: kg N/TC | AO56: Fosfato diamônico (DAP) | AP56: 0 | AQ56: kg N/TC
C57: Fosfato diamônico (DAP) | D57: 0 | E57: kg P₂O₅/t cana | L57: Fosfato diamônico (DAP) | M57: 0 | N57: kg P₂O₅/t cana | U57: Fosfato diamônico (DAP) | V57: 0 | W57: kg P₂O₅/t cana | AF57: Fosfato diamônico (DAP) | AG57: 0 | AH57: kg P2O5/TC | AO57: Fosfato diamônico (DAP) | AP57: 0 | AQ57: kg P2O5/TC
C58: Nitrato de amônio | D58: 0 | E58: kg N/t cana | L58: Nitrato de amônio | M58: 0 | N58: kg N/t cana | U58: Nitrato de amônio | V58: 0 | W58: kg N/t cana | AF58: Nitrato de amônio | AG58: 0 | AH58: kg N/TC | AO58: Nitrato de amônio | AP58: 0 | AQ58: kg N/TC
C59: Solução de nitrato de amônio e ureia (UAN) | D59: 0 | E59: kg N/t cana | L59: Solução de nitrato de amônio e ureia (UAN) | M59: 0 | N59: kg N/t cana | U59: Solução de nitrato de amônio e ureia (UAN) | V59: 0 | W59: kg N/t cana | AF59: Solução de nitrato de amônio e ureia (UAN) | AG59: 0 | AH59: kg N/TC | AO59: Solução de nitrato de amônio e ureia (UAN) | AP59: 0 | AQ59: kg N/TC
C60: Amônia anidra | D60: 0 | E60: kg N/t cana | L60: Amônia anidra | M60: 0 | N60: kg N/t cana | U60: Amônia anidra | V60: 0 | W60: kg N/t cana | AF60: Amônia anidra | AG60: 0 | AH60: kg N/TC | AO60: Amônia anidra | AP60: 0 | AQ60: kg N/TC
C61: Sulfato de amônio | D61: 0 | E61: kg N/t cana | L61: Sulfato de amônio | M61: 0 | N61: kg N/t cana | U61: Sulfato de amônio | V61: 0 | W61: kg N/t cana | AF61: Sulfato de amônio | AG61: 0 | AH61: kg N/TC | AO61: Sulfato de amônio | AP61: 0 | AQ61: kg N/TC
C62: Nitrato de amônio e cálcio (CAN) | D62: 0 | E62: kg N/t cana | L62: Nitrato de amônio e cálcio (CAN) | M62: 0 | N62: kg N/t cana | U62: Nitrato de amônio e cálcio (CAN) | V62: 0 | W62: kg N/t cana | AF62: Nitrato de amônio e cálcio (CAN) | AG62: 0 | AH62: kg N/TC | AO62: Nitrato de amônio e cálcio (CAN) | AP62: 0 | AQ62: kg N/TC
C63: Superfosfato simples (SSP) | D63: 0.6214583667 | E63: kg P₂O₅/t cana | L63: Superfosfato simples (SSP) | M63: 0.4438988334 | N63: kg P₂O₅/t cana | U63: Superfosfato simples (SSP) | V63: 0.6214583667 | W63: kg P₂O₅/t cana | AF63: Superfosfato simples (SSP) | AG63: 0.6214583667 | AH63: kg P2O5/TC | AO63: Superfosfato simples (SSP) | AP63: 0.4438988334 | AQ63: kg P2O5/TC
C64: Superfosfato triplo (TSP) | D64: 0 | E64: kg P₂O₅/t cana | L64: Superfosfato triplo (TSP) | M64: 0 | N64: kg P₂O₅/t cana | U64: Superfosfato triplo (TSP) | V64: 0 | W64: kg P₂O₅/t cana | AF64: Superfosfato triplo (TSP) | AG64: 0 | AH64: kg P2O5/TC | AO64: Superfosfato triplo (TSP) | AP64: 0 | AQ64: kg P2O5/TC
C65: Cloreto de potássio (KCl) | D65: 1.884686862 | E65: kg K₂O/t cana | L65: Cloreto de potássio (KCl) | M65: 1.346204902 | N65: kg K₂O/t cana | U65: Cloreto de potássio (KCl) | V65: 1.884686862 | W65: kg K₂O/t cana | AF65: Cloreto de potássio (KCl) | AG65: 1.884686862 | AH65: kg K2O/TC | AO65: Cloreto de potássio (KCl) | AP65: 1.346204902 | AQ65: kg K2O/TC
B66: Outros | C66: especificar | D66: 0 | E66: kg N/t cana | K66: Outros | L66: especificar | M66: 0 | N66: kg N/t cana | T66: Outros | U66: especificar | V66: 0 | W66: kg N/t cana | AE66: Outros | AF66: especificar | AG66: 0 | AH66: kg N /TC | AN66: Outros | AO66: especificar | AP66: 0 | AQ66: kg N /TC
B67: Outros | C67: especificar | D67: 0 | E67: kg P₂O₅/t cana | K67: Outros | L67: especificar | M67: 0 | N67: kg P₂O₅/t cana | T67: Outros | U67: especificar | V67: 0 | W67: kg P₂O₅/t cana | AE67: Outros | AF67: especificar | AG67: 0 | AH67: kg P2O5/TC | AN67: Outros | AO67: especificar | AP67: 0 | AQ67: kg P2O5/TC
B68: Outros | C68: especificar | D68: 0 | E68: kg K₂O/t cana | K68: Outros | L68: especificar | M68: 0 | N68: kg K₂O/t cana | T68: Outros | U68: especificar | V68: 0 | W68: kg K₂O/t cana | AE68: Outros | AF68: especificar | AG68: 0 | AH68: kg K2O/TC | AN68: Outros | AO68: especificar | AP68: 0 | AQ68: kg K2O/TC
B70: Fertilizantes Orgânicos/Organominerais | K70: Fertilizantes Orgânicos/Organominerais | T70: Fertilizantes Orgânicos/Organominerais | AE70: Fertilizantes Orgânicos/Organominerais | AN70: Fertilizantes Orgânicos/Organominerais
C71: Vinhaça | D71: 616.28 | E71: L/t cana | F71: Concentração de N | G71: 0.375 | H71: g N/L | L71: Vinhaça | M71: 440.2 | N71: L/t cana | O71: Concentração de N | P71: 0.375 | Q71: g N/L | U71: Vinhaça | V71: =D71*($D$35/$V$35)+M71*($M$35/$V$35) -> 616.28 | W71: L/t cana | X71: Concentração de N | Y71: =IF((D71*$D$35+M71*$M$35)<>0,(G71*D71*$D$35+P71*M71*$M$35)/(D71*$D$35+M71*$M$35),0) -> 0.375 | Z71: g N/L | AF71: Vinhaça | AG71: 616.28 | AH71: L/t cana | AI71: Concentração de N | AJ71: 0.375 | AK71: g N/L | AO71: Vinhaça | AP71: 440.2 | AQ71: L/t cana | AR71: Concentração de N | AS71: 0.375 | AT71: g N/L
C72: Torta de Filtro (base úmida) | D72: 42.8 | E72: kg/t cana | F72: Concentração de N | G72: 14 | H72: g N/kg | L72: Torta de Filtro (base úmida) | M72: 30.57142857 | N72: kg/t cana | O72: Concentração de N | P72: 14 | Q72: g N/kg | U72: Torta de Filtro (base úmida) | V72: 42.8 | W72: kg/t cana | X72: Concentração de N | Y72: 14 | Z72: g N/kg | AF72: Torta de Filtro (base úmida) | AG72: 42.8 | AH72: kg/t cana | AI72: Concentração de N | AJ72: 14 | AK72: g N/kg | AO72: Torta de Filtro (base úmida) | AP72: 30.57142857 | AQ72: kg/t cana | AR72: Concentração de N | AS72: 14 | AT72: g N/kg
C73: Cinzas e fuligem (base úmida) | D73: 10.08 | E73: kg/t cana | F73: Concentração de N | H73: g N/kg | L73: Cinzas e fuligem (base úmida) | M73: 7.2 | N73: kg/t cana | O73: Concentração de N | Q73: g N/kg | U73: Cinzas e fuligem (base úmida) | V73: 10.08 | W73: kg/t cana | X73: Concentração de N | Y73: 0 | Z73: g N/kg | AF73: Cinzas e fuligem (base úmida) | AG73: 10.08 | AH73: kg/t cana | AI73: Concentração de N | AK73: g N/kg | AO73: Cinzas e fuligem (base úmida) | AP73: 7.2 | AQ73: kg/t cana | AR73: Concentração de N | AT73: g N/kg
B74: Outros | C74: especificar | D74: 0 | E74: kg/t cana | F74: Concentração de N | H74: g N/kg | K74: Outros | L74: especificar | M74: 0 | N74: kg/t cana | O74: Concentração de N | Q74: g N/kg | T74: Outros | U74: especificar | V74: 0 | W74: kg/t cana | X74: Concentração de N | Y74: =IF((D74*$D$35+M74*$M$35)<>0,(G74*D74*$D$35+P74*M74*$M$35)/(D74*$D$35+M74*$M$35),0) -> 0 | Z74: g N/kg | AE74: Outros | AF74: especificar | AG74: 0 | AH74: kg/t cana | AI74: Concentração de N | AK74: g N/kg | AN74: Outros | AO74: especificar | AP74: 0 | AQ74: kg/t cana | AR74: Concentração de N | AT74: g N/kg
B75: Outros | C75: especificar | D75: 0 | E75: kg/t cana | F75: Concentração de N | H75: g N/kg | K75: Outros | L75: especificar | M75: 0 | N75: kg/t cana | O75: Concentração de N | Q75: g N/kg | T75: Outros | U75: especificar | V75: 0 | W75: kg/t cana | X75: Concentração de N | Y75: =IF((D75*$D$35+M75*$M$35)<>0,(G75*D75*$D$35+P75*M75*$M$35)/(D75*$D$35+M75*$M$35),0) -> 0 | Z75: g N/kg | AE75: Outros | AF75: especificar | AG75: 0 | AH75: kg/t cana | AI75: Concentração de N | AK75: g N/kg | AN75: Outros | AO75: especificar | AP75: 0 | AQ75: kg/t cana | AR75: Concentração de N | AT75: g N/kg
B77: Combustíveis e eletricidade da rede | K77: Combustíveis e eletricidade da rede | T77: Combustíveis e eletricidade da rede | AE77: Combustíveis e eletricidade da rede | AN77: Combustíveis e eletricidade da rede
C78: Diesel - B8 | D78: 4.452 | E78: L/t cana | L78: Diesel - B8 | M78: 3.18 | N78: L/t cana | U78: Diesel - B8 | V78: =D78*($D$35/$V$35)+M78*($M$35/$V$35) -> 4.452 | W78: L/t cana | AF78: Diesel - B8 | AG78: 4.452 | AH78: L/t cana | AO78: Diesel - B8 | AP78: 3.18 | AQ78: L/t cana
C79: Diesel - B10 | D79: 0 | E79: L/t cana | L79: Diesel - B10 | M79: 0 | N79: L/t cana | U79: Diesel - B10 | V79: 0 | W79: L/t cana | AF79: Diesel - B10 | AG79: 0 | AH79: L/t cana | AO79: Diesel - B10 | AP79: 0 | AQ79: L/t cana
C80: Diesel - BX | D80: 0 | E80: L/t cana | F80: Teor de biodiesel na mistura | G80: 0.11 | L80: Diesel - BX | M80: 0 | N80: L/t cana | O80: Teor de biodiesel na mistura | P80: 0.11 | U80: Diesel - BX | V80: 0 | W80: L/t cana | X80: Teor médio de biodiesel na mistura | Y80: =IF((D80*$D$35+M80*$M$35)<>0,(G80*D80*$D$35+P80*M80*$M$35)/(D80*$D$35+M80*$M$35),0) -> 0 | Z80: % | AF80: Diesel - BX | AG80: 0 | AH80: L/t cana | AI80: Teor médio de biodiesel na mistura | AJ80: 0.11 | AK80: % | AO80: Diesel - BX | AP80: 0 | AQ80: L/t cana | AR80: Teor médio de biodiesel na mistura | AS80: 0.11 | AT80: %
C81: Diesel - B20 | D81: 0 | E81: L/t cana | L81: Diesel - B20 | M81: 0 | N81: L/t cana | U81: Diesel - B20 | V81: 0 | W81: L/t cana | AF81: Diesel - B20 | AG81: 0 | AH81: L/t cana | AO81: Diesel - B20 | AP81: 0 | AQ81: L/t cana
C82: Diesel - B30 | D82: 0 | E82: L/t cana | L82: Diesel - B30 | M82: 0 | N82: L/t cana | U82: Diesel - B30 | V82: 0 | W82: L/t cana | AF82: Diesel - B30 | AG82: 0 | AH82: L/t cana | AO82: Diesel - B30 | AP82: 0 | AQ82: L/t cana
C83: Biodiesel - B100 | D83: 0 | E83: L/t cana | L83: Biodiesel - B100 | M83: 0 | N83: L/t cana | U83: Biodiesel - B100 | V83: 0 | W83: L/t cana | AF83: Biodiesel - B100 | AG83: 0 | AH83: L/t cana | AO83: Biodiesel - B100 | AP83: 0 | AQ83: L/t cana
C84: Gasolina C | D84: 0 | E84: L/t cana | L84: Gasolina C | M84: 0 | N84: L/t cana | U84: Gasolina C | V84: 0 | W84: L/t cana | AF84: Gasolina C | AG84: 0 | AH84: L/t cana | AO84: Gasolina C | AP84: 0 | AQ84: L/t cana
C85: Etanol hidratado | D85: 0 | E85: L/t cana | L85: Etanol hidratado | M85: 0 | N85: L/t cana | U85: Etanol hidratado | V85: 0 | W85: L/t cana | AF85: Etanol hidratado | AG85: 0 | AH85: L/t cana | AO85: Etanol hidratado | AP85: 0 | AQ85: L/t cana
C86: Biometano de terceiros | D86: 0 | E86: Nm³/t cana | L86: Biometano de terceiros | M86: 0 | N86: Nm³/t cana | U86: Biometano de terceiros | V86: 0 | W86: Nm³/t cana | AF86: Biometano de terceiros | AG86: 0 | AH86: Nm³/t cana | AO86: Biometano de terceiros | AP86: 0 | AQ86: Nm³/t cana
C87: Biometano próprio | D87: 0 | E87: Nm³/t cana | L87: Biometano próprio | M87: 0 | N87: Nm³/t cana | U87: Biometano próprio | V87: 0 | W87: Nm³/t cana | AF87: Biometano próprio | AG87: 0 | AH87: Nm³/t cana | AO87: Biometano próprio | AP87: 0 | AQ87: Nm³/t cana
C88: Eletricidade da rede - mix médio | D88: 0 | E88: kWh/t cana | L88: Eletricidade da rede - mix médio | M88: 0 | N88: kWh/t cana | U88: Eletricidade da rede - mix médio | V88: 0 | W88: kWh/t cana | AF88: Eletricidade da rede - mix médio | AG88: 0 | AH88: kWh/t cana | AO88: Eletricidade da rede - mix médio | AP88: 0 | AQ88: kWh/t cana
C89: Eletricidade - PCH | D89: 0 | E89: kWh/t cana | L89: Eletricidade - PCH | M89: 0 | N89: kWh/t cana | U89: Eletricidade - PCH | V89: 0 | W89: kWh/t cana | AF89: Eletricidade - PCH | AG89: 0 | AH89: kWh/t cana | AO89: Eletricidade - PCH | AP89: 0 | AQ89: kWh/t cana
C90: Eletricidade - biomassa | D90: 0 | E90: kWh/t cana | L90: Eletricidade - biomassa | M90: 0 | N90: kWh/t cana | U90: Eletricidade - biomassa | V90: 0 | W90: kWh/t cana | AF90: Eletricidade - biomassa | AG90: 0 | AH90: kWh/t cana | AO90: Eletricidade - biomassa | AP90: 0 | AQ90: kWh/t cana
C91: Eletricidade - eólica | D91: 0 | E91: kWh/t cana | L91: Eletricidade - eólica | M91: 0 | N91: kWh/t cana | U91: Eletricidade - eólica | V91: 0 | W91: kWh/t cana | AF91: Eletricidade - eólica | AG91: 0 | AH91: kWh/t cana | AO91: Eletricidade - eólica | AP91: 0 | AQ91: kWh/t cana
C92: Eletricidade - solar | D92: 0 | E92: kWh/t cana | L92: Eletricidade - solar | M92: 0 | N92: kWh/t cana | U92: Eletricidade - solar | V92: 0 | W92: kWh/t cana | AF92: Eletricidade - solar | AG92: 0 | AH92: kWh/t cana | AO92: Eletricidade - solar | AP92: 0 | AQ92: kWh/t cana
B95: Fase industrial - processamento do etanol
B96: Processamento e rendimentos
C97: Quantidade de cana processada | D97: 2000000 | E97: t cana
C98: Quantidade de palha processada (base seca) | D98: 0 | E98: t palha
C99: Rendimento Etanol Anidro | D99: 17.53476612 | E99: L/t cana
C100: Rendimento Etanol Hidratado | D100: 25.08034611 | E100: L/t cana
C101: Rendimento Açúcar | D101: 58.45 | E101: kg/t cana
C102: Rendimento Energia Elétrica Comercializada | D102: 30.81 | E102: kWh/t cana
C103: Rendimento Bagaço Comercializado (base úmida) | D103: 0 | E103: kg/t cana | F103: Umidade | G103: 0.5
B105: Combustíveis
C106: Bagaço próprio
C107: Quantidade (base úmida) | D107: 300 | E107: kg/t cana
C108: Umidade | D108: 0.5
C110: Palha própria
C111: Quantidade (base úmida) | D111: 0 | E111: kg/t cana
C112: Umidade | D112: 0
C114: Bagaço de terceiros
C115: Quantidade (base úmida) | D115: 0 | E115: kg/t cana
C116: Umidade | D116: 0
C117: Distância de transporte | D117: 0 | E117: km
C119: Palha de terceiros
C120: Quantidade (base úmida) | D120: 0 | E120: kg/t cana
C121: Umidade | D121: 0
C122: Distância de transporte | D122: 0 | E122: km
C124: Cavaco de madeira
C125: Quantidade (base úmida) | D125: 0 | E125: kg/t cana
C126: Umidade | D126: 0
C127: Distância de transporte | D127: 0 | E127: km
C129: Lenha
C130: Quantidade (base úmida) | D130: 0 | E130: kg/t cana
C131: Umidade | D131: 0
C132: Distância de transporte | D132: 0 | E132: km
C134: Resíduos florestais
C135: Quantidade (base úmida) | D135: 0 | E135: kg/t cana
C136: Umidade | D136: 0
C137: Distância de transporte | D137: 0 | E137: km
B140: Distribuição dos biocombustíveis
C142: Etanol anidro
C143: Rodoviário | D143: 1
C144: Rodoviário + Dutoviário | D144: 0
C145: Rodoviário + Ferroviário | D145: 0
C148: Etanol hidradado
C149: Rodoviário | D149: 1 | E149: %
C150: Rodoviário + Dutoviário | D150: 0 | E150: %
C151: Rodoviário + Ferroviário | D151: 0 | E151: %

Sheet _E1GC
B2: Emissões totais - g CO₂ eq
C3: Anidro | E3: Hidratado
B4: Total | C4: =C5+C6+C7+C8 -> 30.35421659 | E4: =E5+E6+E7+E8 -> 30.63555129
B5: Agrícola | C5: =$G$86 -> 28.06283602 | D5: =C5/$C$4 -> 0.9245119516 | E5: =$G$86 -> 28.06283602 | F5: =E5/$E$4 -> 0.9160219039
B6: Industrial | C6: =($G$129-$G$97) -> 1.049698071 | D6: =C6/$C$4 -> 0.03458162287 | E6: =($G$129-$G$97) -> 1.049698071 | F6: =E6/$E$4 -> 0.03426405031
B7: Transporte | C7: =$D$159 -> 0.8026819585 | D7: =C7/$C$4 -> 0.02644383709 | E7: =$E$159 -> 0.8600163841 | F7: =E7/$E$4 -> 0.02807249578
B8: Uso | C8: ='FE''s queima combustíveis'!$I$7 -> 0.4390005404 | D8: =C8/$C$4 -> 0.01446258839 | E8: ='FE''s queima combustíveis'!$I$8 -> 0.6630008161 | F8: =E8/$E$4 -> 0.02164155004
B11: Etapa agrícola - Cana-de-açúcar
B12: Produto | D12: 1 ha médio | E12: 1 t cana
B13: Produção de cana | C13: kg | D13: =(E1GC!V35/E1GC!V33)*1000 -> 66735.2001 | E13: 1000
B14: Entradas da natureza | D14: 1 ha médio | E14: 1 t cana
B15: Ocupação total | C15: ha | D15: 1 | E15: =(D15*E13)/D13 -> 0.01498459581
B16: Entradas da tecnosfera | D16: 1 ha médio | E16: 1 t cana | F16: g CO2 eq/t cana
B17: Fertilizantes e corretivos | G17: 1 MJ
B18: Calcário calcítico | C18: kg | E18: =E1GC!V48 -> 0 | F18: =E18*'Dados auxiliares'!$H$48 -> 0 | G18: =(F18/$E$91)*$F$91 -> 0
B19: Calcário dolomítico | C19: kg | E19: =E1GC!V49 -> 8.106 | F19: =E19*'Dados auxiliares'!$H$49 -> 298.5896815 | G19: 0.1504696271
B20: Gesso | C20: kg | E20: =E1GC!V50 -> 3.906 | F20: =E20*'Dados auxiliares'!$H$50 -> 11.04958313 | G20: 0.005568265602
B21: N - Ureia | C21: kg N | E21: =E1GC!V53 -> 1.5498 | F21: =E21*'Dados auxiliares'!$H$51 -> 4976.739822 | G21: 2.507950648
B22: N - Fosfato monoamônico (MAP) | C22: kg N | E22: =E1GC!V54 -> 0 | F22: =E22*'Dados auxiliares'!$H$52 -> 0 | G22: 0
B23: P₂O₅ - Fosfato monoamônico (MAP) | C23: kg P₂O₅ | E23: =E1GC!V55 -> 0 | F23: =E23*'Dados auxiliares'!$H$53 -> 0 | G23: 0
B24: N - Fosfato diamônico (DAP) | C24: kg N | E24: =E1GC!V56 -> 0 | F24: =E24*'Dados auxiliares'!$H$54 -> 0 | G24: 0
B25: P₂O₅ - Fosfato diamônico (DAP) | C25: kg P₂O₅ | E25: =E1GC!V57 -> 0 | F25: =E25*'Dados auxiliares'!$H$55 -> 0 | G25: 0
B26: N - Nitrato de amônio | C26: kg N | E26: =E1GC!V58 -> 0 | F26: =E26*'Dados auxiliares'!$H$56 -> 0 | G26: 0
B27: N - Solução de nitrato de amônio e ureia (UAN) | C27: kg N | E27: =E1GC!V59 -> 0 | F27: =E27*'Dados auxiliares'!$H$57 -> 0 | G27: 0
B28: N - Amônia anidra | C28: kg N | E28: =E1GC!V60 -> 0 | F28: =E28*'Dados auxiliares'!$H$58 -> 0 | G28: 0
B29: N - Sulfato de amônio | C29: kg N | E29: =E1GC!V61 -> 0 | F29: =E29*'Dados auxiliares'!$H$59 -> 0 | G29: 0
B30: N - Nitrato de amônio e cálcio (CAN) | C30: kg N | E30: =E1GC!V62 -> 0 | F30: =E30*'Dados auxiliares'!$H$60 -> 0 | G30: 0
B31: P₂O₅ - Superfosfato simples (SSP) | C31: kg P₂O₅ | E31: =E1GC!V63 -> 0.6214583667 | F31: =E31*'Dados auxiliares'!$H$62 -> 1471.39989 | G31: 0.7414890951
B32: P₂O₅ - Superfosfato triplo (TSP) | C32: kg P₂O₅ | E32: =E1GC!V64 -> 0 | F32: =E32*'Dados auxiliares'!$H$63 -> 0 | G32: 0
B33: K₂O - Cloreto de potássio (KCl) | C33: kg K₂O | E33: =E1GC!V65 -> 1.884686862 | F33: =E33*'Dados auxiliares'!H$64 -> 857.9240866 | G33: 0.4323375032
B34: N - Outros | C34: kg N | E34: =E1GC!V66 -> 0 | F34: =E34*'Dados auxiliares'!H$65 -> 0 | G34: 0
B35: P₂O₅ - Outros | C35: kg P₂O₅ | E35: =E1GC!V67 -> 0 | F35: =E35*'Dados auxiliares'!H$66 -> 0 | G35: 0
B36: K₂O - Outros | C36: kg K₂O | E36: =E1GC!V68 -> 0 | F36: =E36*'Dados auxiliares'!H$67 -> 0 | G36: 0
B37: Vinhaça | C37: L | E37: =E1GC!V71 -> 616.28 | F37: 0 | G37: 0
B38: Torta de filtro | C38: kg | E38: =E1GC!V72 -> 42.8 | F38: 0 | G38: 0
B39: Cinzas e fuligem | C39: kg | E39: =E1GC!V73 -> 10.08 | F39: 0 | G39: 0
B40: Outros Fertilizantes Orgânicos/Organominerais | C40: kg | E40: =E1GC!V74+E1GC!V74 -> 0 | F40: 0 | G40: 0
B41: Agrotóxico
B42: Herbicidas e Inseticidas - Total | C42: kg | D42: =SUM(D43:D56) -> 1.083156939 | E42: =SUM(E43:E56) -> 0.01623066893 | F42: =SUM(F43:F56) -> 173.1644285 | G42: =(F42/$E$91)*$F$91 -> 0.08726352112
B43: Herbicida, Roundup Ready, como glifosato | C43: kg | D43: 0.1741182675 | E43: =D43*$E$15 -> 0.002609091862 | F43: =E43*'Dados auxiliares'!$H$68 -> 30.01944534 | G43: 0.0151278327
B44: Herbicida, Boral 500 SC, como sulfentrazone | C44: kg | D44: 0.5107680209 | E44: =D44*$E$15 -> 0.007653652347 | F44: =E44*'Dados auxiliares'!$H$70 -> 82.21952403 | G44: 0.04143325067
B45: Herbicida, Hexaron, como hexazinona | C45: kg | D45: 0.007379322488 | E45: =D45*$E$15 -> 0.0001105761649 | F45: =E45*'Dados auxiliares'!$H$70 -> 1.187866816 | G45: 0.0005986070112
B46: Herbicida, Combine 500 SC, como tebuthiuron | C46: kg | D46: 0.1749146701 | E46: 0.002621025634 | F46: =E46*'Dados auxiliares'!$H$70 -> 28.15642393 | G46: 0.01418899202
B47: Herbicida, Goal, como oxifluorfen | C47: kg | D47: 0.004472316659 | E47: 6.701585749e-05 | F47: =E47*'Dados auxiliares'!$H$70 -> 0.7199192823 | G47: 0.000362792128
B48: Herbicida, Diuron, como diuron | C48: kg | D48: 0.009317326374 | E48: 0.0001396163698 | F48: =E48*'Dados auxiliares'!$H$70 -> 1.499831838 | G48: 0.0007558169334
B49: Herbicida, Herburon, como diuron | C49: kg | D49: 0.04658663187 | E49: =D49*$E$15 -> 0.0006980818488 | F49: =E49*'Dados auxiliares'!$H$70 -> 7.499159191 | G49: 0.003779084667
B50: Herbicida, Hexaron, como diuron | C50: kg | D50: 0.02616305246 | E50: =D50*$E$15 -> 0.0003920427663 | F50: =E50*'Dados auxiliares'!$H$70 -> 4.211527802 | G50: 0.002122333949
B51: Herbicida, Herbipak, como ametrina | C51: kg | D51: 0.04658663187 | E51: 0.0006980818488 | F51: =E51*'Dados auxiliares'!$H$70 -> 7.499159191 | G51: 0.003779084667
B52: Herbicida, Nortox, como 2,4 D | C52: kg | D52: 0.03754882529 | E52: 0.0005626539702 | F52: =E52*'Dados auxiliares'!$H$69 -> 2.859222493 | G52: 0.001440860716
B53: Inseticida, Actara, como thiamethoxan | C53: kg | D53: 0.009317326374 | E53: 0.0001396163698 | F53: =E53*'Dados auxiliares'!$H$70 -> 1.499831838 | G53: 0.0007558169334
B54: Inseticida, Mirex, como sulfluramida | C54: kg | D54: 6.98799478e-05 | E54: 1.047122773e-06 | F54: =E54*'Dados auxiliares'!$H$70 -> 0.01124873879 | G54: 5.668627e-06
B55: Inseticida, Regent 800 WG, como fipronil | C55: kg | D55: 0.03405120139 | E55: =D55*$E$15 -> 0.0005102434898 | F55: =E55*'Dados auxiliares'!$H$70 -> 5.481301602 | G55: 0.002762216711
B56: Inseticida, Regent 800 WG, como fipronil | C56: kg | D56: 0.001863465275 | E56: =D56*$E$15 -> 2.792327395e-05 | F56: =E56*'Dados auxiliares'!$H$70 -> 0.2999663676 | G56: 0.0001511633867
B57: Combustíveis e eletricidade
B58: Diesel B0 | C58: kg | E58: =(E1GC!$V$78*(1-0.08)+E1GC!$V$79*(1-0.1)+E1GC!$V$80*(1-E1GC!$Y$80)+E1GC!V81*(1-0.2)+E1GC!$V$82*(1-0.3)+E1GC!$V$83*(1-1))*('Dados auxiliares'!$D$24) -> 3.4405056 | F58: =E58*'Dados auxiliares'!$H$112 -> 1913.365991 | G58: =(F58/$E$91)*$F$91 -> 0.9642110395
B59: Biodiesel B100 | C59: kg | E59: =(E1GC!$V$78*(0.08)+E1GC!$V$79*(0.1)+E1GC!$V$80*(E1GC!$Y$80)+E1GC!V82*(0.2)+E1GC!$V$82*(0.3)+E1GC!$V$83*(1))*('Dados auxiliares'!$D$17) -> 0.3134208 | F59: =E59*'Dados auxiliares'!$H$113 -> 309.3118954 | G59: 0.1558729201
B60: Gasolina A | C60: kg | E60: =E1GC!V84*(1-'FE''s queima combustíveis'!$D$16)*'Dados auxiliares'!$D$22 -> 0 | F60: =E60*'Dados auxiliares'!$H$116 -> 0 | G60: 0
B61: Etanol anidro | C61: kg | E61: =E1GC!V84*('FE''s queima combustíveis'!$D$16)*'Dados auxiliares'!$D$15 -> 0 | F61: =E61*'Dados auxiliares'!$H$117 -> 0 | G61: 0
B62: Etanol hidratado | C62: kg | E62: =E1GC!V85*'Dados auxiliares'!$D$16 -> 0 | F62: =E62*'Dados auxiliares'!$H$118 -> 0 | G62: 0
B63: Biometano de terceiros | C63: Nm³ | E63: =E1GC!V86 -> 0 | F63: =E63*'Dados auxiliares'!$F$18 -> 0 | G63: 0
B64: Eletricidade da rede - mix médio | C64: kWh | E64: =E1GC!V88 -> 0 | F64: =E64*'Dados auxiliares'!$H$103 -> 0 | G64: 0
B65: Eletricidade - PCH | C65: kWh | E65: =E1GC!V89 -> 0 | F65: =E65*'Dados auxiliares'!$H$104 -> 0 | G65: 0
B66: Eletricidade - biomassa | C66: kWh | E66: =E1GC!V90 -> 0 | F66: =E66*'Dados auxiliares'!$H$105 -> 0 | G66: 0
B67: Eletricidade - eólica | C67: kWh | E67: =E1GC!V91 -> 0 | F67: =E67*'Dados auxiliares'!$H$106 -> 0 | G67: 0
B68: Eletricidade - solar | C68: kWh | E68: =E1GC!V92 -> 0 | F68: =E68*'Dados auxiliares'!$H$107 -> 0 | G68: 0
B69: Emissões | D69: 1 ha médio | E69: 1 t cana | F69: g CO2 eq/t cana
B70: N2O - Fertilizantes sintéticos | C70: kg | D70: ='_Emissões Agrícolas'!$C$54 -> 2.153481509 | E70: =D70*$E$15 -> 0.03226905 | F70: =E70*1000*'Dados auxiliares'!$D$9 -> 8551.29825 | G70: =(F70/$E$91)*$F$91 -> 4.309293785
B71: N2O - Fertilizantes organominerais | C71: kg | D71: ='_Emissões Agrícolas'!$C$58 -> 1.240800985 | E71: =D71*$E$15 -> 0.01859290125 | F71: =E71*1000*'Dados auxiliares'!$D$9 -> 4927.118831 | G71: =(F71/$E$91)*$F$91 -> 2.482944921
B72: N2O - Resíduos culturais | C72: kg | D72: ='_Emissões Agrícolas'!$C$62 -> 0.4278792421 | E72: =D72*$E$15 -> 0.0064115975 | F72: =E72*1000*'Dados auxiliares'!$D$9 -> 1699.073337 | G72: 0.8562215888
B73: CO2 - Calcário | C73: kg | E73: =$E$18*'_Emissões Agrícolas'!$E$79+$E$19*'_Emissões Agrícolas'!$E$80 -> 3.86386 | F73: =E73*1000 -> 3863.86 | G73: =(F73/$E$91)*$F$91 -> 1.947132166
B74: CO2 - Uréia | C74: kg | E74: =$E$21*'_Emissões Agrícolas'!$E$81 -> 2.41812766 | F74: =E74*1000 -> 2418.12766 | G74: 1.218577834
B75: N2O - queima palha | C75: kg | D75: ='_Emissões Agrícolas'!C73 -> 0.654004961 | E75: =D75*$E$15 -> 0.0098 | F75: =E75*1000*'Dados auxiliares'!$D$9 -> 2597 | G75: 1.308717768
B76: CH4 bio - queima palha | C76: kg | D76: ='_Emissões Agrícolas'!C74 -> 25.22590564 | E76: =D76*$E$15 -> 0.378 | F76: =E76*1000*'Dados auxiliares'!$D$8 -> 10584 | G76: 5.333642225
B77: CO₂ eq - queima do diesel | C77: kg | E77: =$E$58*'FE''s queima combustíveis'!$I$53/1000 -> 10.85710031 | F77: =E77*1000 -> 10857.10031 | G77: 5.471266878
B78: CO₂ eq - queima do biodiesel | C78: kg | E78: =$E$59*'FE''s queima combustíveis'!$I$54/1000 -> 0.005184621542 | F78: =E78*1000 -> 5.184621542 | G78: 0.002612709408
B79: CO₂ eq - queima da gasolina A | C79: kg | E79: =$E$60*'FE''s queima combustíveis'!$I$9/1000 -> 0 | F79: 0 | G79: 0
B80: CO₂ eq - queima do etanol anidro | C80: kg | E80: =$E$61*'FE''s queima combustíveis'!$I$7/1000 -> 0 | F80: 0 | G80: 0
B81: CO₂ eq - queima do etanol hidratado | C81: kg | E81: =$E$62*'FE''s queima combustíveis'!$I$8/1000 -> 0 | F81: 0 | G81: 0
B82: CO₂ eq - queima do biometano | C82: kg | E82: =($E$63+E1GC!V87)*'FE''s queima combustíveis'!$I$55/1000 -> 0 | F82: 0 | G82: 0
B84: Emissões do processo | C84: g CO2 eq/t cana | F84: =SUM(F70:F82) -> 45502.76301 | G84: =(F84/$E$91)*$F$91 -> 22.93040988
B85: Emissões background | C85: g CO2 eq/t cana | F85: =SUM(F18:F68) -> 10184.70981 | G85: =(F85/$E$91)*$F$91 -> 5.132426141
B86: Emissões totais | C86: g CO2 eq/t cana | F86: =F84+F85 -> 55687.47281 | G86: =(F86/$E$91)*$F$91 -> 28.06283602
B89: Etapa industrial - Etanol
B90: Produtos | C90: Unidade | D90: 1 TC | E90: MJ | F90: Alocação
B91: Etanol anidro | C91: kg | D91: =E1GC!D99*'Dados auxiliares'!$D$15 -> 13.87 | E91: =D91*'Dados auxiliares'!$F$15 -> 391.9782005 | F91: =E91/SUM($E$91:$E$95) -> 0.1975313191
B92: Etanol hidratado | C92: kg | D92: =E1GC!D100*'Dados auxiliares'!$D$16 -> 20.29 | E92: =D92*'Dados auxiliares'!$F$16 -> 535.1854248 | F92: =E92/SUM($E$91:$E$95) -> 0.269698373
B93: Açúcar | C93: kg | D93: =E1GC!D101 -> 58.45 | E93: =D93*'Dados auxiliares'!D33 -> 946.3055 | F93: =E93/SUM($E$91:$E$95) -> 0.4768759422
B94: Energia elétrica comercializada | C94: kWh | D94: =E1GC!D102 -> 30.81 | E94: =CONVERT(D94,"kWh","MJ") -> 110.9159447 | F94: =E94/SUM($E$91:$E$95) -> 0.05589436566
B95: Bagaço comercializado | C95: kg base úmida | D95: =E1GC!D103 -> 0 | E95: - | F95: - | G95: Resíduo
B96: Entradas | C96: Unidade | D96: 1 TC | F96: g CO2 eq/t cana
B97: Cana-de-açúcar | C97: t | D97: 1 | F97: =D97*F86 -> 55687.47281 | G97: =(F97/$E$91)*$F$91 -> 28.06283602
B98: Água | C98: kg | D98: 1500 | F98: =D98*'Dados auxiliares'!$H$79 -> 13.2023586 | G98: 0.006653123329
B99: Cal (CaO) | C99: kg | D99: 0.82 | F99: =D99*'Dados auxiliares'!$H$80 -> 788.62447 | G99: 0.397415039
B100: Ácido sulfúrico | C100: kg | D100: 0.265 | F100: =D100*'Dados auxiliares'!$H$84 -> 28.98036282 | G100: 0.01460420322
B101: Ácido fosfórico | C101: kg | D101: =176.5/1000 -> 0.1765 | F101: =D101*'Dados auxiliares'!$H$85 -> 267.0316072 | G101: 0.1345664262
B102: Floculante | C102: kg | D102: =2.555/1000 -> 0.002555 | F102: =D102*'Dados auxiliares'!$H$87 -> 5.495541826 | G102: 0.002769392851
B103: Antibióticos | C103: kg | D103: =0.297/1000 -> 0.000297 | F103: =D103*'Dados auxiliares'!$H$88 -> 0.6388164079 | G103: 0.0003219215956
B104: Óleo lubrificante | C104: kg | D104: =13/1000 -> 0.013 | F104: =D104*'Dados auxiliares'!$H$89 -> 14.70824221 | G104: 0.007411989956
B105: Zeolita | C105: kg | D105: =(D91*0.03)/67.2 -> 0.006191964286 | F105: =D105*'Dados auxiliares'!$H$90 -> 31.02378024 | G105: 0.01563395165
B106: Bagaço próprio | C106: kg base seca | D106: =E1GC!$D$107*(1-E1GC!$D$108) -> 150 | F106: 0 | G106: 0
B107: Palha própria | C107: kg base seca | D107: =E1GC!$D$111*(1-E1GC!$D$112) -> 0 | F107: 0 | G107: 0
B108: Bagaço de terceiros | C108: kg base seca | D108: =E1GC!$D$115*(1-E1GC!$D$116) -> 0 | F108: 0 | G108: 0
B109: Transporte de bagaço de terceiros | C109: tkm | D109: =((D108/1000)*E1GC!$D$117) -> 0 | F109: =D109*'Dados auxiliares'!$H$125 -> 0 | G109: 0
B110: Palha de terceiros | C110: kg base seca | D110: =E1GC!$D$120*(1-E1GC!$D$121) -> 0 | F110: =D110*'Dados auxiliares'!$H$74 -> 0 | G110: 0
B111: Transporte de palha de terceiros | C111: tkm | D111: =((D110/1000)*E1GC!$D$122) -> 0 | F111: =D111*'Dados auxiliares'!$H$125 -> 0 | G111: 0
B112: Cavaco de madeira | C112: kg base seca | D112: =E1GC!$D$125*(1-E1GC!$D$126) -> 0 | F112: =D112*'Dados auxiliares'!$H$119 -> 0 | G112: 0
B113: Transporte de cavaco de madeira | C113: tkm | D113: =((D112/1000)*E1GC!$D$127) -> 0 | F113: =D113*'Dados auxiliares'!$H$125 -> 0 | G113: 0
B114: Lenha | C114: kg base seca | D114: =E1GC!$D$130*(1-E1GC!$D$131) -> 0 | F114: =D114*'Dados auxiliares'!$H$120 -> 0 | G114: 0
B115: Transporte de lenha | C115: tkm | D115: =((D114/1000)*E1GC!$D$132) -> 0 | F115: =D115*'Dados auxiliares'!$H$125 -> 0 | G115: 0
B116: Resíduos florestais | C116: kg base seca | D116: =E1GC!$D$135*(1-E1GC!$D$136) -> 0 | F116: 0 | G116: 0
B117: Transporte de resíduos florestais | C117: tkm | D117: =((D116/1000)*E1GC!$D$137) -> 0 | F117: =D117*'Dados auxiliares'!$H$125 -> 0 | G117: 0
B118: Emissões | C118: Unidade | D118: 1 TC | F118: g CO2 eq/t cana
B119: CO₂ eq - queima do bagaço próprio | C119: kg | D119: =$D$106*'FE''s queima combustíveis'!$I$33/1000 -> 0.9333 | F119: =D119*1000 -> 933.3 | G119: 0.4703220227
B120: CO₂ eq - queima da palha própria | C120: kg | D120: =$D$107*'FE''s queima combustíveis'!$I$34/1000 -> 0 | F120: =D120*1000 -> 0 | G120: 0
B121: CO₂ eq - queima do bagaço de terceiros | C121: kg | D121: =$D$108*'FE''s queima combustíveis'!$I$33/1000 -> 0 | F121: 0 | G121: 0
B122: CO₂ eq - queima da palha de terceiros | C122: kg | D122: =$D$110*'FE''s queima combustíveis'!$I$34/1000 -> 0 | F122: 0 | G122: 0
B123: CO₂ eq - queima dos cavacos de madeira | C123: kg | D123: =$D$112*'FE''s queima combustíveis'!$I$35/1000 -> 0 | F123: 0 | G123: 0
B124: CO₂ eq - queima da lenha | C124: kg | D124: =$D$114*'FE''s queima combustíveis'!$I$36/1000 -> 0 | F124: 0 | G124: 0
B125: CO₂ eq - queima dos resíduos florestais | C125: kg | D125: =$D$116*'FE''s queima combustíveis'!$I$37/1000 -> 0 | F125: 0 | G125: 0
B127: Emissões do processo | C127: g CO2 eq/t cana | F127: =SUM(F119:F125) -> 933.3 | G127: 0.4703220227
B128: Emissões background | C128: g CO2 eq/t cana | F128: =SUM(F97:F117) -> 56837.17799 | G128: 28.64221206
B129: Emissões totais | C129: g CO2 eq/t cana | F129: =F127+F128 -> 57770.47799 | G129: 29.11253409
B132: Etapa distribuição
B133: Sistema logiístico rodoviário
B134: Parâmetro | C134: Unidade | D134: Etanol anidro | E134: Etanol hidratado
B135: Massa | C135: kg/t cana | D135: =$D$91*E1GC!$D$143 -> 13.87 | E135: =$D$92*E1GC!$D$149 -> 20.29
B136: Distância de transporte rodoviário | C136: km | D136: 700 | E136: 700
B137: Transporte rodoviário | C137: tkm/t cana | D137: =D135/1000*D136 -> 9.709 | E137: =E135/1000*E136 -> 14.203
B138: Emissões | C138: g CO2 eq/t cana | D138: =D137*'Dados auxiliares'!$H$126 -> 314.6338297 | E138: =E137*'Dados auxiliares'!$H$126 -> 460.2682339
B139: Emissões | C139: g CO2 eq/MJ | D139: =D138/$E$91 -> 0.8026819585 | E139: =E138/$E$92 -> 0.8600163841
B140: Sistema logiístico rodoviário + dutoviário
B141: Parâmetro | C141: Unidade | D141: Etanol anidro | E141: Etanol hidratado
B142: Massa | C142: kg/t cana | D142: =$D$91*E1GC!$D$144 -> 0 | E142: =$D$92*E1GC!$D$150 -> 0
B143: Distância de transporte rodoviário | C143: km | D143: 400 | E143: 400
B144: Transporte rodoviário | C144: tkm/t cana | D144: =D142/1000*D143 -> 0 | E144: =E142/1000*E143 -> 0
B145: Distância de transporte dutoviário | C145: km | D145: 300 | E145: 300
B146: Transporte dutoviário | C146: tkm/t cana | D146: =D142/1000*D145 -> 0 | E146: =E142/1000*E145 -> 0
B147: Emissões | C147: g CO2 eq/t cana | D147: =D144*'Dados auxiliares'!$H$126+D146*'Dados auxiliares'!$H$130 -> 0 | E147: =E144*'Dados auxiliares'!$H$126+E146*'Dados auxiliares'!$H$130 -> 0
B148: Emissões | C148: g CO2 eq/MJ | D148: =D147/$E$91 -> 0 | E148: =E147/$E$92 -> 0
B149: Sistema logiístico rodoviário + ferroviário
B150: Parâmetro | C150: Unidade | D150: Etanol anidro | E150: Etanol hidratado
B151: Massa | C151: kg/t cana | D151: =$D$91*E1GC!$D$145 -> 0 | E151: =$D$92*E1GC!$D$151 -> 0
B152: Distância de transporte rodoviário | C152: km | D152: 400 | E152: 400
B153: Transporte rodoviário | C153: tkm/t cana | D153: =D151/1000*D152 -> 0 | E153: =E151/1000*E152 -> 0
B154: Distância de transporte ferroviário | C154: km | D154: 300 | E154: 300
B155: Transporte ferroviário | C155: tkm/t cana | D155: =D151/1000*D154 -> 0 | E155: =E151/1000*E154 -> 0
B156: Emissões | C156: g CO2 eq/t cana | D156: =D153*'Dados auxiliares'!$H$126+D155*'Dados auxiliares'!$H$129 -> 0 | E156: =E153*'Dados auxiliares'!$H$126+E155*'Dados auxiliares'!$H$129 -> 0
B157: Emissões | C157: g CO2 eq/MJ | D157: =D156/$E$91 -> 0 | E157: =E156/$E$92 -> 0
B159: Emissões totais | C159: g CO2 eq/MJ | D159: =D139+D148+D157 -> 0.8026819585 | E159: =E139+E148+E157 -> 0.8600163841

Sheet E1G2G
B2: Produção de Etanol de primeira e segunda geração em usina integrada
B4: Nome da Usina: | C4: Usina Hipotética
B6: CNPJ | C6: 00.000.000/0000-00
B8: Responsável pelo preenchimento: | C8: GT ACV RenovaCalc
B10: Telefone : | C10: (00) 0000-0000
C13: Etanol Anidro
B15: Intensidade de Carbono (g CO₂eq/MJ) | C15: =SUM(C17:C20) -> 18.62689279 | D15: Nota de Eficiência Energético-Ambiental (g CO₂eq/MJ) | G15: =G18-C15 -> 68.77310721
B17: agrícola | C17: =IF(C13="Etanol Anidro",_E1G2G!C5,IF(C13="Etanol Hidratado",_E1G2G!E5,"")) -> 16.54957 | G17: Fóssil de referência: Gasolina
B18: industrial | C18: =IF(C13="Etanol Anidro",_E1G2G!C6,IF(C13="Etanol Hidratado",_E1G2G!E6,"")) -> 0.835640294 | G18: 87.4
B19: transporte | C19: =IF(C13="Etanol Anidro",_E1G2G!C7,IF(C13="Etanol Hidratado",_E1G2G!E7,"")) -> 0.8026819585 | G19: Redução de emissões
B20: uso | C20: =IF(C13="Etanol Anidro",_E1G2G!C8,IF(C13="Etanol Hidratado",_E1G2G!E8,"")) -> 0.4390005404 | G20: =(G18-C15)/G18 -> 0.7868776568
B23: Usina - Área de cana própria | K23: Fornecedores - Dados consolidados | T23: Média ponderada - RenovaCalc | AE23: Default - Cana | AN23: Guarda dados de preenchimento
B24: Informações gerais | K24: Informações gerais | T24: Informações gerais | AE24: Informações gerais | AN24: Informações gerais
B25: Houve supressão de vegetação nativa a partir de 26 de dezembro de 2017? | D25: Não | K25: Houve supressão de vegetação nativa a partir de 26 de dezembro de 2017? | M25: Não | T25: Houve supressão de vegetação nativa a partir de 26 de dezembro de 2017? | V25: =IF(OR(D25="Sim",M25="Sim"),"Sim","Não") -> Não
C26: Usina atende ao ZAE Cana? | D26: Sim | L26: Usina atende ao ZAE Cana? | M26: Sim | U26: Usina atende ao ZAE Cana? | V26: =IF(OR(D26=Listas!$B$4,M26=Listas!$B$4),Listas!$B$4,Listas!$B$3) -> Sim
C28: Número de registro no CAR | D28: UF-1302405-E6D3.395B.6D27.4F42.AE22.DD56.987C.DD51 | L28: Número de registro no CAR | M28: Cadastro de fornecedores | U28: Número de registro no CAR | V28: Cadastro de fornecedores
C30: Situação do CAR | D30: Ativo | L30: Situação do CAR | M30: Ativo | U30: Situação do CAR | V30: =IF(AND(D30=Listas!$B$7,M30=Listas!$B$7),Listas!$B$7,IF(OR(D30=Listas!$B$9,M30=Listas!$B$9),Listas!$B$9,Listas!$B$8)) -> Ativo
C32: Sistema de plantio | D32: Convencional | L32: Sistema de plantio | M32: Convencional | U32: Sistema de plantio | V32: Convencional
C33: Área total | D33: 20000 | E33: ha | L33: Área total | M33: 20000 | N33: ha | U33: Área total | V33: =D33+M33 -> 40000 | W33: ha
C35: Produção total colhida para moagem | D35: 1334704.002 | E35: t cana | L35: Produção total colhida para moagem | M35: 1334704.002 | N35: t cana | U35: Produção total colhida para moagem | V35: =D35+M35 -> 2669408.004 | W35: t cana
C36: Teor de impurezas vegetais (base úmida) | D36: 50 | E36: kg/t cana | F36: Umidade | G36: 0.5 | L36: Teor de impurezas vegetais (base úmida) | M36: 50 | N36: kg/t cana | O36: Umidade | P36: 0.5 | U36: Teor de impurezas vegetais (base úmida) | V36: =D36*($D$35/$V$35)+M36*($M$35/$V$35) -> 50 | W36: kg/t cana | X36: Umidade | Y36: =IF((D36*$D$35+M36*$M$35)<>0,(G36*D36*$D$35+P36*M36*$M$35)/(D36*$D$35+M36*$M$35),0) -> 0.5
C37: Teor de impurezas minerais | D37: 20 | E37: kg/t cana | L37: Teor de impurezas minerais | M37: 20 | N37: kg/t cana | U37: Teor de impurezas minerais | V37: 20 | W37: kg/t cana
C38: Palha recolhida (base seca) | D38: 0 | E38: t palha | L38: Palha recolhida (base seca) | M38: 0 | N38: t palha | U38: Palha recolhida (base seca) | V38: =D38+M38 -> 0 | W38: t palha
B40: Tipo de preenchimento | K40: Tipo de preenchimento | T40: Tipo de preenchimento | AE40: Tipo de preenchimento | AN40: Tipo de preenchimento
B41: Tipo de dados forneceidos pela usina: | K41: Tipo de dados forneceidos pelos fornecedores: | T41: Tipo de dados forneceidos: | AG41: Padrão | AP41: Primários
B42: =AP41 -> Primários | K42: Em função das informações de cada fornecedor | T42: Em função das informações da usina e de cada fornecedor
B44: Área Queimada | K44: Área Queimada | T44: Área Queimada | AE44: Área Queimada | AN44: Área Queimada
C45: Área queimada | D45: 3680 | E45: ha | L45: Área queimada | M45: 3680 | N45: ha | U45: Área queimada | V45: =D45+M45 -> 7360 | W45: ha | AF45: Área queimada | AG45: 1 | AH45: % da área total | AO45: Área queimada | AP45: 3680 | AQ45: % da área total
B47: Corretivos | K47: Corretivos | T47: Corretivos | AE47: Corretivos | AN47: Corretivos
C48: Calcário calcítico | D48: 0 | E48: kg/t cana | L48: Calcário calcítico | M48: 0 | N48: kg/t cana | U48: Calcário calcítico | V48: =D48*($D$35/$V$35)+M48*($M$35/$V$35) -> 0 | W48: kg/t cana | AF48: Calcário calcítico | AG48: 0 | AH48: kg/t cana | AO48: Calcário calcítico | AP48: 0 | AQ48: kg/t cana
C49: Calcário dolomítico | D49: 5.79 | E49: kg/t cana | L49: Calcário dolomítico | M49: 5.79 | N49: kg/t cana | U49: Calcário dolomítico | V49: =D49*($D$35/$V$35)+M49*($M$35/$V$35) -> 5.79 | W49: kg/t cana | AF49: Calcário dolomítico | AG49: 8.106 | AH49: kg/t cana | AO49: Calcário dolomítico | AP49: 5.79 | AQ49: kg/t cana
C50: Gesso | D50: 2.79 | E50: kg/t cana | L50: Gesso | M50: 2.79 | N50: kg/t cana | U50: Gesso | V50: =D50*($D$35/$V$35)+M50*($M$35/$V$35) -> 2.79 | W50: kg/t cana | AF50: Gesso | AG50: 3.906 | AH50: kg/t cana | AO50: Gesso | AP50: 2.79 | AQ50: kg/t cana
B52: Fertilizantes Sintéticos | K52: Fertilizantes Sintéticos | T52: Fertilizantes Sintéticos | AE52: Fertilizantes Sintéticos | AN52: Fertilizantes Sintéticos
C53: Ureia | D53: 1.107 | E53: kg N/t cana | L53: Ureia | M53: 1.107 | N53: kg N/t cana | U53: Ureia | V53: =D53*($D$35/$V$35)+M53*($M$35/$V$35) -> 1.107 | W53: kg N/t cana | AF53: Ureia | AG53: 1.5498 | AH53: kg N/TC | AO53: Ureia | AP53: 1.107 | AQ53: kg N/TC
C54: Fosfato monoamônico (MAP) | D54: 0 | E54: kg N/t cana | L54: Fosfato monoamônico (MAP) | M54: 0 | N54: kg N/t cana | U54: Fosfato monoamônico (MAP) | V54: 0 | W54: kg N/t cana | AF54: Fosfato monoamônico (MAP) | AG54: 0 | AH54: kg N/TC | AO54: Fosfato monoamônico (MAP) | AP54: 0 | AQ54: kg N/TC
C55: Fosfato monoamônico (MAP) | D55: 0 | E55: kg P₂O₅/t cana | L55: Fosfato monoamônico (MAP) | M55: 0 | N55: kg P₂O₅/t cana | U55: Fosfato monoamônico (MAP) | V55: 0 | W55: kg P₂O₅/t cana | AF55: Fosfato monoamônico (MAP) | AG55: 0 | AH55: kg P2O5/TC | AO55: Fosfato monoamônico (MAP) | AP55: 0 | AQ55: kg P2O5/TC
C56: Fosfato diamônico (DAP) | D56: 0 | E56: kg N/t cana | L56: Fosfato diamônico (DAP) | M56: 0 | N56: kg N/t cana | U56: Fosfato diamônico (DAP) | V56: 0 | W56: kg N/t cana | AF56: Fosfato diamônico (DAP) | AG56: 0 | AH56: kg N/TC | AO56: Fosfato diamônico (DAP) | AP56: 0 | AQ56: kg N/TC
C57: Fosfato diamônico (DAP) | D57: 0 | E57: kg P₂O₅/t cana | L57: Fosfato diamônico (DAP) | M57: 0 | N57: kg P₂O₅/t cana | U57: Fosfato diamônico (DAP) | V57: 0 | W57: kg P₂O₅/t cana | AF57: Fosfato diamônico (DAP) | AG57: 0 | AH57: kg P2O5/TC | AO57: Fosfato diamônico (DAP) | AP57: 0 | AQ57: kg P2O5/TC
C58: Nitrato de amônio | D58: 0 | E58: kg N/t cana | L58: Nitrato de amônio | M58: 0 | N58: kg N/t cana | U58: Nitrato de amônio | V58: 0 | W58: kg N/t cana | AF58: Nitrato de amônio | AG58: 0 | AH58: kg N/TC | AO58: Nitrato de amônio | AP58: 0 | AQ58: kg N/TC
C59: Solução de nitrato de amônio e ureia (UAN) | D59: 0 | E59: kg N/t cana | L59: Solução de nitrato de amônio e ureia (UAN) | M59: 0 | N59: kg N/t cana | U59: Solução de nitrato de amônio e ureia (UAN) | V59: 0 | W59: kg N/t cana | AF59: Solução de nitrato de amônio e ureia (UAN) | AG59: 0 | AH59: kg N/TC | AO59: Solução de nitrato de amônio e ureia (UAN) | AP59: 0 | AQ59: kg N/TC
C60: Amônia anidra | D60: 0 | E60: kg N/t cana | L60: Amônia anidra | M60: 0 | N60: kg N/t cana | U60: Amônia anidra | V60: 0 | W60: kg N/t cana | AF60: Amônia anidra | AG60: 0 | AH60: kg N/TC | AO60: Amônia anidra | AP60: 0 | AQ60: kg N/TC
C61: Sulfato de amônio | D61: 0 | E61: kg N/t cana | L61: Sulfato de amônio | M61: 0 | N61: kg N/t cana | U61: Sulfato de amônio | V61: 0 | W61: kg N/t cana | AF61: Sulfato de amônio | AG61: 0 | AH61: kg N/TC | AO61: Sulfato de amônio | AP61: 0 | AQ61: kg N/TC
C62: Nitrato de amônio e cálcio (CAN) | D62: 0 | E62: kg N/t cana | L62: Nitrato de amônio e cálcio (CAN) | M62: 0 | N62: kg N/t cana | U62: Nitrato de amônio e cálcio (CAN) | V62: 0 | W62: kg N/t cana | AF62: Nitrato de amônio e cálcio (CAN) | AG62: 0 | AH62: kg N/TC | AO62: Nitrato de amônio e cálcio (CAN) | AP62: 0 | AQ62: kg N/TC
C63: Superfosfato simples (SSP) | D63: 0.4438988334 | E63: kg P₂O₅/t cana | L63: Superfosfato simples (SSP) | M63: 0.4438988334 | N63: kg P₂O₅/t cana | U63: Superfosfato simples (SSP) | V63: 0.4438988334 | W63: kg P₂O₅/t cana | AF63: Superfosfato simples (SSP) | AG63: 0.6214583667 | AH63: kg P2O5/TC | AO63: Superfosfato simples (SSP) | AP63: 0.4438988334 | AQ63: kg P2O5/TC
C64: Superfosfato triplo (TSP) | D64: 0 | E64: kg P₂O₅/t cana | L64: Superfosfato triplo (TSP) | M64: 0 | N64: kg P₂O₅/t cana | U64: Superfosfato triplo (TSP) | V64: 0 | W64: kg P₂O₅/t cana | AF64: Superfosfato triplo (TSP) | AG64: 0 | AH64: kg P2O5/TC | AO64: Superfosfato triplo (TSP) | AP64: 0 | AQ64: kg P2O5/TC
C65: Cloreto de potássio (KCl) | D65: 1.346204902 | E65: kg K₂O/t cana | L65: Cloreto de potássio (KCl) | M65: 1.346204902 | N65: kg K₂O/t cana | U65: Cloreto de potássio (KCl) | V65: 1.346204902 | W65: kg K₂O/t cana | AF65: Cloreto de potássio (KCl) | AG65: 1.884686862 | AH65: kg K2O/TC | AO65: Cloreto de potássio (KCl) | AP65: 1.346204902 | AQ65: kg K2O/TC
B66: Outros | C66: especificar | D66: 0 | E66: kg N/t cana | K66: Outros | L66: especificar | M66: 0 | N66: kg N/t cana | T66: Outros | U66: especificar | V66: 0 | W66: kg N/t cana | AE66: Outros | AF66: especificar | AG66: 0 | AH66: kg N /TC | AN66: Outros | AO66: especificar | AP66: 0 | AQ66: kg N /TC
B67: Outros | C67: especificar | D67: 0 | E67: kg P₂O₅/t cana | K67: Outros | L67: especificar | M67: 0 | N67: kg P₂O₅/t cana | T67: Outros | U67: especificar | V67: 0 | W67: kg P₂O₅/t cana | AE67: Outros | AF67: especificar | AG67: 0 | AH67: kg P2O5/TC | AN67: Outros | AO67: especificar | AP67: 0 | AQ67: kg P2O5/TC
B68: Outros | C68: especificar | D68: 0 | E68: kg K₂O/t cana | K68: Outros | L68: especificar | M68: 0 | N68: kg K₂O/t cana | T68: Outros | U68: especificar | V68: 0 | W68: kg K₂O/t cana | AE68: Outros | AF68: especificar | AG68: 0 | AH68: kg K2O/TC | AN68: Outros | AO68: especificar | AP68: 0 | AQ68: kg K2O/TC
B70: Fertilizantes Orgânicos/Organominerais | K70: Fertilizantes Orgânicos/Organominerais | T70: Fertilizantes Orgânicos/Organominerais | AE70: Fertilizantes Orgânicos/Organominerais | AN70: Fertilizantes Orgânicos/Organominerais
C71: Vinhaça | D71: 440.2 | E71: L/t cana | F71: Concentração de N | G71: 0.375 | H71: g N/L | L71: Vinhaça | M71: 440.2 | N71: L/t cana | O71: Concentração de N | P71: 0.375 | Q71: g N/L | U71: Vinhaça | V71: =D71*($D$35/$V$35)+M71*($M$35/$V$35) -> 440.2 | W71: L/t cana | X71: Concentração de N | Y71: =IF((D71*$D$35+M71*$M$35)<>0,(G71*D71*$D$35+P71*M71*$M$35)/(D71*$D$35+M71*$M$35),0) -> 0.375 | Z71: g N/L | AF71: Vinhaça | AG71: 616.28 | AH71: L/t cana | AI71: Concentração de N | AJ71: 0.375 | AK71: g N/L | AO71: Vinhaça | AP71: 440.2 | AQ71: L/t cana | AR71: Concentração de N | AS71: 0.375 | AT71: g N/L
C72: Torta de Filtro (base úmida) | D72: 30.57142857 | E72: kg/t cana | F72: Concentração de N | G72: 14 | H72: g N/kg | L72: Torta de Filtro (base úmida) | M72: 30.57142857 | N72: kg/t cana | O72: Concentração de N | P72: 14 | Q72: g N/kg | U72: Torta de Filtro (base úmida) | V72: 30.57142857 | W72: kg/t cana | X72: Concentração de N | Y72: 14 | Z72: g N/kg | AF72: Torta de Filtro (base úmida) | AG72: 42.8 | AH72: kg/t cana | AI72: Concentração de N | AJ72: 14 | AK72: g N/kg | AO72: Torta de Filtro (base úmida) | AP72: 30.57142857 | AQ72: kg/t cana | AR72: Concentração de N | AS72: 14 | AT72: g N/kg
C73: Cinzas e fuligem (base úmida) | D73: 7.2 | E73: kg/t cana | F73: Concentração de N | H73: g N/kg | L73: Cinzas e fuligem (base úmida) | M73: 7.2 | N73: kg/t cana | O73: Concentração de N | Q73: g N/kg | U73: Cinzas e fuligem (base úmida) | V73: 7.2 | W73: kg/t cana | X73: Concentração de N | Y73: 0 | Z73: g N/kg | AF73: Cinzas e fuligem (base úmida) | AG73: 10.08 | AH73: kg/t cana | AI73: Concentração de N | AK73: g N/kg | AO73: Cinzas e fuligem (base úmida) | AP73: 7.2 | AQ73: kg/t cana | AR73: Concentração de N | AT73: g N/kg
B74: Outros | C74: especificar | D74: 0 | E74: kg/t cana | F74: Concentração de N | H74: g N/kg | K74: Outros | L74: especificar | M74: 0 | N74: kg/t cana | O74: Concentração de N | Q74: g N/kg | T74: Outros | U74: especificar | V74: 0 | W74: kg/t cana | X74: Concentração de N | Y74: =IF((D74*$D$35+M74*$M$35)<>0,(G74*D74*$D$35+P74*M74*$M$35)/(D74*$D$35+M74*$M$35),0) -> 0 | Z74: g N/kg | AE74: Outros | AF74: especificar | AG74: 0 | AH74: kg/t cana | AI74: Concentração de N | AK74: g N/kg | AN74: Outros | AO74: especificar | AP74: 0 | AQ74: kg/t cana | AR74: Concentração de N | AT74: g N/kg
B75: Outros | C75: especificar | D75: 0 | E75: kg/t cana | F75: Concentração de N | H75: g N/kg | K75: Outros | L75: especificar | M75: 0 | N75: kg/t cana | O75: Concentração de N | Q75: g N/kg | T75: Outros | U75: especificar | V75: 0 | W75: kg/t cana | X75: Concentração de N | Y75: =IF((D75*$D$35+M75*$M$35)<>0,(G75*D75*$D$35+P75*M75*$M$35)/(D75*$D$35+M75*$M$35),0) -> 0 | Z75: g N/kg | AE75: Outros | AF75: especificar | AG75: 0 | AH75: kg/t cana | AI75: Concentração de N | AK75: g N/kg | AN75: Outros | AO75: especificar | AP75: 0 | AQ75: kg/t cana | AR75: Concentração de N | AT75: g N/kg
B77: Combustíveis e eletricidade da rede | K77: Combustíveis e eletricidade da rede | T77: Combustíveis e eletricidade da rede | AE77: Combustíveis e eletricidade da rede | AN77: Combustíveis e eletricidade da rede
C78: Diesel - B8 | D78: 3.18 | E78: L/t cana | L78: Diesel - B8 | M78: 3.18 | N78: L/t cana | U78: Diesel - B8 | V78: =D78*($D$35/$V$35)+M78*($M$35/$V$35) -> 3.18 | W78: L/t cana | AF78: Diesel - B8 | AG78: 4.452 | AH78: L/t cana | AO78: Diesel - B8 | AP78: 3.18 | AQ78: L/t cana
C79: Diesel - B10 | D79: 0 | E79: L/t cana | L79: Diesel - B10 | M79: 0 | N79: L/t cana | U79: Diesel - B10 | V79: 0 | W79: L/t cana | AF79: Diesel - B10 | AG79: 0 | AH79: L/t cana | AO79: Diesel - B10 | AP79: 0 | AQ79: L/t cana
C80: Diesel - BX | D80: 0 | E80: L/t cana | F80: Teor de biodiesel na mistura | G80: 0.11 | L80: Diesel - BX | M80: 0 | N80: L/t cana | O80: Teor de biodiesel na mistura | P80: 0.11 | U80: Diesel - BX | V80: 0 | W80: L/t cana | X80: Teor médio de biodiesel na mistura | Y80: =IF((D80*$D$35+M80*$M$35)<>0,(G80*D80*$D$35+P80*M80*$M$35)/(D80*$D$35+M80*$M$35),0) -> 0 | Z80: % | AF80: Diesel - BX | AG80: 0 | AH80: L/t cana | AI80: Teor médio de biodiesel na mistura | AJ80: 0.11 | AK80: % | AO80: Diesel - BX | AP80: 0 | AQ80: L/t cana | AR80: Teor médio de biodiesel na mistura | AS80: 0.11 | AT80: %
C81: Diesel - B20 | D81: 0 | E81: L/t cana | L81: Diesel - B20 | M81: 0 | N81: L/t cana | U81: Diesel - B20 | V81: 0 | W81: L/t cana | AF81: Diesel - B20 | AG81: 0 | AH81: L/t cana | AO81: Diesel - B20 | AP81: 0 | AQ81: L/t cana
C82: Diesel - B30 | D82: 0 | E82: L/t cana | L82: Diesel - B30 | M82: 0 | N82: L/t cana | U82: Diesel - B30 | V82: 0 | W82: L/t cana | AF82: Diesel - B30 | AG82: 0 | AH82: L/t cana | AO82: Diesel - B30 | AP82: 0 | AQ82: L/t cana
C83: Biodiesel - B100 | D83: 0 | E83: L/t cana | L83: Biodiesel - B100 | M83: 0 | N83: L/t cana | U83: Biodiesel - B100 | V83: 0 | W83: L/t cana | AF83: Biodiesel - B100 | AG83: 0 | AH83: L/t cana | AO83: Biodiesel - B100 | AP83: 0 | AQ83: L/t cana
C84: Gasolina C | D84: 0 | E84: L/t cana | L84: Gasolina C | M84: 0 | N84: L/t cana | U84: Gasolina C | V84: 0 | W84: L/t cana | AF84: Gasolina C | AG84: 0 | AH84: L/t cana | AO84: Gasolina C | AP84: 0 | AQ84: L/t cana
C85: Etanol hidratado | D85: 0 | E85: L/t cana | L85: Etanol hidratado | M85: 0 | N85: L/t cana | U85: Etanol hidratado | V85: 0 | W85: L/t cana | AF85: Etanol hidratado | AG85: 0 | AH85: L/t cana | AO85: Etanol hidratado | AP85: 0 | AQ85: L/t cana
C86: Biometano de terceiros | D86: 0 | E86: Nm³/t cana | L86: Biometano de terceiros | M86: 0 | N86: Nm³/t cana | U86: Biometano de terceiros | V86: 0 | W86: Nm³/t cana | AF86: Biometano de terceiros | AG86: 0 | AH86: Nm³/t cana | AO86: Biometano de terceiros | AP86: 0 | AQ86: Nm³/t cana
C87: Biometano próprio | D87: 0 | E87: Nm³/t cana | L87: Biometano próprio | M87: 0 | N87: Nm³/t cana | U87: Biometano próprio | V87: 0 | W87: Nm³/t cana | AF87: Biometano próprio | AG87: 0 | AH87: Nm³/t cana | AO87: Biometano próprio | AP87: 0 | AQ87: Nm³/t cana
C88: Eletricidade da rede - mix médio | D88: 0 | E88: kWh/t cana | L88: Eletricidade da rede - mix médio | M88: 0 | N88: kWh/t cana | U88: Eletricidade da rede - mix médio | V88: 0 | W88: kWh/t cana | AF88: Eletricidade da rede - mix médio | AG88: 0 | AH88: kWh/t cana | AO88: Eletricidade da rede - mix médio | AP88: 0 | AQ88: kWh/t cana
C89: Eletricidade - PCH | D89: 0 | E89: kWh/t cana | L89: Eletricidade - PCH | M89: 0 | N89: kWh/t cana | U89: Eletricidade - PCH | V89: 0 | W89: kWh/t cana | AF89: Eletricidade - PCH | AG89: 0 | AH89: kWh/t cana | AO89: Eletricidade - PCH | AP89: 0 | AQ89: kWh/t cana
C90: Eletricidade - biomassa | D90: 0 | E90: kWh/t cana | L90: Eletricidade - biomassa | M90: 0 | N90: kWh/t cana | U90: Eletricidade - biomassa | V90: 0 | W90: kWh/t cana | AF90: Eletricidade - biomassa | AG90: 0 | AH90: kWh/t cana | AO90: Eletricidade - biomassa | AP90: 0 | AQ90: kWh/t cana
C91: Eletricidade - eólica | D91: 0 | E91: kWh/t cana | L91: Eletricidade - eólica | M91: 0 | N91: kWh/t cana | U91: Eletricidade - eólica | V91: 0 | W91: kWh/t cana | AF91: Eletricidade - eólica | AG91: 0 | AH91: kWh/t cana | AO91: Eletricidade - eólica | AP91: 0 | AQ91: kWh/t cana
C92: Eletricidade - solar | D92: 0 | E92: kWh/t cana | L92: Eletricidade - solar | M92: 0 | N92: kWh/t cana | U92: Eletricidade - solar | V92: 0 | W92: kWh/t cana | AF92: Eletricidade - solar | AG92: 0 | AH92: kWh/t cana | AO92: Eletricidade - solar | AP92: 0 | AQ92: kWh/t cana
B95: Fase industrial - processamento do etanol
B96: Processamento e rendimentos
C97: Quantidade de cana processada | D97: 2000000 | E97: t cana
C98: Quantidade de palha própria processada (base seca) | D98: 0 | E98: t palha
C99: Quantidade de bagaço próprio processado (base úmida) | D99: 0 | E99: t bagaço | F99: Umidade | G99: 0.5
C100: Quantidade de bagaço de terceiros processado (base úmida) | D100: 0 | E100: t bagaço | F100: Umidade | G100: 0.5
C101: Distância de transporte - bagaço de terceiros | D101: 0 | E101: km
C102: Quantidade de palha de terceiros processada (base seca) | D102: 0 | E102: t palha
C103: Distância de transporte - palha de terceiros | D103: 0 | E103: km
C104: Rendimento Etanol Anidro | D104: 28.4667 | E104: L/t cana
C105: Rendimento Etanol Hidratado | D105: 60.97376 | E105: L/t cana
C106: Rendimento Açúcar | D106: 0 | E106: kg/t cana
C107: Rendimento Energia Elétrica Comercializada | D107: 68.6 | E107: kWh/t cana
C108: Rendimento Bagaço Comercializado (base úmida) | D108: 0 | E108: kg/t cana | F108: Umidade | G108: 0.5
B110: Insumos industriais
C111: Enzimas | D111: 0 | E111: kg/t cana
C112: Ácido sulfúrico | D112: 0 | E112: kg/t cana
C113: Amônia | D113: 0 | E113: kg/t cana
C114: Hidróxido de sódio | D114: 0 | E114: kg/t cana
B116: Combustíveis
C117: Bagaço próprio
C118: Quantidade (base úmida) | D118: 251.6 | E118: kg/t cana
C119: Umidade | D119: 0.5
C121: Palha própria
C122: Quantidade (base úmida) | D122: 0 | E122: kg/t cana
C123: Umidade | D123: 0
C125: Bagaço de terceiros
C126: Quantidade (base úmida) | D126: 0 | E126: kg/t cana
C127: Umidade | D127: 0
C128: Distância de transporte | D128: 0 | E128: km
C130: Palha de terceiros
C131: Quantidade (base úmida) | D131: 0 | E131: kg/t cana
C132: Umidade | D132: 0
C133: Distância de transporte | D133: 0 | E133: km
C135: Cavaco de madeira
C136: Quantidade (base úmida) | D136: 0 | E136: kg/t cana
C137: Umidade | D137: 0
C138: Distância de transporte | D138: 0 | E138: km
C140: Lenha
C141: Quantidade (base úmida) | D141: 0 | E141: kg/t cana
C142: Umidade | D142: 0
C143: Distância de transporte | D143: 0 | E143: km
C145: Resíduos florestais
C146: Quantidade (base úmida) | D146: 0 | E146: kg/t cana
C147: Umidade | D147: 0
C148: Distância de transporte | D148: 0 | E148: km
B151: Distribuição dos biocombustíveis
C153: Etanol anidro
C154: Rodoviário | D154: 1
C155: Rodoviário + Dutoviário | D155: 0
C156: Rodoviário + Ferroviário | D156: 0
C159: Etanol hidradado
C160: Rodoviário | D160: 1 | E160: %
C161: Rodoviário + Dutoviário | D161: 0 | E161: %
C162: Rodoviário + Ferroviário | D162: 0 | E162: %

Sheet _E1G2G
B2: Emissões totais - g CO₂ eq
C3: Anidro | E3: Hidratado
B4: Total | C4: =C5+C6+C7+C8 -> 18.62689279 | E4: =E5+E6+E7+E8 -> 18.90822749
B5: Agrícola | C5: =$G$86 -> 16.54957 | D5: =C5/$C$4 -> 0.888477224 | E5: =$G$86 -> 16.54957 | F5: =E5/$E$4 -> 0.8752576097
B6: Industrial | C6: =($G$139-$G$97) -> 0.835640294 | D6: =C6/$C$4 -> 0.0448620338 | E6: =($G$139-$G$97) -> 0.835640294 | F6: =E6/$E$4 -> 0.04419453353
B7: Transporte | C7: =$D$169 -> 0.8026819585 | D7: =C7/$C$4 -> 0.04309263856 | E7: =$E$169 -> 0.8600163841 | F7: =E7/$E$4 -> 0.04548371255
B8: Uso | C8: ='FE''s queima combustíveis'!$I$7 -> 0.4390005404 | D8: =C8/$C$4 -> 0.02356810367 | E8: ='FE''s queima combustíveis'!$I$8 -> 0.6630008161 | F8: =E8/$E$4 -> 0.03506414424
B11: Etapa agrícola - Cana-de-açúcar
B12: Produto | D12: 1 ha médio | E12: 1 t cana
B13: Produção de cana | C13: kg | D13: =(E1G2G!V35/E1G2G!V33)*1000 -> 66735.2001 | E13: 1000
B14: Entradas da natureza | D14: 1 ha médio | E14: 1 t cana
B15: Ocupação total | C15: ha | D15: 1 | E15: =(D15*E13)/D13 -> 0.01498459581
B16: Entradas da tecnosfera | D16: 1 ha médio | E16: 1 t cana | F16: g CO2 eq/t cana
B17: Fertilizantes e corretivos | G17: 1 MJ
B18: Calcário calcítico | C18: kg | E18: =E1G2G!V48 -> 0 | F18: =E18*'Dados auxiliares'!$H$48 -> 0 | G18: =(F18/$E$91)*$F$91 -> 0
B19: Calcário dolomítico | C19: kg | E19: =E1G2G!V49 -> 5.79 | F19: =E19*'Dados auxiliares'!$H$49 -> 213.2783439 | G19: 0.09763598961
B20: Gesso | C20: kg | E20: =E1G2G!V50 -> 2.79 | F20: =E20*'Dados auxiliares'!$H$50 -> 7.892559376 | G20: 0.003613108725
B21: N - Ureia | C21: kg N | E21: =E1G2G!V53 -> 1.107 | F21: =E21*'Dados auxiliares'!$H$51 -> 3554.814159 | G21: 1.627346649
B22: N - Fosfato monoamônico (MAP) | C22: kg N | E22: =E1G2G!V54 -> 0 | F22: =E22*'Dados auxiliares'!$H$52 -> 0 | G22: 0
B23: P₂O₅ - Fosfato monoamônico (MAP) | C23: kg P₂O₅ | E23: =E1G2G!V55 -> 0 | F23: =E23*'Dados auxiliares'!$H$53 -> 0 | G23: 0
B24: N - Fosfato diamônico (DAP) | C24: kg N | E24: =E1G2G!V56 -> 0 | F24: =E24*'Dados auxiliares'!$H$54 -> 0 | G24: 0
B25: P₂O₅ - Fosfato diamônico (DAP) | C25: kg P₂O₅ | E25: =E1G2G!V57 -> 0 | F25: =E25*'Dados auxiliares'!$H$55 -> 0 | G25: 0
B26: N - Nitrato de amônio | C26: kg N | E26: =E1G2G!V58 -> 0 | F26: =E26*'Dados auxiliares'!$H$56 -> 0 | G26: 0
B27: N - Solução de nitrato de amônio e ureia (UAN) | C27: kg N | E27: =E1G2G!V59 -> 0 | F27: =E27*'Dados auxiliares'!$H$57 -> 0 | G27: 0
B28: N - Amônia anidra | C28: kg N | E28: =E1G2G!V60 -> 0 | F28: =E28*'Dados auxiliares'!$H$58 -> 0 | G28: 0
B29: N - Sulfato de amônio | C29: kg N | E29: =E1G2G!V61 -> 0 | F29: =E29*'Dados auxiliares'!$H$59 -> 0 | G29: 0
B30: N - Nitrato de amônio e cálcio (CAN) | C30: kg N | E30: =E1G2G!V62 -> 0 | F30: =E30*'Dados auxiliares'!$H$60 -> 0 | G30: 0
B31: P₂O₅ - Superfosfato simples (SSP) | C31: kg P₂O₅ | E31: =E1G2G!V63 -> 0.4438988334 | F31: =E31*'Dados auxiliares'!$H$62 -> 1050.999921 | G31: 0.4811337876
B32: P₂O₅ - Superfosfato triplo (TSP) | C32: kg P₂O₅ | E32: =E1G2G!V64 -> 0 | F32: =E32*'Dados auxiliares'!$H$63 -> 0 | G32: 0
B33: K₂O - Cloreto de potássio (KCl) | C33: kg K₂O | E33: =E1G2G!V65 -> 1.346204902 | F33: =E33*'Dados auxiliares'!H$64 -> 612.802919 | G33: 0.2805330271
B34: N - Outros | C34: kg N | E34: =E1G2G!V66 -> 0 | F34: =E34*'Dados auxiliares'!H$65 -> 0 | G34: 0
B35: P₂O₅ - Outros | C35: kg P₂O₅ | E35: =E1G2G!V67 -> 0 | F35: =E35*'Dados auxiliares'!H$66 -> 0 | G35: 0
B36: K₂O - Outros | C36: kg K₂O | E36: =E1G2G!V68 -> 0 | F36: =E36*'Dados auxiliares'!H$67 -> 0 | G36: 0
B37: Vinhaça | C37: L | E37: =E1G2G!V71 -> 440.2 | F37: 0 | G37: 0
B38: Torta de filtro | C38: kg | E38: =E1G2G!V72 -> 30.57142857 | F38: 0 | G38: 0
B39: Cinzas e fuligem | C39: kg | E39: =E1G2G!V73 -> 7.2 | F39: 0 | G39: 0
B40: Outros Fertilizantes Orgânicos/Organominerais | C40: kg | E40: =E1G2G!V74+E1G2G!V74 -> 0 | F40: 0 | G40: 0
B41: Agroquímicos
B42: Herbicidas e Inseticidas - Total | C42: kg | D42: =SUM(D43:D56) -> 1.083156939 | E42: =SUM(E43:E56) -> 0.01623066893 | F42: =SUM(F43:F56) -> 173.1644285 | G42: =(F42/$E$91)*$F$91 -> 0.07927237257
B43: Herbicida, Roundup Ready, como glifosato | C43: kg | D43: 0.1741182675 | E43: =D43*$E$15 -> 0.002609091862 | F43: =E43*'Dados auxiliares'!$H$68 -> 30.01944534 | G43: 0.01374250287
B44: Herbicida, Boral 500 SC, como sulfentrazone | C44: kg | D44: 0.5107680209 | E44: =D44*$E$15 -> 0.007653652347 | F44: =E44*'Dados auxiliares'!$H$70 -> 82.21952403 | G44: 0.03763900473
B45: Herbicida, Hexaron, como hexazinona | C45: kg | D45: 0.007379322488 | E45: =D45*$E$15 -> 0.0001105761649 | F45: =E45*'Dados auxiliares'!$H$70 -> 1.187866816 | G45: 0.0005437896318
B46: Herbicida, Combine 500 SC, como tebuthiuron | C46: kg | D46: 0.1749146701 | E46: 0.002621025634 | F46: =E46*'Dados auxiliares'!$H$70 -> 28.15642393 | G46: 0.01288963644
B47: Herbicida, Goal, como oxifluorfen | C47: kg | D47: 0.004472316659 | E47: 6.701585749e-05 | F47: =E47*'Dados auxiliares'!$H$70 -> 0.7199192823 | G47: 0.0003295694738
B48: Herbicida, Diuron, como diuron | C48: kg | D48: 0.009317326374 | E48: 0.0001396163698 | F48: =E48*'Dados auxiliares'!$H$70 -> 1.499831838 | G48: 0.0006866030704
B49: Herbicida, Herburon, como diuron | C49: kg | D49: 0.04658663187 | E49: =D49*$E$15 -> 0.0006980818488 | F49: =E49*'Dados auxiliares'!$H$70 -> 7.499159191 | G49: 0.003433015352
B50: Herbicida, Hexaron, como diuron | C50: kg | D50: 0.02616305246 | E50: =D50*$E$15 -> 0.0003920427663 | F50: =E50*'Dados auxiliares'!$H$70 -> 4.211527802 | G50: 0.001927981422
B51: Herbicida, Herbipak, como ametrina | C51: kg | D51: 0.04658663187 | E51: 0.0006980818488 | F51: =E51*'Dados auxiliares'!$H$70 -> 7.499159191 | G51: 0.003433015352
B52: Herbicida, Nortox, como 2,4 D | C52: kg | D52: 0.03754882529 | E52: 0.0005626539702 | F52: =E52*'Dados auxiliares'!$H$69 -> 2.859222493 | G52: 0.001308914035
B53: Inseticida, Actara, como thiamethoxan | C53: kg | D53: 0.009317326374 | E53: 0.0001396163698 | F53: =E53*'Dados auxiliares'!$H$70 -> 1.499831838 | G53: 0.0006866030704
B54: Inseticida, Mirex, como sulfluramida | C54: kg | D54: 6.98799478e-05 | E54: 1.047122773e-06 | F54: =E54*'Dados auxiliares'!$H$70 -> 0.01124873879 | G54: 5.149523028e-06
B55: Inseticida, Regent 800 WG, como fipronil | C55: kg | D55: 0.03405120139 | E55: =D55*$E$15 -> 0.0005102434898 | F55: =E55*'Dados auxiliares'!$H$70 -> 5.481301602 | G55: 0.002509266982
B56: Inseticida, Regent 800 WG, como fipronil | C56: kg | D56: 0.001863465275 | E56: =D56*$E$15 -> 2.792327395e-05 | F56: =E56*'Dados auxiliares'!$H$70 -> 0.2999663676 | G56: 0.0001373206141
B57: Combustíveis e eletricidade
B58: Diesel B0 | C58: kg | E58: =(E1G2G!$V$78*(1-0.08)+E1G2G!$V$79*(1-0.1)+E1G2G!$V$80*(1-E1G2G!$Y$80)+E1G2G!V81*(1-0.2)+E1G2G!$V$82*(1-0.3)+E1G2G!$V$83*(1-1))*('Dados auxiliares'!$D$24) -> 2.457504 | F58: =E58*'Dados auxiliares'!$H$112 -> 1366.689994 | G58: =(F58/$E$91)*$F$91 -> 0.6256525046
B59: Biodiesel B100 | C59: kg | E59: =(E1G2G!$V$78*(0.08)+E1G2G!$V$79*(0.1)+E1G2G!$V$80*(E1G2G!$Y$80)+E1G2G!V82*(0.2)+E1G2G!$V$82*(0.3)+E1G2G!$V$83*(1))*('Dados auxiliares'!$D$17) -> 0.223872 | F59: =E59*'Dados auxiliares'!$H$113 -> 220.9370682 | G59: 0.1011420517
B60: Gasolina A | C60: kg | E60: =E1G2G!V84*(1-'FE''s queima combustíveis'!$D$16)*'Dados auxiliares'!$D$22 -> 0 | F60: =E60*'Dados auxiliares'!$H$116 -> 0 | G60: 0
B61: Etanol anidro | C61: kg | E61: =E1G2G!V84*('FE''s queima combustíveis'!$D$16)*'Dados auxiliares'!$D$15 -> 0 | F61: =E61*'Dados auxiliares'!$H$117 -> 0 | G61: 0
B62: Etanol hidratado | C62: kg | E62: =E1G2G!V85*'Dados auxiliares'!$D$16 -> 0 | F62: =E62*'Dados auxiliares'!$H$118 -> 0 | G62: 0
B63: Biometano de terceiros | C63: Nm³ | E63: =E1G2G!V86 -> 0 | F63: =E63*'Dados auxiliares'!$F$18 -> 0 | G63: 0
B64: Eletricidade da rede - mix médio | C64: kWh | E64: =E1G2G!V88 -> 0 | F64: =E64*'Dados auxiliares'!$H$103 -> 0 | G64: 0
B65: Eletricidade - PCH | C65: kWh | E65: =E1G2G!V89 -> 0 | F65: =E65*'Dados auxiliares'!$H$104 -> 0 | G65: 0
B66: Eletricidade - biomassa | C66: kWh | E66: =E1G2G!V90 -> 0 | F66: =E66*'Dados auxiliares'!$H$105 -> 0 | G66: 0
B67: Eletricidade - eólica | C67: kWh | E67: =E1G2G!V91 -> 0 | F67: =E67*'Dados auxiliares'!$H$106 -> 0 | G67: 0
B68: Eletricidade - solar | C68: kWh | E68: =E1G2G!V92 -> 0 | F68: =E68*'Dados auxiliares'!$H$107 -> 0 | G68: 0
B69: Emissões | D69: 1 ha médio | E69: 1 t cana | F69: g CO2 eq/t cana
B70: N2O - Fertilizantes sintéticos | C70: kg | D70: ='_Emissões Agrícolas'!$D$54 -> 1.538201078 | E70: =D70*$E$15 -> 0.02304932143 | F70: =E70*1000*'Dados auxiliares'!$D$9 -> 6108.070179 | G70: =(F70/$E$91)*$F$91 -> 2.796193301
B71: N2O - Fertilizantes organominerais | C71: kg | D71: ='_Emissões Agrícolas'!$D$58 -> 0.8862864181 | E71: =D71*$E$15 -> 0.01328064375 | F71: =E71*1000*'Dados auxiliares'!$D$9 -> 3519.370594 | G71: =(F71/$E$91)*$F$91 -> 1.611121056
B72: N2O - Resíduos culturais | C72: kg | D72: ='_Emissões Agrícolas'!$D$62 -> 1.127918304 | E72: =D72*$E$15 -> 0.0169013999 | F72: =E72*1000*'Dados auxiliares'!$D$9 -> 4478.870973 | G72: 2.050367571
B73: CO2 - Calcário | C73: kg | E73: =$E$18*'_Emissões Agrícolas'!$E$79+$E$19*'_Emissões Agrícolas'!$E$80 -> 2.7599 | F73: =E73*1000 -> 2759.9 | G73: 1.263445518
B74: CO2 - Uréia | C74: kg | E74: =$E$21*'_Emissões Agrícolas'!$E$81 -> 1.727234043 | F74: =E74*1000 -> 1727.234043 | G74: 0.7907047755
B75: N2O - queima palha | C75: kg | D75: ='_Emissões Agrícolas'!D73 -> 0.1203369128 | E75: =D75*$E$15 -> 0.0018032 | F75: =E75*1000*'Dados auxiliares'!$D$9 -> 477.848 | G75: 0.2187524599
B76: CH4 bio - queima palha | C76: kg | D76: ='_Emissões Agrícolas'!D74 -> 4.641566637 | E76: =D76*$E$15 -> 0.069552 | F76: =E76*1000*'Dados auxiliares'!$D$8 -> 1947.456 | G76: 0.8915194591
B77: CO₂ eq - queima do diesel | C77: kg | E77: =$E$58*'FE''s queima combustíveis'!$I$53/1000 -> 7.755071648 | F77: =E77*1000 -> 7755.071648 | G77: 3.550168672
B78: CO₂ eq - queima do biodiesel | C78: kg | E78: =$E$59*'FE''s queima combustíveis'!$I$54/1000 -> 0.003703301101 | F78: =E78*1000 -> 3.703301101 | G78: 0.001695321997
B79: CO₂ eq - queima da gasolina A | C79: kg | E79: =$E$60*'FE''s queima combustíveis'!$I$9/1000 -> 0 | F79: 0 | G79: 0
B80: CO₂ eq - queima do etanol anidro | C80: kg | E80: =$E$61*'FE''s queima combustíveis'!$I$7/1000 -> 0 | F80: 0 | G80: 0
B81: CO₂ eq - queima do etanol hidratado | C81: kg | E81: =$E$62*'FE''s queima combustíveis'!$I$8/1000 -> 0 | F81: 0 | G81: 0
B82: CO₂ eq - queima do biometano | C82: kg | E82: =($E$63+E1G2G!V87)*'FE''s queima combustíveis'!$I$55/1000 -> 0 | F82: 0 | G82: 0
B84: Emissões do processo | C84: g CO2 eq/t cana | F84: =SUM(F70:F82) -> 28777.52474 | G84: =(F84/$E$91)*$F$91 -> 13.17396813
B85: Emissões background | C85: g CO2 eq/t cana | F85: =SUM(F18:F68) -> 7373.743821 | G85: =(F85/$E$91)*$F$91 -> 3.375601864
B86: Emissões totais | C86: g CO2 eq/t cana | F86: =F84+F85 -> 36151.26856 | G86: =(F86/$E$91)*$F$91 -> 16.54957
B89: Etapa industrial - Etanol
B90: Produtos | C90: Unidade | D90: 1 TC | E90: MJ | F90: Alocação
B91: Etanol anidro | C91: kg | D91: =E1G2G!D104*'Dados auxiliares'!$D$15 -> 22.5171597 | E91: =D91*'Dados auxiliares'!$F$15 -> 636.3544152 | F91: =E91/SUM($E$91:$E$95) -> 0.2913145889
B92: Etanol hidratado | C92: kg | D92: =E1G2G!D105*'Dados auxiliares'!$D$16 -> 49.32777184 | E92: =D92*'Dados auxiliares'!$F$16 -> 1301.109144 | F92: =E92/SUM($E$91:$E$95) -> 0.5956304636
B93: Açúcar | C93: kg | D93: =E1G2G!D106 -> 0 | E93: =D93*'Dados auxiliares'!D33 -> 0 | F93: =E93/SUM($E$91:$E$95) -> 0
B94: Energia elétrica comercializada | C94: kWh | D94: =E1G2G!D107 -> 68.6 | E94: =CONVERT(D94,"kWh","MJ") -> 246.9598769 | F94: =E94/SUM($E$91:$E$95) -> 0.1130549475
B95: Bagaço comercializado | C95: kg base úmida | D95: =E1G2G!D108 -> 0 | E95: - | F95: - | G95: Resíduo
B96: Entradas | C96: Unidade | D96: 1 TC | F96: g CO2 eq/t cana
B97: Cana-de-açúcar | C97: t | D97: 1 | F97: =D97*F86 -> 36151.26856 | G97: =(F97/$E$91)*$F$91 -> 16.54957
B98: Bagaço próprio | C98: kg base seca | D98: =(E1G2G!$D$99*1-E1G2G!$G$99)*1000/E1G2G!$D$97 -> -0.00025 | F98: 0 | G98: =(F98/$E$91)*$F$91 -> 0
B99: Bagaço de terceiros | C99: kg base seca | D99: =(E1G2G!$D$100*1-E1G2G!$G$100)*1000/E1G2G!$D$97 -> -0.00025 | F99: 0 | G99: 0
B100: Transporte de bagaço de terceiros | C100: tkm | D100: =D99/1000*E1G2G!$D$101 -> 0 | F100: =D100*'Dados auxiliares'!$H$125 -> 0 | G100: 0
B101: Palha de terceiros | C101: kg base seca | D101: =E1G2G!$D$102*1000/E1G2G!$D$97 -> 0 | F101: =D101*'Dados auxiliares'!$H$74 -> 0 | G101: 0
B102: Transporte de palha de terceiros | C102: tkm | D102: =D101/1000*E1G2G!$D$103 -> 0 | F102: =D102*'Dados auxiliares'!$H$125 -> 0 | G102: 0
B103: Água | C103: kg | D103: 2008.2 | F103: =D103*'Dados auxiliares'!$H$79 -> 17.6753177 | G103: 0.008091525391
B104: Cal (CaO) | C104: kg | D104: 0.62 | F104: =D104*'Dados auxiliares'!$H$80 -> 596.2770383 | G104: 0.2729676987
B105: Ácido sulfúrico | C105: kg | D105: 0.48 | F105: =D105*'Dados auxiliares'!$H$84 -> 52.49273266 | G105: 0.02403047495
B106: Ácido fosfórico | C106: kg | D106: 0.2 | F106: =D106*'Dados auxiliares'!$H$85 -> 302.5853906 | G106: 0.1385195679
B107: Floculante | C107: kg | D107: 0.00257 | F107: =D107*'Dados auxiliares'!$H$87 -> 5.527805281 | G107: 0.002530555748
B108: Antibióticos | C108: kg | D108: 0.00141 | F108: =D108*'Dados auxiliares'!$H$88 -> 3.032764765 | G108: 0.001388359379
B109: Óleo lubrificante | C109: kg | D109: =13/1000 -> 0.013 | F109: =D109*'Dados auxiliares'!$H$89 -> 14.70824221 | G109: 0.006733237689
B110: Zeolita | C110: kg | D110: =(D91*0.03)/67.2 -> 0.01005230344 | F110: =D110*'Dados auxiliares'!$H$90 -> 50.3653507 | G110: 0.02305658778
B111: Enzimas | C111: kg | D111: =E1G2G!D111 -> 0 | F111: =D111*'Dados auxiliares'!$H$95 -> 0 | G111: 0
B112: Ácido sulfúrico | C112: kg | D112: =E1G2G!D112 -> 0 | F112: =D112*'Dados auxiliares'!$H$84 -> 0 | G112: 0
B113: Amônia | C113: kg | D113: =E1G2G!D113 -> 0 | F113: =D113*'Dados auxiliares'!$H$91 -> 0 | G113: 0
B114: Hidróxido de sódio | C114: kg | D114: =E1G2G!D114 -> 0 | F114: =D114*'Dados auxiliares'!$H$93 -> 0 | G114: 0
B115: Combustíveis e eletricidade
B116: Bagaço próprio | C116: kg base seca | D116: =E1G2G!$D$118*(1-E1G2G!$D$119) -> 125.8 | F116: 0 | G116: 0
B117: Palha própria | C117: kg base seca | D117: =E1G2G!$D$122*(1-E1G2G!$D$123) -> 0 | F117: 0 | G117: 0
B118: Bagaço de terceiros | C118: kg base seca | D118: =E1G2G!$D$126*(1-E1G2G!$D$127) -> 0 | F118: 0 | G118: 0
B119: Transporte de bagaço de terceiros | C119: tkm | D119: =((D118/1000)*E1G2G!$D$128) -> 0 | F119: =D119*'Dados auxiliares'!$H$125 -> 0 | G119: 0
B120: Palha de terceiros | C120: kg base seca | D120: =E1G2G!$D$131*(1-E1G2G!$D$132) -> 0 | F120: =D120*'Dados auxiliares'!$H$74 -> 0 | G120: 0
B121: Transporte de palha de terceiros | C121: tkm | D121: =((D120/1000)*E1G2G!$D$133) -> 0 | F121: =D121*'Dados auxiliares'!$H$125 -> 0 | G121: 0
B122: Cavaco de madeira | C122: kg base seca | D122: =E1G2G!$D$136*(1-E1G2G!$D$137) -> 0 | F122: =D122*'Dados auxiliares'!$H$119 -> 0 | G122: 0
B123: Transporte de cavaco de madeira | C123: tkm | D123: =((D122/1000)*E1G2G!$D$138) -> 0 | F123: =D123*'Dados auxiliares'!$H$125 -> 0 | G123: 0
B124: Lenha | C124: kg base seca | D124: =E1G2G!$D$141*(1-E1G2G!$D$142) -> 0 | F124: =D124*'Dados auxiliares'!$H$120 -> 0 | G124: 0
B125: Transporte de lenha | C125: tkm | D125: =((D124/1000)*E1G2G!$D$143) -> 0 | F125: =D125*'Dados auxiliares'!$H$125 -> 0 | G125: 0
B126: Resíduos florestais | C126: kg base seca | D126: =E1G2G!$D$146*(1-E1G2G!$D$147) -> 0 | F126: 0 | G126: 0
B127: Transporte de resíduos florestais | C127: tkm | D127: =((D126/1000)*E1G2G!$D$148) -> 0 | F127: =D127*'Dados auxiliares'!$H$125 -> 0 | G127: 0
B128: Emissões | C128: Unidade | D128: 1 TC | F128: g CO2 eq/t cana
B129: CO₂ eq - queima do bagaço próprio | C129: kg | D129: =$D$116*'FE''s queima combustíveis'!$I$33/1000 -> 0.7827276 | F129: =D129*1000 -> 782.7276 | G129: 0.3583222864
B130: CO₂ eq - queima da palha própria | C130: kg | D130: =$D$117*'FE''s queima combustíveis'!$I$34/1000 -> 0 | F130: =D130*1000 -> 0 | G130: 0
B131: CO₂ eq - queima do bagaço de terceiros | C131: kg | D131: =$D$118*'FE''s queima combustíveis'!$I$33/1000 -> 0 | F131: 0 | G131: 0
B132: CO₂ eq - queima da palha de terceiros | C132: kg | D132: =$D$120*'FE''s queima combustíveis'!$I$34/1000 -> 0 | F132: 0 | G132: 0
B133: CO₂ eq - queima dos cavacos de madeira | C133: kg | D133: =$D$122*'FE''s queima combustíveis'!$I$35/1000 -> 0 | F133: 0 | G133: 0
B134: CO₂ eq - queima da lenha | C134: kg | D134: =$D$124*'FE''s queima combustíveis'!$I$36/1000 -> 0 | F134: 0 | G134: 0
B135: CO₂ eq - queima dos resíduos florestais | C135: kg | D135: =$D$126*'FE''s queima combustíveis'!$I$37/1000 -> 0 | F135: 0 | G135: 0
B137: Emissões do processo | C137: g CO2 eq/t cana | F137: =SUM(F129:F135) -> 782.7276 | G137: 0.3583222864
B138: Emissões background | C138: g CO2 eq/t cana | F138: =SUM(F97:F127) -> 37193.9332 | G138: 17.02688801
B139: Emissões totais | C139: g CO2 eq/t cana | F139: =F137+F138 -> 37976.6608 | G139: 17.38521029
B142: Etapa distribuição
B143: Sistema logiístico rodoviário
B144: Parâmetro | C144: Unidade | D144: Etanol anidro | E144: Etanol hidratado
B145: Massa | C145: kg/t cana | D145: =$D$91*E1G2G!$D$154 -> 22.5171597 | E145: =$D$92*E1G2G!$D$160 -> 49.32777184
B146: Distância de transporte rodoviário | C146: km | D146: 700 | E146: 700
B147: Transporte rodoviário | C147: tkm/t cana | D147: =D145/1000*D146 -> 15.76201179 | E147: =E145/1000*E146 -> 34.52944029
B148: Emissões | C148: g CO2 eq/t cana | D148: =D147*'Dados auxiliares'!$H$126 -> 510.7902083 | E148: =E147*'Dados auxiliares'!$H$126 -> 1118.975181
B149: Emissões | C149: g CO2 eq/MJ | D149: =D148/$E$91 -> 0.8026819585 | E149: =E148/$E$92 -> 0.8600163841
B150: Sistema logiístico rodoviário + dutoviário
B151: Parâmetro | C151: Unidade | D151: Etanol anidro | E151: Etanol hidratado
B152: Massa | C152: kg/t cana | D152: =$D$91*E1G2G!$D$155 -> 0 | E152: =$D$92*E1G2G!$D$161 -> 0
B153: Distância de transporte rodoviário | C153: km | D153: 400 | E153: 400
B154: Transporte rodoviário | C154: tkm/t cana | D154: =D152/1000*D153 -> 0 | E154: =E152/1000*E153 -> 0
B155: Distância de transporte dutoviário | C155: km | D155: 300 | E155: 300
B156: Transporte dutoviário | C156: tkm/t cana | D156: =D152/1000*D155 -> 0 | E156: =E152/1000*E155 -> 0
B157: Emissões | C157: g CO2 eq/t cana | D157: =D154*'Dados auxiliares'!$H$126+D156*'Dados auxiliares'!$H$130 -> 0 | E157: =E154*'Dados auxiliares'!$H$126+E156*'Dados auxiliares'!$H$130 -> 0
B158: Emissões | C158: g CO2 eq/MJ | D158: =D157/$E$91 -> 0 | E158: =E157/$E$92 -> 0
B159: Sistema logiístico rodoviário + ferroviário
B160: Parâmetro | C160: Unidade | D160: Etanol anidro | E160: Etanol hidratado
B161: Massa | C161: kg/t cana | D161: =$D$91*E1G2G!$D$156 -> 0 | E161: =$D$92*E1G2G!$D$162 -> 0
B162: Distância de transporte rodoviário | C162: km | D162: 400 | E162: 400
B163: Transporte rodoviário | C163: tkm/t cana | D163: =D161/1000*D162 -> 0 | E163: =E161/1000*E162 -> 0
B164: Distância de transporte ferroviário | C164: km | D164: 300 | E164: 300
B165: Transporte ferroviário | C165: tkm/t cana | D165: =D161/1000*D164 -> 0 | E165: =E161/1000*E164 -> 0
B166: Emissões | C166: g CO2 eq/t cana | D166: =D163*'Dados auxiliares'!$H$126+D165*'Dados auxiliares'!$H$129 -> 0 | E166: =E163*'Dados auxiliares'!$H$126+E165*'Dados auxiliares'!$H$129 -> 0
B167: Emissões | C167: g CO2 eq/MJ | D167: =D166/$E$91 -> 0 | E167: =E166/$E$92 -> 0
B169: Emissões totais | C169: g CO2 eq/MJ | D169: =D149+D158+D167 -> 0.8026819585 | E169: =E149+E158+E167 -> 0.8600163841

Sheet E2G
B2: Produção de Etanol de segunda geração
B4: Nome da Usina: | C4: Usina Hipotética
B6: CNPJ | C6: 00.000.000/0000-00
B8: Responsável pelo preenchimento: | C8: GT ACV RenovaCalc
B10: Telefone : | C10: (00) 0000-0000
C13: Etanol Anidro
B15: Intensidade de Carbono (g CO₂eq/MJ) | C15: =SUM(C17:C20) -> 4.414869029 | D15: Nota de Eficiência Energético-Ambiental (g CO₂eq/MJ) | G15: =G18-C15 -> 82.98513097
G17: Fóssil de referência: Gasolina
B18: industrial | C18: =IF(C13="Etanol Anidro",_E2G!C5,IF(C13="Etanol Hidratado",_E2G!E5,"")) -> 3.17318653 | G18: 87.4
B19: transporte | C19: =IF(C13="Etanol Anidro",_E2G!C6,IF(C13="Etanol Hidratado",_E2G!E6,"")) -> 0.8026819585 | G19: Redução de emissões
B20: uso | C20: =IF(C13="Etanol Anidro",_E2G!C7,IF(C13="Etanol Hidratado",_E2G!E7,"")) -> 0.4390005404 | G20: =(G18-C15)/G18 -> 0.9494866244
B24: Fase industrial - processamento do etanol
B25: Processamento e rendimentos
C26: Quantidade de bagaço de terceiros processada (base úmida) | D26: 2 | E26: t bagaço | F26: Umidade | G26: 0.5
C27: Distância de transporte | D27: 0 | E27: km
C28: Quantidade de palha de terceiros processada (base seca) | D28: 0 | E28: t palha
C29: Distância de transporte | D29: 0 | E29: km
C31: Quantidade de material lignocelulósico (MLC) processado (base seca) | D31: =D26*(1-G26)+D28 -> 1 | E31: t MLC
C33: Rendimento Etanol Anidro | D33: 80.02528445 | E33: L/t MLC
C34: Rendimento Etanol Hidratado | D34: 167.4907293 | E34: L/t MLC
C35: Rendimento Energia Elétrica Comercializada | D35: 348.9 | E35: kWh/t MLC
B37: Insumos industriais
C38: Enzimas | D38: 4.33838 | E38: kg/t MLC
C39: Ácido sulfúrico | D39: 0 | E39: kg/t MLC
C40: Amônia | D40: 0 | E40: kg/t MLC
C41: Hidróxido de sódio | D41: 0 | E41: kg/t MLC
B43: Combustíveis
C45: Bagaço de terceiros
C46: Quantidade (base úmida) | D46: 378.3 | E46: kg/t MLC
C47: Umidade | D47: 0.5
C48: Distância de transporte | D48: 100 | E48: km
C50: Palha de terceiros
C51: Quantidade (base úmida) | D51: 0 | E51: kg/t MLC
C52: Umidade | D52: 0
C53: Distância de transporte | D53: 0 | E53: km
C55: Cavaco de madeira
C56: Quantidade (base úmida) | D56: 0 | E56: kg/t MLC
C57: Umidade | D57: 0
C58: Distância de transporte | D58: 0 | E58: km
C60: Lenha
C61: Quantidade (base úmida) | D61: 0 | E61: kg/t MLC
C62: Umidade | D62: 0
C63: Distância de transporte | D63: 0 | E63: km
C65: Resíduos florestais
C66: Quantidade (base úmida) | D66: 0 | E66: kg/t MLC
C67: Umidade | D67: 0
C68: Distância de transporte | D68: 0 | E68: km
B71: Distribuição dos biocombustíveis
C73: Etanol anidro
C74: Rodoviário | D74: 1
C75: Rodoviário + Dutoviário | D75: 0
C76: Rodoviário + Ferroviário | D76: 0
C79: Etanol hidradado
C80: Rodoviário | D80: 1 | E80: %
C81: Rodoviário + Dutoviário | D81: 0 | E81: %
C82: Rodoviário + Ferroviário | D82: 0 | E82: %

Sheet _E2G
B2: Emissões totais - g CO₂ eq
C3: Anidro | E3: Hidratado
B4: Total | C4: =C5+C6+C7 -> 4.414869029 | E4: =E5+E6+E7 -> 4.69620373
B5: Industrial | C5: =($G$51-$G$17) -> 3.17318653 | D5: =C5/$C$4 -> 0.7187498676 | E5: =($G$51-$G$17) -> 3.17318653 | F5: =E5/$E$4 -> 0.675691838
B6: Transporte | C6: =$D$81 -> 0.8026819585 | D6: =C6/$C$4 -> 0.1818133116 | E6: =$E$81 -> 0.8600163841 | F6: =E6/$E$4 -> 0.1831301267
B7: Uso | C7: ='FE''s queima combustíveis'!$I$7 -> 0.4390005404 | D7: =C7/$C$4 -> 0.09943682078 | E7: ='FE''s queima combustíveis'!$I$8 -> 0.6630008161 | F7: =E7/$E$4 -> 0.1411780353
B11: Etapa industrial - Etanol
B12: Produtos | C12: Unidade | D12: 1 TC | E12: MJ | F12: Alocação
B13: Etanol anidro | C13: kg | D13: =E2G!D33*'Dados auxiliares'!$D$15 -> 63.3 | E13: =D13*'Dados auxiliares'!$F$15 -> 1788.912768 | F13: =E13/SUM($E$13:$E$15) -> 0.2702689505
B14: Etanol hidratado | C14: kg | D14: =E2G!D34*'Dados auxiliares'!$D$16 -> 135.5 | E14: =D14*'Dados auxiliares'!$F$16 -> 3574.05742 | F14: =E14/SUM($E$13:$E$15) -> 0.5399686142
B15: Energia elétrica comercializada | C15: kWh | D15: =E2G!D35 -> 348.9 | E15: =CONVERT(D15,"kWh","MJ") -> 1256.039374 | F15: =E15/SUM($E$13:$E$15) -> 0.1897624353
B16: Entradas | C16: Unidade | D16: 1 TC | F16: g CO2 eq/t cana
B17: MLC | C17: t | D17: 1 | F17: 0 | G17: =(F17/$E$13)*$F$13 -> 0
B18: Bagaço de terceiros | C18: kg base seca | D18: =(E2G!$D$26*1-E2G!$G$26)*1000/E2G!$D$31 -> 1500 | F18: 0 | G18: 0
B19: Transporte de bagaço de terceiros | C19: tkm | D19: =D18/1000*E2G!$D$27 -> 0 | F19: =D19*'Dados auxiliares'!$H$125 -> 0 | G19: 0
B20: Palha de terceiros | C20: kg base seca | D20: =E2G!$D$28*1000/E2G!$D$31 -> 0 | F20: =D20*'Dados auxiliares'!$H$74 -> 0 | G20: 0
B21: Transporte de palha de terceiros | C21: tkm | D21: =D20/1000*E2G!$D$29 -> 0 | F21: =D21*'Dados auxiliares'!$H$125 -> 0 | G21: 0
B22: Água | C22: kg | D22: 4311.688592 | F22: =D22*'Dados auxiliares'!$H$79 -> 37.94963931 | G22: 0.00573343171
B23: Ácido sulfúrico | C23: kg | D23: 0.6190831476 | F23: =D23*'Dados auxiliares'!$H$84 -> 67.70284617 | G23: 0.01022854636
B24: Amônia | C24: kg | D24: 3.797710973 | F24: =D24*'Dados auxiliares'!$H$91 -> 11618.48018 | G24: =(F24/$E$13)*$F$13 -> 1.755320047
B25: Antibióticos | C25: kg | D25: 0.002819947985 | F25: =D25*'Dados auxiliares'!$H$88 -> 6.06541765 | G25: =(F25/$E$13)*$F$13 -> 0.0009163633309
B26: Zeolita | C26: kg | D26: =(0.4464/1000)*D13 -> 0.02825712 | F26: =D26*'Dados auxiliares'!$H$90 -> 141.577477 | G26: 0.02138952598
B27: Enzimas | C27: kg | D27: =E2G!D38 -> 4.33838 | F27: =D27*'Dados auxiliares'!$H$95 -> 5683.2778 | G27: 0.8586296404
B28: Ácido sulfúrico | C28: kg | D28: =E2G!D39 -> 0 | F28: =D28*'Dados auxiliares'!$H$84 -> 0 | G28: 0
B29: Amônia | C29: kg | D29: =E2G!D40 -> 0 | F29: =D29*'Dados auxiliares'!$H$91 -> 0 | G29: 0
B30: Hidróxido de sódio | C30: kg | D30: =E2G!D41 -> 0 | F30: =D30*'Dados auxiliares'!$H$93 -> 0 | G30: 0
B31: Combustíveis e eletricidade
B32: Bagaço de terceiros | C32: kg base seca | D32: =E2G!$D$46*(1-E2G!$D$47) -> 189.15 | F32: 0 | G32: =(F32/$E$13)*$F$13 -> 0
B33: Transporte de bagaço de terceiros | C33: tkm | D33: =((D32/1000)*E2G!$D$48) -> 18.915 | F33: =D33*'Dados auxiliares'!$H$125 -> 2271.407327 | G33: 0.3431642312
B34: Palha de terceiros | C34: kg base seca | D34: =E2G!$D$51*(1-E2G!$D$52) -> 0 | F34: =D34*'Dados auxiliares'!$H$74 -> 0 | G34: 0
B35: Transporte de palha de terceiros | C35: tkm | D35: =((D34/1000)*E2G!$D$53) -> 0 | F35: =D35*'Dados auxiliares'!$H$125 -> 0 | G35: 0
B36: Cavaco de madeira | C36: kg base seca | D36: =E2G!$D$56*(1-E2G!$D$57) -> 0 | F36: =D36*'Dados auxiliares'!$H$119 -> 0 | G36: 0
B37: Transporte de cavaco de madeira | C37: tkm | D37: =((D36/1000)*E2G!$D$58) -> 0 | F37: =D37*'Dados auxiliares'!$H$125 -> 0 | G37: 0
B38: Lenha | C38: kg base seca | D38: =E2G!$D$61*(1-E2G!$D$62) -> 0 | F38: =D38*'Dados auxiliares'!$H$120 -> 0 | G38: 0
B39: Transporte de lenha | C39: tkm | D39: =((D38/1000)*E2G!$D$63) -> 0 | F39: =D39*'Dados auxiliares'!$H$125 -> 0 | G39: 0
B40: Resíduos florestais | C40: kg base seca | D40: =E2G!$D$66*(1-E2G!$D$67) -> 0 | F40: 0 | G40: 0
B41: Transporte de resíduos florestais | C41: tkm | D41: =((D40/1000)*E2G!$D$68) -> 0 | F41: =D41*'Dados auxiliares'!$H$125 -> 0 | G41: 0
B42: Emissões | C42: Unidade | D42: 1 TC | F42: g CO2 eq/t cana
B43: CO₂ eq - queima do bagaço de terceiros | C43: kg | D43: =$D$32*'FE''s queima combustíveis'!$I$33/1000 -> 1.1768913 | F43: =D43*1000 -> 1176.8913 | G43: =(F43/$E$13)*$F$13 -> 0.1778047439
B44: CO₂ eq - queima da palha de terceiros | C44: kg | D44: =$D$34*'FE''s queima combustíveis'!$I$34/1000 -> 0 | F44: 0 | G44: =(F44/$E$13)*$F$13 -> 0
B45: CO₂ eq - queima dos cavacos de madeira | C45: kg | D45: =$D$36*'FE''s queima combustíveis'!$I$35/1000 -> 0 | F45: 0 | G45: =(F45/$E$13)*$F$13 -> 0
B46: CO₂ eq - queima da lenha | C46: kg | D46: =$D$38*'FE''s queima combustíveis'!$I$36/1000 -> 0 | F46: 0 | G46: =(F46/$E$13)*$F$13 -> 0
B47: CO₂ eq - queima dos resíduos florestais | C47: kg | D47: =$D$40*'FE''s queima combustíveis'!$I$37/1000 -> 0 | F47: 0 | G47: =(F47/$E$13)*$F$13 -> 0
B49: Emissões do processo | C49: g CO2 eq/t cana | F49: =SUM(F43:F47) -> 1176.8913 | G49: =(F49/$E$13)*$F$13 -> 0.1778047439
B50: Emissões background | C50: g CO2 eq/t cana | F50: =SUM(F17:F41) -> 19826.46068 | G50: =(F50/$E$13)*$F$13 -> 2.995381786
B51: Emissões totais | C51: g CO2 eq/t cana | F51: =F49+F50 -> 21003.35198 | G51: =(F51/$E$13)*$F$13 -> 3.17318653
B54: Etapa distribuição
B55: Sistema logiístico rodoviário
B56: Parâmetro | C56: Unidade | D56: Etanol anidro | E56: Etanol hidratado
B57: Massa | C57: kg/t cana | D57: =$D$13*E2G!$D$74 -> 63.3 | E57: =$D$14*E2G!$D$80 -> 135.5
B58: Distância de transporte rodoviário | C58: km | D58: 700 | E58: 700
B59: Transporte rodoviário | C59: tkm/t cana | D59: =D57/1000*D58 -> 44.31 | E59: =E57/1000*E58 -> 94.85
B60: Emissões | C60: g CO2 eq/t cana | D60: =D59*'Dados auxiliares'!$H$126 -> 1435.928004 | E60: =E59*'Dados auxiliares'!$H$126 -> 3073.747939
B61: Emissões | C61: g CO2 eq/MJ | D61: =D60/$E$13 -> 0.8026819585 | E61: =E60/$E$14 -> 0.8600163841
B62: Sistema logiístico rodoviário + dutoviário
B63: Parâmetro | C63: Unidade | D63: Etanol anidro | E63: Etanol hidratado
B64: Massa | C64: kg/t cana | D64: =$D$13*E2G!$D$75 -> 0 | E64: =$D$14*E2G!$D$81 -> 0
B65: Distância de transporte rodoviário | C65: km | D65: 400 | E65: 400
B66: Transporte rodoviário | C66: tkm/t cana | D66: =D64/1000*D65 -> 0 | E66: =E64/1000*E65 -> 0
B67: Distância de transporte dutoviário | C67: km | D67: 300 | E67: 300
B68: Transporte dutoviário | C68: tkm/t cana | D68: =D64/1000*D67 -> 0 | E68: =E64/1000*E67 -> 0
B69: Emissões | C69: g CO2 eq/t cana | D69: =D66*'Dados auxiliares'!$H$126+D68*'Dados auxiliares'!$H$130 -> 0 | E69: =E66*'Dados auxiliares'!$H$126+E68*'Dados auxiliares'!$H$130 -> 0
B70: Emissões | C70: g CO2 eq/MJ | D70: =D69/$E$13 -> 0 | E70: =E69/$E$14 -> 0
B71: Sistema logiístico rodoviário + ferroviário
B72: Parâmetro | C72: Unidade | D72: Etanol anidro | E72: Etanol hidratado
B73: Massa | C73: kg/t cana | D73: =$D$13*E2G!$D$76 -> 0 | E73: =$D$14*E2G!$D$82 -> 0
B74: Distância de transporte rodoviário | C74: km | D74: 400 | E74: 400
B75: Transporte rodoviário | C75: tkm/t cana | D75: =D73/1000*D74 -> 0 | E75: =E73/1000*E74 -> 0
B76: Distância de transporte ferroviário | C76: km | D76: 300 | E76: 300
B77: Transporte ferroviário | C77: tkm/t cana | D77: =D73/1000*D76 -> 0 | E77: =E73/1000*E76 -> 0
B78: Emissões | C78: g CO2 eq/t cana | D78: =D75*'Dados auxiliares'!$H$126+D77*'Dados auxiliares'!$H$129 -> 0 | E78: =E75*'Dados auxiliares'!$H$126+E77*'Dados auxiliares'!$H$129 -> 0
B79: Emissões | C79: g CO2 eq/MJ | D79: =D78/$E$13 -> 0 | E79: =E78/$E$14 -> 0
B81: Emissões totais | C81: g CO2 eq/MJ | D81: =D61+D70+D79 -> 0.8026819585 | E81: =E61+E70+E79 -> 0.8600163841

Sheet E1G Flex
B2: Produção de Etanol de cana-de-açúcar e milho em usinas flex
B4: Nome da Usina: | C4: Usina Hipotética
B6: CNPJ | C6: 00.000.000/0000-00
B8: Responsável pelo preenchimento: | C8: GT ACV RenovaCalc
B10: Telefone : | C10: (00) 0000-0000
C13: Etanol Anidro
B15: Intensidade de Carbono (g CO₂eq/MJ) | C15: =SUM(C17:C21) -> 22.54781178 | D15: Nota de Eficiência Energético-Ambiental (g CO₂eq/MJ) | G15: =G18-C15 -> 64.85218822
B17: agrícola - cana-de-açúcar | C17: =IF($C$13="Etanol Anidro",'_E1G Flex'!C5,IF($C$13="Etanol Hidratado",'_E1G Flex'!E5,"")) -> 9.40873104 | G17: Fóssil de referência: Gasolina
B18: agrícola - milho | C18: =IF($C$13="Etanol Anidro",'_E1G Flex'!C6,IF($C$13="Etanol Hidratado",'_E1G Flex'!E6,"")) -> 8.992687475 | G18: 87.4
B19: industrial | C19: =IF($C$13="Etanol Anidro",'_E1G Flex'!C7,IF($C$13="Etanol Hidratado",'_E1G Flex'!E7,"")) -> 2.904710769 | G19: Redução de emissões
B20: transporte | C20: =IF($C$13="Etanol Anidro",'_E1G Flex'!C8,IF($C$13="Etanol Hidratado",'_E1G Flex'!E8,"")) -> 0.8026819585 | G20: =(G18-C15)/G18 -> 0.7420158835
B21: uso | C21: =IF($C$13="Etanol Anidro",'_E1G Flex'!C9,IF($C$13="Etanol Hidratado",'_E1G Flex'!E9,"")) -> 0.4390005404
B24: Usina - Área de cana própria | K24: Fornecedores - Dados consolidados | T24: Média ponderada - RenovaCalc | AE24: Default - Cana | AN24: Guarda dados de preenchimento
B25: Informações gerais | K25: Informações gerais | T25: Informações gerais | AE25: Informações gerais | AN25: Informações gerais
B26: Houve supressão de vegetação nativa a partir de 26 de dezembro de 2017? | D26: Não | K26: Houve supressão de vegetação nativa a partir de 26 de dezembro de 2017? | M26: Não | U26: Houve avanço sobre vegetação nativa? | V26: =IF(OR(D26="Sim",M26="Sim"),"Sim","Não") -> Não
C27: Usina atende ao ZAE Cana? | D27: Sim | L27: Usina atende ao ZAE Cana? | M27: Sim | U27: Usina atende ao ZAE Cana? | V27: =IF(OR(D27=Listas!$B$4,M27=Listas!$B$4),Listas!$B$4,Listas!$B$3) -> Sim
C29: Número de registro no CAR | D29: UF-1302405-E6D3.395B.6D27.4F42.AE22.DD56.987C.DD51 | L29: Número de registro no CAR | M29: Cadastro de fornecedores | U29: Número de registro no CAR | V29: Cadastro de fornecedores
C31: Situação do CAR | D31: Ativo | L31: Situação do CAR | M31: Ativo | U31: Situação do CAR | V31: =IF(AND(D31=Listas!$B$7,M31=Listas!$B$7),Listas!$B$7,IF(OR(D31=Listas!$B$9,M31=Listas!$B$9),Listas!$B$9,Listas!$B$8)) -> Ativo
C33: Sistema de plantio | D33: Convencional | L33: Sistema de plantio | M33: Convencional | U33: Sistema de plantio | V33: Convencional
C34: Área total | D34: 20000 | E34: ha | L34: Área total | M34: 20000 | N34: ha | U34: Área total | V34: =D34+M34 -> 40000 | W34: ha
C36: Produção total colhida para moagem | D36: 1334704.002 | E36: t cana | L36: Produção total colhida para moagem | M36: 1334704.002 | N36: t cana | U36: Produção total colhida para moagem | V36: =D36+M36 -> 2669408.004 | W36: t cana
C37: Teor de impurezas vegetais (base úmida) | D37: 50 | E37: kg/t cana | F37: Umidade | G37: 0.5 | L37: Teor de impurezas vegetais (base úmida) | M37: 50 | N37: kg/t cana | O37: Umidade | P37: 0.5 | U37: Teor de impurezas vegetais (base úmida) | V37: =D37*($D$36/$V$36)+M37*($M$36/$V$36) -> 50 | W37: kg/t cana | X37: Umidade | Y37: =IF((D37*$D$36+M37*$M$36)<>0,(G37*D37*$D$36+P37*M37*$M$36)/(D37*$D$36+M37*$M$36),0) -> 0.5
C38: Teor de impurezas minerais | D38: 20 | E38: kg/t cana | L38: Teor de impurezas minerais | M38: 20 | N38: kg/t cana | U38: Teor de impurezas minerais | V38: 20 | W38: kg/t cana
C39: Palha recolhida (base seca) | D39: 0 | E39: t palha | L39: Palha recolhida (base seca) | M39: 0 | N39: t palha | U39: Palha recolhida (base seca) | V39: =D39+M39 -> 0 | W39: t palha
B41: Tipo de preenchimento | K41: Tipo de preenchimento | T41: Tipo de preenchimento | AE41: Tipo de preenchimento | AN41: Tipo de preenchimento
B42: Tipo de dados forneceidos pela usina: | K42: Tipo de dados forneceidos pelos fornecedores: | T42: Tipo de dados forneceidos: | AG42: Padrão | AP42: Primários
B43: =AP42 -> Primários | K43: Em função das informações de cada fornecedor | T43: Em função das informações da usina e de cada fornecedor
B45: Área Queimada | K45: Área Queimada | T45: Área Queimada | AE45: Área Queimada | AN45: Área Queimada
C46: Área queimada | D46: 3680 | E46: ha | L46: Área queimada | M46: 3680 | N46: ha | U46: Área queimada | V46: =D46+M46 -> 7360 | W46: ha | AF46: Área queimada | AG46: 1 | AH46: % da área total | AO46: Área queimada | AP46: 3680 | AQ46: % da área total
B48: Corretivos | K48: Corretivos | T48: Corretivos | AE48: Corretivos | AN48: Corretivos
C49: Calcário calcítico | D49: 0 | E49: kg/t cana | L49: Calcário calcítico | M49: 0 | N49: kg/t cana | U49: Calcário calcítico | V49: =D49*($D$36/$V$36)+M49*($M$36/$V$36) -> 0 | W49: kg/t cana | AF49: Calcário calcítico | AG49: 0 | AH49: kg/t cana | AO49: Calcário calcítico | AP49: 0 | AQ49: kg/t cana
C50: Calcário dolomítico | D50: 5.79 | E50: kg/t cana | L50: Calcário dolomítico | M50: 5.79 | N50: kg/t cana | U50: Calcário dolomítico | V50: =D50*($D$36/$V$36)+M50*($M$36/$V$36) -> 5.79 | W50: kg/t cana | AF50: Calcário dolomítico | AG50: 8.106 | AH50: kg/t cana | AO50: Calcário dolomítico | AP50: 5.79 | AQ50: kg/t cana
C51: Gesso | D51: 2.79 | E51: kg/t cana | L51: Gesso | M51: 2.79 | N51: kg/t cana | U51: Gesso | V51: =D51*($D$36/$V$36)+M51*($M$36/$V$36) -> 2.79 | W51: kg/t cana | AF51: Gesso | AG51: 3.906 | AH51: kg/t cana | AO51: Gesso | AP51: 2.79 | AQ51: kg/t cana
B53: Fertilizantes Sintéticos | K53: Fertilizantes Sintéticos | T53: Fertilizantes Sintéticos | AE53: Fertilizantes Sintéticos | AN53: Fertilizantes Sintéticos
C54: Ureia | D54: 1.107 | E54: kg N/t cana | L54: Ureia | M54: 1.107 | N54: kg N/t cana | U54: Ureia | V54: =D54*($D$36/$V$36)+M54*($M$36/$V$36) -> 1.107 | W54: kg N/t cana | AF54: Ureia | AG54: 1.5498 | AH54: kg N/TC | AO54: Ureia | AP54: 1.107 | AQ54: kg N/TC
C55: Fosfato monoamônico (MAP) | D55: 0 | E55: kg N/t cana | L55: Fosfato monoamônico (MAP) | M55: 0 | N55: kg N/t cana | U55: Fosfato monoamônico (MAP) | V55: 0 | W55: kg N/t cana | AF55: Fosfato monoamônico (MAP) | AG55: 0 | AH55: kg N/TC | AO55: Fosfato monoamônico (MAP) | AP55: 0 | AQ55: kg N/TC
C56: Fosfato monoamônico (MAP) | D56: 0 | E56: kg P₂O₅/t cana | L56: Fosfato monoamônico (MAP) | M56: 0 | N56: kg P₂O₅/t cana | U56: Fosfato monoamônico (MAP) | V56: 0 | W56: kg P₂O₅/t cana | AF56: Fosfato monoamônico (MAP) | AG56: 0 | AH56: kg P2O5/TC | AO56: Fosfato monoamônico (MAP) | AP56: 0 | AQ56: kg P2O5/TC
C57: Fosfato diamônico (DAP) | D57: 0 | E57: kg N/t cana | L57: Fosfato diamônico (DAP) | M57: 0 | N57: kg N/t cana | U57: Fosfato diamônico (DAP) | V57: 0 | W57: kg N/t cana | AF57: Fosfato diamônico (DAP) | AG57: 0 | AH57: kg N/TC | AO57: Fosfato diamônico (DAP) | AP57: 0 | AQ57: kg N/TC
C58: Fosfato diamônico (DAP) | D58: 0 | E58: kg P₂O₅/t cana | L58: Fosfato diamônico (DAP) | M58: 0 | N58: kg P₂O₅/t cana | U58: Fosfato diamônico (DAP) | V58: 0 | W58: kg P₂O₅/t cana | AF58: Fosfato diamônico (DAP) | AG58: 0 | AH58: kg P2O5/TC | AO58: Fosfato diamônico (DAP) | AP58: 0 | AQ58: kg P2O5/TC
C59: Nitrato de amônio | D59: 0 | E59: kg N/t cana | L59: Nitrato de amônio | M59: 0 | N59: kg N/t cana | U59: Nitrato de amônio | V59: 0 | W59: kg N/t cana | AF59: Nitrato de amônio | AG59: 0 | AH59: kg N/TC | AO59: Nitrato de amônio | AP59: 0 | AQ59: kg N/TC
C60: Solução de nitrato de amônio e ureia (UAN) | D60: 0 | E60: kg N/t cana | L60: Solução de nitrato de amônio e ureia (UAN) | M60: 0 | N60: kg N/t cana | U60: Solução de nitrato de amônio e ureia (UAN) | V60: 0 | W60: kg N/t cana | AF60: Solução de nitrato de amônio e ureia (UAN) | AG60: 0 | AH60: kg N/TC | AO60: Solução de nitrato de amônio e ureia (UAN) | AP60: 0 | AQ60: kg N/TC
C61: Amônia anidra | D61: 0 | E61: kg N/t cana | L61: Amônia anidra | M61: 0 | N61: kg N/t cana | U61: Amônia anidra | V61: 0 | W61: kg N/t cana | AF61: Amônia anidra | AG61: 0 | AH61: kg N/TC | AO61: Amônia anidra | AP61: 0 | AQ61: kg N/TC
C62: Sulfato de amônio | D62: 0 | E62: kg N/t cana | L62: Sulfato de amônio | M62: 0 | N62: kg N/t cana | U62: Sulfato de amônio | V62: 0 | W62: kg N/t cana | AF62: Sulfato de amônio | AG62: 0 | AH62: kg N/TC | AO62: Sulfato de amônio | AP62: 0 | AQ62: kg N/TC
C63: Nitrato de amônio e cálcio (CAN) | D63: 0 | E63: kg N/t cana | L63: Nitrato de amônio e cálcio (CAN) | M63: 0 | N63: kg N/t cana | U63: Nitrato de amônio e cálcio (CAN) | V63: 0 | W63: kg N/t cana | AF63: Nitrato de amônio e cálcio (CAN) | AG63: 0 | AH63: kg N/TC | AO63: Nitrato de amônio e cálcio (CAN) | AP63: 0 | AQ63: kg N/TC
C64: Superfosfato simples (SSP) | D64: 0.4438988334 | E64: kg P₂O₅/t cana | L64: Superfosfato simples (SSP) | M64: 0.4438988334 | N64: kg P₂O₅/t cana | U64: Superfosfato simples (SSP) | V64: 0.4438988334 | W64: kg P₂O₅/t cana | AF64: Superfosfato simples (SSP) | AG64: 0.6214583667 | AH64: kg P2O5/TC | AO64: Superfosfato simples (SSP) | AP64: 0.4438988334 | AQ64: kg P2O5/TC
C65: Superfosfato triplo (TSP) | D65: 0 | E65: kg P₂O₅/t cana | L65: Superfosfato triplo (TSP) | M65: 0 | N65: kg P₂O₅/t cana | U65: Superfosfato triplo (TSP) | V65: 0 | W65: kg P₂O₅/t cana | AF65: Superfosfato triplo (TSP) | AG65: 0 | AH65: kg P2O5/TC | AO65: Superfosfato triplo (TSP) | AP65: 0 | AQ65: kg P2O5/TC
C66: Cloreto de potássio (KCl) | D66: 1.346204902 | E66: kg K₂O/t cana | L66: Cloreto de potássio (KCl) | M66: 1.346204902 | N66: kg K₂O/t cana | U66: Cloreto de potássio (KCl) | V66: 1.346204902 | W66: kg K₂O/t cana | AF66: Cloreto de potássio (KCl) | AG66: 1.884686862 | AH66: kg K2O/TC | AO66: Cloreto de potássio (KCl) | AP66: 1.346204902 | AQ66: kg K2O/TC
B67: Outros | C67: especificar | D67: 0 | E67: kg N/t cana | K67: Outros | L67: especificar | M67: 0 | N67: kg N/t cana | T67: Outros | U67: especificar | V67: 0 | W67: kg N/t cana | AE67: Outros | AF67: especificar | AG67: 0 | AH67: kg N /TC | AN67: Outros | AO67: especificar | AP67: 0 | AQ67: kg N /TC
B68: Outros | C68: especificar | D68: 0 | E68: kg P₂O₅/t cana | K68: Outros | L68: especificar | M68: 0 | N68: kg P₂O₅/t cana | T68: Outros | U68: especificar | V68: 0 | W68: kg P₂O₅/t cana | AE68: Outros | AF68: especificar | AG68: 0 | AH68: kg P2O5/TC | AN68: Outros | AO68: especificar | AP68: 0 | AQ68: kg P2O5/TC
B69: Outros | C69: especificar | D69: 0 | E69: kg K₂O/t cana | K69: Outros | L69: especificar | M69: 0 | N69: kg K₂O/t cana | T69: Outros | U69: especificar | V69: 0 | W69: kg K₂O/t cana | AE69: Outros | AF69: especificar | AG69: 0 | AH69: kg K2O/TC | AN69: Outros | AO69: especificar | AP69: 0 | AQ69: kg K2O/TC
B71: Fertilizantes Orgânicos/Organominerais | K71: Fertilizantes Orgânicos/Organominerais | T71: Fertilizantes Orgânicos/Organominerais | AE71: Fertilizantes Orgânicos/Organominerais | AN71: Fertilizantes Orgânicos/Organominerais
C72: Vinhaça | D72: 440.2 | E72: L/t cana | F72: Concentração de N | G72: 0.375 | H72: g N/L | L72: Vinhaça | M72: 440.2 | N72: L/t cana | O72: Concentração de N | P72: 0.375 | Q72: g N/L | U72: Vinhaça | V72: =D72*($D$36/$V$36)+M72*($M$36/$V$36) -> 440.2 | W72: L/t cana | X72: Concentração de N | Y72: =IF((D72*$D$36+M72*$M$36)<>0,(G72*D72*$D$36+P72*M72*$M$36)/(D72*$D$36+M72*$M$36),0) -> 0.375 | Z72: g N/L | AF72: Vinhaça | AG72: 616.28 | AH72: L/t cana | AI72: Concentração de N | AJ72: 0.375 | AK72: g N/L | AO72: Vinhaça | AP72: 440.2 | AQ72: L/t cana | AR72: Concentração de N | AS72: 0.375 | AT72: g N/L
C73: Torta de Filtro (base úmida) | D73: 30.57142857 | E73: kg/t cana | F73: Concentração de N | G73: 14 | H73: g N/kg | L73: Torta de Filtro (base úmida) | M73: 30.57142857 | N73: kg/t cana | O73: Concentração de N | P73: 14 | Q73: g N/kg | U73: Torta de Filtro (base úmida) | V73: 30.57142857 | W73: kg/t cana | X73: Concentração de N | Y73: 14 | Z73: g N/kg | AF73: Torta de Filtro (base úmida) | AG73: 42.8 | AH73: kg/t cana | AI73: Concentração de N | AJ73: 14 | AK73: g N/kg | AO73: Torta de Filtro (base úmida) | AP73: 30.57142857 | AQ73: kg/t cana | AR73: Concentração de N | AS73: 14 | AT73: g N/kg
C74: Cinzas e fuligem (base úmida) | D74: 7.2 | E74: kg/t cana | F74: Concentração de N | H74: g N/kg | L74: Cinzas e fuligem (base úmida) | M74: 7.2 | N74: kg/t cana | O74: Concentração de N | Q74: g N/kg | U74: Cinzas e fuligem (base úmida) | V74: 7.2 | W74: kg/t cana | X74: Concentração de N | Y74: 0 | Z74: g N/kg | AF74: Cinzas e fuligem (base úmida) | AG74: 10.08 | AH74: kg/t cana | AI74: Concentração de N | AK74: g N/kg | AO74: Cinzas e fuligem (base úmida) | AP74: 7.2 | AQ74: kg/t cana | AR74: Concentração de N | AT74: g N/kg
B75: Outros | C75: especificar | D75: 0 | E75: kg/t cana | F75: Concentração de N | H75: g N/kg | K75: Outros | L75: especificar | M75: 0 | N75: kg/t cana | O75: Concentração de N | Q75: g N/kg | T75: Outros | U75: especificar | V75: 0 | W75: kg/t cana | X75: Concentração de N | Y75: =IF((D75*$D$36+M75*$M$36)<>0,(G75*D75*$D$36+P75*M75*$M$36)/(D75*$D$36+M75*$M$36),0) -> 0 | Z75: g N/kg | AE75: Outros | AF75: especificar | AG75: 0 | AH75: kg/t cana | AI75: Concentração de N | AK75: g N/kg | AN75: Outros | AO75: especificar | AP75: 0 | AQ75: kg/t cana | AR75: Concentração de N | AT75: g N/kg
B76: Outros | C76: especificar | D76: 0 | E76: kg/t cana | F76: Concentração de N | H76: g N/kg | K76: Outros | L76: especificar | M76: 0 | N76: kg/t cana | O76: Concentração de N | Q76: g N/kg | T76: Outros | U76: especificar | V76: 0 | W76: kg/t cana | X76: Concentração de N | Y76: =IF((D76*$D$36+M76*$M$36)<>0,(G76*D76*$D$36+P76*M76*$M$36)/(D76*$D$36+M76*$M$36),0) -> 0 | Z76: g N/kg | AE76: Outros | AF76: especificar | AG76: 0 | AH76: kg/t cana | AI76: Concentração de N | AK76: g N/kg | AN76: Outros | AO76: especificar | AP76: 0 | AQ76: kg/t cana | AR76: Concentração de N | AT76: g N/kg
B78: Combustíveis e eletricidade da rede | K78: Combustíveis e eletricidade da rede | T78: Combustíveis e eletricidade da rede | AE78: Combustíveis e eletricidade da rede | AN78: Combustíveis e eletricidade da rede
C79: Diesel - B8 | D79: 3.18 | E79: L/t cana | L79: Diesel - B8 | M79: 3.18 | N79: L/t cana | U79: Diesel - B8 | V79: =D79*($D$36/$V$36)+M79*($M$36/$V$36) -> 3.18 | W79: L/t cana | AF79: Diesel - B8 | AG79: 4.452 | AH79: L/t cana | AO79: Diesel - B8 | AP79: 3.18 | AQ79: L/t cana
C80: Diesel - B10 | D80: 0 | E80: L/t cana | L80: Diesel - B10 | M80: 0 | N80: L/t cana | U80: Diesel - B10 | V80: 0 | W80: L/t cana | AF80: Diesel - B10 | AG80: 0 | AH80: L/t cana | AO80: Diesel - B10 | AP80: 0 | AQ80: L/t cana
C81: Diesel - BX | D81: 0 | E81: L/t cana | F81: Teor de biodiesel na mistura | G81: 0.11 | L81: Diesel - BX | M81: 0 | N81: L/t cana | O81: Teor de biodiesel na mistura | P81: 0.11 | U81: Diesel - BX | V81: 0 | W81: L/t cana | X81: Teor médio de biodiesel na mistura | Y81: =IF((D81*$D$36+M81*$M$36)<>0,(G81*D81*$D$36+P81*M81*$M$36)/(D81*$D$36+M81*$M$36),0) -> 0 | Z81: % | AF81: Diesel - BX | AG81: 0 | AH81: L/t cana | AI81: Teor médio de biodiesel na mistura | AJ81: 0.11 | AK81: % | AO81: Diesel - BX | AP81: 0 | AQ81: L/t cana | AR81: Teor médio de biodiesel na mistura | AS81: 0.11 | AT81: %
C82: Diesel - B20 | D82: 0 | E82: L/t cana | L82: Diesel - B20 | M82: 0 | N82: L/t cana | U82: Diesel - B20 | V82: 0 | W82: L/t cana | AF82: Diesel - B20 | AG82: 0 | AH82: L/t cana | AO82: Diesel - B20 | AP82: 0 | AQ82: L/t cana
C83: Diesel - B30 | D83: 0 | E83: L/t cana | L83: Diesel - B30 | M83: 0 | N83: L/t cana | U83: Diesel - B30 | V83: 0 | W83: L/t cana | AF83: Diesel - B30 | AG83: 0 | AH83: L/t cana | AO83: Diesel - B30 | AP83: 0 | AQ83: L/t cana
C84: Biodiesel - B100 | D84: 0 | E84: L/t cana | L84: Biodiesel - B100 | M84: 0 | N84: L/t cana | U84: Biodiesel - B100 | V84: 0 | W84: L/t cana | AF84: Biodiesel - B100 | AG84: 0 | AH84: L/t cana | AO84: Biodiesel - B100 | AP84: 0 | AQ84: L/t cana
C85: Gasolina C | D85: 0 | E85: L/t cana | L85: Gasolina C | M85: 0 | N85: L/t cana | U85: Gasolina C | V85: 0 | W85: L/t cana | AF85: Gasolina C | AG85: 0 | AH85: L/t cana | AO85: Gasolina C | AP85: 0 | AQ85: L/t cana
C86: Etanol hidratado | D86: 0 | E86: L/t cana | L86: Etanol hidratado | M86: 0 | N86: L/t cana | U86: Etanol hidratado | V86: 0 | W86: L/t cana | AF86: Etanol hidratado | AG86: 0 | AH86: L/t cana | AO86: Etanol hidratado | AP86: 0 | AQ86: L/t cana
C87: Biometano de terceiros | D87: 0 | E87: Nm³/t cana | L87: Biometano de terceiros | M87: 0 | N87: Nm³/t cana | U87: Biometano de terceiros | V87: 0 | W87: Nm³/t cana | AF87: Biometano de terceiros | AG87: 0 | AH87: Nm³/t cana | AO87: Biometano de terceiros | AP87: 0 | AQ87: Nm³/t cana
C88: Biometano próprio | D88: 0 | E88: Nm³/t cana | L88: Biometano próprio | M88: 0 | N88: Nm³/t cana | U88: Biometano próprio | V88: 0 | W88: Nm³/t cana | AF88: Biometano próprio | AG88: 0 | AH88: Nm³/t cana | AO88: Biometano próprio | AP88: 0 | AQ88: Nm³/t cana
C89: Eletricidade da rede - mix médio | D89: 0 | E89: kWh/t cana | L89: Eletricidade da rede - mix médio | M89: 0 | N89: kWh/t cana | U89: Eletricidade da rede - mix médio | V89: 0 | W89: kWh/t cana | AF89: Eletricidade da rede - mix médio | AG89: 0 | AH89: kWh/t cana | AO89: Eletricidade da rede - mix médio | AP89: 0 | AQ89: kWh/t cana
C90: Eletricidade - PCH | D90: 0 | E90: kWh/t cana | L90: Eletricidade - PCH | M90: 0 | N90: kWh/t cana | U90: Eletricidade - PCH | V90: 0 | W90: kWh/t cana | AF90: Eletricidade - PCH | AG90: 0 | AH90: kWh/t cana | AO90: Eletricidade - PCH | AP90: 0 | AQ90: kWh/t cana
C91: Eletricidade - biomassa | D91: 0 | E91: kWh/t cana | L91: Eletricidade - biomassa | M91: 0 | N91: kWh/t cana | U91: Eletricidade - biomassa | V91: 0 | W91: kWh/t cana | AF91: Eletricidade - biomassa | AG91: 0 | AH91: kWh/t cana | AO91: Eletricidade - biomassa | AP91: 0 | AQ91: kWh/t cana
C92: Eletricidade - eólica | D92: 0 | E92: kWh/t cana | L92: Eletricidade - eólica | M92: 0 | N92: kWh/t cana | U92: Eletricidade - eólica | V92: 0 | W92: kWh/t cana | AF92: Eletricidade - eólica | AG92: 0 | AH92: kWh/t cana | AO92: Eletricidade - eólica | AP92: 0 | AQ92: kWh/t cana
C93: Eletricidade - solar | D93: 0 | E93: kWh/t cana | L93: Eletricidade - solar | M93: 0 | N93: kWh/t cana | U93: Eletricidade - solar | V93: 0 | W93: kWh/t cana | AF93: Eletricidade - solar | AG93: 0 | AH93: kWh/t cana | AO93: Eletricidade - solar | AP93: 0 | AQ93: kWh/t cana
B96: Fornecedores de milho - Dados consolidados | K96: Default - Milho
B97: Informações gerais | K97: Informações gerais
B98: Houve supressão de vegetação nativa a partir de 26 de dezembro de 2017? | D98: Não
C100: Número de registro no CAR | D100: Cadastro de fornecedores
C102: Situação do CAR | D102: Ativo
C104: Sistema de plantio | D104: Convencional
C105: Área total | D105: 1 | E105: ha
C107: Produção total (base úmida) | D107: 5.252622062 | E107: t milho | F107: Umidade | G107: 0.13
C108: Palha recolhida (base seca) | D108: 0 | E108: t palha
B110: Tipo de preenchimento | K110: Tipo de preenchimento
B111: Tipo de dados forneceidos pelos fornecedores: | M111: Padrão
B112: Em função das informações de cada fornecedor
B114: Corretivos | K114: Corretivos
C115: Calcário calcítico | D115: 0 | E115: kg/t milho | L115: Calcário calcítico | M115: 0 | N115: kg/t milho
C116: Calcário dolomítico | D116: 42.30691255 | E116: kg/t milho | L116: Calcário dolomítico | M116: 105.8 | N116: kg/t milho
C117: Gesso | D117: 0 | E117: kg/t milho | L117: Gesso | M117: 0 | N117: kg/t milho
B119: Sementes | K119: Sementes
C120: Sementes | D120: 4.643376172 | E120: kg/t milho | L120: Sementes | M120: 11.6 | N120: kg/t milho
B122: Fertilizantes Sintéticos | K122: Fertilizantes Sintéticos
C123: Ureia | D123: 12.57283828 | E123: kg N/t milho | L123: Ureia | M123: 31.4 | N123: kg N/t milho
C124: Fosfato Monoamônico (MAP) | D124: 0 | E124: kg N/t milho | L124: Fosfato Monoamônico (MAP) | M124: 0 | N124: kg N/t milho
C125: Fosfato Monoamônico (MAP) | D125: 0 | E125: kg P₂O₅/t milho | L125: Fosfato Monoamônico (MAP) | M125: 0 | N125: kg P₂O₅/t milho
C126: Fosfato diamônico (DAP) | D126: 0 | E126: kg N/t milho | L126: Fosfato diamônico (DAP) | M126: 0 | N126: kg N/t milho
C127: Fosfato diamônico (DAP) | D127: 0 | E127: kg P₂O₅/t milho | L127: Fosfato diamônico (DAP) | M127: 0 | N127: kg P₂O₅/t milho
C128: Nitrato de amônio | D128: 0 | E128: kg N/t milho | L128: Nitrato de amônio | M128: 0 | N128: kg N/t milho
C129: Solução de nitrato de amônio e ureia (UAN) | D129: 0 | E129: kg N/t milho | L129: Solução de nitrato de amônio e ureia (UAN) | M129: 0 | N129: kg N/t milho
C130: Amônia anidra | D130: 0 | E130: kg N/t milho | L130: Amônia anidra | M130: 0 | N130: kg N/t milho
C131: Sulfato de amônio | D131: 0 | E131: kg N/t milho | L131: Sulfato de amônio | M131: 0 | N131: kg N/t milho
C132: Nitrato de amônio e cálcio (CAN) | D132: 0 | E132: kg N/t milho | L132: Nitrato de amônio e cálcio (CAN) | M132: 0 | N132: kg N/t milho
C133: Superfosfato simples (SSP) | D133: 10.91497249 | E133: kg P₂O₅/t milho | L133: Superfosfato simples (SSP) | M133: 27.3 | N133: kg P₂O₅/t milho
C134: Superfosfato triplo (TSP) | D134: 0 | E134: kg P₂O₅/t milho | L134: Superfosfato triplo (TSP) | M134: 0 | N134: kg P₂O₅/t milho
C135: Cloreto de potássio (KCl) | D135: 11.20892304 | E135: kg K₂O/t milho | L135: Cloreto de potássio (KCl) | M135: 28 | N135: kg K₂O/t milho
B136: Outros | C136: especificar | D136: 0 | E136: kg N/t milho | K136: Outros | L136: especificar | M136: 0 | N136: kg N/t milho
B137: Outros | C137: especificar | D137: 0 | E137: kg P₂O₅/t milho | K137: Outros | L137: especificar | M137: 0 | N137: kg P₂O₅/t milho
B138: Outros | C138: especificar | D138: 0 | E138: kg K₂O/t milho | K138: Outros | L138: especificar | M138: 0 | N138: kg K₂O/t milho
B140: Fertilizantes Orgânicos/Organominerais | K140: Fertilizantes Orgânicos/Organominerais
B141: Outros | C141: especificar | D141: 0 | E141: kg/t milho | F141: Concentração de N | H141: g N/kg | K141: Outros | L141: especificar | M141: 0 | N141: kg/t milho | O141: Concentração de N | Q141: g N/kg
B142: Outros | C142: especificar | D142: 0 | E142: kg/t milho | F142: Concentração de N | H142: g N/kg | K142: Outros | L142: especificar | M142: 0 | N142: kg/t milho | O142: Concentração de N | Q142: g N/kg
B143: Outros | C143: especificar | D143: 0 | E143: kg/t milho | F143: Concentração de N | H143: g N/kg | K143: Outros | L143: especificar | M143: 0 | N143: kg/t milho | O143: Concentração de N | Q143: g N/kg
B144: Outros | C144: especificar | D144: 0 | E144: kg/t milho | F144: Concentração de N | H144: g N/kg | K144: Outros | L144: especificar | M144: 0 | N144: kg/t milho | O144: Concentração de N | Q144: g N/kg
B145: Outros | C145: especificar | D145: 0 | E145: kg/t milho | F145: Concentração de N | H145: g N/kg | K145: Outros | L145: especificar | M145: 0 | N145: kg/t milho | O145: Concentração de N | Q145: g N/kg
B147: Combustíveis e eletricidade da rede | K147: Combustíveis e eletricidade da rede
C148: Diesel - B8 | D148: 4.8 | E148: L/t milho | L148: Diesel - B8 | M148: 12 | N148: L/t soja
C149: Diesel - B10 | D149: 0 | E149: L/t milho | L149: Diesel - B10 | M149: 0 | N149: L/t soja
C150: Diesel - BX | D150: 0 | E150: L/t milho | F150: Teor de biodiesel na mistura | G150: 0.11 | L150: Diesel - BX | M150: 0 | N150: L/t soja | O150: Teor de biodiesel na mistura | P150: 0.11
C151: Diesel - B20 | D151: 0 | E151: L/t milho | L151: Diesel - B20 | M151: 0 | N151: L/t soja
C152: Diesel - B30 | D152: 0 | E152: L/t milho | L152: Diesel - B30 | M152: 0 | N152: L/t soja
C153: Biodiesel - B100 | D153: 0 | E153: L/t milho | L153: Biodiesel - B100 | M153: 0 | N153: L/t soja
C154: Gasolina C | D154: 0 | E154: L/t milho | L154: Gasolina C | M154: 0 | N154: L/t soja
C155: Etanol hidratado | D155: 0 | E155: L/t milho | L155: Etanol hidratado | M155: 0 | N155: L/t soja
C156: Biometano de terceiros | D156: 0 | E156: Nm³/t milho | L156: Biometano de terceiros | M156: 0 | N156: Nm³/t soja
C157: Biometano próprio | D157: 0 | E157: Nm³/t milho | L157: Biometano próprio | M157: 0 | N157: Nm³/t soja
C158: Eletricidade da rede - mix médio | D158: 0 | E158: kWh/t milho | L158: Eletricidade da rede - mix médio | M158: 0 | N158: kWh/t soja
C159: Eletricidade - PCH | D159: 0 | E159: kWh/t milho | L159: Eletricidade - PCH | M159: 0 | N159: kWh/t soja
C160: Eletricidade - biomassa | D160: 0 | E160: kWh/t milho | L160: Eletricidade - biomassa | M160: 0 | N160: kWh/t soja
C161: Eletricidade - eólica | D161: 0 | E161: kWh/t milho | L161: Eletricidade - eólica | M161: 0 | N161: kWh/t soja
C162: Eletricidade - solar | D162: 0 | E162: kWh/t milho | L162: Eletricidade - solar | M162: 0 | N162: kWh/t soja
B166: Fase industrial - processamento do etanol
B167: Processamento e rendimentos
C168: Quantidade de cana processada | D168: 1 | E168: t cana/ano
C169: Quantidade de palha processada (base seca) | D169: 0 | E169: t palha/ano
C170: Quantidade de milho processado | D170: 0.13 | E170: t milho/ano | F170: Umidade | G170: 0.13
C171: Distância de transporte - milho | D171: 300 | E171: km
C172: Produção de Etanol Anidro | D172: 68.14680215 | E172: L/ano
C173: Produção de Etanol Hidratado | D173: 68.58772404 | E173: L/ano
C174: Rendimento Açúcar | D174: 0 | E174: kg/ano
C175: Energia Elétrica Comercializada | D175: 51.42875295 | E175: kWh/ano
C176: Produção de DDG (Distillers Dried Grains) | D176: 36.78649333 | E176: kg/ano | F176: Umidade | G176: 0.1
C177: Produção de DDGS (Distillers Dried Grains with Solubles) | D177: 0 | E177: kg/ano | F177: Umidade | G177: 0.1
C178: Produção de CGM (Corn Gluten Meal) | D178: 0 | E178: kg/ano | F178: Umidade | G178: 0.1
C179: Produção de CGF (Corn Gluten Feed) | D179: 0 | E179: kg/ano | F179: Umidade | G179: 0.1
C180: Produção de Óleo de milho | D180: 0 | E180: kg/ano
C181: Bagaço Comercializado (base úmida) | D181: 0 | E181: kg/ano | F181: Umidade | G181: 0.5
B183: Combustíveis
C184: Bagaço próprio
C185: Quantidade (base úmida) | D185: 253 | E185: kg/ano
C186: Umidade | D186: 0.5
C188: Palha própria
C189: Quantidade (base úmida) | D189: 0 | E189: kg/ano
C190: Umidade | D190: 0
C192: Bagaço de terceiros
C193: Quantidade (base úmida) | D193: 0 | E193: kg/ano
C194: Umidade | D194: 0
C195: Distância de transporte | D195: 0 | E195: km
C197: Palha de terceiros
C198: Quantidade (base úmida) | D198: 0 | E198: kg/ano
C199: Umidade | D199: 0
C200: Distância de transporte | D200: 0 | E200: km
C202: Cavaco de madeira
C203: Quantidade (base úmida) | D203: 0 | E203: kg/ano
C204: Umidade | D204: 0
C205: Distância de transporte | D205: 0 | E205: km
C207: Lenha
C208: Quantidade (base úmida) | D208: 0 | E208: kg/ano
C209: Umidade | D209: 0
C210: Distância de transporte | D210: 0 | E210: km
C212: Resíduos florestais
C213: Quantidade (base úmida) | D213: 0 | E213: kg/ano
C214: Umidade | D214: 0
C215: Distância de transporte | D215: 0 | E215: km
B218: Distribuição dos biocombustíveis
C220: Etanol anidro
C221: Rodoviário | D221: 1
C222: Rodoviário + Dutoviário | D222: 0
C223: Rodoviário + Ferroviário | D223: 0
C226: Etanol hidradado
C227: Rodoviário | D227: 1 | E227: %
C228: Rodoviário + Dutoviário | D228: 0 | E228: %
C229: Rodoviário + Ferroviário | D229: 0 | E229: %

Sheet _E1G Flex
B2: Emissões totais - g CO₂ eq
C3: Anidro | E3: Hidratado
B4: Total | C4: =SUM(C5:C9) -> 22.54781178 | E4: =SUM(E5:E9) -> 22.82914648
B5: Agrícola - Cana | C5: =$G$87 -> 9.40873104 | D5: =C5/$C$4 -> 0.4172791192 | E5: =$G$87 -> 9.40873104 | F5: =E5/$E$4 -> 0.4121367852
B6: Agrícola - Milho | C6: =$G$166 -> 8.992687475 | D6: =C6/$C$4 -> 0.3988275031 | E6: =$G$166 -> 8.992687475 | F6: =E6/$E$4 -> 0.3939125574
B7: Industrial | C7: =($G$222-$G$182-$G$183) -> 2.904710769 | D7: =C7/$C$4 -> 0.1288245084 | E7: =($G$222-$G$182-$G$183) -> 2.904710769 | F7: 0.1272369412
B8: Transporte | C8: =$D$252 -> 0.8026819585 | D8: 0.03559910675 | E8: =$E$252 -> 0.8600163841 | F8: =E8/$E$4 -> 0.03767185886
B9: Uso | C9: ='FE''s queima combustíveis'!$I$7 -> 0.4390005404 | D9: 0.0194697625 | E9: ='FE''s queima combustíveis'!$I$8 -> 0.6630008161 | F9: =E9/$E$4 -> 0.02904185737
B12: Etapa agrícola - Cana-de-açúcar
B13: Produto | D13: 1 ha médio | E13: 1 t cana
B14: Produção de cana | C14: kg | D14: =('E1G Flex'!V36/'E1G Flex'!V34)*1000 -> 66735.2001 | E14: 1000
B15: Entradas da natureza | D15: 1 ha médio | E15: 1 t cana
B16: Ocupação total | C16: ha | D16: 1 | E16: =(D16*E14)/D14 -> 0.01498459581
B17: Entradas da tecnosfera | D17: 1 ha médio | E17: 1 t cana | F17: g CO2 eq/t cana
B18: Fertilizantes e corretivos | G18: 1 MJ
B19: Calcário calcítico | C19: kg | E19: ='E1G Flex'!V49 -> 0 | F19: =E19*'Dados auxiliares'!$H$48 -> 0 | G19: =(F19/$E$171)*$F$171 -> 0
B20: Calcário dolomítico | C20: kg | E20: ='E1G Flex'!V50 -> 5.79 | F20: =E20*'Dados auxiliares'!$H$49 -> 213.2783439 | G20: 0.0555078329
B21: Gesso | C21: kg | E21: ='E1G Flex'!V51 -> 2.79 | F21: =E21*'Dados auxiliares'!$H$50 -> 7.892559376 | G21: 0.002054117915
B22: N - Ureia | C22: kg N | E22: ='E1G Flex'!V54 -> 1.107 | F22: =E22*'Dados auxiliares'!$H$51 -> 3554.814159 | G22: 0.9251761183
B23: N - Fosfato monoamônico (MAP) | C23: kg N | E23: ='E1G Flex'!V55 -> 0 | F23: =E23*'Dados auxiliares'!$H$52 -> 0 | G23: 0
B24: P₂O₅ - Fosfato monoamônico (MAP) | C24: kg P₂O₅ | E24: ='E1G Flex'!V56 -> 0 | F24: =E24*'Dados auxiliares'!$H$53 -> 0 | G24: 0
B25: N - Fosfato diamônico (DAP) | C25: kg N | E25: ='E1G Flex'!V57 -> 0 | F25: =E25*'Dados auxiliares'!$H$54 -> 0 | G25: 0
B26: P₂O₅ - Fosfato diamônico (DAP) | C26: kg P₂O₅ | E26: ='E1G Flex'!V58 -> 0 | F26: =E26*'Dados auxiliares'!$H$55 -> 0 | G26: 0
B27: N - Nitrato de amônio | C27: kg N | E27: ='E1G Flex'!V59 -> 0 | F27: =E27*'Dados auxiliares'!$H$56 -> 0 | G27: 0
B28: N - Solução de nitrato de amônio e ureia (UAN) | C28: kg N | E28: ='E1G Flex'!V60 -> 0 | F28: =E28*'Dados auxiliares'!$H$57 -> 0 | G28: 0
B29: N - Amônia anidra | C29: kg N | E29: ='E1G Flex'!V61 -> 0 | F29: =E29*'Dados auxiliares'!$H$58 -> 0 | G29: 0
B30: N - Sulfato de amônio | C30: kg N | E30: ='E1G Flex'!V62 -> 0 | F30: =E30*'Dados auxiliares'!$H$59 -> 0 | G30: 0
B31: N - Nitrato de amônio e cálcio (CAN) | C31: kg N | E31: ='E1G Flex'!V63 -> 0 | F31: =E31*'Dados auxiliares'!$H$60 -> 0 | G31: 0
B32: P₂O₅ - Superfosfato simples (SSP) | C32: kg P₂O₅ | E32: ='E1G Flex'!V64 -> 0.4438988334 | F32: =E32*'Dados auxiliares'!$H$62 -> 1050.999921 | G32: 0.2735332943
B33: P₂O₅ - Superfosfato triplo (TSP) | C33: kg P₂O₅ | E33: ='E1G Flex'!V65 -> 0 | F33: =E33*'Dados auxiliares'!$H$63 -> 0 | G33: 0
B34: K₂O - Cloreto de potássio (KCl) | C34: kg K₂O | E34: ='E1G Flex'!V66 -> 1.346204902 | F34: =E34*'Dados auxiliares'!H$64 -> 612.802919 | G34: 0.1594881196
B35: N - Outros | C35: kg N | E35: ='E1G Flex'!V67 -> 0 | F35: =E35*'Dados auxiliares'!H$65 -> 0 | G35: 0
B36: P₂O₅ - Outros | C36: kg P₂O₅ | E36: ='E1G Flex'!V68 -> 0 | F36: =E36*'Dados auxiliares'!H$66 -> 0 | G36: 0
B37: K₂O - Outros | C37: kg K₂O | E37: ='E1G Flex'!V69 -> 0 | F37: =E37*'Dados auxiliares'!H$67 -> 0 | G37: 0
B38: Vinhaça | C38: L | E38: ='E1G Flex'!V72 -> 440.2 | F38: 0 | G38: 0
B39: Torta de filtro | C39: kg | E39: ='E1G Flex'!V73 -> 30.57142857 | F39: 0 | G39: 0
B40: Cinzas e fuligem | C40: kg | E40: ='E1G Flex'!V74 -> 7.2 | F40: 0 | G40: 0
B41: Outros Fertilizantes Orgânicos/Organominerais | C41: kg | E41: ='E1G Flex'!V75+'E1G Flex'!V75 -> 0 | F41: 0 | G41: 0
B42: Agroquímicos
B43: Herbicidas e Inseticidas - Total | C43: kg | D43: =SUM(D44:D57) -> 1.083156939 | E43: =SUM(E44:E57) -> 0.01623066893 | F43: =SUM(F44:F57) -> 173.1644285 | G43: =(F43/$E$171)*$F$171 -> 0.04506778318
B44: Herbicida, Roundup Ready, como glifosato | C44: kg | D44: 0.1741182675 | E44: =D44*$E$16 -> 0.002609091862 | F44: =E44*'Dados auxiliares'!$H$68 -> 30.01944534 | G44: 0.007812862411
B45: Herbicida, Boral 500 SC, como sulfentrazone | C45: kg | D45: 0.5107680209 | E45: =D45*$E$16 -> 0.007653652347 | F45: =E45*'Dados auxiliares'!$H$70 -> 82.21952403 | G45: 0.02139845761
B46: Herbicida, Hexaron, como hexazinona | C46: kg | D46: 0.007379322488 | E46: =D46*$E$16 -> 0.0001105761649 | F46: =E46*'Dados auxiliares'!$H$70 -> 1.187866816 | G46: 0.0003091542794
B47: Herbicida, Combine 500 SC, como tebuthiuron | C47: kg | D47: 0.1749146701 | E47: 0.002621025634 | F47: =E47*'Dados auxiliares'!$H$70 -> 28.15642393 | G47: 0.00732799236
B48: Herbicida, Goal, como oxifluorfen | C48: kg | D48: 0.004472316659 | E48: 6.701585749e-05 | F48: =E48*'Dados auxiliares'!$H$70 -> 0.7199192823 | G48: 0.00018736623
B49: Herbicida, Diuron, como diuron | C49: kg | D49: 0.009317326374 | E49: 0.0001396163698 | F49: =E49*'Dados auxiliares'!$H$70 -> 1.499831838 | G49: 0.0003903463124
B50: Herbicida, Herburon, como diuron | C50: kg | D50: 0.04658663187 | E50: =D50*$E$16 -> 0.0006980818488 | F50: =E50*'Dados auxiliares'!$H$70 -> 7.499159191 | G50: 0.001951731562
B51: Herbicida, Hexaron, como diuron | C51: kg | D51: 0.02616305246 | E51: =D51*$E$16 -> 0.0003920427663 | F51: =E51*'Dados auxiliares'!$H$70 -> 4.211527802 | G51: 0.001096092445
B52: Herbicida, Herbipak, como ametrina | C52: kg | D52: 0.04658663187 | E52: 0.0006980818488 | F52: =E52*'Dados auxiliares'!$H$70 -> 7.499159191 | G52: 0.001951731562
B53: Herbicida, Nortox, como 2,4 D | C53: kg | D53: 0.03754882529 | E53: 0.0005626539702 | F53: =E53*'Dados auxiliares'!$H$69 -> 2.859222493 | G53: 0.000744141395
B54: Inseticida, Actara, como thiamethoxan | C54: kg | D54: 0.009317326374 | E54: 0.0001396163698 | F54: =E54*'Dados auxiliares'!$H$70 -> 1.499831838 | G54: 0.0003903463124
B55: Inseticida, Mirex, como sulfluramida | C55: kg | D55: 6.98799478e-05 | E55: 1.047122773e-06 | F55: =E55*'Dados auxiliares'!$H$70 -> 0.01124873879 | G55: 2.927597343e-06
B56: Inseticida, Regent 800 WG, como fipronil | C56: kg | D56: 0.03405120139 | E56: =D56*$E$16 -> 0.0005102434898 | F56: =E56*'Dados auxiliares'!$H$70 -> 5.481301602 | G56: 0.001426563841
B57: Inseticida, Regent 800 WG, como fipronil | C57: kg | D57: 0.001863465275 | E57: =D57*$E$16 -> 2.792327395e-05 | F57: =E57*'Dados auxiliares'!$H$70 -> 0.2999663676 | G57: 7.806926248e-05
B58: Combustíveis e eletricidade
B59: Diesel B0 | C59: kg | E59: =('E1G Flex'!$V$79*(1-0.08)+'E1G Flex'!$V$80*(1-0.1)+'E1G Flex'!$V$81*(1-'E1G Flex'!$Y$81)+'E1G Flex'!V82*(1-0.2)+'E1G Flex'!$V$83*(1-0.3)+'E1G Flex'!$V$84*(1-1))*('Dados auxiliares'!$D$24) -> 2.457504 | F59: =E59*'Dados auxiliares'!$H$112 -> 1366.689994 | G59: =(F59/$E$171)*$F$171 -> 0.355694809
B60: Biodiesel B100 | C60: kg | E60: =('E1G Flex'!$V$79*(0.08)+'E1G Flex'!$V$80*(0.1)+'E1G Flex'!$V$81*('E1G Flex'!$Y$81)+'E1G Flex'!V83*(0.2)+'E1G Flex'!$V$83*(0.3)+'E1G Flex'!$V$84*(1))*('Dados auxiliares'!$D$17) -> 0.223872 | F60: =E60*'Dados auxiliares'!$H$113 -> 220.9370682 | G60: 0.05750109288
B61: Gasolina A | C61: kg | E61: ='E1G Flex'!V85*(1-'FE''s queima combustíveis'!$D$16)*'Dados auxiliares'!$D$22 -> 0 | F61: =E61*'Dados auxiliares'!$H$116 -> 0 | G61: 0
B62: Etanol anidro | C62: kg | E62: ='E1G Flex'!V85*('FE''s queima combustíveis'!$D$16)*'Dados auxiliares'!$D$15 -> 0 | F62: =E62*'Dados auxiliares'!$H$117 -> 0 | G62: 0
B63: Etanol hidratado | C63: kg | E63: ='E1G Flex'!V86*'Dados auxiliares'!$D$16 -> 0 | F63: =E63*'Dados auxiliares'!$H$118 -> 0 | G63: 0
B64: Biometano de terceiros | C64: Nm³ | E64: ='E1G Flex'!V87 -> 0 | F64: =E64*'Dados auxiliares'!$F$18 -> 0 | G64: 0
B65: Eletricidade da rede - mix médio | C65: kWh | E65: ='E1G Flex'!V89 -> 0 | F65: =E65*'Dados auxiliares'!$H$103 -> 0 | G65: 0
B66: Eletricidade - PCH | C66: kWh | E66: ='E1G Flex'!V90 -> 0 | F66: =E66*'Dados auxiliares'!$H$104 -> 0 | G66: 0
B67: Eletricidade - biomassa | C67: kWh | E67: ='E1G Flex'!V91 -> 0 | F67: =E67*'Dados auxiliares'!$H$105 -> 0 | G67: 0
B68: Eletricidade - eólica | C68: kWh | E68: ='E1G Flex'!V92 -> 0 | F68: =E68*'Dados auxiliares'!$H$106 -> 0 | G68: 0
B69: Eletricidade - solar | C69: kWh | E69: ='E1G Flex'!V93 -> 0 | F69: =E69*'Dados auxiliares'!$H$107 -> 0 | G69: 0
B70: Emissões | D70: 1 ha médio | E70: 1 t cana | F70: g CO2 eq/t cana
B71: N2O - Fertilizantes sintéticos | C71: kg | D71: ='_Emissões Agrícolas'!$E$54 -> 1.538201078 | E71: =D71*$E$16 -> 0.02304932143 | F71: =E71*1000*'Dados auxiliares'!$D$9 -> 6108.070179 | G71: =(F71/$E$171)*$F$171 -> 1.589686663
B72: N2O - Fertilizantes organominerais | C72: kg | D72: ='_Emissões Agrícolas'!$E$58 -> 0.8862864181 | E72: =D72*$E$16 -> 0.01328064375 | F72: =E72*1000*'Dados auxiliares'!$D$9 -> 3519.370594 | G72: 0.9159515742
B73: N2O - Resíduos culturais | C73: kg | D73: ='_Emissões Agrícolas'!$E$62 -> 1.127918304 | E73: =D73*$E$16 -> 0.0169013999 | F73: =E73*1000*'Dados auxiliares'!$D$9 -> 4478.870973 | G73: 1.165671193
B74: CO2 - Calcário | C74: kg | E74: =$E$19*'_Emissões Agrícolas'!$E$79+$E$20*'_Emissões Agrícolas'!$E$80 -> 2.7599 | F74: =E74*1000 -> 2759.9 | G74: 0.7182917179
B75: CO2 - Uréia | C75: kg | E75: =$E$22*'_Emissões Agrícolas'!$E$81 -> 1.727234043 | F75: =E75*1000 -> 1727.234043 | G75: 0.449530022
B76: N2O - queima palha | C76: kg | D76: ='_Emissões Agrícolas'!$E$73 -> 0.1203369128 | E76: =D76*$E$16 -> 0.0018032 | F76: =E76*1000*'Dados auxiliares'!$D$9 -> 477.848 | G76: 0.1243647454
B77: CH4 bio - queima palha | C77: kg | D77: ='_Emissões Agrícolas'!$E$74 -> 4.641566637 | E77: =D77*$E$16 -> 0.069552 | F77: =E77*1000*'Dados auxiliares'!$D$8 -> 1947.456 | G77: 0.5068450001
B78: CO₂ eq - queima do diesel | C78: kg | E78: =$E$59*'FE''s queima combustíveis'!$I$53/1000 -> 7.755071648 | F78: =E78*1000 -> 7755.071648 | G78: 2.018335351
B79: CO₂ eq - queima do biodiesel | C79: kg | E79: =$E$60*'FE''s queima combustíveis'!$I$54/1000 -> 0.003703301101 | F79: =E79*1000 -> 3.703301101 | G79: 0.0009638213377
B80: CO₂ eq - queima da gasolina A | C80: kg | E80: =$E$61*'FE''s queima combustíveis'!$I$9/1000 -> 0 | F80: 0 | G80: 0
B81: CO₂ eq - queima do etanol anidro | C81: kg | E81: =$E$62*'FE''s queima combustíveis'!$I$7/1000 -> 0 | F81: 0 | G81: 0
B82: CO₂ eq - queima do etanol hidratado | C82: kg | E82: =$E$63*'FE''s queima combustíveis'!$I$8/1000 -> 0 | F82: 0 | G82: 0
B83: CO₂ eq - queima do biometano | C83: kg | E83: =($E$64+'E1G Flex'!V88)*'FE''s queima combustíveis'!$I$55/1000 -> 0 | F83: 0 | G83: 0
B85: Emissões do processo | C85: g CO2 eq/t cana | F85: =SUM(F71:F83) -> 28777.52474 | G85: =(F85/$E$171)*$F$171 -> 7.489640088
B86: Emissões background | C86: g CO2 eq/t cana | F86: =SUM(F19:F69) -> 7373.743821 | G86: =(F86/$E$171)*$F$171 -> 1.919090951
B87: Emissões totais | C87: g CO2 eq/t cana | F87: =F85+F86 -> 36151.26856 | G87: =(F87/$E$171)*$F$171 -> 9.40873104
B90: Etapa agrícola - Milho
B91: Produto | D91: 1 ha médio | E91: 1 t milho
B92: Produção de milho | C92: kg | D92: ='E1G Flex'!D107/'E1G Flex'!D105*1000 -> 5252.622062 | E92: 1000
B93: Entradas da natureza | D93: 1 ha médio | E93: 1 t milho | F93: g CO2 eq/t milho
B94: Ocupação total | C94: ha | D94: 1 | E94: =(D94*E92)/D92 -> 0.1903811065 | F94: -
B95: Entradas da tecnosfera | D95: 1 ha médio | E95: 1 t milho | F95: g CO2 eq/t milho
B96: Sementes de milho | C96: kg | E96: ='E1G Flex'!D120 -> 4.643376172 | F96: =E96*'Dados auxiliares'!$H$71 -> 7271.948866 | G96: =(F96/$E$171)*$F$171*$D$183 -> 0.2460377128
B97: Água | C97: kg | D97: 602 | E97: =D97*$E$16/$D$16 -> 9.020726679 | F97: =E97*'Dados auxiliares'!$H$79 -> 0.07939657898 | G97: =(F97/$E$171)*$F$171*$D$183 -> 2.686288512e-06
B98: Fertilizantes e corretivos
B99: Calcário calcítico | C99: kg | E99: ='E1G Flex'!D115 -> 0 | F99: =E99*'Dados auxiliares'!$H$48 -> 0 | G99: =(F99/$E$171)*$F$171*$D$183 -> 0
B100: Calcário dolomítico | C100: kg | E100: ='E1G Flex'!D116 -> 42.30691255 | F100: =E100*'Dados auxiliares'!$H$49 -> 1558.402115 | G100: 0.05272667603
B101: Gesso | C101: kg | E101: ='E1G Flex'!D117 -> 0 | F101: =E101*'Dados auxiliares'!$H$50 -> 0 | G101: 0
B102: N - Ureia | C102: kg N | E102: ='E1G Flex'!D123 -> 12.57283828 | F102: =E102*'Dados auxiliares'!$H$51 -> 40374.07727 | G102: 1.366008729
B103: N - Fosfato monoamônico (MAP) | C103: kg N | E103: ='E1G Flex'!D124 -> 0 | F103: =E103*'Dados auxiliares'!$H$52 -> 0 | G103: 0
B104: P₂O₅ - Fosfato monoamônico (MAP) | C104: kg P₂O₅ | E104: ='E1G Flex'!D125 -> 0 | F104: =E104*'Dados auxiliares'!$H$53 -> 0 | G104: 0
B105: N - Fosfato diamônico (DAP) | C105: kg N | E105: ='E1G Flex'!D126 -> 0 | F105: =E105*'Dados auxiliares'!$H$54 -> 0 | G105: 0
B106: P₂O₅ - Fosfato diamônico (DAP) | C106: kg P₂O₅ | E106: ='E1G Flex'!D127 -> 0 | F106: =E106*'Dados auxiliares'!$H$55 -> 0 | G106: 0
B107: N - Nitrato de amônio | C107: kg N | E107: ='E1G Flex'!D128 -> 0 | F107: =E107*'Dados auxiliares'!$H$56 -> 0 | G107: 0
B108: N - Solução de nitrato de amônio e ureia (UAN) | C108: kg N | E108: ='E1G Flex'!D129 -> 0 | F108: =E108*'Dados auxiliares'!$H$57 -> 0 | G108: 0
B109: N - Amônia anidra | C109: kg N | E109: ='E1G Flex'!D130 -> 0 | F109: =E109*'Dados auxiliares'!$H$58 -> 0 | G109: 0
B110: N - Sulfato de amônio | C110: kg N | E110: ='E1G Flex'!D131 -> 0 | F110: =E110*'Dados auxiliares'!$H$59 -> 0 | G110: 0
B111: N - Nitrato de amônio e cálcio (CAN) | C111: kg N | E111: ='E1G Flex'!D132 -> 0 | F111: =E111*'Dados auxiliares'!$H$60 -> 0 | G111: 0
B112: P₂O₅ - Superfosfato simples (SSP) | C112: kg P₂O₅ | E112: ='E1G Flex'!D133 -> 10.91497249 | F112: =E112*'Dados auxiliares'!$H$62 -> 25842.90466 | G112: 0.8743638428
B113: P₂O₅ - Superfosfato triplo (TSP) | C113: kg P₂O₅ | E113: ='E1G Flex'!D134 -> 0 | F113: =E113*'Dados auxiliares'!$H$63 -> 0 | G113: 0
B114: K₂O - Cloreto de potássio (KCl) | C114: kg K₂O | E114: ='E1G Flex'!D135 -> 11.20892304 | F114: =E114*'Dados auxiliares'!H$64 -> 5102.38876 | G114: 0.1726332354
B115: N - Outros | C115: kg N | E115: ='E1G Flex'!D136 -> 0 | F115: =E115*'Dados auxiliares'!H$65 -> 0 | G115: 0
B116: P₂O₅ - Outros | C116: kg P₂O₅ | E116: ='E1G Flex'!D137 -> 0 | F116: =E116*'Dados auxiliares'!H$66 -> 0 | G116: 0
B117: K₂O - Outros | C117: kg K₂O | E117: ='E1G Flex'!D138 -> 0 | F117: =E117*'Dados auxiliares'!H$67 -> 0 | G117: 0
B118: Outros Fertilizantes Orgânicos/Organominerais | C118: kg | E118: =SUM('E1G Flex'!D141:D145) -> 0 | F118: 0 | G118: 0
B119: Agroquímicos
B120: Herbicidas, Fungicidas, Inseticidas, Adjuvantes | C120: kg | D120: =SUM(D121:D138) -> 4.0067465 | E120: =SUM(E121:E138) -> 0.7628088321 | F120: =SUM(F121:F138) -> 8303.734495 | G120: =(F120/$E$171)*$F$171*$D$183 -> 0.2809469484
B121: Herbicida, como glifosato | C121: kg | D121: 0.7518739298 | E121: =D121*$E$94 -> 0.1431425907 | F121: =E121*'Dados auxiliares'!$H$68 -> 1646.956644
B122: Herbicida,como atrazina | C122: kg | D122: 2.093299303 | E122: =D122*$E$94 -> 0.3985246374 | F122: =E122*'Dados auxiliares'!$H$70 -> 4281.159441
B123: Herbicida, como Nicosulfuron | C123: kg | D123: 0.002363752979 | E123: 0.0004500139075 | F123: =E123*'Dados auxiliares'!$H$70 -> 4.834284026
B124: Fungicida, como tebuconazol | C124: kg | D124: 0.01832616435 | E124: 0.003488955446 | F124: =E124*'Dados auxiliares'!$H$70 -> 37.48017849
B125: Fungicida, como Fluxapiroxade | C125: kg | D125: 0.005554547059 | E125: 0.001057480815 | F125: =E125*'Dados auxiliares'!$H$70 -> 11.36001027
B126: Fungicida, como Piraclostrobina | C126: kg | D126: 0.01107583336 | E126: 0.00210862941 | F126: =E126*'Dados auxiliares'!$H$70 -> 22.65199653
B127: Fungicida, como azoxistrobina | C127: kg | D127: 0.03105651829 | E127: 0.005912574314 | F127: =E127*'Dados auxiliares'!$H$70 -> 63.51595602
B128: Fungicida, como trifloxistrobina | C128: kg | D128: 0.009163082174 | E128: 0.001744477723 | F128: =E128*'Dados auxiliares'!$H$70 -> 18.74008925
B129: Fungicida, como Difeconazol | C129: kg | D129: 0.01126423255 | E129: 0.002144497056 | F129: =E129*'Dados auxiliares'!$H$70 -> 23.03730548
B130: Fungicida, como ciproconazole | C130: kg | D130: 0.01242260731 | E130: 0.002365029726 | F130: =E130*'Dados auxiliares'!$H$70 -> 25.40638241
B131: Inseticida, como Imidacloprido | C131: kg | D131: 0.1666937539 | E131: 0.0317353413 | F131: =E131*'Dados auxiliares'!$H$70 -> 340.9175827
B132: Inseticida, como tiodicarbe | C132: kg | D132: 0.0995295831 | E132: 0.01894855216 | F132: =E132*'Dados auxiliares'!$H$70 -> 203.5552268
B133: Inseticida, Connect, como beta-ciflutrina | C133: kg | D133: 0.06649568978 | E133: 0.012659523 | F133: =E133*'Dados auxiliares'!$H$70 -> 135.9951965
B134: Inseticida, como teflubenzurom | C134: kg | D134: 0.005078613669 | E134: 0.0009668720897 | F134: =E134*'Dados auxiliares'!$H$70 -> 10.3866441
B135: Inseticida, como bifentrina | C135: kg | D135: 0.003945864839 | E135: 0.000751218114 | F135: =E135*'Dados auxiliares'!$H$70 -> 8.069976655
B136: Inseticida, como lufenuron | C136: kg | D136: 0.001636264674 | E136: 0.0003115138791 | F136: =E136*'Dados auxiliares'!$H$70 -> 3.346444508
B137: Adjuvante, como óleo mineral | C137: kg | D137: 0.1446327459 | E137: 0.02753534219 | F137: =E137*'Dados auxiliares'!$H$70 -> 295.7990024
B138: Adjuvante, como ester metílico | C138: kg | D138: 0.5723340139 | E138: 0.1089615828 | F138: =E138*'Dados auxiliares'!$H$70 -> 1170.522134
B139: Combustíveis e eletricidade
B140: Diesel B0 | C140: kg | E140: =('E1G Flex'!$D$148*(1-0.08)+'E1G Flex'!$D$149*(1-0.1)+'E1G Flex'!$D$150*(1-'E1G Flex'!$G$150)+'E1G Flex'!$D$151*(1-0.2)+'E1G Flex'!$D$152*(1-0.3)+'E1G Flex'!$D$153*(1-1))*('Dados auxiliares'!$D$24) -> 3.70944 | F140: =E140*'Dados auxiliares'!$H$112 -> 2062.928292 | G140: =(F140/$E$171)*$F$171*$D$183 -> 0.06979671724
B141: Biodiesel B100 | C141: kg | E141: =('E1G Flex'!$D$148*(0.08)+'E1G Flex'!$D$149*(0.1)+'E1G Flex'!$D$150*('E1G Flex'!$G$150)+'E1G Flex'!$D$151*(0.2)+'E1G Flex'!$D$152*(0.3)+'E1G Flex'!$D$153*(1))*('Dados auxiliares'!$D$17) -> 0.33792 | F141: =E141*'Dados auxiliares'!$H$113 -> 333.4899142 | G141: 0.01128323332
B142: Gasolina A | C142: kg | E142: ='E1G Flex'!$D$154*(1-'FE''s queima combustíveis'!$D$16)*'Dados auxiliares'!$D$22 -> 0 | F142: =E142*'Dados auxiliares'!$H$116 -> 0 | G142: 0
B143: Etanol anidro | C143: kg | E143: ='E1G Flex'!$D$154*('FE''s queima combustíveis'!$D$16)*'Dados auxiliares'!$D$15 -> 0 | F143: =E143*'Dados auxiliares'!$H$117 -> 0 | G143: 0
B144: Etanol hidratado | C144: kg | E144: ='E1G Flex'!$D$155*'Dados auxiliares'!$D$16 -> 0 | F144: =E144*'Dados auxiliares'!$H$118 -> 0 | G144: 0
B145: Biometano de terceiros | C145: Nm³ | E145: ='E1G Flex'!D156 -> 0 | F145: =E145*'Dados auxiliares'!$F$18 -> 0 | G145: 0
B146: Eletricidade da rede - mix médio | C146: kWh | E146: ='E1G Flex'!D158 -> 0 | F146: =E146*'Dados auxiliares'!$H$103 -> 0 | G146: 0
B147: Eletricidade - PCH | C147: kWh | E147: ='E1G Flex'!D159 -> 0 | F147: =E147*'Dados auxiliares'!$H$104 -> 0 | G147: 0
B148: Eletricidade - biomassa | C148: kWh | E148: ='E1G Flex'!D160 -> 0 | F148: =E148*'Dados auxiliares'!$H$105 -> 0 | G148: 0
B149: Eletricidade - eólica | C149: kWh | E149: ='E1G Flex'!D161 -> 0 | F149: =E149*'Dados auxiliares'!$H$106 -> 0 | G149: 0
B150: Eletricidade - solar | C150: kWh | E150: ='E1G Flex'!D162 -> 0 | F150: =E150*'Dados auxiliares'!$H$107 -> 0 | G150: 0
B151: Emissões | D151: 1 ha médio | E151: 1 t milho | F151: g CO2 eq/t milho
B152: N2O - Fertilizantes sintéticos | C152: kg | D152: ='_Emissões Agrícolas'!$H$54 -> 1.3750548 | E152: =D152*$E$94 -> 0.2617844542 | F152: =E152*1000*'Dados auxiliares'!$D$9 -> 69372.88037 | G152: =(F152/$E$171)*$F$171*$D$183 -> 2.34714863
B153: N2O - Fertilizantes organominerais | C153: kg | D153: ='_Emissões Agrícolas'!$H$58 -> 0 | E153: =D153*$E$94 -> 0 | F153: =E153*1000*'Dados auxiliares'!$D$9 -> 0 | G153: 0
B154: N2O - Resíduos culturais | C154: kg | D154: ='_Emissões Agrícolas'!$H$62 -> 0.9071889316 | E154: 0.1727116326 | F154: =E154*1000*'Dados auxiliares'!$D$9 -> 45768.58263 | G154: 1.548525381
B155: CO2 - Calcário | C155: kg | E155: =E99*'_Emissões Agrícolas'!$E$79+E100*'_Emissões Agrícolas'!$E$80 -> 20.16629498 | F155: =E155*1000 -> 20166.29498 | G155: 0.6823025278
B156: CO2 - Uréia | C156: kg | E156: =E102*'_Emissões Agrícolas'!$E$81 -> 19.61719448 | F156: =E156*1000 -> 19617.19448 | G156: 0.6637243676
B157: CO₂ eq - queima do diesel | C157: kg | E157: =E140*'FE''s queima combustíveis'!$I$53/1000 -> 11.70576852 | F157: =E157*1000 -> 11705.76852 | G157: 0.3960507105
B158: CO₂ eq - queima do biodiesel | C158: kg | E158: =E141*'FE''s queima combustíveis'!$I$54/1000 -> 0.005589888455 | F158: =E158*1000 -> 5.589888455 | G158: 0.0001891272059
B159: CO₂ eq - queima da gasolina A | C159: kg | E159: =E142*'FE''s queima combustíveis'!$I$9/1000 -> 0 | F159: 0 | G159: 0
B160: CO₂ eq - queima do etanol anidro | C160: kg | E160: =E143*'FE''s queima combustíveis'!$I$7/1000 -> 0 | F160: 0 | G160: 0
B161: CO₂ eq - queima do etanol hidratado | C161: kg | E161: =E144*'FE''s queima combustíveis'!$I$8/1000 -> 0 | F161: 0 | G161: 0
B162: CO₂ eq - queima do biometano | C162: kg | E162: =(E145+'E1G Flex'!D157)*'FE''s queima combustíveis'!$I$55/1000 -> 0 | F162: 0 | G162: 0
B164: Emissões do processo | C164: g CO2 eq/t milho | F164: =SUM(F152:F162) -> 166636.3109 | G164: =(F164/$E$171)*$F$171*$D$183 -> 5.637940744
B165: Emissões background | C165: g CO2 eq/t milho | F165: =SUM(F96:F150) -> 99153.68827 | G165: 3.35474673
B166: Emissões totais | C166: g CO2 eq/t milho | F166: =F164+F165 -> 265789.9991 | G166: 8.992687475
B169: Etapa industrial - Etanol
B170: Produtos | C170: Unidade | D170: 1 TC | E170: MJ | F170: Alocação
B171: Etanol anidro | C171: kg | D171: ='E1G Flex'!D172*'Dados auxiliares'!$D$15 -> 53.9041205 | E171: =D171*'Dados auxiliares'!$F$15 -> 1523.377084 | F171: =E171/SUM($E$171:$E$180) -> 0.3964741993
B172: Etanol hidratado | C172: kg | D172: ='E1G Flex'!D173*'Dados auxiliares'!$D$16 -> 55.48746875 | E172: =D172*'Dados auxiliares'!$F$16 -> 1463.582283 | F172: 0.3809120014
B173: Açúcar | C173: kg | D173: ='E1G Flex'!D174 -> 0 | E173: =D173*'Dados auxiliares'!D33 -> 0 | F173: 0
B174: Energia elétrica comercializada | C174: kWh | D174: ='E1G Flex'!D175 -> 51.42875295 | E174: =CONVERT(D174,"kWh","MJ") -> 185.1434183 | F174: 0.04818543571
B175: DDGS | C175: kg | D175: ='E1G Flex'!D177*(1-'E1G Flex'!G177) -> 0 | E175: =D175*'Dados auxiliares'!$D$35 -> 0 | F175: 0
B176: DDG | C176: kg | D176: ='E1G Flex'!D176*(1-'E1G Flex'!G176) -> 33.107844 | E176: =D176*'Dados auxiliares'!$D$34 -> 670.2079793 | F176: 0.1744283636
B177: CGM | C177: kg | D177: ='E1G Flex'!D178*(1-'E1G Flex'!G178) -> 0 | E177: =D177*'Dados auxiliares'!$D$36 -> 0 | F177: 0
B178: CGF | C178: kg | D178: ='E1G Flex'!D179*(1-'E1G Flex'!G179) -> 0 | E178: =D178*'Dados auxiliares'!$D$37 -> 0 | F178: 0
B179: Óleo de Milho | C179: kg | D179: ='E1G Flex'!D180 -> 0 | E179: =D179*'Dados auxiliares'!$D$38 -> 0 | F179: 0
B180: Bagaço comercializado | C180: kg base úmida | D180: ='E1G Flex'!D181 -> 0 | E180: - | F180: - | G180: Resíduo
B181: Entradas | C181: Unidade | D181: 1 TC | F181: g CO2 eq/t cana
B182: Cana-de-açúcar | C182: t | D182: 1 | F182: =D182*F87 -> 36151.26856 | G182: =(F182/$E$171)*$F$171 -> 9.40873104
B183: Milho (grãos) | C183: t | D183: ='E1G Flex'!D170/'E1G Flex'!D168 -> 0.13 | F183: =D183*F166 -> 34552.69989 | G183: =(F183/$E$171)*$F$171 -> 8.992687475
B184: Transporte do milho em grãos até a usina | C184: tkm | D184: =D183*'E1G Flex'!D171 -> 39 | F184: =D184*'Dados auxiliares'!$H$125 -> 4683.314077 | G184: 1.218879566
B185: Água | C185: kg | D185: 1500 | F185: =D185*'Dados auxiliares'!$H$79 -> 13.2023586 | G185: 0.003436046538
B186: Cal (CaO) | C186: kg | D186: 0.82 | F186: =D186*'Dados auxiliares'!$H$80 -> 788.62447 | G186: 0.2052474457
B187: Ácido sulfúrico | C187: kg | D187: 0.265 | F187: =D187*'Dados auxiliares'!$H$84 -> 28.98036282 | G187: 0.007542430739
B188: Ácido fosfórico | C188: kg | D188: =176.5/1000 -> 0.1765 | F188: =D188*'Dados auxiliares'!$H$85 -> 267.0316072 | G188: 0.06949766
B189: Floculante | C189: kg | D189: =2.555/1000 -> 0.002555 | F189: =D189*'Dados auxiliares'!$H$87 -> 5.495541826 | G189: 0.001430270002
B190: Antibióticos | C190: kg | D190: =0.297/1000 -> 0.000297 | F190: =D190*'Dados auxiliares'!$H$88 -> 0.6388164079 | G190: 0.0001662583916
B191: Óleo lubrificante | C191: kg | D191: =13/1000 -> 0.013 | F191: =D191*'Dados auxiliares'!$H$89 -> 14.70824221 | G191: 0.003827967884
B192: Zeolita | C192: kg | D192: =(D171*0.03)/67.2 -> 0.02406433951 | F192: =D192*'Dados auxiliares'!$H$90 -> 120.5702659 | G192: 0.0313796237
B193: Alfa-amilase | C193: kg | D193: =(0.0282467716666667/0.131380333333333)*D183 -> 0.02795 | F193: =D193*'Dados auxiliares'!$H$95 -> 36.6145 | G193: 0.009529291679
B194: Glucoamilase | C194: kg | D194: =(0.0564935433333333/0.131380333333333)/D183 -> 3.307692308 | F194: =D194*'Dados auxiliares'!$H$95 -> 4333.076923 | G194: 1.127726826
B195: Ácido sulfúrico | C195: kg | D195: =(0.01576564/0.131380333333333)*D183 -> 0.0156 | F195: =D195*'Dados auxiliares'!$H$84 -> 1.706013811 | G195: 0.0004440072435
B196: Hidróxido de sódio | C196: kg | D196: =(0.02758987/0.131380333333333)*D183 -> 0.0273 | F196: =D196*'Dados auxiliares'!$H$93 -> 13.99010865 | G196: 0.003641066406
B197: Levedura | C197: kg | D197: =(0.024436742/0.131380333333333)*D183 -> 0.02418 | F197: =D197*'Dados auxiliares'!$H$94 -> 25.3819139 | G197: 0.006605898234
B198: Zeolita | C198: kg | D198: =(0.00814558066666667/0.131380333333333)*D183 -> 0.00806 | F198: =D198*'Dados auxiliares'!$H$90 -> 40.38325436 | G198: 0.01051014789
B199: Bagaço próprio | C199: kg base seca | D199: ='E1G Flex'!$D$185*(1-'E1G Flex'!$D$186) -> 126.5 | F199: 0 | G199: 0
B200: Palha própria | C200: kg base seca | D200: ='E1G Flex'!$D$189*(1-'E1G Flex'!$D$190) -> 0 | F200: 0 | G200: 0
B201: Bagaço de terceiros | C201: kg base seca | D201: ='E1G Flex'!$D$193*(1-'E1G Flex'!$D$194) -> 0 | F201: 0 | G201: 0
B202: Transporte de bagaço de terceiros | C202: tkm | D202: =((D201/1000)*'E1G Flex'!$D$195) -> 0 | F202: =D202*'Dados auxiliares'!$H$125 -> 0 | G202: 0
B203: Palha de terceiros | C203: kg base seca | D203: ='E1G Flex'!$D$198*(1-'E1G Flex'!$D$199) -> 0 | F203: =D203*'Dados auxiliares'!$H$74 -> 0 | G203: 0
B204: Transporte de palha de terceiros | C204: tkm | D204: =((D203/1000)*'E1G Flex'!$D$200) -> 0 | F204: =D204*'Dados auxiliares'!$H$125 -> 0 | G204: 0
B205: Cavaco de madeira | C205: kg base seca | D205: ='E1G Flex'!$D$203*(1-'E1G Flex'!$D$204) -> 0 | F205: =D205*'Dados auxiliares'!$H$119 -> 0 | G205: 0
B206: Transporte de cavaco de madeira | C206: tkm | D206: =((D205/1000)*'E1G Flex'!$D$205) -> 0 | F206: =D206*'Dados auxiliares'!$H$125 -> 0 | G206: 0
B207: Lenha | C207: kg base seca | D207: ='E1G Flex'!$D$208*(1-'E1G Flex'!$D$209) -> 0 | F207: =D207*'Dados auxiliares'!$H$120 -> 0 | G207: 0
B208: Transporte de lenha | C208: tkm | D208: =((D207/1000)*'E1G Flex'!$D$210) -> 0 | F208: =D208*'Dados auxiliares'!$H$125 -> 0 | G208: 0
B209: Resíduos florestais | C209: kg base seca | D209: ='E1G Flex'!$D$213*(1-'E1G Flex'!$D$214) -> 0 | F209: 0 | G209: 0
... 39 more rows

Sheet E1GM
B2: Produção de Etanol de milho em usina dedicada
B4: Nome da Usina: | C4: Usina Hipotética
B6: CNPJ | C6: 00.000.000/0000-00
B8: Responsável pelo preenchimento: | C8: GT ACV RenovaCalc
B10: Telefone : | C10: (00) 0000-0000
C13: Etanol Anidro
B15: Intensidade de Carbono (g CO₂eq/MJ) | C15: =SUM(C17:C20) -> 26.12800787 | D15: Nota de Eficiência Energético-Ambiental (g CO₂eq/MJ) | G15: =G18-C15 -> 61.27199213
B17: agrícola | C17: =IF(C13="Etanol Anidro",_E1GM!C5,IF(C13="Etanol Hidratado",_E1GM!E5,"")) -> 19.06339496 | G17: Fóssil de referência: Gasolina
B18: industrial | C18: =IF(C13="Etanol Anidro",_E1GM!C6,IF(C13="Etanol Hidratado",_E1GM!E6,"")) -> 4.905579604 | G18: 87.4
B19: transporte | C19: =IF(C13="Etanol Anidro",_E1GM!C7,IF(C13="Etanol Hidratado",_E1GM!E7,"")) -> 1.720032768 | G19: Redução de emissões
B20: uso | C20: =IF(C13="Etanol Anidro",_E1GM!C8,IF(C13="Etanol Hidratado",_E1GM!E8,"")) -> 0.4390005404 | G20: =(G18-C15)/G18 -> 0.7010525415
B23: Fornecedores - Dados consolidados | K23: Default - Milho
B24: Informações gerais | K24: Informações gerais
B25: Houve supressão de vegetação nativa a partir de 26 de dezembro de 2017? | D25: Não
C27: Número de registro no CAR | D27: Cadastro de fornecedores
C29: Situação do CAR | D29: Ativo
C31: Sistema de plantio | D31: Convencional
C32: Área total | D32: 1 | E32: ha
C34: Produção total (base úmida) | D34: 5.252622062 | E34: t milho | F34: Umidade | G34: 0.13
C35: Palha recolhida (base seca) | D35: 0 | E35: t palha
B37: Tipo de preenchimento | K37: Tipo de preenchimento
B38: Tipo de dados forneceidos pelos fornecedores: | M38: Padrão
B39: Em função das informações de cada fornecedor
B41: Corretivos | K41: Corretivos
C42: Calcário calcítico | D42: 0 | E42: kg/t milho | L42: Calcário calcítico | M42: 0 | N42: kg/t milho
C43: Calcário dolomítico | D43: 42.30691255 | E43: kg/t milho | L43: Calcário dolomítico | M43: 105.8 | N43: kg/t milho
C44: Gesso | D44: 0 | E44: kg/t milho | L44: Gesso | M44: 0 | N44: kg/t milho
B46: Sementes | K46: Sementes
C47: Sementes | D47: 4.643376172 | E47: kg/t milho | L47: Sementes | M47: 11.6 | N47: kg/t milho
B49: Fertilizantes Sintéticos | K49: Fertilizantes Sintéticos
C50: Ureia | D50: 12.57283828 | E50: kg N/t milho | L50: Ureia | M50: 31.4 | N50: kg N/t milho
C51: Fosfato Monoamônico (MAP) | D51: 0 | E51: kg N/t milho | L51: Fosfato Monoamônico (MAP) | M51: 0 | N51: kg N/t milho
C52: Fosfato Monoamônico (MAP) | D52: 0 | E52: kg P₂O₅/t milho | L52: Fosfato Monoamônico (MAP) | M52: 0 | N52: kg P₂O₅/t milho
C53: Fosfato diamônico (DAP) | D53: 0 | E53: kg N/t milho | L53: Fosfato diamônico (DAP) | M53: 0 | N53: kg N/t milho
C54: Fosfato diamônico (DAP) | D54: 0 | E54: kg P₂O₅/t milho | L54: Fosfato diamônico (DAP) | M54: 0 | N54: kg P₂O₅/t milho
C55: Nitrato de amônio | D55: 0 | E55: kg N/t milho | L55: Nitrato de amônio | M55: 0 | N55: kg N/t milho
C56: Solução de nitrato de amônio e ureia (UAN) | D56: 0 | E56: kg N/t milho | L56: Solução de nitrato de amônio e ureia (UAN) | M56: 0 | N56: kg N/t milho
C57: Amônia anidra | D57: 0 | E57: kg N/t milho | L57: Amônia anidra | M57: 0 | N57: kg N/t milho
C58: Sulfato de amônio | D58: 0 | E58: kg N/t milho | L58: Sulfato de amônio | M58: 0 | N58: kg N/t milho
C59: Nitrato de amônio e cálcio (CAN) | D59: 0 | E59: kg N/t milho | L59: Nitrato de amônio e cálcio (CAN) | M59: 0 | N59: kg N/t milho
C60: Superfosfato simples (SSP) | D60: 10.91497249 | E60: kg P₂O₅/t milho | L60: Superfosfato simples (SSP) | M60: 27.3 | N60: kg P₂O₅/t milho
C61: Superfosfato triplo (TSP) | D61: 0 | E61: kg P₂O₅/t milho | L61: Superfosfato triplo (TSP) | M61: 0 | N61: kg P₂O₅/t milho
C62: Cloreto de potássio (KCl) | D62: 11.20892304 | E62: kg K₂O/t milho | L62: Cloreto de potássio (KCl) | M62: 28 | N62: kg K₂O/t milho
B63: Outros | C63: especificar | D63: 0 | E63: kg N/t milho | K63: Outros | L63: especificar | M63: 0 | N63: kg N/t milho
B64: Outros | C64: especificar | D64: 0 | E64: kg P₂O₅/t milho | K64: Outros | L64: especificar | M64: 0 | N64: kg P₂O₅/t milho
B65: Outros | C65: especificar | D65: 0 | E65: kg K₂O/t milho | K65: Outros | L65: especificar | M65: 0 | N65: kg K₂O/t milho
B67: Fertilizantes Orgânicos/Organominerais | K67: Fertilizantes Orgânicos/Organominerais
B68: Outros | C68: especificar | D68: 0 | E68: kg/t milho | F68: Concentração de N | H68: g N/kg | K68: Outros | L68: especificar | M68: 0 | N68: kg/t milho | O68: Concentração de N | Q68: g N/kg
B69: Outros | C69: especificar | D69: 0 | E69: kg/t milho | F69: Concentração de N | H69: g N/kg | K69: Outros | L69: especificar | M69: 0 | N69: kg/t milho | O69: Concentração de N | Q69: g N/kg
B70: Outros | C70: especificar | D70: 0 | E70: kg/t milho | F70: Concentração de N | H70: g N/kg | K70: Outros | L70: especificar | M70: 0 | N70: kg/t milho | O70: Concentração de N | Q70: g N/kg
B71: Outros | C71: especificar | D71: 0 | E71: kg/t milho | F71: Concentração de N | H71: g N/kg | K71: Outros | L71: especificar | M71: 0 | N71: kg/t milho | O71: Concentração de N | Q71: g N/kg
B72: Outros | C72: especificar | D72: 0 | E72: kg/t milho | F72: Concentração de N | H72: g N/kg | K72: Outros | L72: especificar | M72: 0 | N72: kg/t milho | O72: Concentração de N | Q72: g N/kg
B74: Combustíveis e eletricidade da rede | K74: Combustíveis e eletricidade da rede
C75: Diesel - B8 | D75: 4.8 | E75: L/t milho | L75: Diesel - B8 | M75: 12 | N75: L/t soja
C76: Diesel - B10 | D76: 0 | E76: L/t milho | L76: Diesel - B10 | M76: 0 | N76: L/t soja
C77: Diesel - BX | D77: 0 | E77: L/t milho | F77: Teor de biodiesel na mistura | G77: 0.11 | L77: Diesel - BX | M77: 0 | N77: L/t soja | O77: Teor de biodiesel na mistura | P77: 0.11
C78: Diesel - B20 | D78: 0 | E78: L/t milho | L78: Diesel - B20 | M78: 0 | N78: L/t soja
C79: Diesel - B30 | D79: 0 | E79: L/t milho | L79: Diesel - B30 | M79: 0 | N79: L/t soja
C80: Biodiesel - B100 | D80: 0 | E80: L/t milho | L80: Biodiesel - B100 | M80: 0 | N80: L/t soja
C81: Gasolina C | D81: 0 | E81: L/t milho | L81: Gasolina C | M81: 0 | N81: L/t soja
C82: Etanol hidratado | D82: 0 | E82: L/t milho | L82: Etanol hidratado | M82: 0 | N82: L/t soja
C83: Biometano de terceiros | D83: 0 | E83: Nm³/t milho | L83: Biometano de terceiros | M83: 0 | N83: Nm³/t soja
C84: Biometano próprio | D84: 0 | E84: Nm³/t milho | L84: Biometano próprio | M84: 0 | N84: Nm³/t soja
C85: Eletricidade da rede - mix médio | D85: 0 | E85: kWh/t milho | L85: Eletricidade da rede - mix médio | M85: 0 | N85: kWh/t soja
C86: Eletricidade - PCH | D86: 0 | E86: kWh/t milho | L86: Eletricidade - PCH | M86: 0 | N86: kWh/t soja
C87: Eletricidade - biomassa | D87: 0 | E87: kWh/t milho | L87: Eletricidade - biomassa | M87: 0 | N87: kWh/t soja
C88: Eletricidade - eólica | D88: 0 | E88: kWh/t milho | L88: Eletricidade - eólica | M88: 0 | N88: kWh/t soja
C89: Eletricidade - solar | D89: 0 | E89: kWh/t milho | L89: Eletricidade - solar | M89: 0 | N89: kWh/t soja
B92: Fase industrial - processamento do etanol
B93: Processamento e rendimentos
C94: Quantidade de milho processado | D94: 1 | E94: t milho/ano | F94: Umidade | G94: 0.13
C95: Distância de transporte - milho | D95: 300 | E95: km
C96: Rendimento - Etanol anidro | D96: 125.9165613 | E96: L/ t milho
C97: Rendimento - Etanol hidratado | D97: 263.6959209 | E97: L/ t milho
C98: Energia elétrica comercializada | D98: 82.82 | E98: kWh/ t milho
C99: Rendimento - DDG (Distillers Dried Grains) | D99: 0 | E99: kg/ t milho | F99: Umidade | G99: 0.1
C100: Rendimento - DDGS (Distillers Dried Grains with Solubles) | D100: 285.56 | E100: kg/ t milho | F100: Umidade | G100: 0.1
C101: Rendimento - CGM (Corn Gluten Meal) | D101: 0 | E101: kg/ t milho | F101: Umidade | G101: 0.1
C102: Rendimento - CGF (Corn Gluten Feed) | D102: 0 | E102: kg/ t milho | F102: Umidade | G102: 0.1
C103: Rendimento - Óleo de milho | D103: 0 | E103: kg/ t milho
B105: Combustíveis e eletricidade
C106: Eletricidade da rede - mix médio | D106: 0 | E106: kWh/t milho
C107: Eletricidade - PCH | D107: 0 | E107: kWh/t milho
C108: Eletricidade - biomassa | D108: 0 | E108: kWh/t milho
C109: Eletricidade - eólica | D109: 0 | E109: kWh/t milho
C110: Eletricidade - solar | D110: 0 | E110: kWh/t milho
C111: Diesel - B8 | D111: 0.1142491546 | E111: L/t milho
C112: Diesel - B10 | D112: 0 | E112: L/t milho
C113: Diesel - BX | D113: 0 | E113: L/t milho | F113: Teor de biodiesel na mistura | G113: 0.11
C114: Diesel - B20 | D114: 0 | E114: L/t milho
C115: Diesel - B30 | D115: 0 | E115: L/t milho
C116: Biodiesel - B100 | D116: 0 | E116: L/t milho
C117: Biometano de terceiros | D117: 0 | E117: Nm³/t milho
C118: Biometano próprio | D118: 0 | E118: Nm³/t milho
C119: Gás natural | D119: 0 | E119: Nm³/t milho
C120: Cavaco de madeira
C121: Quantidade (base úmida) | D121: 711.6 | E121: kg/t milho
C122: Umidade | D122: 0.5
C123: Distância de transporte | D123: 330 | E123: km
C124: Lenha
C125: Quantidade (base úmida) | E125: kg/t milho
C126: Umidade
C127: Distância de transporte | E127: km
C128: Resíduos florestais
C129: Quantidade (base úmida) | E129: kg/t milho
C130: Umidade
C131: Distância de transporte | E131: km
C132: Bagaço de cana
C133: Quantidade (base úmida) | E133: kg/t milho
C134: Umidade
C135: Distância de transporte | E135: km
C136: Palha de cana
C137: Quantidade (base úmida) | E137: kg/t milho
C138: Umidade
C139: Distância de transporte | E139: km
B142: Distribuição dos biocombustíveis
C144: Etanol anidro
C145: Rodoviário | D145: 1
C146: Rodoviário + Dutoviário | D146: 0
C147: Rodoviário + Ferroviário | D147: 0
C150: Etanol hidradado
C151: Rodoviário | D151: 1
C152: Rodoviário + Dutoviário | D152: 0
C153: Rodoviário + Ferroviário | D153: 0

Sheet _E1GM
B2: Emissões totais - g CO₂ eq
C3: Anidro | E3: Hidratado
B4: Total | C4: =C5+C6+C7+C8 -> 26.12800787 | E4: =E5+E6+E7+E8 -> 26.47486763
B5: Agrícola | C5: =$G$87 -> 19.06339496 | D5: =C5/$C$4 -> 0.7296153251 | E5: =$G$87 -> 19.06339496 | F5: =E5/$E$4 -> 0.7200562898
B6: Industrial | C6: =$G$146-$G$105 -> 4.905579604 | D6: =C6/$C$4 -> 0.1877517654 | E6: =$G$146-$G$105 -> 4.905579604 | F6: =E6/$E$4 -> 0.1852919407
B7: Transporte | C7: =$D$176 -> 1.720032768 | D7: 0.06583099549 | E7: =$E$176 -> 1.842892252 | F7: 0.06960912053
B8: Uso | C8: ='FE''s queima combustíveis'!$I$7 -> 0.4390005404 | D8: 0.01680191397 | E8: ='FE''s queima combustíveis'!$I$8 -> 0.6630008161 | F8: 0.02504264895
B11: Etapa agrícola - Milho
B12: Produto | D12: 1 ha médio | E12: 1 t milho
B13: Produção de milho | C13: kg | D13: =E1GM!D34/E1GM!D32*1000 -> 5252.622062 | E13: 1000
B14: Entradas da natureza | D14: 1 ha médio | E14: 1 t milho | F14: g CO2 eq/t milho
B15: Ocupação total | C15: ha | D15: 1 | E15: =(D15*E13)/D13 -> 0.1903811065 | F15: -
B16: Entradas da tecnosfera | D16: 1 ha médio | E16: 1 t milho | F16: g CO2 eq/t milho
B17: Sementes de milho | C17: kg | E17: =E1GM!D47 -> 4.643376172 | F17: =E17*'Dados auxiliares'!$H$71 -> 7271.948866 | G17: =(F17/$E$92)*$F$92 -> 0.5215679637
B18: Água | C18: kg | D18: 602 | E18: =D18*$E$15/$D$15 -> 114.6094261 | F18: =E18*'Dados auxiliares'!$H$79 -> 1.008743162 | G18: 7.235035978e-05
B19: Fertilizantes e corretivos
B20: Calcário calcítico | C20: kg | E20: =E1GM!D42 -> 0 | F20: =E20*'Dados auxiliares'!$H$48 -> 0 | G20: =(F20/$E$92)*$F$92 -> 0
B21: Calcário dolomítico | C21: kg | E21: =E1GM!D43 -> 42.30691255 | F21: =E21*'Dados auxiliares'!$H$49 -> 1558.402115 | G21: 0.1117736982
B22: Gesso | C22: kg | E22: =E1GM!D44 -> 0 | F22: =E22*'Dados auxiliares'!$H$50 -> 0 | G22: 0
B23: N - Ureia | C23: kg N | E23: =E1GM!D50 -> 12.57283828 | F23: =E23*'Dados auxiliares'!$H$51 -> 40374.07727 | G23: 2.89576091
B24: N - Fosfato monoamônico (MAP) | C24: kg N | E24: =E1GM!D51 -> 0 | F24: =E24*'Dados auxiliares'!$H$52 -> 0 | G24: 0
B25: P₂O₅ - Fosfato monoamônico (MAP) | C25: kg P₂O₅ | E25: =E1GM!D52 -> 0 | F25: =E25*'Dados auxiliares'!$H$53 -> 0 | G25: 0
B26: N - Fosfato diamônico (DAP) | C26: kg N | E26: =E1GM!D53 -> 0 | F26: =E26*'Dados auxiliares'!$H$54 -> 0 | G26: 0
B27: P₂O₅ - Fosfato diamônico (DAP) | C27: kg P₂O₅ | E27: =E1GM!D54 -> 0 | F27: =E27*'Dados auxiliares'!$H$55 -> 0 | G27: 0
B28: N - Nitrato de amônio | C28: kg N | E28: =E1GM!D55 -> 0 | F28: =E28*'Dados auxiliares'!$H$56 -> 0 | G28: 0
B29: N - Solução de nitrato de amônio e ureia (UAN) | C29: kg N | E29: =E1GM!D56 -> 0 | F29: =E29*'Dados auxiliares'!$H$57 -> 0 | G29: 0
B30: N - Amônia anidra | C30: kg N | E30: =E1GM!D57 -> 0 | F30: =E30*'Dados auxiliares'!$H$58 -> 0 | G30: 0
B31: N - Sulfato de amônio | C31: kg N | E31: =E1GM!D58 -> 0 | F31: =E31*'Dados auxiliares'!$H$59 -> 0 | G31: 0
B32: N - Nitrato de amônio e cálcio (CAN) | C32: kg N | E32: =E1GM!D59 -> 0 | F32: =E32*'Dados auxiliares'!$H$60 -> 0 | G32: 0
B33: P₂O₅ - Superfosfato simples (SSP) | C33: kg P₂O₅ | E33: =E1GM!D60 -> 10.91497249 | F33: =E33*'Dados auxiliares'!$H$62 -> 25842.90466 | G33: 1.85353767
B34: P₂O₅ - Superfosfato triplo (TSP) | C34: kg P₂O₅ | E34: =E1GM!D61 -> 0 | F34: =E34*'Dados auxiliares'!$H$63 -> 0 | G34: 0
B35: K₂O - Cloreto de potássio (KCl) | C35: kg K₂O | E35: =E1GM!D62 -> 11.20892304 | F35: =E35*'Dados auxiliares'!H$64 -> 5102.38876 | G35: 0.3659600149
B36: N - Outros | C36: kg N | E36: =E1GM!D63 -> 0 | F36: =E36*'Dados auxiliares'!H$65 -> 0 | G36: 0
B37: P₂O₅ - Outros | C37: kg P₂O₅ | E37: =E1GM!D64 -> 0 | F37: =E37*'Dados auxiliares'!H$66 -> 0 | G37: 0
B38: K₂O - Outros | C38: kg K₂O | E38: =E1GM!D65 -> 0 | F38: =E38*'Dados auxiliares'!H$67 -> 0 | G38: 0
B39: Outros Fertilizantes Orgânicos/Organominerais | C39: kg | E39: =SUM(E1GM!D68:D72) -> 0 | F39: 0 | G39: 0
B40: Agroquímicos
B41: Herbicidas, Fungicidas, Inseticidas, Adjuvantes | C41: kg | D41: =SUM(D42:D59) -> 4.0067465 | E41: =SUM(E42:E59) -> 0.7628088321 | F41: =SUM(F42:F59) -> 8303.734495 | G41: =(F41/$E$92)*$F$92 -> 0.5955710046
B42: Herbicida, como glifosato | C42: kg | D42: 0.7518739298 | E42: =D42*$E$15 -> 0.1431425907 | F42: =E42*'Dados auxiliares'!$H$68 -> 1646.956644
B43: Herbicida,como atrazina | C43: kg | D43: 2.093299303 | E43: =D43*$E$15 -> 0.3985246374 | F43: =E43*'Dados auxiliares'!$H$70 -> 4281.159441
B44: Herbicida, como Nicosulfuron | C44: kg | D44: 0.002363752979 | E44: 0.0004500139075 | F44: =E44*'Dados auxiliares'!$H$70 -> 4.834284026
B45: Fungicida, como tebuconazol | C45: kg | D45: 0.01832616435 | E45: 0.003488955446 | F45: =E45*'Dados auxiliares'!$H$70 -> 37.48017849
B46: Fungicida, como Fluxapiroxade | C46: kg | D46: 0.005554547059 | E46: 0.001057480815 | F46: =E46*'Dados auxiliares'!$H$70 -> 11.36001027
B47: Fungicida, como Piraclostrobina | C47: kg | D47: 0.01107583336 | E47: 0.00210862941 | F47: =E47*'Dados auxiliares'!$H$70 -> 22.65199653
B48: Fungicida, como azoxistrobina | C48: kg | D48: 0.03105651829 | E48: 0.005912574314 | F48: =E48*'Dados auxiliares'!$H$70 -> 63.51595602
B49: Fungicida, como trifloxistrobina | C49: kg | D49: 0.009163082174 | E49: 0.001744477723 | F49: =E49*'Dados auxiliares'!$H$70 -> 18.74008925
B50: Fungicida, como Difeconazol | C50: kg | D50: 0.01126423255 | E50: 0.002144497056 | F50: =E50*'Dados auxiliares'!$H$70 -> 23.03730548
B51: Fungicida, como ciproconazole | C51: kg | D51: 0.01242260731 | E51: 0.002365029726 | F51: =E51*'Dados auxiliares'!$H$70 -> 25.40638241
B52: Inseticida, como Imidacloprido | C52: kg | D52: 0.1666937539 | E52: 0.0317353413 | F52: =E52*'Dados auxiliares'!$H$70 -> 340.9175827
B53: Inseticida, como tiodicarbe | C53: kg | D53: 0.0995295831 | E53: 0.01894855216 | F53: =E53*'Dados auxiliares'!$H$70 -> 203.5552268
B54: Inseticida, Connect, como beta-ciflutrina | C54: kg | D54: 0.06649568978 | E54: 0.012659523 | F54: =E54*'Dados auxiliares'!$H$70 -> 135.9951965
B55: Inseticida, como teflubenzurom | C55: kg | D55: 0.005078613669 | E55: 0.0009668720897 | F55: =E55*'Dados auxiliares'!$H$70 -> 10.3866441
B56: Inseticida, como bifentrina | C56: kg | D56: 0.003945864839 | E56: 0.000751218114 | F56: =E56*'Dados auxiliares'!$H$70 -> 8.069976655
B57: Inseticida, como lufenuron | C57: kg | D57: 0.001636264674 | E57: 0.0003115138791 | F57: =E57*'Dados auxiliares'!$H$70 -> 3.346444508
B58: Adjuvante, como óleo mineral | C58: kg | D58: 0.1446327459 | E58: 0.02753534219 | F58: =E58*'Dados auxiliares'!$H$70 -> 295.7990024
B59: Adjuvante, como ester metílico | C59: kg | D59: 0.5723340139 | E59: =D59*$E$15 -> 0.1089615828 | F59: =E59*'Dados auxiliares'!$H$70 -> 1170.522134
B60: Combustíveis e eletricidade
B61: Diesel B0 | C61: kg | E61: =(E1GM!$D$75*(1-0.08)+E1GM!$D$76*(1-0.1)+E1GM!$D$77*(1-E1GM!$G$77)+E1GM!$D$78*(1-0.2)+E1GM!$D$79*(1-0.3)+E1GM!$D$80*(1-1))*('Dados auxiliares'!$D$24) -> 3.70944 | F61: =E61*'Dados auxiliares'!$H$112 -> 2062.928292 | G61: =(F61/$E$92)*$F$92 -> 0.1479599662
B62: Biodiesel B100 | C62: kg | E62: =(E1GM!$D$75*(0.08)+E1GM!$D$76*(0.1)+E1GM!$D$77*(E1GM!$G$77)+E1GM!$D$78*(0.2)+E1GM!$D$79*(0.3)+E1GM!$D$80*(1))*('Dados auxiliares'!$D$17) -> 0.33792 | F62: =E62*'Dados auxiliares'!$H$113 -> 333.4899142 | G62: 0.0239189877
B63: Gasolina A | C63: kg | E63: =E1GM!$D$81*(1-'FE''s queima combustíveis'!$D$16)*'Dados auxiliares'!$D$22 -> 0 | F63: =E63*'Dados auxiliares'!$H$116 -> 0 | G63: 0
B64: Etanol anidro | C64: kg | E64: =E1GM!$D$81*('FE''s queima combustíveis'!$D$16)*'Dados auxiliares'!$D$15 -> 0 | F64: =E64*'Dados auxiliares'!$H$117 -> 0 | G64: 0
B65: Etanol hidratado | C65: kg | E65: =E1GM!$D$82*'Dados auxiliares'!$D$16 -> 0 | F65: =E65*'Dados auxiliares'!$H$118 -> 0 | G65: 0
B66: Biometano de terceiros | C66: Nm³ | E66: =E1GM!D83 -> 0 | F66: =E66*'Dados auxiliares'!$F$18 -> 0 | G66: 0
B67: Eletricidade da rede - mix médio | C67: kWh | E67: =E1GM!D85 -> 0 | F67: =E67*'Dados auxiliares'!$H$103 -> 0 | G67: 0
B68: Eletricidade - PCH | C68: kWh | E68: =E1GM!D86 -> 0 | F68: =E68*'Dados auxiliares'!$H$104 -> 0 | G68: 0
B69: Eletricidade - biomassa | C69: kWh | E69: =E1GM!D87 -> 0 | F69: =E69*'Dados auxiliares'!$H$105 -> 0 | G69: 0
B70: Eletricidade - eólica | C70: kWh | E70: =E1GM!D88 -> 0 | F70: =E70*'Dados auxiliares'!$H$106 -> 0 | G70: 0
B71: Eletricidade - solar | C71: kWh | E71: =E1GM!D89 -> 0 | F71: =E71*'Dados auxiliares'!$H$107 -> 0 | G71: 0
B72: Emissões | D72: 1 ha médio | E72: 1 t milho | F72: g CO2 eq/t milho
B73: N2O - Fertilizantes sintéticos | C73: kg | D73: ='_Emissões Agrícolas'!$G$54 -> 1.3750548 | E73: =D73*$E$15 -> 0.2617844542 | F73: =E73*1000*'Dados auxiliares'!$D$9 -> 69372.88037 | G73: =(F73/$E$92)*$F$92 -> 4.975649941
B74: N2O - Fertilizantes organominerais | C74: kg | D74: ='_Emissões Agrícolas'!$G$58 -> 0 | E74: =D74*$E$15 -> 0 | F74: =E74*1000*'Dados auxiliares'!$D$9 -> 0 | G74: 0
B75: N2O - Resíduos culturais | C75: kg | D75: ='_Emissões Agrícolas'!$G$62 -> 0.9071889316 | E75: 0.1727116326 | F75: =E75*1000*'Dados auxiliares'!$D$9 -> 45768.58263 | G75: 3.282672484
B76: CO2 - Calcário | C76: kg | E76: =$E$20*'_Emissões Agrícolas'!$E$79+$E$21*'_Emissões Agrícolas'!$E$80 -> 20.16629498 | F76: =E76*1000 -> 20166.29498 | G76: 1.446392652
B77: CO2 - Uréia | C77: kg | E77: =$E$23*'_Emissões Agrícolas'!$E$81 -> 19.61719448 | F77: =E77*1000 -> 19617.19448 | G77: 1.407009368
B78: CO₂ eq - queima do diesel | C78: kg | E78: =$E$61*'FE''s queima combustíveis'!$I$53/1000 -> 11.70576852 | F78: =E78*1000 -> 11705.76852 | G78: 0.8395760154
B79: CO₂ eq - queima do biodiesel | C79: kg | E79: =$E$62*'FE''s queima combustíveis'!$I$54/1000 -> 0.005589888455 | F79: =E79*1000 -> 5.589888455 | G79: 0.0004009250879
B80: CO₂ eq - queima da gasolina A | C80: kg | E80: =$E$63*'FE''s queima combustíveis'!$I$9/1000 -> 0 | F80: 0 | G80: 0
B81: CO₂ eq - queima do etanol anidro | C81: kg | E81: =$E$64*'FE''s queima combustíveis'!$I$7/1000 -> 0 | F81: 0 | G81: 0
B82: CO₂ eq - queima do etanol hidratado | C82: kg | E82: =$E$65*'FE''s queima combustíveis'!$I$8/1000 -> 0 | F82: 0 | G82: 0
B83: CO₂ eq - queima do biometano | C83: kg | E83: =($E$66+E1GM!D84)*'FE''s queima combustíveis'!$I$55/1000 -> 0 | F83: 0 | G83: 0
B85: Emissões do processo | C85: g CO2 eq/t milho | F85: =SUM(F73:F83) -> 166636.3109 | G85: =(F85/$E$92)*$F$92 -> 11.95170139
B86: Emissões background | C86: g CO2 eq/t milho | F86: =SUM(F17:F71) -> 99154.61761 | G86: 7.111693571
B87: Emissões totais | C87: g CO2 eq/t milho | F87: =F85+F86 -> 265790.9285 | G87: 19.06339496
B90: Etapa industrial - Etanol de milho
B91: Produtos | C91: Unidade | D91: 1 t milho | E91: MJ | F91: Alocação
B92: Etanol Anidro | C92: kg | D92: =E1GM!D96*'Dados auxiliares'!$D$15 -> 99.6 | E92: =D92*'Dados auxiliares'!$F$15 -> 2814.782175 | F92: =E92/SUM($E$92:$E$99) -> 0.2018853865
B93: Etanol Hidratado | C93: kg | D93: =E1GM!D97*'Dados auxiliares'!$D$16 -> 213.33 | E93: =D93*'Dados auxiliares'!$F$16 -> 5626.964351 | F93: =E93/SUM($E$92:$E$99) -> 0.4035842925
B94: Eletricidade | C94: kWh | D94: =E1GM!D98 -> 82.82 | E94: =CONVERT(D94,"kWh","MJ") -> 298.1518514 | F94: 0.02138442622
B95: DDGS | C95: kg | D95: =E1GM!D100*(1-E1GM!G100) -> 257.004 | E95: =D95*'Dados auxiliares'!D35 -> 5202.577719 | F95: 0.3731458948
B96: DDG | C96: kg | D96: =E1GM!D99*(1-E1GM!G99) -> 0 | E96: =D96*'Dados auxiliares'!D34 -> 0 | F96: 0
B97: CGM | C97: kg | D97: =E1GM!D101*(1-E1GM!G101) -> 0 | E97: =D97*'Dados auxiliares'!D36 -> 0 | F97: 0
B98: CGF | C98: kg | D98: =E1GM!D102*(1-E1GM!G102) -> 0 | E98: =D98*'Dados auxiliares'!D37 -> 0 | F98: 0
B99: Óleo de Milho | C99: kg | D99: =E1GM!D103 -> 0 | E99: =D99*'Dados auxiliares'!D38 -> 0 | F99: 0
B100: Entradas | C100: Unidade | D100: 1 t milho | F100: g CO2 eq/t milho
B101: Processamento dos grãos
B102: Processamento com secagem | C102: m³ | D102: =(0.00004878*0.65) -> 3.1707e-05 | F102: =D102*'Dados auxiliares'!$H$77 -> 1.01812087e-06 | G102: =(F102/$E$92)*$F$92 -> 7.302295969e-11
B103: Processamento sem secagem | C103: m³ | D103: =(0.00004878*0.35) -> 1.7073e-05 | F103: =D103*'Dados auxiliares'!$H$76 -> 2.69943542e-07 | G103: 1.936123398e-11
B104: Insumos
B105: Milho (grãos) | C105: t | D105: 1 | F105: =D105*F87 -> 265790.9285 | G105: =(F105/$E$92)*$F$92 -> 19.06339496
B106: Transporte do milho em grãos até a usina | C106: tkm | D106: =D105*E1GM!D95 -> 300 | F106: =D106*'Dados auxiliares'!$H$125 -> 36025.4929 | G106: =(F106/$E$92)*$F$92 -> 2.583866213
B107: Enzimas | C107: kg | D107: 0.572 | F107: =D107*'Dados auxiliares'!$H$95 -> 749.32 | G107: 0.05374368189
B108: Ácido sulfúrico | C108: kg | D108: 0.909 | F108: =D108*'Dados auxiliares'!$H$84 -> 99.40811247 | G108: 0.007129875051
B109: Hidróxido de sódio | C109: kg | D109: 0.333 | F109: =D109*'Dados auxiliares'!$H$93 -> 170.648578 | G109: 0.01223947431
B110: Amônia | C110: kg | D110: 0.725 | F110: =D110*'Dados auxiliares'!$H$91 -> 2218.019799 | G110: 0.1590836365
B111: Levedura | C111: kg | D111: 0.001 | F111: =D111*'Dados auxiliares'!$H$94 -> 1.049706944 | G111: 7.528841623e-05
B112: Zeolita | C112: kg | D112: 0.062 | F112: =D112*'Dados auxiliares'!$H$90 -> 310.6404182 | G112: 0.02228014709
B113: Combustíveis e eletricidade
B114: Eletricidade da rede - mix médio | C114: kWh | D114: =E1GM!D106 -> 0 | F114: =D114*'Dados auxiliares'!$H$103 -> 0 | G114: =(F114/$E$92)*$F$92 -> 0
B115: Eletricidade - PCH | C115: kWh | D115: =E1GM!D107 -> 0 | F115: =D115*'Dados auxiliares'!$H$104 -> 0 | G115: 0
B116: Eletricidade - biomassa | C116: kWh | D116: =E1GM!D108 -> 0 | F116: =D116*'Dados auxiliares'!$H$105 -> 0 | G116: 0
B117: Eletricidade - eólica | C117: kWh | D117: =E1GM!D109 -> 0 | F117: =D117*'Dados auxiliares'!$H$106 -> 0 | G117: 0
B118: Eletricidade - solar | C118: kWh | D118: =E1GM!D110 -> 0 | F118: =D118*'Dados auxiliares'!$H$107 -> 0 | G118: 0
B119: Diesel B0 | C119: kg | D119: =(E1GM!$D$111*(1-0.08)+E1GM!$D$112*(1-0.1)+E1GM!$D$113*(1-E1GM!$G$113)+E1GM!$D$114*(1-0.2)+E1GM!$D$115*(1-0.3)+E1GM!$D$116*(1-1))*('Dados auxiliares'!$D$24) -> 0.08829174664 | F119: =D119*'Dados auxiliares'!$H$112 -> 49.10162777 | G119: 0.003521729385
B120: Biodiesel B100 | C120: kg | D120: =(E1GM!$D$111*(0.08)+E1GM!$D$112*(0.1)+E1GM!$D$113*(E1GM!$G$113)+E1GM!$D$114*(0.2)+E1GM!$D$115*(0.3)+E1GM!$D$116*(1))*('Dados auxiliares'!$D$17) -> 0.008043140481 | F120: =D120*'Dados auxiliares'!$H$113 -> 7.93769599 | G120: 0.0005693175255
B121: Biometano de terceiros | C121: Nm³ | D121: =E1GM!D117 -> 0 | F121: =E121*'Dados auxiliares'!$F$18 -> 0 | G121: 0
B122: Gás natural | C122: Nm³ | D122: =E1GM!D119 -> 0 | F122: =D122*'Dados auxiliares'!$H$111 -> 0 | G122: 0
B123: Cavaco de madeira | C123: kg base seca | D123: =E1GM!$D$121*(1-E1GM!$D$122) -> 355.8 | F123: =D123*'Dados auxiliares'!$H$119 -> 12173.17945 | G123: 0.8731002561
B124: Transporte de cavaco de madeira | C124: tkm | D124: =((D123/1000)*E1GM!$D$123) -> 117.414 | F124: =D124*'Dados auxiliares'!$H$125 -> 14099.65741 | G124: 1.011273558
B125: Lenha | C125: kg base seca | D125: =E1GM!$D$125*(1-E1GM!$D$126) -> 0 | F125: =D125*'Dados auxiliares'!$H$120 -> 0 | G125: 0
B126: Transporte de lenha | C126: tkm | D126: =((D125/1000)*E1GM!$D$127) -> 0 | F126: =D126*'Dados auxiliares'!$H$125 -> 0 | G126: 0
B127: Resíduos florestais | C127: kg base seca | D127: =E1GM!$D$129*(1-E1GM!$D$130) -> 0 | F127: 0 | G127: 0
B128: Transporte de resíduos florestais | C128: tkm | D128: =((D127/1000)*E1GM!$D$131) -> 0 | F128: =D128*'Dados auxiliares'!$H$125 -> 0 | G128: 0
B129: Bagaço de cana-de-açúcar | C129: kg base seca | D129: =E1GM!$D$133*(1-E1GM!$D$134) -> 0 | F129: 0 | G129: 0
B130: Transporte de bagaço de cana-de-açúcar | C130: tkm | D130: =((D129/1000)*E1GM!$D$135) -> 0 | F130: =D130*'Dados auxiliares'!$H$125 -> 0 | G130: 0
B131: Palha de cana-de-açúcar | C131: kg base seca | D131: =E1GM!$D$137*(1-E1GM!$D$138) -> 0 | F131: =D131*'Dados auxiliares'!$H$74 -> 0 | G131: 0
B132: Transporte de palha de cana-de-açúcar | C132: tkm | D132: =((D131/1000)*E1GM!$D$139) -> 0 | F132: =D132*'Dados auxiliares'!$H$125 -> 0 | G132: 0
B133: Emissões | C133: Unidade | D133: 1 t milho | F133: g CO2 eq/t milho
B134: CO₂ eq - queima do diesel | C134: kg | D134: =D119*'FE''s queima combustíveis'!$I$45/1000 -> 0.2776011708 | F134: =D134*1000 -> 277.6011708 | G134: =(F134/$E$92)*$F$92 -> 0.01991046418
B135: CO₂ eq - queima do biodiesel | C135: kg | D135: =D120*'FE''s queima combustíveis'!$I$46/1000 -> 8.188721323e-05 | F135: 0.08188721323 | G135: 5.873218837e-06
B136: CO₂ eq - queima do biometano | C136: kg | D136: =(D121+E1GM!D118)*'FE''s queima combustíveis'!$I$39/1000 -> 0 | F136: 0 | G136: 0
B137: CO₂ eq - queima da gás natural | C137: kg | D137: =D122*'FE''s queima combustíveis'!$I$41*('Dados auxiliares'!$D$25*1000)/1000 -> 0 | F137: 0 | G137: 0
B138: CO₂ eq - queima do bagaço de cana-de-açúcar | C138: kg | D138: =D129*'FE''s queima combustíveis'!$I$33/1000 -> 0 | F138: 0 | G138: 0
B139: CO₂ eq - queima da palha de cana-de-açúcar | C139: kg | D139: =D131*'FE''s queima combustíveis'!$I$34/1000 -> 0 | F139: 0 | G139: 0
B140: CO₂ eq - queima dos cavacos de madeira | C140: kg | D140: =D123*'FE''s queima combustíveis'!$I$35/1000 -> 2.2137876 | F140: 2213.7876 | G140: 0.1587800893
B141: CO₂ eq - queima da lenha | C141: kg | D141: =D125*'FE''s queima combustíveis'!$I$36/1000 -> 0 | F141: 0 | G141: 0
B142: CO₂ eq - queima dos resíduos florestais | C142: kg | D142: =D127*'FE''s queima combustíveis'!$I$37/1000 -> 0 | F142: 0 | G142: 0
B144: Emissões do processo | C144: g CO2 eq/t milho | F144: =SUM(F134:F142) -> 2491.470658 | G144: 0.1786964267
B145: Emissões background | C145: g CO2 eq/t milho | F145: =SUM(F102:F132) -> 331695.3842 | G145: 23.79027813
B146: Emissões totais | C146: g CO2 eq/t milho | F146: =F144+F145 -> 334186.8549 | G146: 23.96897456
B149: Etapa distribuição
B150: Sistema logiístico rodoviário
B151: Parâmetro | C151: Unidade | D151: Etanol anidro | E151: Etanol hidratado
B152: Massa | C152: kg/t milho | D152: =$D$92*E1GM!$D$145 -> 99.6 | E152: =$D$93*E1GM!$D$151 -> 213.33
B153: Distância de transporte rodoviário | C153: km | D153: 1500 | E153: 1500
B154: Transporte rodoviário | C154: tkm/t milho | D154: =D152/1000*D153 -> 149.4 | E154: =E152/1000*E153 -> 319.995
B155: Emissões | C155: g CO2 eq/t milho | D155: =D154*'Dados auxiliares'!$H$126 -> 4841.517577 | E155: =E154*'Dados auxiliares'!$H$126 -> 10369.889
B156: Emissões | C156: g CO2 eq/MJ | D156: =D155/$E$92 -> 1.720032768 | E156: =E155/$E$93 -> 1.842892252
B157: Sistema logiístico rodoviário + dutoviário
B158: Parâmetro | C158: Unidade | D158: Etanol anidro | E158: Etanol hidratado
B159: Massa | C159: kg/t milho | D159: =$D$92*E1GM!$D$146 -> 0 | E159: =$D$93*E1GM!$D$152 -> 0
B160: Distância de transporte rodoviário | C160: km | D160: 900 | E160: 9000
B161: Transporte rodoviário | C161: tkm/t milho | D161: =D159/1000*D160 -> 0 | E161: =E159/1000*E160 -> 0
B162: Distância de transporte dutoviário | C162: km | D162: 600 | E162: 600
B163: Transporte dutoviário | C163: tkm/t milho | D163: =D159/1000*D162 -> 0 | E163: =E159/1000*E162 -> 0
B164: Emissões | C164: g CO2 eq/t milho | D164: =D161*'Dados auxiliares'!$H$126+D163*'Dados auxiliares'!$H$130 -> 0 | E164: =E161*'Dados auxiliares'!$H$126+E163*'Dados auxiliares'!$H$130 -> 0
B165: Emissões | C165: g CO2 eq/MJ | D165: =D164/$E$92 -> 0 | E165: =E164/$E$93 -> 0
B166: Sistema logiístico rodoviário + ferroviário
B167: Parâmetro | C167: Unidade | D167: Etanol anidro | E167: Etanol hidratado
B168: Massa | C168: kg/t milho | D168: =$D$92*E1GM!$D$147 -> 0 | E168: =$D$93*E1GM!$D$153 -> 0
B169: Distância de transporte rodoviário | C169: km | D169: 900 | E169: 900
B170: Transporte rodoviário | C170: tkm/t milho | D170: =D168/1000*D169 -> 0 | E170: =E168/1000*E169 -> 0
B171: Distância de transporte ferroviário | C171: km | D171: 600 | E171: 600
B172: Transporte ferroviário | C172: tkm/t milho | D172: =D168/1000*D171 -> 0 | E172: =E168/1000*E171 -> 0
B173: Emissões | C173: g CO2 eq/t milho | D173: =D170*'Dados auxiliares'!$H$126+D172*'Dados auxiliares'!$H$129 -> 0 | E173: =E170*'Dados auxiliares'!$H$126+E172*'Dados auxiliares'!$H$129 -> 0
B174: Emissões | C174: g CO2 eq/MJ | D174: =D173/$E$92 -> 0 | E174: =E173/$E$93 -> 0
B176: Emissões totais | C176: g CO2 eq/MJ | D176: =D156+D165+D174 -> 1.720032768 | E176: =E156+E165+E174 -> 1.842892252

Sheet E1GMI
B2: Produção de Etanol de milho importado
B4: Nome da Usina: | C4: Usina Hipotética
B6: CNPJ | C6: 00.000.000/0000-00
B8: Responsável pelo preenchimento: | C8: GT ACV RenovaCalc
B10: Telefone : | C10: (00) 0000-0000
C13: Etanol Anidro
B15: Intensidade de Carbono (g CO₂eq/MJ) | C15: =SUM(C17:C20) -> 43.19893884 | D15: Nota de Eficiência Energético-Ambiental (g CO₂eq/MJ) | G15: =G18-C15 -> 44.20106116
B17: agrícola | C17: =IF(C13="Etanol Anidro",_E1GMI!C5,IF(C13="Etanol Hidratado",_E1GMI!E5,"")) -> 18.32519034 | G17: Fóssil de referência: Gasolina
B18: industrial | C18: =IF(C13="Etanol Anidro",_E1GMI!C6,IF(C13="Etanol Hidratado",_E1GMI!E6,"")) -> 18.96297568 | G18: 87.4
B19: transporte | C19: =IF(C13="Etanol Anidro",_E1GMI!C7,IF(C13="Etanol Hidratado",_E1GMI!E7,"")) -> 5.471772275 | G19: Redução de emissões
B20: uso | C20: =IF(C13="Etanol Anidro",_E1GMI!C8,IF(C13="Etanol Hidratado",_E1GMI!E8,"")) -> 0.4390005404 | G20: =(G18-C15)/G18 -> 0.5057329652
B23: Fornecedores - Dados consolidados | K23: Default - Milho
B24: Informações gerais | K24: Informações gerais
B25: Houve supressão de vegetação nativa a partir de 26 de dezembro de 2017? | C25: Houve avanço sobre vegetação nativa? | D25: Não
C27: Sistema de plantio | D27: Convencional
C28: Área total | D28: 1 | E28: ha
C30: Produção total (base úmida) | D30: 10.5 | E30: t milho | F30: Umidade | G30: 0.13
C31: Palha recolhida (base seca) | D31: 0 | E31: t palha
B33: Tipo de preenchimento | K33: Tipo de preenchimento
B34: Tipo de dados forneceidos pelos fornecedores: | M34: Padrão
B35: Em função das informações de cada fornecedor
B37: Corretivos | K37: Corretivos
C38: Calcário calcítico | D38: 0 | E38: kg/t milho | L38: Calcário calcítico | M38: 0 | N38: kg/t milho
C39: Calcário dolomítico | D39: 45.3 | E39: kg/t milho | L39: Calcário dolomítico | M39: 113.3 | N39: kg/t milho
C40: Gesso | D40: 0 | E40: kg/t milho | L40: Gesso | M40: 0 | N40: kg/t milho
B42: Sementes | K42: Sementes
C43: Sementes | D43: 0 | E43: kg/t milho | L43: Sementes | M43: 6.500726641 | N43: kg/t milho
B45: Fertilizantes Sintéticos | K45: Fertilizantes Sintéticos
C46: Ureia | D46: 16.7 | E46: kg N/t milho | L46: Ureia | M46: 41.8 | N46: kg N/t milho
C47: Fosfato Monoamônico (MAP) | D47: 0 | E47: kg N/t milho | L47: Fosfato Monoamônico (MAP) | M47: 0 | N47: kg N/t milho
C48: Fosfato Monoamônico (MAP) | D48: 0 | E48: kg P₂O₅/t milho | L48: Fosfato Monoamônico (MAP) | M48: 0 | N48: kg P₂O₅/t milho
C49: Fosfato diamônico (DAP) | D49: 0 | E49: kg N/t milho | L49: Fosfato diamônico (DAP) | M49: 0 | N49: kg N/t milho
C50: Fosfato diamônico (DAP) | D50: 0 | E50: kg P₂O₅/t milho | L50: Fosfato diamônico (DAP) | M50: 0 | N50: kg P₂O₅/t milho
C51: Nitrato de amônio | D51: 0 | E51: kg N/t milho | L51: Nitrato de amônio | M51: 0 | N51: kg N/t milho
C52: Solução de nitrato de amônio e ureia (UAN) | D52: 0 | E52: kg N/t milho | L52: Solução de nitrato de amônio e ureia (UAN) | M52: 0 | N52: kg N/t milho
C53: Amônia anidra | D53: 0 | E53: kg N/t milho | L53: Amônia anidra | M53: 0 | N53: kg N/t milho
C54: Sulfato de amônio | D54: 0 | E54: kg N/t milho | L54: Sulfato de amônio | M54: 0 | N54: kg N/t milho
C55: Nitrato de amônio e cálcio (CAN) | D55: 0 | E55: kg N/t milho | L55: Nitrato de amônio e cálcio (CAN) | M55: 0 | N55: kg N/t milho
C56: Superfosfato simples (SSP) | D56: 11 | E56: kg P₂O₅/t milho | L56: Superfosfato simples (SSP) | M56: 27.5 | N56: kg P₂O₅/t milho
C57: Superfosfato triplo (TSP) | D57: 0 | E57: kg P₂O₅/t milho | L57: Superfosfato triplo (TSP) | M57: 0 | N57: kg P₂O₅/t milho
C58: Cloreto de potássio (KCl) | D58: 8 | E58: kg K₂O/t milho | L58: Cloreto de potássio (KCl) | M58: 20 | N58: kg K₂O/t milho
B59: Outros | C59: especificar | D59: 0 | E59: kg N/t milho | K59: Outros | L59: especificar | M59: 0 | N59: kg N/t milho
B60: Outros | C60: especificar | D60: 0 | E60: kg P₂O₅/t milho | K60: Outros | L60: especificar | M60: 0 | N60: kg P₂O₅/t milho
B61: Outros | C61: especificar | D61: 0 | E61: kg K₂O/t milho | K61: Outros | L61: especificar | M61: 0 | N61: kg K₂O/t milho
B63: Fertilizantes Orgânicos/Organominerais | K63: Fertilizantes Orgânicos/Organominerais
B64: Outros | C64: especificar | D64: 0 | E64: kg/t milho | F64: Concentração de N | H64: g N/kg | K64: Outros | L64: especificar | M64: 0 | N64: kg/t milho | O64: Concentração de N | Q64: g N/kg
B65: Outros | C65: especificar | D65: 0 | E65: kg/t milho | F65: Concentração de N | H65: g N/kg | K65: Outros | L65: especificar | M65: 0 | N65: kg/t milho | O65: Concentração de N | Q65: g N/kg
B66: Outros | C66: especificar | D66: 0 | E66: kg/t milho | F66: Concentração de N | H66: g N/kg | K66: Outros | L66: especificar | M66: 0 | N66: kg/t milho | O66: Concentração de N | Q66: g N/kg
B67: Outros | C67: especificar | D67: 0 | E67: kg/t milho | F67: Concentração de N | H67: g N/kg | K67: Outros | L67: especificar | M67: 0 | N67: kg/t milho | O67: Concentração de N | Q67: g N/kg
B68: Outros | C68: especificar | D68: 0 | E68: kg/t milho | F68: Concentração de N | H68: g N/kg | K68: Outros | L68: especificar | M68: 0 | N68: kg/t milho | O68: Concentração de N | Q68: g N/kg
B70: Combustíveis e eletricidade da rede | K70: Combustíveis e eletricidade da rede
C71: Diesel - B8 | D71: 4.2 | E71: L/t milho | L71: Diesel - B8 | M71: 10.5 | N71: L/t milho
C72: Diesel - B10 | D72: 0 | E72: L/t milho | L72: Diesel - B10 | M72: 0 | N72: L/t milho
C73: Diesel - BX | D73: 0 | E73: L/t milho | F73: Teor de biodiesel na mistura | G73: 0.11 | L73: Diesel - BX | M73: 0 | N73: L/t milho | O73: Teor de biodiesel na mistura | P73: 0.11
C74: Diesel - B20 | D74: 0 | E74: L/t milho | L74: Diesel - B20 | M74: 0 | N74: L/t milho
C75: Diesel - B30 | D75: 0 | E75: L/t milho | L75: Diesel - B30 | M75: 0 | N75: L/t milho
C76: Biodiesel - B100 | D76: 0 | E76: L/t milho | L76: Biodiesel - B100 | M76: 0 | N76: L/t milho
C77: Gasolina C | D77: 0 | E77: L/t milho | L77: Gasolina C | M77: 0 | N77: L/t milho
C78: Etanol hidratado | D78: 0 | E78: L/t milho | L78: Etanol hidratado | M78: 0 | N78: L/t milho
C79: Biometano de terceiros | D79: 0 | E79: Nm³/t milho | L79: Biometano de terceiros | M79: 0 | N79: Nm³/t milho
C80: Biometano próprio | D80: 0 | E80: Nm³/t milho | L80: Biometano próprio | M80: 0 | N80: Nm³/t milho
C81: Gás Natural | D81: =(2.1*0.001) -> 0.0021 | E81: Nm³/t milho | L81: Gás Natural | M81: 0 | N81: Nm³/t milho
C82: GLP | D82: 2 | E82: L/t milho | L82: GPL | M82: 4 | N82: L/t milho
C83: Eletricidade da rede - mix médio EUA | D83: 5 | E83: kWh/t milho | L83: Eletricidade da rede - mix médio EUA | M83: 12 | N83: kWh/t milho
B86: Fase industrial - processamento do etanol
B87: Processamento e rendimentos
C88: Quantidade de milho processado | D88: 1 | E88: t milho/ano | F88: Umidade | G88: 0.13
C89: Distância de transporte - milho | D89: 300 | E89: km
C90: Rendimento - Etanol anidro | D90: 426.3 | E90: L/ t milho
C91: Rendimento - Etanol hidratado | D91: 0 | E91: L/ t milho
C92: Energia elétrica comercializada | D92: 0 | E92: kWh/ t milho
C93: Rendimento - DDG (Distillers Dried Grains) | D93: 0 | E93: kg/ t milho | F93: Umidade | G93: 0.1
C94: Rendimento - DDGS (Distillers Dried Grains with Solubles) | D94: 305.2789787 | E94: kg/ t milho | F94: Umidade | G94: 0.1
C95: Rendimento - CGM (Corn Gluten Meal) | D95: 7.071166667 | E95: kg/ t milho | F95: Umidade | G95: 0.1
C96: Rendimento - CGF (Corn Gluten Feed) | D96: 30.79171667 | E96: kg/ t milho | F96: Umidade | G96: 0.1
C97: Rendimento - Óleo de milho | D97: 12.52297978 | E97: kg/ t milho
B99: Combustíveis e eletricidade
C100: Eletricidade da rede - mix médio EUA | D100: 73.75 | E100: kWh/t milho
C101: Diesel - B8 | D101: 0 | E101: L/t milho
C102: Diesel - B10 | D102: 0 | E102: L/t milho
C103: Diesel - BX | D103: 0 | E103: L/t milho | F103: Teor de biodiesel na mistura | G103: 0.11
C104: Diesel - B20 | D104: 0 | E104: L/t milho
C105: Diesel - B30 | D105: 0 | E105: L/t milho
C106: Biodiesel - B100 | D106: 0 | E106: L/t milho
C107: Biometano de terceiros | D107: 0 | E107: Nm³/t milho
C108: Biometano próprio | D108: 0 | E108: Nm³/t milho
C109: Gás natural | D109: 102.1656341 | E109: Nm³/t milho
C110: Calor (carvão) | D110: 376.8628416 | E110: MJ/t milho
C111: Cavaco de madeira
C112: Quantidade (base úmida) | E112: kg/t milho
C113: Umidade
C114: Distância de transporte | E114: km
C115: Lenha
C116: Quantidade (base úmida) | E116: kg/t milho
C117: Umidade
C118: Distância de transporte | E118: km
C119: Resíduos florestais
C120: Quantidade (base úmida) | E120: kg/t milho
C121: Umidade
C122: Distância de transporte | E122: km
B125: Distribuição dos biocombustíveis
C127: Etanol anidro
C128: Marítimo + Ferroviário + Rodoviário | D128: 1
C131: Etanol hidradado
C132: Marítimo + Ferroviário + Rodoviário | D132: 1

Sheet _E1GMI
B2: Emissões totais - g CO₂ eq
C3: Anidro | E3: Hidratado
B4: Total | C4: =C5+C6+C7+C8 -> 43.19893884 | E4: =E5+E6+E7+E8 -> 
B5: Agrícola | C5: =$G$87 -> 18.32519034 | D5: =C5/$C$4 -> 0.424204641 | E5: =$G$87 -> 18.32519034 | F5: =E5/$E$4 -> 
B6: Industrial | C6: =$G$138-$G$105 -> 18.96297568 | D6: =C6/$C$4 -> 0.4389685532 | E6: =$G$138-$G$105 -> 18.96297568 | F6: =E6/$E$4 -> 
B7: Transporte | C7: =$D$154 -> 5.471772275 | D7: 0.1266645066 | E7: =$E$154 -> 
B8: Uso | C8: ='FE''s queima combustíveis'!$I$7 -> 0.4390005404 | D8: 0.01016229917 | E8: ='FE''s queima combustíveis'!$I$8 -> 0.6630008161
B11: Etapa agrícola - Milho
B12: Produto | D12: 1 ha médio | E12: 1 t milho
B13: Produção de milho | C13: kg | D13: =E1GMI!D30/E1GMI!D28*1000 -> 10500 | E13: 1000
B14: Entradas da natureza | D14: 1 ha médio | E14: 1 t milho | F14: g CO2 eq/t milho
B15: Ocupação total | C15: ha | D15: 1 | E15: =(D15*E13)/D13 -> 0.09523809524 | F15: -
B16: Entradas da tecnosfera | D16: 1 ha médio | E16: 1 t milho | F16: g CO2 eq/t milho
B17: Sementes de milho | C17: kg | E17: =E1GMI!D43 -> 0 | F17: =E17*'Dados auxiliares'!$H$71 -> 0 | G17: =(F17/$E$92)*$F$92 -> 0
B18: Água | C18: kg | D18: 602 | E18: =D18*$E$15/$D$15 -> 57.33333333 | F18: =E18*'Dados auxiliares'!$H$79 -> 0.5046234844 | G18: =(F18/$E$92)*$F$92 -> 3.116567209e-05
B19: Fertilizantes e corretivos
B20: Calcário calcítico | C20: kg | E20: =E1GMI!D38 -> 0 | F20: =E20*'Dados auxiliares'!$H$48 -> 0 | G20: =(F20/$E$92)*$F$92 -> 0
B21: Calcário dolomítico | C21: kg | E21: =E1GMI!D39 -> 45.3 | F21: =E21*'Dados auxiliares'!$H$49 -> 1668.6544 | G21: 0.1030565114
B22: Gesso | C22: kg | E22: =E1GMI!D40 -> 0 | F22: =E22*'Dados auxiliares'!$H$50 -> 0 | G22: 0
B23: N - Ureia | C23: kg N | E23: =E1GMI!D46 -> 16.7 | F23: =E23*'Dados auxiliares'!$H$51 -> 53627.27774 | G23: 3.312034031
B24: N - Fosfato monoamônico (MAP) | C24: kg N | E24: =E1GMI!D47 -> 0 | F24: =E24*'Dados auxiliares'!$H$52 -> 0 | G24: 0
B25: P₂O₅ - Fosfato monoamônico (MAP) | C25: kg P₂O₅ | E25: =E1GMI!D48 -> 0 | F25: =E25*'Dados auxiliares'!$H$53 -> 0 | G25: 0
B26: N - Fosfato diamônico (DAP) | C26: kg N | E26: =E1GMI!D49 -> 0 | F26: =E26*'Dados auxiliares'!$H$54 -> 0 | G26: 0
B27: P₂O₅ - Fosfato diamônico (DAP) | C27: kg P₂O₅ | E27: =E1GMI!D50 -> 0 | F27: =E27*'Dados auxiliares'!$H$55 -> 0 | G27: 0
B28: N - Nitrato de amônio | C28: kg N | E28: =E1GMI!D51 -> 0 | F28: =E28*'Dados auxiliares'!$H$56 -> 0 | G28: 0
B29: N - Solução de nitrato de amônio e ureia (UAN) | C29: kg N | E29: =E1GMI!D52 -> 0 | F29: =E29*'Dados auxiliares'!$H$57 -> 0 | G29: 0
B30: N - Amônia anidra | C30: kg N | E30: =E1GMI!D53 -> 0 | F30: =E30*'Dados auxiliares'!$H$58 -> 0 | G30: 0
B31: N - Sulfato de amônio | C31: kg N | E31: =E1GMI!D54 -> 0 | F31: =E31*'Dados auxiliares'!$H$59 -> 0 | G31: 0
B32: N - Nitrato de amônio e cálcio (CAN) | C32: kg N | E32: =E1GMI!D55 -> 0 | F32: =E32*'Dados auxiliares'!$H$60 -> 0 | G32: 0
B33: P₂O₅ - Superfosfato simples (SSP) | C33: kg P₂O₅ | E33: =E1GMI!D56 -> 11 | F33: =E33*'Dados auxiliares'!$H$62 -> 26044.22059 | G33: 1.608497551
B34: P₂O₅ - Superfosfato triplo (TSP) | C34: kg P₂O₅ | E34: =E1GMI!D57 -> 0 | F34: =E34*'Dados auxiliares'!$H$63 -> 0 | G34: 0
B35: K₂O - Cloreto de potássio (KCl) | C35: kg K₂O | E35: =E1GMI!D58 -> 8 | F35: =E35*'Dados auxiliares'!H$64 -> 3641.662087 | G35: 0.2249099576
B36: N - Outros | C36: kg N | E36: =E1GMI!D59 -> 0 | F36: =E36*'Dados auxiliares'!H$65 -> 0 | G36: 0
B37: P₂O₅ - Outros | C37: kg P₂O₅ | E37: =E1GMI!D60 -> 0 | F37: =E37*'Dados auxiliares'!H$66 -> 0 | G37: 0
B38: K₂O - Outros | C38: kg K₂O | E38: =E1GMI!D61 -> 0 | F38: =E38*'Dados auxiliares'!H$67 -> 0 | G38: 0
B39: Outros Fertilizantes Orgânicos/Organominerais | C39: kg | E39: =SUM(E1GMI!D64:D68) -> 0 | F39: 0 | G39: 0
B40: Agroquímicos
B41: Herbicidas, Fungicidas, Inseticidas, Adjuvantes | C41: kg | D41: =SUM(D42:D59) -> 4.0067465 | E41: =SUM(E42:E59) -> 0.3815949048 | F41: =SUM(F42:F59) -> 4153.940858 | G41: =(F41/$E$92)*$F$92 -> 0.2565484221
B42: Herbicida, como glifosato | C42: kg | D42: 0.7518739298 | E42: =D42*$E$15 -> 0.07160704093 | F42: =E42*'Dados auxiliares'!$H$68 -> 823.8896004
B43: Herbicida,como atrazina | C43: kg | D43: 2.093299303 | E43: =D43*$E$15 -> 0.1993618384 | F43: =E43*'Dados auxiliares'!$H$70 -> 2141.648812
B44: Herbicida, como Nicosulfuron | C44: kg | D44: 0.002363752979 | E44: 0.0002251193313 | F44: =E44*'Dados auxiliares'!$H$70 -> 2.418349231
B45: Fungicida, como tebuconazol | C45: kg | D45: 0.01832616435 | E45: 0.001745348985 | F45: =E45*'Dados auxiliares'!$H$70 -> 18.7494488
B46: Fungicida, como Fluxapiroxade | C46: kg | D46: 0.005554547059 | E46: 0.0005290044818 | F46: =E46*'Dados auxiliares'!$H$70 -> 5.68284196
B47: Fungicida, como Piraclostrobina | C47: kg | D47: 0.01107583336 | E47: 0.001054841272 | F47: =E47*'Dados auxiliares'!$H$70 -> 11.33165493
B48: Fungicida, como azoxistrobina | C48: kg | D48: 0.03105651829 | E48: 0.002957763646 | F48: =E48*'Dados auxiliares'!$H$70 -> 31.77383923
B49: Fungicida, como trifloxistrobina | C49: kg | D49: 0.009163082174 | E49: 0.0008726744927 | F49: =E49*'Dados auxiliares'!$H$70 -> 9.374724402
B50: Fungicida, como Difeconazol | C50: kg | D50: 0.01126423255 | E50: 0.001072784052 | F50: =E50*'Dados auxiliares'!$H$70 -> 11.52440562
B51: Fungicida, como ciproconazole | C51: kg | D51: 0.01242260731 | E51: 0.001183105458 | F51: =E51*'Dados auxiliares'!$H$70 -> 12.70953569
B52: Inseticida, como Imidacloprido | C52: kg | D52: 0.1666937539 | E52: 0.01587559561 | F52: =E52*'Dados auxiliares'!$H$70 -> 170.5439253
B53: Inseticida, como tiodicarbe | C53: kg | D53: 0.0995295831 | E53: 0.009479007914 | F53: =E53*'Dados auxiliares'!$H$70 -> 101.8284452
B54: Inseticida, Connect, como beta-ciflutrina | C54: kg | D54: 0.06649568978 | E54: 0.006332922836 | F54: =E54*'Dados auxiliares'!$H$70 -> 68.03155901
B55: Inseticida, como teflubenzurom | C55: kg | D55: 0.005078613669 | E55: 0.0004836774923 | F55: =E55*'Dados auxiliares'!$H$70 -> 5.195915805
B56: Inseticida, como bifentrina | C56: kg | D56: 0.003945864839 | E56: 0.0003757966513 | F56: =E56*'Dados auxiliares'!$H$70 -> 4.037003564
B57: Inseticida, como lufenuron | C57: kg | D57: 0.001636264674 | E57: 0.0001558347308 | F57: =E57*'Dados auxiliares'!$H$70 -> 1.674057929
B58: Adjuvante, como óleo mineral | C58: kg | D58: 0.1446327459 | E58: 0.01377454723 | F58: =E58*'Dados auxiliares'!$H$70 -> 147.9733682
B59: Adjuvante, como ester metílico | C59: kg | D59: 0.5723340139 | E59: =D59*$E$15 -> 0.05450800133 | F59: =E59*'Dados auxiliares'!$H$70 -> 585.55337
B60: Combustíveis e eletricidade
B61: Diesel B0 | C61: kg | E61: =(E1GMI!$D$71*(1-0.08)+E1GMI!$D$72*(1-0.1)+E1GMI!$D$73*(1-E1GMI!$G$73)+E1GMI!$D$74*(1-0.2)+E1GMI!$D$75*(1-0.3)+E1GMI!$D$76*(1-1))*('Dados auxiliares'!$D$24) -> 3.24576 | F61: =E61*'Dados auxiliares'!$H$112 -> 1805.062256 | G61: =(F61/$E$92)*$F$92 -> 0.1114810945
B62: Biodiesel B100 | C62: kg | E62: =(E1GMI!$D$71*(0.08)+E1GMI!$D$72*(0.1)+E1GMI!$D$73*(E1GMI!$G$73)+E1GMI!$D$74*(0.2)+E1GMI!$D$75*(0.3)+E1GMI!$D$76*(1))*('Dados auxiliares'!$D$17) -> 0.29568 | F62: =E62*'Dados auxiliares'!$H$113 -> 291.8036749 | G62: 0.01802186765
B63: Gasolina A | C63: kg | E63: =E1GMI!$D$77*(1-'FE''s queima combustíveis'!$D$16)*'Dados auxiliares'!$D$22 -> 0 | F63: =E63*'Dados auxiliares'!$H$116 -> 0 | G63: 0
B64: Etanol anidro | C64: kg | E64: =E1GMI!$D$77*('FE''s queima combustíveis'!$D$16)*'Dados auxiliares'!$D$15 -> 0 | F64: =E64*'Dados auxiliares'!$H$117 -> 0 | G64: 0
B65: Etanol hidratado | C65: kg | E65: =E1GMI!$D$78*'Dados auxiliares'!$D$16 -> 0 | F65: =E65*'Dados auxiliares'!$H$118 -> 0 | G65: 0
B66: Biometano de terceiros | C66: Nm³ | E66: =E1GMI!D79 -> 0 | F66: =E66*'Dados auxiliares'!$F$18 -> 0 | G66: 0
B67: Gás Natural | C67: Nm³ | E67: =E1GMI!D81 -> 0.0021 | F67: =E67*'Dados auxiliares'!$H$111 -> 0.2535724338 | G67: 1.566069668e-05
B68: GPL | C68: kg | E68: =E1GMI!D82*'Dados auxiliares'!$D$27 -> 1.104 | F68: =E68*'Dados auxiliares'!$H$115 -> 766.0817147 | G68: 0.04731339753
B69: Eletricidade da rede - mix médio EUA | C69: kWh | E69: =E1GMI!D83 -> 5 | F69: =E69*'Dados auxiliares'!$H$109 -> 3798.887202 | G69: 0.2346202199
B70: Emissões | D70: 1 ha médio | E70: 1 t milho | F70: g CO2 eq/t milho
B71: N2O - Fertilizantes sintéticos | C71: kg | D71: ='_Emissões Agrícolas'!$I$54 -> 3.6510375 | E71: =D71*$E$15 -> 0.3477178571 | F71: =E71*1000*'Dados auxiliares'!$D$9 -> 92145.23214 | G71: =(F71/$E$92)*$F$92 -> 5.69091249
B72: N2O - Fertilizantes organominerais | C72: kg | D72: ='_Emissões Agrícolas'!$I$58 -> 0 | E72: =D72*$E$15 -> 0 | F72: =E72*1000*'Dados auxiliares'!$D$9 -> 0 | G72: 0
B73: N2O - Resíduos culturais | C73: kg | D73: ='_Emissões Agrícolas'!$I$62 -> 1.725022087 | E73: 0.1642878178 | F73: =E73*1000*'Dados auxiliares'!$D$9 -> 43536.27173 | G73: 2.688810986
B74: CO2 - Calcário | C74: kg | E74: =$E$20*'_Emissões Agrícolas'!$E$79+$E$21*'_Emissões Agrícolas'!$E$80 -> 21.593 | F74: =E74*1000 -> 21593 | G74: 1.333589059
B75: CO2 - Uréia | C75: kg | E75: =$E$23*'_Emissões Agrícolas'!$E$81 -> 26.05673759 | F75: =E75*1000 -> 26056.73759 | G75: 1.609270604
B76: CO₂ eq - queima do diesel | C76: kg | E76: =$E$61*'FE''s queima combustíveis'!$I$53/1000 -> 10.24254746 | F76: =E76*1000 -> 10242.54746 | G76: 0.6325822824
B77: CO₂ eq - queima do biodiesel | C77: kg | E77: =$E$62*'FE''s queima combustíveis'!$I$54/1000 -> 0.004891152398 | F77: =E77*1000 -> 4.891152398 | G77: 0.0003020787904
B78: CO₂ eq - queima da gasolina A | C78: kg | E78: =$E$63*'FE''s queima combustíveis'!$I$9/1000 -> 0 | F78: 0 | G78: 0
B79: CO₂ eq - queima do etanol anidro | C79: kg | E79: =$E$64*'FE''s queima combustíveis'!$I$7/1000 -> 0 | F79: 0 | G79: 0
B80: CO₂ eq - queima do etanol hidratado | C80: kg | E80: =$E$65*'FE''s queima combustíveis'!$I$8/1000 -> 0 | F80: 0 | G80: 0
B81: CO₂ eq - queima do biometano | C81: kg | E81: =($E$66+E1GMI!D80)*'FE''s queima combustíveis'!$I$55/1000 -> 0 | F81: 0 | G81: 0
B82: CO₂ eq - queima do gás natural | C82: kg | E82: =$E$67*'FE''s queima combustíveis'!$I$56/1000 -> 0.00604502027 | F82: 6.04502027 | G82: 0.0003733419577
B83: CO₂ eq - queima do GLP | C83: kg | E83: =$E$68*'FE''s queima combustíveis'!$I$57/1000 -> 3.177953514 | F83: 3177.953514 | G83: 0.1962712006
B85: Emissões do processo | C85: g CO2 eq/t milho | F85: =SUM(F71:F83) -> 196762.6786 | G85: =(F85/$E$92)*$F$92 -> 12.15211204
B86: Emissões background | C86: g CO2 eq/t milho | F86: =SUM(F17:F69) -> 99952.28957 | G86: 6.173078301
B87: Emissões totais | C87: g CO2 eq/t milho | F87: =F85+F86 -> 296714.9682 | G87: 18.32519034
B90: Etapa industrial - Etanol de milho
B91: Produtos | C91: Unidade | D91: 1 t milho | E91: MJ | F91: Alocação
B92: Etanol Anidro | C92: kg | D92: =E1GMI!D90*'Dados auxiliares'!$D$15 -> 337.2033 | E92: =D92*'Dados auxiliares'!$F$15 -> 9529.65701 | F92: =E92/SUM($E$92:$E$99) -> 0.5885539907
B93: Etanol Hidratado | C93: kg | D93: =E1GMI!D91*'Dados auxiliares'!$D$16 -> 0 | E93: =D93*'Dados auxiliares'!$F$16 -> 0 | F93: =E93/SUM($E$92:$E$99) -> 0
B94: Eletricidade | C94: kWh | D94: =E1GMI!D92 -> 0 | E94: =CONVERT(D94,"kWh","MJ") -> 0 | F94: 0
B95: DDGS | C95: kg base seca | D95: =E1GMI!D94*(1-E1GMI!G94) -> 274.7510808 | E95: =D95*'Dados auxiliares'!D35 -> 5561.835034 | F95: 0.3435003171
B96: DDG | C96: kg base seca | D96: =E1GMI!D93*(1-E1GMI!G93) -> 0 | E96: =D96*'Dados auxiliares'!D34 -> 0 | F96: 0
B97: CGM | C97: kg base seca | D97: =E1GMI!D95*(1-E1GMI!G95) -> 6.36405 | E97: =D97*'Dados auxiliares'!D36 -> 118.4222424 | F97: 0.007313787189
B98: CGF | C98: kg base seca | D98: =E1GMI!D96*(1-E1GMI!G96) -> 27.712545 | E98: =D98*'Dados auxiliares'!D37 -> 515.6750374 | F98: 0.03184821876
B99: Óleo de Milho | C99: kg | D99: =E1GMI!D97 -> 12.52297978 | E99: =D99*'Dados auxiliares'!D38 -> 466.0552154 | F99: 0.02878368619
B100: Entradas | C100: Unidade | D100: 1 t milho | F100: g CO2 eq/t milho
B101: Processamento dos grãos
B102: Processamento com secagem | C102: m³ | D102: =(0.00004878*0.65) -> 3.1707e-05 | F102: =D102*'Dados auxiliares'!$H$77 -> 1.01812087e-06 | G102: =(F102/$E$92)*$F$92 -> 6.287939853e-11
B103: Processamento sem secagem | C103: m³ | D103: =(0.00004878*0.35) -> 1.7073e-05 | F103: =D103*'Dados auxiliares'!$H$76 -> 2.69943542e-07 | G103: 1.66717804e-11
B104: Insumos
B105: Milho (grãos) | C105: t | D105: 1 | F105: =D105*F87 -> 296714.9682 | G105: =(F105/$E$92)*$F$92 -> 18.32519034
B106: Transporte do milho em grãos até a usina | C106: tkm | D106: =D105*E1GMI!D89 -> 300 | F106: =D106*'Dados auxiliares'!$H$125 -> 36025.4929 | G106: =(F106/$E$92)*$F$92 -> 2.224943415
B107: CaO | C107: kg | D107: 1.202334815 | F107: =D107*'Dados auxiliares'!$H$80 -> 1156.330068
B108: Enzimas | C108: kg | D108: 0.9 | F108: =D108*'Dados auxiliares'!$H$95 -> 1179 | G108: 0.07281533368
B109: Ácido sulfúrico | C109: kg | D109: 0.53 | F109: =D109*'Dados auxiliares'!$H$84 -> 57.96072564 | G109: 0.003579668853
B110: Hidróxido de sódio | C110: kg | D110: 2.52 | F110: =D110*'Dados auxiliares'!$H$93 -> 1291.394644 | G110: 0.07975685491
B111: Amônia | C111: kg | D111: 2.01 | F111: =D111*'Dados auxiliares'!$H$91 -> 6149.268684 | G111: 0.3797803656
B112: Levedura | C112: kg | D112: 0.31 | F112: =D112*'Dados auxiliares'!$H$94 -> 325.4091525 | G112: 0.02009735032
B113: Zeolita | C113: kg | D113: 0.062 | F113: =D113*'Dados auxiliares'!$H$90 -> 310.6404182 | G113: 0.0191852296
B114: Combustíveis e eletricidade
B115: Eletricidade da rede - mix médio EUA | C115: kWh | D115: =E1GMI!D100 -> 73.75 | F115: =D115*'Dados auxiliares'!$H$109 -> 56033.58624 | G115: =(F115/$E$92)*$F$92 -> 3.460648244
B116: Diesel B0 | C116: kg | D116: =(E1GMI!$D$101*(1-0.08)+E1GMI!$D$102*(1-0.1)+E1GMI!$D$103*(1-E1GMI!$G$103)+E1GMI!$D$104*(1-0.2)+E1GMI!$D$105*(1-0.3)+E1GMI!$D$106*(1-1))*('Dados auxiliares'!$D$24) -> 0 | F116: =D116*'Dados auxiliares'!$H$112 -> 0 | G116: 0
B117: Biodiesel B100 | C117: kg | D117: =(E1GMI!$D$101*(0.08)+E1GMI!$D$102*(0.1)+E1GMI!$D$103*(E1GMI!$G$103)+E1GMI!$D$104*(0.2)+E1GMI!$D$105*(0.3)+E1GMI!$D$106*(1))*('Dados auxiliares'!$D$17) -> 0 | F117: =D117*'Dados auxiliares'!$H$113 -> 0 | G117: 0
B118: Biometano de terceiros | C118: Nm³ | D118: =E1GMI!D107 -> 0 | F118: =E118*'Dados auxiliares'!$F$18 -> 0 | G118: 0
B119: Gás natural | C119: Nm³ | D119: =E1GMI!D109 -> 102.1656341 | F119: =D119*'Dados auxiliares'!$H$111 -> 12336.37547 | G119: 0.7618976222
B120: Calor (carvão) | C120: MJ | D120: =E1GMI!D110 -> 376.8628416 | F120: =D120*'Dados auxiliares'!H121 -> 35418.92656 | G120: 2.187481727
B121: Cavaco de madeira | C121: kg base seca | D121: =E1GMI!$D$112*(1-E1GMI!$D$113) -> 0 | F121: =D121*'Dados auxiliares'!$H$119 -> 0 | G121: 0
B122: Transporte de cavaco de madeira | C122: tkm | D122: =((D121/1000)*E1GMI!$D$114) -> 0 | F122: =D122*'Dados auxiliares'!$H$125 -> 0 | G122: 0
B123: Lenha | C123: kg base seca | D123: =E1GMI!$D$116*(1-E1GMI!$D$117) -> 0 | F123: =D123*'Dados auxiliares'!$H$120 -> 0 | G123: 0
B124: Transporte de lenha | C124: tkm | D124: =((D123/1000)*E1GMI!$D$118) -> 0 | F124: =D124*'Dados auxiliares'!$H$125 -> 0 | G124: 0
B125: Resíduos florestais | C125: kg base seca | D125: =E1GMI!$D$120*(1-E1GMI!$D$121) -> 0 | F125: 0 | G125: 0
B126: Transporte de resíduos florestais | C126: tkm | D126: =((D125/1000)*E1GMI!$D$122) -> 0 | F126: =D126*'Dados auxiliares'!$H$125 -> 0 | G126: 0
B127: Emissões | C127: Unidade | D127: 1 t milho | F127: g CO2 eq/t milho
B128: CO₂ eq - queima do diesel | C128: kg | D128: =D116*'FE''s queima combustíveis'!$I$45/1000 -> 0 | F128: =D128*1000 -> 0 | G128: =(F128/$E$92)*$F$92 -> 0
B129: CO₂ eq - queima do biodiesel | C129: kg | D129: =D117*'FE''s queima combustíveis'!$I$46/1000 -> 0 | F129: 0 | G129: 0
B130: CO₂ eq - queima do biometano | C130: kg | D130: =(D118+E1GMI!D108)*'FE''s queima combustíveis'!$I$39/1000 -> 0 | F130: 0 | G130: 0
B131: CO₂ eq - queima da gás natural | C131: kg | D131: =D119*'FE''s queima combustíveis'!$I$41*('Dados auxiliares'!$D$25*1000)/1000 -> 156.7573768 | F131: 156757.3768 | G131: 9.681374637
B132: CO₂ eq - queima dos cavacos de madeira | C132: kg | D132: =D121*'FE''s queima combustíveis'!$I$35/1000 -> 0 | F132: 0 | G132: 0
B133: CO₂ eq - queima da lenha | C133: kg | D133: =D123*'FE''s queima combustíveis'!$I$36/1000 -> 0 | F133: 0 | G133: 0
B134: CO₂ eq - queima dos resíduos florestais | C134: kg | D134: =D125*'FE''s queima combustíveis'!$I$37/1000 -> 0 | F134: 0 | G134: 0
B136: Emissões do processo | C136: g CO2 eq/t milho | F136: =SUM(F128:F134) -> 156757.3768 | G136: 9.681374637
B137: Emissões background | C137: g CO2 eq/t milho | F137: =SUM(F102:F126) -> 446999.353 | G137: 27.60679139
B138: Emissões totais | C138: g CO2 eq/t milho | F138: =F136+F137 -> 603756.7298 | G138: 37.28816603
B141: Etapa distribuição
B142: Sistema logiístico rodoviário + marítimo + ferroviário
B143: Parâmetro | C143: Unidade | D143: Etanol anidro | E143: Etanol hidratado
B144: Massa | C144: kg/t milho | D144: =$D$92*E1GMI!$D$128 -> 337.2033 | E144: =$D$93*E1GMI!$E$128 -> 0
B145: Distância de transporte rodoviário | C145: km | D145: 600 | E145: 600
B146: Transporte rodoviário | C146: tkm/t milho | D146: =D144/1000*D145 -> 202.32198 | E146: =E144/1000*E145 -> 0
B147: Distância de transporte marítimo | C147: km | D147: 13000 | E147: 13000
B148: Transporte marítimo | C148: tkm/t milho | D148: =D144/1000*D147 -> 4383.6429 | E148: =E144/1000*E147 -> 0
B149: Distância de transporte ferroviário | C149: km | D149: 1400 | E149: 1400
B150: Transporte ferroviário | C150: tkm/t milho | D150: =D144/1000*D149 -> 472.08462 | E150: =E144/1000*E149 -> 0
B151: Emissões | C151: g CO2 eq/t milho | D151: =D146*'Dados auxiliares'!$H$126+D148*'Dados auxiliares'!$H$127+D150*'Dados auxiliares'!$H$129 -> 52144.11301 | E151: =E146*'Dados auxiliares'!$H$126+E148*'Dados auxiliares'!$H$127+E150*'Dados auxiliares'!$H$129 -> 0
B152: Emissões | C152: g CO2 eq/MJ | D152: =D151/$E$92 -> 5.471772275 | E152: =E151/$E$93 -> 
B154: Emissões totais | C154: g CO2 eq/MJ | D154: =D152 -> 5.471772275 | E154: =E152 -> 

Sheet Biodiesel
B2: Produção de Biodiesel de Soja
B4: Nome da Usina: | C4: Usina Hipotética
B6: CNPJ | C6: 00.000.000/0000-00
B8: Responsável pelo preenchimento: | C8: GT ACV RenovaCalc
B10: Telefone : | C10: (00) 0000-0000
C13: Biodiesel
B15: Intensidade de Carbono (g CO₂eq/MJ) | C15: =SUM(C17:C21) -> 25.11572528 | D15: Nota de Eficiência Energético-Ambiental (g CO₂eq/MJ) | G15: =G18-C15 -> 61.38427472
B17: agrícola | C17: =_Biodiesel!C5 -> 18.71639663 | G17: Fóssil de referência: Diesel
B18: industrial - extração do óleo | C18: =_Biodiesel!C6 -> 2.381924916 | G18: 86.5
B19: industrial - transesterificação | C19: =_Biodiesel!C7 -> 2.288378627 | G19: Redução de emissões
B20: transporte | C20: =_Biodiesel!C8 -> 1.290024576 | G20: =(G18-C15)/G18 -> 0.7096447944
B21: uso | C21: =_Biodiesel!C9 -> 0.4390005404
B24: Fornecedores - Dados consolidados | M24: Default - Soja
B25: Informações gerais | M25: Informações gerais
B26: Houve supressão de vegetação nativa a partir de 26 de dezembro de 2017? | D26: Não
C28: Número de registro no CAR | D28: Cadastro de fornecedores
C30: Situação do CAR | D30: Ativo
C32: Sistema de plantio | D32: Convencional
C33: Área total | D33: 1 | E33: ha
C35: Produção total (base úmida) | D35: =2.97930010943612 -> 2.979300109 | E35: t soja | F35: Umidade | G35: 0.09
B37: Tipo de preenchimento | M37: Tipo de preenchimento
B38: Tipo de dados forneceidos pelos fornecedores: | O38: Padrão
B39: Em função das informações de cada fornecedor
B41: Corretivos | M41: Corretivos
C42: Calcário calcítico | D42: 0 | E42: kg/t soja | N42: Calcário calcítico | O42: 0 | P42: kg/t soja
C43: Calcário dolomítico | D43: 249.0233952 | E43: kg/t soja | N43: Calcário dolomítico | O43: 423.3 | P43: kg/t soja
C44: Gesso | D44: 53.29885192 | E44: kg/t soja | N44: Gesso | O44: 90.6 | P44: kg/t soja
B46: Sementes | M46: Sementes
C47: Sementes | D47: 17.38990479 | E47: kg/t soja | N47: Sementes | O47: 29.6 | P47: kg/t soja
B49: Fertilizantes Sintéticos | M49: Fertilizantes Sintéticos
C50: Ureia | D50: 2.803282775 | E50: kg N/t soja | N50: Ureia | O50: 4.8 | P50: kg N/t soja
C51: Fosfato Monoamônico (MAP) | D51: 0 | E51: kg N/t soja | N51: Fosfato Monoamônico (MAP) | O51: 0 | P51: kg N/t soja
C52: Fosfato Monoamônico (MAP) | D52: 0 | E52: kg P₂O₅/t soja | N52: Fosfato Monoamônico (MAP) | O52: 0 | P52: kg P₂O₅/t soja
C53: Fosfato diamônico (DAP) | D53: 0 | E53: kg N/t soja | N53: Fosfato diamônico (DAP) | O53: 0 | P53: kg N/t soja
C54: Fosfato diamônico (DAP) | D54: 0 | E54: kg P₂O₅/t soja | N54: Fosfato diamônico (DAP) | O54: 0 | P54: kg P₂O₅/t soja
C55: Nitrato de amônio | D55: 0 | E55: kg N/t soja | N55: Nitrato de amônio | O55: 0 | P55: kg N/t soja
C56: Solução de nitrato de amônio e ureia (UAN) | D56: 0 | E56: kg N/t soja | N56: Solução de nitrato de amônio e ureia (UAN) | O56: 0 | P56: kg N/t soja
C57: Amônia anidra | D57: 0 | E57: kg N/t soja | N57: Amônia anidra | O57: 0 | P57: kg N/t soja
C58: Sulfato de amônio | D58: 0 | E58: kg N/t soja | N58: Sulfato de amônio | O58: 0 | P58: kg N/t soja
C59: Nitrato de amônio e cálcio (CAN) | D59: 0 | E59: kg N/t soja | N59: Nitrato de amônio e cálcio (CAN) | O59: 0 | P59: kg N/t soja
C60: Superfosfato simples (SSP) | D60: 27.23407101 | E60: kg P₂O₅/t soja | N60: Superfosfato simples (SSP) | O60: 46.3 | P60: kg P₂O₅/t soja
C61: Superfosfato triplo (TSP) | D61: 0 | E61: kg P₂O₅/t soja | N61: Superfosfato triplo (TSP) | O61: 0 | P61: kg P₂O₅/t soja
C62: Cloreto de potássio (KCl) | D62: 32.69566328 | E62: kg K₂O/t soja | N62: Cloreto de potássio (KCl) | O62: 55.6 | P62: kg K₂O/t soja
B63: Outros | C63: especificar | D63: 0 | E63: kg N/t soja | M63: Outros | N63: especificar | O63: 0 | P63: kg N/t soja
B64: Outros | C64: especificar | D64: 0 | E64: kg P₂O₅/t soja | M64: Outros | N64: especificar | O64: 0 | P64: kg P₂O₅/t soja
B65: Outros | C65: especificar | D65: 0 | E65: kg K₂O/t soja | M65: Outros | N65: especificar | O65: 0 | P65: kg K₂O/t soja
B67: Fertilizantes Orgânicos/Organominerais | M67: Fertilizantes Orgânicos/Organominerais
B68: Outros | C68: especificar | D68: 0 | E68: kg/t soja | F68: Concentração de N | H68: g N/kg | M68: Outros | N68: especificar | O68: 0 | P68: kg/t soja | Q68: Concentração de N | S68: g N/kg
B69: Outros | C69: especificar | D69: 0 | E69: kg/t soja | F69: Concentração de N | H69: g N/kg | M69: Outros | N69: especificar | O69: 0 | P69: kg/t soja | Q69: Concentração de N | S69: g N/kg
B70: Outros | C70: especificar | D70: 0 | E70: kg/t soja | F70: Concentração de N | H70: g N/kg | M70: Outros | N70: especificar | O70: 0 | P70: kg/t soja | Q70: Concentração de N | S70: g N/kg
B71: Outros | C71: especificar | D71: 0 | E71: kg/t soja | F71: Concentração de N | H71: g N/kg | M71: Outros | N71: especificar | O71: 0 | P71: kg/t soja | Q71: Concentração de N | S71: g N/kg
B72: Outros | C72: especificar | D72: 0 | E72: kg/t soja | F72: Concentração de N | H72: g N/kg | M72: Outros | N72: especificar | O72: 0 | P72: kg/t soja | Q72: Concentração de N | S72: g N/kg
B74: Combustíveis e eletricidade da rede | M74: Combustíveis e eletricidade da rede
C75: Diesel - B8 | D75: 10.70049972 | E75: L/t soja | N75: Diesel - B8 | O75: 18.2 | P75: L/t soja
C76: Diesel - B10 | D76: 0 | E76: L/t soja | N76: Diesel - B10 | O76: 0 | P76: L/t soja
C77: Diesel - BX | D77: 0 | E77: L/t soja | F77: Teor de biodiesel na mistura | G77: 0.11 | N77: Diesel - BX | O77: 0 | P77: L/t soja | Q77: Teor de biodiesel na mistura | R77: 0.11
C78: Diesel - B20 | D78: 0 | E78: L/t soja | N78: Diesel - B20 | O78: 0 | P78: L/t soja
C79: Diesel - B30 | D79: 0 | E79: L/t soja | N79: Diesel - B30 | O79: 0 | P79: L/t soja
C80: Biodiesel - B100 | D80: 0 | E80: L/t soja | N80: Biodiesel - B100 | O80: 0 | P80: L/t soja
C81: Gasolina C | D81: 0 | E81: L/t soja | N81: Gasolina C | O81: 0 | P81: L/t soja
C82: Etanol hidratado | D82: 0 | E82: L/t soja | N82: Etanol hidratado | O82: 0 | P82: L/t soja
C83: Biometano de terceiros | D83: 0 | E83: Nm³/t soja | N83: Biometano de terceiros | O83: 0 | P83: Nm³/t soja
C84: Biometano próprio | D84: 0 | E84: Nm³/t soja | N84: Biometano próprio | O84: 0 | P84: Nm³/t soja
C85: Eletricidade da rede - mix médio | D85: 0 | E85: kWh/t soja | N85: Eletricidade da rede - mix médio | O85: 0 | P85: kWh/t soja
C86: Eletricidade - PCH | D86: 0 | E86: kWh/t soja | N86: Eletricidade - PCH | O86: 0 | P86: kWh/t soja
C87: Eletricidade - biomassa | D87: 0 | E87: kWh/t soja | N87: Eletricidade - biomassa | O87: 0 | P87: kWh/t soja
C88: Eletricidade - eólica | D88: 0 | E88: kWh/t soja | N88: Eletricidade - eólica | O88: 0 | P88: kWh/t soja
C89: Eletricidade - solar | D89: 0 | E89: kWh/t soja | N89: Eletricidade - solar | O89: 0 | P89: kWh/t soja
B92: Fase industrial - extração do óleo de soja
B93: Processamento e rendimentos
C94: Processamento efetivo - soja | D94: 1 | E94: t soja | F94: Umidade | G94: 0.09
C95: Distância de transporte - soja | D95: 334.925 | E95: km
C96: Rendimento Óleo | D96: 191.93856 | E96: kg/t soja
C97: Rendimento Farelo | D97: 800.3839 | E97: kg/t soja
B99: Combustíveis e eletricidade
C100: Eletricidade da rede - mix médio | D100: 34.54894434 | E100: kWh/t soja
C101: Eletricidade - PCH | D101: 0 | E101: kWh/t soja
C102: Eletricidade - biomassa | D102: 0 | E102: kWh/t soja
C103: Eletricidade - eólica | D103: 0 | E103: kWh/t soja
C104: Eletricidade - solar | D104: 0 | E104: kWh/t soja
C105: Diesel - B8 | D105: 0.1142491546 | E105: L/t soja
C106: Diesel - B10 | D106: 0 | E106: L/t soja
C107: Diesel - BX | D107: 0 | E107: L/t soja | F107: Teor de biodiesel na mistura | G107: 0.11
C108: Diesel - B20 | D108: 0 | E108: L/t soja
C109: Diesel - B30 | D109: 0 | E109: L/t soja
C110: Biodiesel - B100 | D110: 0 | E110: L/t soja
C111: Biometano de terceiros | D111: 0 | E111: Nm³/t soja
C112: Biometano próprio | D112: 0 | E112: Nm³/t soja
C113: Gás natural | D113: 0 | E113: Nm³/t soja
C114: Cavaco de madeira
C115: Quantidade (base úmida) | D115: 86.37236084 | E115: kg/t soja
C116: Umidade | D116: 0.35
C117: Distância de transporte | D117: 150 | E117: km
C118: Lenha
C119: Quantidade (base úmida) | E119: kg/t soja
C120: Umidade
C121: Distância de transporte | E121: km
C122: Resíduos florestais
C123: Quantidade (base úmida) | E123: kg/t soja
C124: Umidade
C125: Distância de transporte | E125: km
C126: Bagaço de cana
C127: Quantidade (base úmida) | E127: kg/t soja
C128: Umidade
C129: Distância de transporte | E129: km
C130: Palha de cana
C131: Quantidade (base úmida) | E131: kg/t soja
C132: Umidade
C133: Distância de transporte | E133: km
B136: Fase industrial - produção do biodiesel
B137: Processamento e rendimentos
D138: Óleo de soja
C139: Quantidade de óleo de soja processado | D139: 1 | E139: mil t óleo/ano
C140: Distância de transporte - óleo de soja | D140: 116.2 | E140: km
D141: Óleo de palma
C142: Quantidade de óleo de palma processado | E142: mil t óleo/ano
C143: Distância de transporte - óleo de palma | E143: km
D144: Óleo de algodão
C145: Quantidade de óleo de algodão processado | E145: mil t óleo/ano
C146: Distância de transporte - óleo de algodão | E146: km
D147: Outros óleos vegetais
C148: Quantidade de outros óleos vegetais processado | E148: mil t óleo/ano
C149: Distância de transporte - outros óleos vegetais | E149: km
D150: Óleo de fritura usado
C151: Quantidade de óleo de fritura usado processado | E151: mil t óleo/ano
C152: Distância de transporte - óleo de fritura usado | E152: km
D153: Gordura anima
C154: Quantidade de gordura animal processada | E154: mil t gordura animal/ano
C155: Distância de transporte - gordura animal | E155: km
D156: Outros óleos residuais
C157: Quantidade de outros óleos residuais processado | E157: mil t óleo/ano
C158: Distância de transporte - outros óleos residuais | E158: km
C161: Rota de produção | D161: Etílica
C162: Produção de Biodiesel | D162: 1067.045455 | E162: m³/ano
C163: Produção de Glicerina purificada | D163: 118 | E163: t/ano
C164: Produção de Glicerina bruta | D164: 0 | E164: t/ano
B166: Insumos
C167: Metanol | D167: 0 | E167: t/ano | I167: =IF(Biodiesel!D161="Metílica",103.192488262911,0) -> 0
C168: Metilato de sódio | D168: 0 | E168: t/ano | I168: =IF(Biodiesel!D161="Metílica",21.8779342723005,0) -> 0
C169: Etanol anidro | D169: 125.7545272 | E169: t/ano | I169: =IF(Biodiesel!D161="Etílica",125.7545272,0) -> 125.7545272
C170: Hidróxido de sódio | D170: 8.048289738 | E170: t/ano | I170: =IF(Biodiesel!D161="Metílica",1.407789770061,IF(Biodiesel!D161="Etílica",8.04828973843058,"0")) -> 8.048289738
B171: Combustíveis e energia
C172: Eletricidade da rede - mix médio | D172: 40.92748 | E172: MWh/ano
C173: Eletricidade - PCH | D173: 0 | E173: MWh/ano
C174: Eletricidade - biomassa | D174: 0 | E174: MWh/ano
C175: Eletricidade - eólica | D175: 0 | E175: MWh/ano
C176: Eletricidade - solar | D176: 0 | E176: MWh/ano
C177: Diesel - B8 | D177: 0.006197183099 | E177: m³/ano
C178: Diesel - B10 | D178: 0 | E178: m³/ano
C179: Diesel - BX | D179: 0 | E179: m³/ano | F179: Teor de biodiesel na mistura | G179: 0.11
C180: Diesel - B20 | D180: 0 | E180: m³/ano
C181: Diesel - B30 | D181: 0 | E181: m³/ano
C182: Biodiesel - B100 | D182: 0 | E182: m³/ano
C183: Biometano de terceiros | D183: 0 | E183: Nm³/ano
C184: Biometano próprio | D184: 0 | E184: Nm³/ano
C185: Gás natural | D185: 0 | E185: Nm³/ano
C186: Cavaco de madeira
C187: Quantidade (base úmida) | D187: 68.86678404 | E187: t/ano
C188: Umidade | D188: 0.35
C189: Distância de transporte | D189: 150 | E189: km
C190: Lenha
C191: Quantidade (base úmida) | E191: t/ano
C192: Umidade
C193: Distância de transporte | E193: km
C194: Resíduos florestais
C195: Quantidade (base úmida) | E195: t/ano
C196: Umidade
C197: Distância de transporte | E197: km
C198: Bagaço de cana
C199: Quantidade (base úmida) | E199: t/ano
C200: Umidade
C201: Distância de transporte | E201: km
C202: Palha de cana
C203: Quantidade (base úmida) | E203: t/ano
C204: Umidade
C205: Distância de transporte | E205: km
B208: Distribuição do biodiesel
C210: Rodoviário | D210: 1 | E210: %
C211: Rodoviário + Dutoviário | D211: 0 | E211: %
C212: Rodoviário + Ferroviário | D212: 0 | E212: %

Sheet _Biodiesel
B2: Emissões totais - g CO₂ eq
C3: Biodiesel
B4: Total | C4: =SUM(C5:C9) -> 25.11572528
B5: Agrícola | C5: =G71 -> 18.71639663 | D5: =C5/$C$4 -> 0.7452062966
B6: Industrial - extração do óleo | C6: =G120-G83 -> 2.381924916 | D6: =C6/$C$4 -> 0.09483799049
B7: Industrial - transesterificação | C7: =G186-G132 -> 2.288378627 | D7: =C7/$C$4 -> 0.09111338022
B8: Transporte | C8: =$D$217 -> 1.290024576 | D8: 0.05136322211
B9: Uso | C9: ='FE''s queima combustíveis'!$I$6 -> 0.4390005404 | D9: 0.01747911061
B12: Etapa agrícola - Soja
B13: Produto | D13: 1 ha médio | E13: 1 t soja
B14: Produção de soja | C14: kg | D14: =(Biodiesel!D35*1000)/Biodiesel!D33 -> 2979.300109 | E14: 1000
B15: Entradas da natureza | D15: 1 ha médio | E15: 1 t soja | F15: g CO2 eq/t soja
B16: Ocupação total | C16: ha | D16: 1 | E16: =(D16*E14)/D14 -> 0.3356493013
B17: Entradas da tecnosfera | D17: 1 ha médio | E17: 1 t soja | F17: g CO2 eq/t soja
B18: Sementes de soja | C18: kg | E18: =Biodiesel!D47 -> 17.38990479 | F18: =E18*'Dados auxiliares'!$H$72 -> 31343.872 | G18: =(((F18*$F$76)/$D$76)*1000*$F$127)/$E$127 -> 1.51694793
B19: Fertilizantes e corretivos
B20: Calcário calcítico | C20: kg | E20: =Biodiesel!D42 -> 0 | F20: =E20*'Dados auxiliares'!$H$48 -> 0 | G20: =(((F20*$F$76)/$D$76)*1000*$F$127)/$E$127 -> 0
B21: Calcário dolomítico | C21: kg | E21: =Biodiesel!D43 -> 249.0233952 | F21: =E21*'Dados auxiliares'!$H$49 -> 9172.935634 | G21: 0.4439421437
B22: Gesso | C22: kg | E22: =Biodiesel!D44 -> 53.29885192 | F22: =E22*'Dados auxiliares'!$H$50 -> 150.7757539 | G22: 0.007297087223
B23: N - Ureia | C23: kg N | E23: =Biodiesel!D50 -> 2.803282775 | F23: =E23*'Dados auxiliares'!$H$51 -> 9001.941555 | G23: 0.4356665511
B24: N - Fosfato monoamônico (MAP) | C24: kg N | E24: =Biodiesel!D51 -> 0 | F24: =E24*'Dados auxiliares'!$H$52 -> 0 | G24: 0
B25: P₂O₅ - Fosfato monoamônico (MAP) | C25: kg P₂O₅ | E25: =Biodiesel!D52 -> 0 | F25: =E25*'Dados auxiliares'!$H$53 -> 0 | G25: 0
B26: N - Fosfato diamônico (DAP) | C26: kg N | E26: =Biodiesel!D53 -> 0 | F26: =E26*'Dados auxiliares'!$H$54 -> 0 | G26: 0
B27: P₂O₅ - Fosfato diamônico (DAP) | C27: kg P₂O₅ | E27: =Biodiesel!D54 -> 0 | F27: =E27*'Dados auxiliares'!$H$55 -> 0 | G27: 0
B28: N - Nitrato de amônio | C28: kg N | E28: =Biodiesel!D55 -> 0 | F28: =E28*'Dados auxiliares'!$H$56 -> 0 | G28: 0
B29: N - Solução de nitrato de amônio e ureia (UAN) | C29: kg N | E29: =Biodiesel!D56 -> 0 | F29: =E29*'Dados auxiliares'!$H$57 -> 0 | G29: 0
B30: N - Amônia anidra | C30: kg N | E30: =Biodiesel!D57 -> 0 | F30: =E30*'Dados auxiliares'!$H$58 -> 0 | G30: 0
B31: N - Sulfato de amônio | C31: kg N | E31: =Biodiesel!D58 -> 0 | F31: =E31*'Dados auxiliares'!$H$59 -> 0 | G31: 0
B32: N - Nitrato de amônio e cálcio (CAN) | C32: kg N | E32: =Biodiesel!D59 -> 0 | F32: =E32*'Dados auxiliares'!$H$60 -> 0 | G32: 0
B33: P₂O₅ - Superfosfato simples (SSP) | C33: kg P₂O₅ | E33: =Biodiesel!D60 -> 27.23407101 | F33: =E33*'Dados auxiliares'!$H$62 -> 64480.923 | G33: 3.120680262
B34: P₂O₅ - Superfosfato triplo (TSP) | C34: kg P₂O₅ | E34: =Biodiesel!D61 -> 0 | F34: =E34*'Dados auxiliares'!$H$63 -> 0 | G34: 0
B35: K₂O - Cloreto de potássio (KCl) | C35: kg K₂O | E35: =Biodiesel!D62 -> 32.69566328 | F35: =E35*'Dados auxiliares'!H$64 -> 14883.31967 | G35: 0.7203073371
B36: N - Outros | C36: kg N | E36: =Biodiesel!D63 -> 0 | F36: =E36*'Dados auxiliares'!H$65 -> 0 | G36: 0
B37: P₂O₅ - Outros | C37: kg P₂O₅ | E37: =Biodiesel!D64 -> 0 | F37: =E37*'Dados auxiliares'!H$66 -> 0 | G37: 0
B38: K₂O - Outros | C38: kg K₂O | E38: =Biodiesel!D65 -> 0 | F38: =E38*'Dados auxiliares'!H$67 -> 0 | G38: 0
B39: Outros Fertilizantes Orgânicos/Organominerais | C39: kg | E39: =Biodiesel!D68+Biodiesel!D69+Biodiesel!D70+Biodiesel!D71+Biodiesel!D72 -> 0 | F39: 0
B40: Agroquímicos
B41: Pesticidas, geral | C41: kg | E41: =0.000674630945913558*1000 -> 0.6746309459 | F41: =E41*'Dados auxiliares'!$H$70 -> 7247.237365 | G41: =(((F41*$F$76)/$D$76)*1000*$F$127)/$E$127 -> 0.3507442132
B42: Glifosato | C42: kg | E42: =0.00086569230646321*1000 -> 0.8656923065 | F42: =E42*'Dados auxiliares'!$H$68 -> 9960.401647 | G42: =(((F42*$F$76)/$D$76)*1000*$F$127)/$E$127 -> 0.4820531001
B43: 2,4-D | C43: kg | E43: =0.0000652020791723256*1000 -> 0.06520207917 | F43: =E43*'Dados auxiliares'!$H$69 -> 331.3355299 | G43: =(((F43*$F$76)/$D$76)*1000*$F$127)/$E$127 -> 0.01603563039
B44: Combustíveis e eletricidade
B45: Diesel B0 | C45: kg | E45: =(Biodiesel!$D$75*(1-0.08)+Biodiesel!$D$76*(1-0.1)+Biodiesel!$D$77*(1-Biodiesel!$G$77)+Biodiesel!$D$78*(1-0.2)+Biodiesel!$D$79*(1-0.3)+Biodiesel!$D$80*(1-1))*('Dados auxiliares'!$D$24) -> 8.269346187 | F45: =E45*'Dados auxiliares'!$H$112 -> 4598.825755 | G45: =(((F45*$F$76)/$D$76)*1000*$F$127)/$E$127 -> 0.2225691584
B46: Biodiesel B100 | C46: kg | E46: =(Biodiesel!$D$75*(0.08)+Biodiesel!$D$76*(0.1)+Biodiesel!$D$77*(Biodiesel!$G$77)+Biodiesel!$D$78*(0.2)+Biodiesel!$D$79*(0.3)+Biodiesel!$D$80*(1))*('Dados auxiliares'!$D$17) -> 0.7533151806 | F46: =E46*'Dados auxiliares'!$H$113 -> 743.4393198 | G46: 0.03598019854
B47: Gasolina A | C47: kg | E47: =Biodiesel!$D$81*(1-'FE''s queima combustíveis'!$D$16)*'Dados auxiliares'!$D$22 -> 0 | F47: =E47*'Dados auxiliares'!$H$116 -> 0 | G47: 0
B48: Etanol anidro | C48: kg | E48: =Biodiesel!$D$81*('FE''s queima combustíveis'!$D$16)*'Dados auxiliares'!$D$15 -> 0 | F48: =E48*'Dados auxiliares'!$H$117 -> 0 | G48: 0
B49: Etanol hidratado | C49: kg | E49: =Biodiesel!$D$82*'Dados auxiliares'!$D$16 -> 0 | F49: =E49*'Dados auxiliares'!$H$118 -> 0 | G49: 0
B50: Biometano de terceiros | C50: Nm³ | E50: =Biodiesel!D83 -> 0 | F50: =E50*'Dados auxiliares'!$F$18 -> 0 | G50: 0
B51: Eletricidade da rede - mix médio | C51: kWh | E51: =Biodiesel!D85 -> 0 | F51: =E51*'Dados auxiliares'!$H$103 -> 0 | G51: 0
B52: Eletricidade - PCH | C52: kWh | E52: =Biodiesel!D86 -> 0 | F52: =E52*'Dados auxiliares'!$H$104 -> 0 | G52: 0
B53: Eletricidade - biomassa | C53: kWh | E53: =Biodiesel!D87 -> 0 | F53: =E53*'Dados auxiliares'!$H$105 -> 0 | G53: 0
B54: Eletricidade - eólica | C54: kWh | E54: =Biodiesel!D88 -> 0 | F54: =E54*'Dados auxiliares'!$H$106 -> 0 | G54: 0
B55: Eletricidade - solar | C55: kWh | E55: =Biodiesel!D89 -> 0 | F55: =E55*'Dados auxiliares'!$H$107 -> 0 | G55: 0
B56: Emissões | D56: 1 ha médio | E56: 1 t soja | F56: g CO2 eq/t soja
B57: N2O - Fertilizantes sintéticos | C57: kg | D57: ='_Emissões Agrícolas'!$J$54 -> 0.1738968377 | E57: =D57*$E$16 -> 0.05836835207 | F57: =E57*1000*'Dados auxiliares'!$D$9 -> 15467.6133 | G57: =(((F57*$F$76)/$D$76)*1000*$F$127)/$E$127 -> 0.748585369
B58: N2O - Fertilizantes organominerais | C58: kg | D58: ='_Emissões Agrícolas'!$J$58 -> 0 | E58: =D58*$E$16 -> 0 | F58: =E58*1000*'Dados auxiliares'!$D$9 -> 0 | G58: 0
B59: N2O - Resíduos culturais | C59: kg | D59: ='_Emissões Agrícolas'!$J$62 -> 0.7887980395 | E59: 0.2647595108 | F59: =E59*1000*'Dados auxiliares'!$D$9 -> 70161.27036 | G59: 3.395591772
B60: CO2 - Calcário | C60: kg | E60: =$E$20*'_Emissões Agrícolas'!$E$79+$E$21*'_Emissões Agrícolas'!$E$80 -> 118.7011517 | F60: =E60*1000 -> 118701.1517 | G60: 5.744774176
B61: CO2 - Uréia | C61: kg | E61: =$E$23*'_Emissões Agrícolas'!$E$81 -> 4.373916387 | F61: =E61*1000 -> 4373.916387 | G61: 0.2116842301
B62: CO₂ eq - queima do diesel | C62: kg | E62: =$E$45*'FE''s queima combustíveis'!$I$53/1000 -> 26.09532768 | F62: =E62*1000 -> 26095.32768 | G62: 1.262934373
B63: CO₂ eq - queima do biodiesel | C63: kg | E63: =$E$46*'FE''s queima combustíveis'!$I$54/1000 -> 0.01246137497 | F63: =E63*1000 -> 12.46137497 | G63: 0.000603092591
B64: CO₂ eq - queima da gasolina A | C64: kg | E64: =$E$47*'FE''s queima combustíveis'!$I$9/1000 -> 0 | F64: 0 | G64: 0
B65: CO₂ eq - queima do etanol anidro | C65: kg | E65: =$E$48*'FE''s queima combustíveis'!$I$7/1000 -> 0 | F65: 0 | G65: 0
B66: CO₂ eq - queima do etanol hidratado | C66: kg | E66: =$E$49*'FE''s queima combustíveis'!$I$8/1000 -> 0 | F66: 0 | G66: 0
B67: CO₂ eq - queima do biometano | C67: kg | E67: =($E$50+Biodiesel!$D$84)*'FE''s queima combustíveis'!$I$55/1000 -> 0 | F67: 0 | G67: 0
B69: Emissões do processo | C69: g CO2 eq/t soja | F69: =SUM(F57:F67) -> 234811.7408 | G69: =(((F69*$F$76)/$D$76)*1000*$F$127)/$E$127 -> 11.36417301
B70: Emissões background | C70: g CO2 eq/t soja | F70: =SUM(F18:F55) -> 151915.0072 | G70: =(((F70*$F$76)/$D$76)*1000*$F$127)/$E$127 -> 7.352223613
B71: Emissões totais | C71: g CO2 eq/t soja | F71: =F69+F70 -> 386726.748 | G71: =(((F71*$F$76)/$D$76)*1000*$F$127)/$E$127 -> 18.71639663
B74: Etapa industrial - Extração do óleo de soja
B75: Produtos | C75: Unidade | D75: 1 t soja | E75: MJ | F75: Alocação
B76: Óleo de soja | C76: kg | D76: =Biodiesel!D96 -> 191.93856 | E76: =D76*'Dados auxiliares'!$D$39 -> 6533.588582 | F76: =E76/SUM($E$76:$E$77) -> 0.3464348662
B77: Farelo de soja | C77: kg | D77: =Biodiesel!D97 -> 800.3839 | E77: =D77*'Dados auxiliares'!$D$40 -> 12325.91206 | F77: =E77/SUM($E$76:$E$77) -> 0.6535651338
B78: Entradas | C78: Unidade | D78: 1 t soja | F78: g CO2 eq/t soja | CA78: =(D76+D77)*F76 -> 343.7750987
B79: Processamento dos grãos
B80: Processamento com secagem | C80: m³ | D80: =0.00004878*0.6 -> 2.9268e-05 | F80: =D80*'Dados auxiliares'!$H$77 -> 9.398038799e-07 | G80: =(((F80*$F$76)/$D$76)*1000*$F$127)/$E$127 -> 4.548364512e-11
B81: Processamento sem secagem | C81: m³ | D81: =0.00004878*0.4 -> 1.9512e-05 | F81: =D81*'Dados auxiliares'!$H$76 -> 3.085069051e-07 | G81: =(((F81*$F$76)/$D$76)*1000*$F$127)/$E$127 -> 1.493079449e-11
B82: Insumos
B83: Soja (grãos) | C83: t | D83: 1 | F83: =D83*F71 -> 386726.748 | G83: =(((F83*$F$76)/$D$76)*1000*$F$127)/$E$127 -> 18.71639663 | CA83: =CA78*F122 -> 270497.749 | CB83: =(CA78*CC153)/1000 -> 
B84: Transporte da soja em grãos até a usina | C84: tkm | D84: =D83*Biodiesel!$D$95 -> 334.925 | F84: =D84*'Dados auxiliares'!$H$125 -> 40219.4607 | G84: =(((F84*$F$76)/$D$76)*1000*$F$127)/$E$127 -> 1.946499388
B85: Hexano | C85: kg | D85: 1.1 | F85: =D85*'Dados auxiliares'!$H$96 -> 339.5816291 | G85: =(((F85*$F$76)/$D$76)*1000*$F$127)/$E$127 -> 0.01643471647
B86: Água | C86: kg | D86: =(2.34*992.3224568)/5.17 -> 449.1362764 | F86: =D86*'Dados auxiliares'!H79 -> 3.953105455 | G86: =(((F86*$F$76)/$D$76)*1000*$F$127)/$E$127 -> 0.0001913182628
B87: Combustíveis e eletricidade
B88: Eletricidade da rede - mix médio | C88: kWh | D88: =Biodiesel!D100 -> 34.54894434 | F88: =D88*'Dados auxiliares'!$H$103 -> 5037.298272 | G88: =(((F88*$F$76)/$D$76)*1000*$F$127)/$E$127 -> 0.2437898926
B89: Eletricidade - PCH | C89: kWh | D89: =Biodiesel!D101 -> 0 | F89: =D89*'Dados auxiliares'!$H$104 -> 0 | G89: 0
B90: Eletricidade - biomassa | C90: kWh | D90: =Biodiesel!D102 -> 0 | F90: =D90*'Dados auxiliares'!$H$105 -> 0 | G90: 0
B91: Eletricidade - eólica | C91: kWh | D91: =Biodiesel!D103 -> 0 | F91: =D91*'Dados auxiliares'!$H$106 -> 0 | G91: 0
B92: Eletricidade - solar | C92: kWh | D92: =Biodiesel!D104 -> 0 | F92: =D92*'Dados auxiliares'!$H$107 -> 0 | G92: 0
B93: Diesel B0 | C93: kg | D93: =(Biodiesel!$D$105*(1-0.08)+Biodiesel!$D$106*(1-0.1)+Biodiesel!$D$107*(1-Biodiesel!$G$107)+Biodiesel!$D$108*(1-0.2)+Biodiesel!$D$109*(1-0.3)+Biodiesel!$D$110*(1-1))*('Dados auxiliares'!$D$24) -> 0.08829174664 | F93: =D93*'Dados auxiliares'!$H$112 -> 49.10162777 | G93: 0.002376369219
B94: Biodiesel B100 | C94: kg | D94: =(Biodiesel!$D$105*(0.08)+Biodiesel!$D$106*(0.1)+Biodiesel!$D$107*(Biodiesel!$G$107)+Biodiesel!$D$108*(0.2)+Biodiesel!$D$109*(0.3)+Biodiesel!$D$110*(1))*('Dados auxiliares'!$D$17) -> 0.008043140481 | F94: =D94*'Dados auxiliares'!$H$113 -> 7.93769599 | G94: 0.0003841603075
B95: Biometano de terceiros | C95: Nm³ | D95: =Biodiesel!D111 -> 0 | F95: =E95*'Dados auxiliares'!$F$18 -> 0 | G95: 0
B96: Gás natural | C96: Nm³ | D96: =Biodiesel!D113 -> 0 | F96: =D96*'Dados auxiliares'!$H$111 -> 0 | G96: 0
B97: Cavaco de madeira | C97: kg base seca | D97: =Biodiesel!$D$115*(1-Biodiesel!$D$116) -> 56.14203455 | F97: =D97*'Dados auxiliares'!$H$119 -> 1920.818047 | G97: 0.09296174263
B98: Transporte de cavaco de madeira | C98: tkm | D98: =((D97/1000)*Biodiesel!$D$117) -> 8.421305182 | F98: =D98*'Dados auxiliares'!$H$125 -> 1011.272234 | G98: 0.04894249574
B99: Lenha | C99: kg base seca | D99: =Biodiesel!$D$119*(1-Biodiesel!$D$120) -> 0 | F99: =D99*'Dados auxiliares'!$H$120 -> 0 | G99: 0
B100: Transporte de lenha | C100: tkm | D100: =((D99/1000)*Biodiesel!$D$121) -> 0 | F100: =D100*'Dados auxiliares'!$H$125 -> 0 | G100: 0
B101: Resíduos florestais | C101: kg base seca | D101: =Biodiesel!$D$123*(1-Biodiesel!$D$124) -> 0 | F101: 0 | G101: 0
B102: Transporte de resíduos florestais | C102: tkm | D102: =((D101/1000)*Biodiesel!$D$125) -> 0 | F102: =D102*'Dados auxiliares'!$H$125 -> 0 | G102: 0
B103: Bagaço de cana-de-açúcar | C103: kg base seca | D103: =Biodiesel!$D$127*(1-Biodiesel!$D$128) -> 0 | F103: 0 | G103: 0
B104: Transporte de bagaço de cana-de-açúcar | C104: tkm | D104: =((D103/1000)*Biodiesel!$D$129) -> 0 | F104: =D104*'Dados auxiliares'!$H$125 -> 0 | G104: 0
B105: Palha de cana-de-açúcar | C105: kg base seca | D105: =Biodiesel!$D$131*(1-Biodiesel!$D$132) -> 0 | F105: =D105*'Dados auxiliares'!$H$74 -> 0 | G105: 0
B106: Transporte de palha de cana-de-açúcar | C106: tkm | D106: =((D105/1000)*Biodiesel!$D$133) -> 0 | F106: =D106*'Dados auxiliares'!$H$125 -> 0 | G106: 0
B107: Emissões | C107: Unidade | D107: 1 t soja | F107: g CO2 eq/t soja | CB107: Emissão desconsiderada
B108: CO₂ eq - queima do diesel | C108: kg | D108: =D93*'FE''s queima combustíveis'!$I$45/1000 -> 0.2776011708 | F108: =D108*1000 -> 277.6011708 | G108: =(((F108*$F$76)/$D$76)*1000*$F$127)/$E$127 -> 0.01343505109
B109: CO₂ eq - queima do biodiesel | C109: kg | D109: =D94*'FE''s queima combustíveis'!$I$46/1000 -> 8.188721323e-05 | F109: 0.08188721323 | G109: 3.96309169e-06
B110: CO₂ eq - queima do biometano | C110: kg | D110: =(D95+Biodiesel!D112)*'FE''s queima combustíveis'!$I$39/1000 -> 0 | F110: 0 | G110: 0
B111: CO₂ eq - queima da gás natural | C111: kg | D111: =D96*'FE''s queima combustíveis'!$I$41*('Dados auxiliares'!$D$25*1000)/1000 -> 0 | F111: 0 | G111: 0
B112: CO₂ eq - queima do bagaço de cana-de-açúcar | C112: kg | D112: =D103*'FE''s queima combustíveis'!$I$33/1000 -> 0 | F112: =D112*1000 -> 0 | G112: 0
B113: CO₂ eq - queima da palha de cana-de-açúcar | C113: kg | D113: =D105*'FE''s queima combustíveis'!$I$34/1000 -> 0 | F113: 0 | G113: 0
B114: CO₂ eq - queima dos cavacos de madeira | C114: kg | D114: =D97*'FE''s queima combustíveis'!$I$35/1000 -> 0.349315739 | F114: 349.315739 | G114: 0.01690581774
B115: CO₂ eq - queima da lenha | C115: kg | D115: =D99*'FE''s queima combustíveis'!$I$36/1000 -> 0 | F115: 0 | G115: 0
B116: CO₂ eq - queima dos resíduos florestais | C116: kg | D116: =D101*'FE''s queima combustíveis'!$I$37/1000 -> 0 | F116: 0 | G116: 0
B118: Emissões do processo | C118: g CO2 eq/t soja | F118: =SUM(F108:F116) -> 626.998797 | G118: =(((F118*$F$76)/$D$76)*1000*$F$127)/$E$127 -> 0.03034483192
B119: Emissões background | C119: g CO2 eq/t soja | F119: =SUM(F80:F106) -> 435316.1714 | G119: =(((F119*$F$76)/$D$76)*1000*$F$127)/$E$127 -> 21.06797671
B120: Emissões totais | C120: g CO2 eq/t soja | F120: =F118+F119 -> 435943.1701 | G120: =(((F120*$F$76)/$D$76)*1000*$F$127)/$E$127 -> 21.09832154
B122: Emissões totais | C122: g CO2 eq/kg óleo de soja | F122: =F120*F76/$D$76 -> 786.8450917
B125: Etapa industrial - Produção de biodiesel | BY125: =F122*CC130 -> 
B126: Produtos | C126: Unidade | D126: 1 t matéria-prima | E126: MJ | F126: Alocação
B127: Biodiesel | C127: kg | D127: =(Biodiesel!D162*'Dados auxiliares'!$D$17)*1000/((Biodiesel!$D$139+Biodiesel!$D$142+Biodiesel!$D$145+Biodiesel!$D$148+Biodiesel!$D$151+Biodiesel!$D$154+Biodiesel!$D$157)*1000) -> 939 | E127: =D127*'Dados auxiliares'!$F$17 -> 35382.60324 | F127: =E127/SUM($E$127:$E$129) -> 0.9487427044
B128: Glicerina purificada | C128: kg | D128: =Biodiesel!D163*1000/((Biodiesel!$D$139+Biodiesel!$D$142+Biodiesel!$D$145+Biodiesel!$D$148+Biodiesel!$D$151+Biodiesel!$D$154+Biodiesel!$D$157)*1000) -> 118 | E128: =D128*'Dados auxiliares'!$D$41 -> 1911.6 | F128: =E128/SUM($E$127:$E$129) -> 0.0512572956
B129: Glicerina bruta | C129: kg | D129: =Biodiesel!D164*1000/((Biodiesel!$D$139+Biodiesel!$D$142+Biodiesel!$D$145+Biodiesel!$D$148+Biodiesel!$D$151+Biodiesel!$D$154+Biodiesel!$D$157)*1000) -> 0 | E129: - | F129: - | G129: Resíduo
B130: Entradas | C130: Unidade | D130: 1 t matéria-prima | F130: g CO2 eq/t matéria=prima | CA130: =D127/BZ130 ->  | CB130: =CA130*1000 ->  | CC130: =CB130/D127 -> 
B131: Matérias-primas
B132: Óleo de soja | C132: t | D132: =Biodiesel!$D$139*1000/((Biodiesel!$D$139+Biodiesel!$D$142+Biodiesel!$D$145+Biodiesel!$D$148+Biodiesel!$D$151+Biodiesel!$D$154+Biodiesel!$D$157)*1000) -> 1 | F132: =$D$132*$F$122*1000 -> 786845.0917 | G132: =(F132*$F$127)/$E$127 -> 21.09832154
B133: Transporte óleo de soja até a usina | C133: tkm | D133: =D132*Biodiesel!$D$140 -> 116.2 | F133: =D133*'Dados auxiliares'!$H$126 -> 3765.624782 | G133: 0.1009707797
B134: Óleo de palma | C134: t | D134: =Biodiesel!$D$142*1000/((Biodiesel!$D$139+Biodiesel!$D$142+Biodiesel!$D$145+Biodiesel!$D$148+Biodiesel!$D$151+Biodiesel!$D$154+Biodiesel!$D$157)*1000) -> 0 | F134: =D134*'Dados auxiliares'!$H$100 -> 0 | G134: 0
B135: Transporte óleo de palma até a usina | C135: tkm | D135: =D134*Biodiesel!$D$143 -> 0 | F135: =D135*'Dados auxiliares'!$H$126 -> 0 | G135: 0
B136: Óleo de algodão | C136: t | D136: =Biodiesel!$D$145*1000/((Biodiesel!$D$139+Biodiesel!$D$142+Biodiesel!$D$145+Biodiesel!$D$148+Biodiesel!$D$151+Biodiesel!$D$154+Biodiesel!$D$157)*1000) -> 0 | F136: =D136*'Dados auxiliares'!$H$99 -> 0 | G136: 0
B137: Transporte óleo de algodão até a usina | C137: tkm | D137: =D136*Biodiesel!$D$146 -> 0 | F137: =D137*'Dados auxiliares'!$H$126 -> 0 | G137: 0
B138: Outros óleos vegetais | C138: t | D138: =Biodiesel!$D$148*1000/((Biodiesel!$D$139+Biodiesel!$D$142+Biodiesel!$D$145+Biodiesel!$D$148+Biodiesel!$D$151+Biodiesel!$D$154+Biodiesel!$D$157)*1000) -> 0 | F138: =D138*'Dados auxiliares'!$H$101 -> 0 | G138: 0
B139: Transporte outros óleos vegetais até a usina | C139: tkm | D139: =D138*Biodiesel!$D$149 -> 0 | F139: =D139*'Dados auxiliares'!$H$126 -> 0 | G139: 0
B140: Óleo de fritura usado | C140: t | D140: =Biodiesel!$D$151*1000/((Biodiesel!$D$139+Biodiesel!$D$142+Biodiesel!$D$145+Biodiesel!$D$148+Biodiesel!$D$151+Biodiesel!$D$154+Biodiesel!$D$157)*1000) -> 0 | F140: 0 | G140: 0
B141: Transporte óleo de fritura usado até a usina | C141: tkm | D141: =D140*Biodiesel!$D$152 -> 0 | F141: =D141*'Dados auxiliares'!$H$126 -> 0 | G141: 0
B142: Gordura animal | C142: t | D142: =Biodiesel!$D$154*1000/((Biodiesel!$D$139+Biodiesel!$D$142+Biodiesel!$D$145+Biodiesel!$D$148+Biodiesel!$D$151+Biodiesel!$D$154+Biodiesel!$D$157)*1000) -> 0 | F142: 0 | G142: 0
B143: Transporte gordura animal até a usina | C143: tkm | D143: =D142*Biodiesel!$D$155 -> 0 | F143: =D143*'Dados auxiliares'!$H$126 -> 0 | G143: 0
B144: Outros óleos residuais | C144: t | D144: =Biodiesel!$D$157*1000/((Biodiesel!$D$139+Biodiesel!$D$142+Biodiesel!$D$145+Biodiesel!$D$148+Biodiesel!$D$151+Biodiesel!$D$154+Biodiesel!$D$157)*1000) -> 0 | F144: 0 | G144: 0
B145: Transporte outros óleos residiais até a usina | C145: tkm | D145: =D144*Biodiesel!$D$158 -> 0 | F145: =D145*'Dados auxiliares'!$H$126 -> 0 | G145: 0
B146: Insumos
B147: Água | C147: kg | D147: 328.6384977 | F147: =D147*'Dados auxiliares'!$H$79 -> 2.892535531 | G147: 7.755992297e-05
B148: Metanol | C148: kg | D148: =Biodiesel!D167*1000/((Biodiesel!$D$139+Biodiesel!$D$142+Biodiesel!$D$145+Biodiesel!$D$148+Biodiesel!$D$151+Biodiesel!$D$154+Biodiesel!$D$157)*1000) -> 0 | F148: =D148*'Dados auxiliares'!$H$97 -> 0 | G148: 0
B149: Metilato de sódio | C149: kg | D149: =Biodiesel!D168*1000/((Biodiesel!$D$139+Biodiesel!$D$142+Biodiesel!$D$145+Biodiesel!$D$148+Biodiesel!$D$151+Biodiesel!$D$154+Biodiesel!$D$157)*1000) -> 0 | F149: =D149*'Dados auxiliares'!$H$86 -> 0 | G149: 0
B150: Ácido clorídrico | C150: kg | D150: =IF(Biodiesel!$D$161="Metílica",13.0516431924883,0) -> 0 | F150: =D150*'Dados auxiliares'!$H$82 -> 0 | G150: 0
B151: Ácido fosfórico | C151: kg | D151: =IF(Biodiesel!$D$161="Metílica",0.5,IF(Biodiesel!$D$161="Etílica",0.0301810865191147,0)) -> 0.03018108652 | F151: =D151*'Dados auxiliares'!$H$85 -> 45.66177926 | G151: 0.001224366665 | CA151: =D127+D128 -> 1057
B152: Etanol anidro | C152: kg | D152: =Biodiesel!D169*1000/((Biodiesel!$D$139+Biodiesel!$D$142+Biodiesel!$D$145+Biodiesel!$D$148+Biodiesel!$D$151+Biodiesel!$D$154+Biodiesel!$D$157)*1000) -> 125.7545272 | F152: =D152*'Dados auxiliares'!$H$117 -> 68802.86519 | G152: 1.844867545
B153: Hidróxido de sódio | C153: kg | D153: =Biodiesel!D170*1000/((Biodiesel!$D$139+Biodiesel!$D$142+Biodiesel!$D$145+Biodiesel!$D$148+Biodiesel!$D$151+Biodiesel!$D$154+Biodiesel!$D$157)*1000) -> 8.048289738 | F153: =D153*'Dados auxiliares'!$H$93 -> 4124.41201 | G153: 0.1105912354 | CA153: =CA151*#REF! -> 
B154: Eletricidade da rede - mix médio | C154: kWh | D154: =Biodiesel!D172*1000/((Biodiesel!$D$139+Biodiesel!$D$142+Biodiesel!$D$145+Biodiesel!$D$148+Biodiesel!$D$151+Biodiesel!$D$154+Biodiesel!$D$157)*1000) -> 40.92748 | F154: =D154*'Dados auxiliares'!$H$103 -> 5967.300253 | G154: 0.1600061064
B155: Eletricidade - PCH | C155: kWh | D155: =Biodiesel!D173*1000/((Biodiesel!$D$139+Biodiesel!$D$142+Biodiesel!$D$145+Biodiesel!$D$148+Biodiesel!$D$151+Biodiesel!$D$154+Biodiesel!$D$157)*1000) -> 0 | F155: =D155*'Dados auxiliares'!$H$104 -> 0 | G155: 0
B156: Eletricidade - biomassa | C156: kWh | D156: =Biodiesel!D174*1000/((Biodiesel!$D$139+Biodiesel!$D$142+Biodiesel!$D$145+Biodiesel!$D$148+Biodiesel!$D$151+Biodiesel!$D$154+Biodiesel!$D$157)*1000) -> 0 | F156: =D156*'Dados auxiliares'!$H$105 -> 0 | G156: 0
B157: Eletricidade - eólica | C157: kWh | D157: =Biodiesel!D175*1000/((Biodiesel!$D$139+Biodiesel!$D$142+Biodiesel!$D$145+Biodiesel!$D$148+Biodiesel!$D$151+Biodiesel!$D$154+Biodiesel!$D$157)*1000) -> 0 | F157: =D157*'Dados auxiliares'!$H$106 -> 0 | G157: 0
B158: Eletricidade - solar | C158: kWh | D158: =Biodiesel!D176*1000/((Biodiesel!$D$139+Biodiesel!$D$142+Biodiesel!$D$145+Biodiesel!$D$148+Biodiesel!$D$151+Biodiesel!$D$154+Biodiesel!$D$157)*1000) -> 0 | F158: =D158*'Dados auxiliares'!$H$107 -> 0 | G158: 0
B159: Diesel B0 | C159: kg | D159: =((Biodiesel!$D$177*(1-0.08)+Biodiesel!$D$178*(1-0.1)+Biodiesel!$D$179*(1-Biodiesel!$G$179)+Biodiesel!$D$180*(1-0.2)+Biodiesel!$D$181*(1-0.3)+Biodiesel!$D$182*(1-1))*('Dados auxiliares'!$D$24))*1000/((Biodiesel!$D$139+Biodiesel!$D$142+Biodiesel!$D$145+Biodiesel!$D$148+Biodiesel!$D$151+Biodiesel!$D$154+Biodiesel!$D$157)*1000) -> 0.004789183099 | F159: =D159*'Dados auxiliares'!$H$112 -> 2.663405072 | G159: 7.141606042e-05
B160: Biodiesel B100 | C160: kg | D160: =((Biodiesel!$D$177*(0.08)+Biodiesel!$D$178*(0.1)+Biodiesel!$D$179*(Biodiesel!$G$179)+Biodiesel!$D$180*(0.2)+Biodiesel!$D$181*(0.3)+Biodiesel!$D$182*(1))*('Dados auxiliares'!$D$17))*1000/((Biodiesel!$D$139+Biodiesel!$D$142+Biodiesel!$D$145+Biodiesel!$D$148+Biodiesel!$D$151+Biodiesel!$D$154+Biodiesel!$D$157)*1000) -> 0.0004362816901 | F160: =D160*'Dados auxiliares'!$H$113 -> 0.4305620958 | G160: 1.154501393e-05
B161: Biometano de terceiros | C161: Nm³ | D161: =Biodiesel!D183/((Biodiesel!$D$139+Biodiesel!$D$142+Biodiesel!$D$145+Biodiesel!$D$148+Biodiesel!$D$151+Biodiesel!$D$154+Biodiesel!$D$157)*1000) -> 0 | F161: =E161*'Dados auxiliares'!$F$18 -> 0 | G161: 0
B162: Gás natural | C162: Nm³ | D162: =Biodiesel!D185/((Biodiesel!$D$139+Biodiesel!$D$142+Biodiesel!$D$145+Biodiesel!$D$148+Biodiesel!$D$151+Biodiesel!$D$154+Biodiesel!$D$157)*1000) -> 0 | F162: =D162*'Dados auxiliares'!$H$111 -> 0 | G162: 0
B163: Cavaco de madeira | C163: kg base seca | D163: =Biodiesel!$D$187*(1-Biodiesel!$D$188)*1000/((Biodiesel!$D$139+Biodiesel!$D$142+Biodiesel!$D$145+Biodiesel!$D$148+Biodiesel!$D$151+Biodiesel!$D$154+Biodiesel!$D$157)*1000) -> 44.76340962 | F163: =D163*'Dados auxiliares'!$H$119 -> 1531.514947 | G163: 0.04106576395
B164: Transporte de cavaco de madeira | C164: tkm | D164: =((D163/1000)*Biodiesel!$D$189) -> 6.714511444 | F164: =D164*'Dados auxiliares'!$H$125 -> 806.3119479 | G164: 0.02162030229
B165: Lenha | C165: kg base seca | D165: =Biodiesel!$D$191*(1-Biodiesel!$D$192)*1000/((Biodiesel!$D$139+Biodiesel!$D$142+Biodiesel!$D$145+Biodiesel!$D$148+Biodiesel!$D$151+Biodiesel!$D$154+Biodiesel!$D$157)*1000) -> 0 | F165: =D165*'Dados auxiliares'!$H$120 -> 0 | G165: 0
B166: Transporte de lenha | C166: tkm | D166: =((D165/1000)*Biodiesel!$D$193) -> 0 | F166: =D166*'Dados auxiliares'!$H$125 -> 0 | G166: 0
B167: Resíduos florestais | C167: kg base seca | D167: =Biodiesel!$D$195*(1-Biodiesel!$D$196)*1000/((Biodiesel!$D$139+Biodiesel!$D$142+Biodiesel!$D$145+Biodiesel!$D$148+Biodiesel!$D$151+Biodiesel!$D$154+Biodiesel!$D$157)*1000) -> 0 | F167: 0 | G167: 0
B168: Transporte de resíduos florestais | C168: tkm | D168: =((D167/1000)*Biodiesel!$D$197) -> 0 | F168: =D168*'Dados auxiliares'!$H$125 -> 0 | G168: 0
B169: Bagaço de cana-de-açúcar | C169: kg base seca | D169: =Biodiesel!$D$199*(1-Biodiesel!$D$200)*1000/((Biodiesel!$D$139+Biodiesel!$D$142+Biodiesel!$D$145+Biodiesel!$D$148+Biodiesel!$D$151+Biodiesel!$D$154+Biodiesel!$D$157)*1000) -> 0 | F169: 0 | G169: 0
B170: Transporte de bagaço de cana-de-açúcar | C170: tkm | D170: =((D169/1000)*Biodiesel!$D$201) -> 0 | F170: =D170*'Dados auxiliares'!$H$125 -> 0 | G170: 0
B171: Palha de cana-de-açúcar | C171: kg base seca | D171: =Biodiesel!$D$203*(1-Biodiesel!$D$204)*1000/((Biodiesel!$D$139+Biodiesel!$D$142+Biodiesel!$D$145+Biodiesel!$D$148+Biodiesel!$D$151+Biodiesel!$D$154+Biodiesel!$D$157)*1000) -> 0 | F171: =D171*'Dados auxiliares'!$H$74 -> 0 | G171: 0
B172: Transporte de palha de cana-de-açúcar | C172: tkm | D172: =((D171/1000)*Biodiesel!$D$205) -> 0 | F172: =D172*'Dados auxiliares'!$H$125 -> 0 | G172: 0
B173: Emissões | C173: Unidade | D173: 1 t óleo | F173: g CO2 eq/t óleo
B174: CO₂ eq - queima do diesel | C174: kg | D174: =D159*'FE''s queima combustíveis'!$I$45/1000 -> 0.0150578382 | F174: =D174*1000 -> 15.0578382 | G174: =(((F174*$F$76)/$D$76)*1000*$F$127)/$E$127 -> 0.0007287535024
B175: CO₂ eq - queima do biodiesel | C175: kg | D175: =D160*'FE''s queima combustíveis'!$I$46/1000 -> 4.441783887e-06 | F175: 0.004441783887 | G175: 2.149688104e-07
B176: CO₂ eq - queima do biometano | C176: kg | D176: =(D161+Biodiesel!D184)*'FE''s queima combustíveis'!$I$39/1000 -> 0 | F176: 0 | G176: 0
B177: CO₂ eq - queima da gás natural | C177: kg | D177: =D162*'FE''s queima combustíveis'!$I$41*('Dados auxiliares'!$D$25/1000)/1000 -> 0 | F177: 0 | G177: 0
B178: CO₂ eq - queima do bagaço de cana-de-açúcar | C178: kg | D178: =D169*'FE''s queima combustíveis'!$I$33/1000 -> 0 | F178: 0 | G178: 0
B179: CO₂ eq - queima da palha de cana-de-açúcar | C179: kg | D179: =D171*'FE''s queima combustíveis'!$I$34/1000 -> 0 | F179: 0 | G179: 0
B180: CO₂ eq - queima dos cavacos de madeira | C180: kg | D180: =D163*'FE''s queima combustíveis'!$I$35/1000 -> 0.2785179347 | F180: 278.5179347 | G180: 0.01347941967
B181: CO₂ eq - queima da lenha | C181: kg | D181: =D165*'FE''s queima combustíveis'!$I$36/1000 -> 0 | F181: 0 | G181: 0
B182: CO₂ eq - queima dos resíduos florestais | C182: kg | D182: =D167*'FE''s queima combustíveis'!$I$37/1000 -> 0 | F182: 0 | G182: 0
B184: Emissões do processo | C184: g CO2 eq/kg óleo | F184: =SUM(F174:F182) -> 293.5802147 | G184: =(F184*$F$127)/$E$127 -> 0.007872006616
B185: Emissões background | C185: g CO2 eq/kg óleo | F185: =SUM(F132:F172) -> 871894.7691 | G185: =(F185*$F$127)/$E$127 -> 23.37882816
B186: Emissões totais | C186: g CO2 eq/kg óleo | F186: =F185+F184 -> 872188.3493 | G186: 23.38670017
B188: Emissões totais | C188: g CO2 eq/kg óleo de soja
B190: Etapa distribuição
B191: Sistema logiístico rodoviário
B192: Parâmetro | C192: Unidade | D192: Etanol anidro
B193: Massa | C193: kg/t óleo | D193: =$D$127*Biodiesel!D210 -> 939
B194: Distância de transporte rodoviário | C194: km | D194: 1500
B195: Transporte rodoviário | C195: tkm/t óleo | D195: =D193/1000*D194 -> 1408.5
B196: Emissões | C196: g CO2 eq/t óleo | D196: =D195*'Dados auxiliares'!$H$126 -> 45644.42775
B197: Emissões | C197: g CO2 eq/MJ | D197: =D196/$E$127 -> 1.290024576
B198: Sistema logiístico rodoviário + dutoviário
B199: Parâmetro | C199: Unidade | D199: Etanol anidro
B200: Massa | C200: kg/t óleo | D200: =$D$127*Biodiesel!D211 -> 0
B201: Distância de transporte rodoviário | C201: km | D201: 900
B202: Transporte rodoviário | C202: tkm/t óleo | D202: =D200/1000*D201 -> 0
B203: Distância de transporte dutoviário | C203: km | D203: 600
B204: Transporte dutoviário | C204: tkm/t óleo | D204: =D200/1000*D203 -> 0
B205: Emissões | C205: g CO2 eq/t óleo | D205: =D202*'Dados auxiliares'!$H$126+D204*'Dados auxiliares'!$H$130 -> 0
B206: Emissões | C206: g CO2 eq/MJ | D206: =D205/$E$127 -> 0
B207: Sistema logiístico rodoviário + ferroviário
B208: Parâmetro | C208: Unidade | D208: Etanol anidro
B209: Massa | C209: kg/t óleo | D209: =$D$127*Biodiesel!D212 -> 0
B210: Distância de transporte rodoviário | C210: km | D210: 900
B211: Transporte rodoviário | C211: tkm/t óleo | D211: =D209/1000*D210 -> 0
B212: Distância de transporte ferroviário | C212: km | D212: 600
B213: Transporte ferroviário | C213: tkm/t óleo | D213: =D209/1000*D212 -> 0
... 3 more rows

Sheet BioQavHEFA
B2: Produção de Bioquerosene de HEFA de Soja
B4: Nome da Usina: | C4: Usina Hipotética
B6: CNPJ | C6: 00.000.000/0000-00
B8: Responsável pelo preenchimento: | C8: GT ACV RenovaCalc
B10: Telefone : | C10: (00) 0000-0000
C13: Bioquerosene
B15: Intensidade de Carbono (g CO₂eq/MJ) | C15: =SUM(C17:C21) -> 34.64530041 | D15: Nota de Eficiência Energético-Ambiental (g CO₂eq/MJ) | G15: =G18-C15 -> 52.85469959
B17: agrícola | C17: =_BioQavHEFA!C5 -> 20.60580326 | G17: Fóssil de referência: Querosene de Aviação
B18: industrial - extração do óleo | C18: =_BioQavHEFA!C6 -> 2.622378504 | G18: 87.5
B19: industrial - transesterificação | C19: =_BioQavHEFA!C7 -> 9.861750688 | G19: Redução de emissões
B20: transporte | C20: =_BioQavHEFA!C8 -> 1.116367422 | G20: =(G18-C15)/G18 -> 0.6040537096
B21: uso | C21: =_BioQavHEFA!C9 -> 0.4390005404
B24: Fornecedores - Dados consolidados | M24: Default - Soja
B25: Informações gerais | M25: Informações gerais
B26: Houve supressão de vegetação nativa a partir de 26 de dezembro de 2017? | D26: Não
C28: Número de registro no CAR | D28: Cadastro de fornecedores
C30: Situação do CAR | D30: Ativo
C32: Sistema de plantio | D32: Convencional
C33: Área total | D33: 1 | E33: ha
C35: Produção total (base úmida) | D35: =2.97930010943612 -> 2.979300109 | E35: t soja | F35: Umidade | G35: 0.09
B37: Tipo de preenchimento | M37: Tipo de preenchimento
B38: Tipo de dados forneceidos pelos fornecedores: | O38: Padrão
B39: Em função das informações de cada fornecedor
B41: Corretivos | M41: Corretivos
C42: Calcário calcítico | D42: 0 | E42: kg/t soja | N42: Calcário calcítico | O42: 0 | P42: kg/t soja
C43: Calcário dolomítico | D43: 249.0233952 | E43: kg/t soja | N43: Calcário dolomítico | O43: 423.3 | P43: kg/t soja
C44: Gesso | D44: 53.29885192 | E44: kg/t soja | N44: Gesso | O44: 90.6 | P44: kg/t soja
B46: Sementes | M46: Sementes
C47: Sementes | D47: 17.38990479 | E47: kg/t soja | N47: Sementes | O47: 29.6 | P47: kg/t soja
B49: Fertilizantes Sintéticos | M49: Fertilizantes Sintéticos
C50: Ureia | D50: 2.803282775 | E50: kg N/t soja | N50: Ureia | O50: 4.8 | P50: kg N/t soja
C51: Fosfato Monoamônico (MAP) | D51: 0 | E51: kg N/t soja | N51: Fosfato Monoamônico (MAP) | O51: 0 | P51: kg N/t soja
C52: Fosfato Monoamônico (MAP) | D52: 0 | E52: kg P₂O₅/t soja | N52: Fosfato Monoamônico (MAP) | O52: 0 | P52: kg P₂O₅/t soja
C53: Fosfato diamônico (DAP) | D53: 0 | E53: kg N/t soja | N53: Fosfato diamônico (DAP) | O53: 0 | P53: kg N/t soja
C54: Fosfato diamônico (DAP) | D54: 0 | E54: kg P₂O₅/t soja | N54: Fosfato diamônico (DAP) | O54: 0 | P54: kg P₂O₅/t soja
C55: Nitrato de amônio | D55: 0 | E55: kg N/t soja | N55: Nitrato de amônio | O55: 0 | P55: kg N/t soja
C56: Solução de nitrato de amônio e ureia (UAN) | D56: 0 | E56: kg N/t soja | N56: Solução de nitrato de amônio e ureia (UAN) | O56: 0 | P56: kg N/t soja
C57: Amônia anidra | D57: 0 | E57: kg N/t soja | N57: Amônia anidra | O57: 0 | P57: kg N/t soja
C58: Sulfato de amônio | D58: 0 | E58: kg N/t soja | N58: Sulfato de amônio | O58: 0 | P58: kg N/t soja
C59: Nitrato de amônio e cálcio (CAN) | D59: 0 | E59: kg N/t soja | N59: Nitrato de amônio e cálcio (CAN) | O59: 0 | P59: kg N/t soja
C60: Superfosfato simples (SSP) | D60: 27.23407101 | E60: kg P₂O₅/t soja | N60: Superfosfato simples (SSP) | O60: 46.3 | P60: kg P₂O₅/t soja
C61: Superfosfato triplo (TSP) | D61: 0 | E61: kg P₂O₅/t soja | N61: Superfosfato triplo (TSP) | O61: 0 | P61: kg P₂O₅/t soja
C62: Cloreto de potássio (KCl) | D62: 32.69566328 | E62: kg K₂O/t soja | N62: Cloreto de potássio (KCl) | O62: 55.6 | P62: kg K₂O/t soja
B63: Outros | C63: especificar | D63: 0 | E63: kg N/t soja | M63: Outros | N63: especificar | O63: 0 | P63: kg N/t soja
B64: Outros | C64: especificar | D64: 0 | E64: kg P₂O₅/t soja | M64: Outros | N64: especificar | O64: 0 | P64: kg P₂O₅/t soja
B65: Outros | C65: especificar | D65: 0 | E65: kg K₂O/t soja | M65: Outros | N65: especificar | O65: 0 | P65: kg K₂O/t soja
B67: Fertilizantes Orgânicos/Organominerais | M67: Fertilizantes Orgânicos/Organominerais
B68: Outros | C68: especificar | D68: 0 | E68: kg/t soja | F68: Concentração de N | H68: g N/kg | M68: Outros | N68: especificar | O68: 0 | P68: kg/t soja | Q68: Concentração de N | S68: g N/kg
B69: Outros | C69: especificar | D69: 0 | E69: kg/t soja | F69: Concentração de N | H69: g N/kg | M69: Outros | N69: especificar | O69: 0 | P69: kg/t soja | Q69: Concentração de N | S69: g N/kg
B70: Outros | C70: especificar | D70: 0 | E70: kg/t soja | F70: Concentração de N | H70: g N/kg | M70: Outros | N70: especificar | O70: 0 | P70: kg/t soja | Q70: Concentração de N | S70: g N/kg
B71: Outros | C71: especificar | D71: 0 | E71: kg/t soja | F71: Concentração de N | H71: g N/kg | M71: Outros | N71: especificar | O71: 0 | P71: kg/t soja | Q71: Concentração de N | S71: g N/kg
B72: Outros | C72: especificar | D72: 0 | E72: kg/t soja | F72: Concentração de N | H72: g N/kg | M72: Outros | N72: especificar | O72: 0 | P72: kg/t soja | Q72: Concentração de N | S72: g N/kg
B74: Combustíveis e eletricidade da rede | M74: Combustíveis e eletricidade da rede
C75: Diesel - B8 | D75: 10.70049972 | E75: L/t soja | N75: Diesel - B8 | O75: 18.2 | P75: L/t soja
C76: Diesel - B10 | D76: 0 | E76: L/t soja | N76: Diesel - B10 | O76: 0 | P76: L/t soja
C77: Diesel - BX | D77: 0 | E77: L/t soja | F77: Teor de biodiesel na mistura | G77: 0.11 | N77: Diesel - BX | O77: 0 | P77: L/t soja | Q77: Teor de biodiesel na mistura | R77: 0.11
C78: Diesel - B20 | D78: 0 | E78: L/t soja | N78: Diesel - B20 | O78: 0 | P78: L/t soja
C79: Diesel - B30 | D79: 0 | E79: L/t soja | N79: Diesel - B30 | O79: 0 | P79: L/t soja
C80: Biodiesel - B100 | D80: 0 | E80: L/t soja | N80: Biodiesel - B100 | O80: 0 | P80: L/t soja
C81: Gasolina C | D81: 0 | E81: L/t soja | N81: Gasolina C | O81: 0 | P81: L/t soja
C82: Etanol hidratado | D82: 0 | E82: L/t soja | N82: Etanol hidratado | O82: 0 | P82: L/t soja
C83: Biometano de terceiros | D83: 0 | E83: Nm³/t soja | N83: Biometano de terceiros | O83: 0 | P83: Nm³/t soja
C84: Biometano próprio | D84: 0 | E84: Nm³/t soja | N84: Biometano próprio | O84: 0 | P84: Nm³/t soja
C85: Eletricidade da rede - mix médio | D85: 0 | E85: kWh/t soja | N85: Eletricidade da rede - mix médio | O85: 0 | P85: kWh/t soja
C86: Eletricidade - PCH | D86: 0 | E86: kWh/t soja | N86: Eletricidade - PCH | O86: 0 | P86: kWh/t soja
C87: Eletricidade - biomassa | D87: 0 | E87: kWh/t soja | N87: Eletricidade - biomassa | O87: 0 | P87: kWh/t soja
C88: Eletricidade - eólica | D88: 0 | E88: kWh/t soja | N88: Eletricidade - eólica | O88: 0 | P88: kWh/t soja
C89: Eletricidade - solar | D89: 0 | E89: kWh/t soja | N89: Eletricidade - solar | O89: 0 | P89: kWh/t soja
B92: Fase industrial - extração do óleo de soja
B93: Processamento e rendimentos
C94: Processamento efetivo - soja | D94: 1 | E94: t soja | F94: Umidade | G94: 0.09
C95: Distância de transporte - soja | D95: 334.925 | E95: km
C96: Rendimento Óleo | D96: 191.93856 | E96: kg/t soja
C97: Rendimento Farelo | D97: 800.3839 | E97: kg/t soja
B99: Combustíveis e eletricidade
C100: Eletricidade da rede - mix médio | D100: 34.54894434 | E100: kWh/t soja
C101: Eletricidade - PCH | D101: 0 | E101: kWh/t soja
C102: Eletricidade - biomassa | D102: 0 | E102: kWh/t soja
C103: Eletricidade - eólica | D103: 0 | E103: kWh/t soja
C104: Eletricidade - solar | D104: 0 | E104: kWh/t soja
C105: Diesel - B8 | D105: 0.1142491546 | E105: L/t soja
C106: Diesel - B10 | D106: 0 | E106: L/t soja
C107: Diesel - BX | D107: 0 | E107: L/t soja | F107: Teor de biodiesel na mistura | G107: 0.11
C108: Diesel - B20 | D108: 0 | E108: L/t soja
C109: Diesel - B30 | D109: 0 | E109: L/t soja
C110: Biodiesel - B100 | D110: 0 | E110: L/t soja
C111: Biometano de terceiros | D111: 0 | E111: Nm³/t soja
C112: Biometano próprio | D112: 0 | E112: Nm³/t soja
C113: Gás natural | D113: 0 | E113: Nm³/t soja
C114: Cavaco de madeira
C115: Quantidade (base úmida) | D115: 86.37236084 | E115: kg/t soja
C116: Umidade | D116: 0.35
C117: Distância de transporte | D117: 150 | E117: km
C118: Lenha
C119: Quantidade (base úmida) | E119: kg/t soja
C120: Umidade
C121: Distância de transporte | E121: km
C122: Resíduos florestais
C123: Quantidade (base úmida) | E123: kg/t soja
C124: Umidade
C125: Distância de transporte | E125: km
C126: Bagaço de cana
C127: Quantidade (base úmida) | E127: kg/t soja
C128: Umidade
C129: Distância de transporte | E129: km
C130: Palha de cana
C131: Quantidade (base úmida) | E131: kg/t soja
C132: Umidade
C133: Distância de transporte | E133: km
B136: Fase industrial - produção do bioquerosene
B137: Processamento e rendimentos
C138: Processamento efetivo - óleo de soja | D138: 1 | E138: t óleo
C139: Distância de transporte - óleo de soja | D139: 0 | E139: km
C140: Rendimento - Bioquerosene | D140: 492.7906977 | E140: kg/t óleo
C141: Rendimento - Gasolina verde | D141: 59.34883721 | E141: kg/t óleo
C142: Rendimento - Diesel verde | D142: 232.3953488 | E142: kg/t óleo
B144: Insumos
C145: Hidrogênio | D145: 0 | E145: kg/t óleo
B146: Combustíveis e energia
C147: Eletricidade da rede - mix médio | D147: 2259.251072 | E147: kWh/t óleo
C148: Eletricidade - PCH | D148: 0 | E148: kWh/t óleo
C149: Eletricidade - biomassa | D149: 0 | E149: kWh/t óleo
C150: Eletricidade - eólica | D150: 0 | E150: kWh/t óleo
C151: Eletricidade - solar | D151: 0 | E151: kWh/t óleo
C152: Diesel - B8 | D152: 0.006197183099 | E152: L/t óleo
C153: Diesel - B10 | D153: 0 | E153: L/t óleo
C154: Diesel - BX | D154: 0 | E154: L/t óleo | F154: Teor de biodiesel na mistura | G154: 0.11
C155: Diesel - B20 | D155: 0 | E155: L/t óleo
C156: Diesel - B30 | D156: 0 | E156: L/t óleo
C157: Biodiesel - B100 | D157: 0 | E157: L/t óleo
C158: Biometano de terceiros | D158: 0 | E158: Nm³/t soja
C159: Biometano próprio | D159: 149.327315 | E159: Nm³/t soja
C160: Gás natural | D160: 0 | E160: Nm³/t soja
C161: Cavaco de madeira
C162: Quantidade (base úmida) | D162: 68.86678404 | E162: kg/t soja
C163: Umidade | D163: 0.35
C164: Distância de transporte | D164: 150 | E164: km
C165: Lenha
C166: Quantidade (base úmida) | E166: kg/t soja
C167: Umidade
C168: Distância de transporte | E168: km
C169: Resíduos florestais
C170: Quantidade (base úmida) | E170: kg/t soja
C171: Umidade
C172: Distância de transporte | E172: km
C173: Bagaço de cana
C174: Quantidade (base úmida) | E174: kg/t soja
C175: Umidade
C176: Distância de transporte | E176: km
C177: Palha de cana
C178: Quantidade (base úmida) | E178: kg/t soja
C179: Umidade
C180: Distância de transporte | E180: km
B183: Distribuição do bioquerosene
C185: Rodoviário | D185: 1 | E185: %
C186: Rodoviário + Dutoviário | D186: 0 | E186: %
C187: Rodoviário + Ferroviário | D187: 0 | E187: %

Sheet _BioQavHEFA
B2: Emissões totais - g CO₂ eq
C3: Biodiesel
B4: Total | C4: =SUM(C5:C9) -> 34.64530041
B5: Agrícola | C5: =G71 -> 20.60580326 | D5: =C5/$C$4 -> 0.5947647448
B6: Industrial - extração do óleo | C6: =G120-G83 -> 2.622378504 | D6: =C6/$C$4 -> 0.07569218547
B7: Industrial - HEFA | C7: =G167-G131 -> 9.861750688 | D7: =C7/$C$4 -> 0.2846490165
B8: Transporte | C8: =$D$198 -> 1.116367422 | D8: 0.03222276639
B9: Uso | C9: ='FE''s queima combustíveis'!$I$6 -> 0.4390005404 | D9: 0.01267128687
B12: Etapa agrícola - Soja
B13: Produto | D13: 1 ha médio | E13: 1 t soja
B14: Produção de soja | C14: kg | D14: =(BioQavHEFA!D35*1000)/BioQavHEFA!D33 -> 2979.300109 | E14: 1000
B15: Entradas da natureza | D15: 1 ha médio | E15: 1 t soja | F15: g CO2 eq/t soja
B16: Ocupação total | C16: ha | D16: 1 | E16: =(D16*E14)/D14 -> 0.3356493013
B17: Entradas da tecnosfera | D17: 1 ha médio | E17: 1 t soja | F17: g CO2 eq/t soja
B18: Sementes de soja | C18: kg | E18: =BioQavHEFA!D47 -> 17.38990479 | F18: =E18*'Dados auxiliares'!$H$72 -> 31343.872 | G18: =(((F18*$F$76)/$D$76)*1000*$F$127)/$E$127 -> 1.670082721
B19: Fertilizantes e corretivos
B20: Calcário calcítico | C20: kg | E20: =BioQavHEFA!D42 -> 0 | F20: =E20*'Dados auxiliares'!$H$48 -> 0 | G20: =(((F20*$F$76)/$D$76)*1000*$F$127)/$E$127 -> 0
B21: Calcário dolomítico | C21: kg | E21: =BioQavHEFA!D43 -> 249.0233952 | F21: =E21*'Dados auxiliares'!$H$49 -> 9172.935634 | G21: 0.4887577804
B22: Gesso | C22: kg | E22: =BioQavHEFA!D44 -> 53.29885192 | F22: =E22*'Dados auxiliares'!$H$50 -> 150.7757539 | G22: 0.008033722874
B23: N - Ureia | C23: kg N | E23: =BioQavHEFA!D50 -> 2.803282775 | F23: =E23*'Dados auxiliares'!$H$51 -> 9001.941555 | G23: 0.4796467728
B24: N - Fosfato monoamônico (MAP) | C24: kg N | E24: =BioQavHEFA!D51 -> 0 | F24: =E24*'Dados auxiliares'!$H$52 -> 0 | G24: 0
B25: P₂O₅ - Fosfato monoamônico (MAP) | C25: kg P₂O₅ | E25: =BioQavHEFA!D52 -> 0 | F25: =E25*'Dados auxiliares'!$H$53 -> 0 | G25: 0
B26: N - Fosfato diamônico (DAP) | C26: kg N | E26: =BioQavHEFA!D53 -> 0 | F26: =E26*'Dados auxiliares'!$H$54 -> 0 | G26: 0
B27: P₂O₅ - Fosfato diamônico (DAP) | C27: kg P₂O₅ | E27: =BioQavHEFA!D54 -> 0 | F27: =E27*'Dados auxiliares'!$H$55 -> 0 | G27: 0
B28: N - Nitrato de amônio | C28: kg N | E28: =BioQavHEFA!D55 -> 0 | F28: =E28*'Dados auxiliares'!$H$56 -> 0 | G28: 0
B29: N - Solução de nitrato de amônio e ureia (UAN) | C29: kg N | E29: =BioQavHEFA!D56 -> 0 | F29: =E29*'Dados auxiliares'!$H$57 -> 0 | G29: 0
B30: N - Amônia anidra | C30: kg N | E30: =BioQavHEFA!D57 -> 0 | F30: =E30*'Dados auxiliares'!$H$58 -> 0 | G30: 0
B31: N - Sulfato de amônio | C31: kg N | E31: =BioQavHEFA!D58 -> 0 | F31: =E31*'Dados auxiliares'!$H$59 -> 0 | G31: 0
B32: N - Nitrato de amônio e cálcio (CAN) | C32: kg N | E32: =BioQavHEFA!D59 -> 0 | F32: =E32*'Dados auxiliares'!$H$60 -> 0 | G32: 0
B33: P₂O₅ - Superfosfato simples (SSP) | C33: kg P₂O₅ | E33: =BioQavHEFA!D60 -> 27.23407101 | F33: =E33*'Dados auxiliares'!$H$62 -> 64480.923 | G33: 3.435710666
B34: P₂O₅ - Superfosfato triplo (TSP) | C34: kg P₂O₅ | E34: =BioQavHEFA!D61 -> 0 | F34: =E34*'Dados auxiliares'!$H$63 -> 0 | G34: 0
B35: K₂O - Cloreto de potássio (KCl) | C35: kg K₂O | E35: =BioQavHEFA!D62 -> 32.69566328 | F35: =E35*'Dados auxiliares'!H$64 -> 14883.31967 | G35: 0.7930218392
B36: N - Outros | C36: kg N | E36: =BioQavHEFA!D63 -> 0 | F36: =E36*'Dados auxiliares'!H$65 -> 0 | G36: 0
B37: P₂O₅ - Outros | C37: kg P₂O₅ | E37: =BioQavHEFA!D64 -> 0 | F37: =E37*'Dados auxiliares'!H$66 -> 0 | G37: 0
B38: K₂O - Outros | C38: kg K₂O | E38: =BioQavHEFA!D65 -> 0 | F38: =E38*'Dados auxiliares'!H$67 -> 0 | G38: 0
B39: Outros Fertilizantes Orgânicos/Organominerais | C39: kg | E39: =BioQavHEFA!D68+BioQavHEFA!D69+BioQavHEFA!D70+BioQavHEFA!D71+BioQavHEFA!D72 -> 0 | F39: 0
B40: Agroquímicos
B41: Pesticidas, geral | C41: kg | E41: =0.000674630945913558*1000 -> 0.6746309459 | F41: =E41*'Dados auxiliares'!$H$70 -> 7247.237365 | G41: =(((F41*$F$76)/$D$76)*1000*$F$127)/$E$127 -> 0.3861515865
B42: Glifosato | C42: kg | E42: =0.00086569230646321*1000 -> 0.8656923065 | F42: =E42*'Dados auxiliares'!$H$68 -> 9960.401647 | G42: =(((F42*$F$76)/$D$76)*1000*$F$127)/$E$127 -> 0.5307160101
B43: 2,4-D | C43: kg | E43: =0.0000652020791723256*1000 -> 0.06520207917 | F43: =E43*'Dados auxiliares'!$H$69 -> 331.3355299 | G43: =(((F43*$F$76)/$D$76)*1000*$F$127)/$E$127 -> 0.01765441562
B44: Combustíveis e eletricidade
B45: Diesel B0 | C45: kg | E45: =(BioQavHEFA!$D$75*(1-0.08)+BioQavHEFA!$D$76*(1-0.1)+BioQavHEFA!$D$77*(1-BioQavHEFA!$G$77)+BioQavHEFA!$D$78*(1-0.2)+BioQavHEFA!$D$79*(1-0.3)+BioQavHEFA!$D$80*(1-1))*('Dados auxiliares'!$D$24) -> 8.269346187 | F45: =E45*'Dados auxiliares'!$H$112 -> 4598.825755 | G45: =(((F45*$F$76)/$D$76)*1000*$F$127)/$E$127 -> 0.2450373531
B46: Biodiesel B100 | C46: kg | E46: =(BioQavHEFA!$D$75*(0.08)+BioQavHEFA!$D$76*(0.1)+BioQavHEFA!$D$77*(BioQavHEFA!$G$77)+BioQavHEFA!$D$78*(0.2)+BioQavHEFA!$D$79*(0.3)+BioQavHEFA!$D$80*(1))*('Dados auxiliares'!$D$17) -> 0.7533151806 | F46: =E46*'Dados auxiliares'!$H$113 -> 743.4393198 | G46: 0.03961237343
B47: Gasolina A | C47: kg | E47: =BioQavHEFA!$D$81*(1-'FE''s queima combustíveis'!$D$16)*'Dados auxiliares'!$D$22 -> 0 | F47: =E47*'Dados auxiliares'!$H$116 -> 0 | G47: 0
B48: Etanol anidro | C48: kg | E48: =BioQavHEFA!$D$81*('FE''s queima combustíveis'!$D$16)*'Dados auxiliares'!$D$15 -> 0 | F48: =E48*'Dados auxiliares'!$H$117 -> 0 | G48: 0
B49: Etanol hidratado | C49: kg | E49: =BioQavHEFA!$D$82*'Dados auxiliares'!$D$16 -> 0 | F49: =E49*'Dados auxiliares'!$H$118 -> 0 | G49: 0
B50: Biometano de terceiros | C50: Nm³ | E50: =BioQavHEFA!D83 -> 0 | F50: =E50*'Dados auxiliares'!$F$18 -> 0 | G50: 0
B51: Eletricidade da rede - mix médio | C51: kWh | E51: =BioQavHEFA!D85 -> 0 | F51: =E51*'Dados auxiliares'!$H$103 -> 0 | G51: 0
B52: Eletricidade - PCH | C52: kWh | E52: =BioQavHEFA!D86 -> 0 | F52: =E52*'Dados auxiliares'!$H$104 -> 0 | G52: 0
B53: Eletricidade - biomassa | C53: kWh | E53: =BioQavHEFA!D87 -> 0 | F53: =E53*'Dados auxiliares'!$H$105 -> 0 | G53: 0
B54: Eletricidade - eólica | C54: kWh | E54: =BioQavHEFA!D88 -> 0 | F54: =E54*'Dados auxiliares'!$H$106 -> 0 | G54: 0
B55: Eletricidade - solar | C55: kWh | E55: =BioQavHEFA!D89 -> 0 | F55: =E55*'Dados auxiliares'!$H$107 -> 0 | G55: 0
B56: Emissões | D56: 1 ha médio | E56: 1 t soja | F56: g CO2 eq/t soja
B57: N2O - Fertilizantes sintéticos | C57: kg | D57: ='_Emissões Agrícolas'!$K$54 -> 0.1738968377 | E57: =D57*$E$16 -> 0.05836835207 | F57: =E57*1000*'Dados auxiliares'!$D$9 -> 15467.6133 | G57: =(((F57*$F$76)/$D$76)*1000*$F$127)/$E$127 -> 0.8241545178
B58: N2O - Fertilizantes organominerais | C58: kg | D58: ='_Emissões Agrícolas'!$K$58 -> 0 | E58: =D58*$E$16 -> 0 | F58: =E58*1000*'Dados auxiliares'!$D$9 -> 0 | G58: 0
B59: N2O - Resíduos culturais | C59: kg | D59: ='_Emissões Agrícolas'!$K$62 -> 0.7887980395 | E59: 0.2647595108 | F59: =E59*1000*'Dados auxiliares'!$D$9 -> 70161.27036 | G59: 3.738374293
B60: CO2 - Calcário | C60: kg | E60: =$E$20*'_Emissões Agrícolas'!$E$79+$E$21*'_Emissões Agrícolas'!$E$80 -> 118.7011517 | F60: =E60*1000 -> 118701.1517 | G60: 6.324704953
B61: CO2 - Uréia | C61: kg | E61: =$E$23*'_Emissões Agrícolas'!$E$81 -> 4.373916387 | F61: =E61*1000 -> 4373.916387 | G61: 0.2330535992
B62: CO₂ eq - queima do diesel | C62: kg | E62: =$E$45*'FE''s queima combustíveis'!$I$53/1000 -> 26.09532768 | F62: =E62*1000 -> 26095.32768 | G62: 1.39042668
B63: CO₂ eq - queima do biodiesel | C63: kg | E63: =$E$46*'FE''s queima combustíveis'!$I$54/1000 -> 0.01246137497 | F63: =E63*1000 -> 12.46137497 | G63: 0.0006639743497
B64: CO₂ eq - queima da gasolina A | C64: kg | E64: =$E$47*'FE''s queima combustíveis'!$I$9/1000 -> 0 | F64: 0 | G64: 0
B65: CO₂ eq - queima do etanol anidro | C65: kg | E65: =$E$48*'FE''s queima combustíveis'!$I$7/1000 -> 0 | F65: 0 | G65: 0
B66: CO₂ eq - queima do etanol hidratado | C66: kg | E66: =$E$49*'FE''s queima combustíveis'!$I$8/1000 -> 0 | F66: 0 | G66: 0
B67: CO₂ eq - queima do biometano | C67: kg | E67: =($E$50+BioQavHEFA!$D$84)*'FE''s queima combustíveis'!$I$55/1000 -> 0 | F67: 0 | G67: 0
B69: Emissões do processo | C69: g CO2 eq/t soja | F69: =SUM(F57:F67) -> 234811.7408 | G69: =(((F69*$F$76)/$D$76)*1000*$F$127)/$E$127 -> 12.51137802
B70: Emissões background | C70: g CO2 eq/t soja | F70: =SUM(F18:F55) -> 151915.0072 | G70: =(((F70*$F$76)/$D$76)*1000*$F$127)/$E$127 -> 8.094425242
B71: Emissões totais | C71: g CO2 eq/t soja | F71: =F69+F70 -> 386726.748 | G71: =(((F71*$F$76)/$D$76)*1000*$F$127)/$E$127 -> 20.60580326
B74: Etapa industrial - Extração do óleo de soja
B75: Produtos | C75: Unidade | D75: 1 t soja | E75: MJ | F75: Alocação
B76: Óleo de soja | C76: kg | D76: =BioQavHEFA!D96 -> 191.93856 | E76: =D76*'Dados auxiliares'!$D$39 -> 6533.588582 | F76: =E76/SUM($E$76:$E$77) -> 0.3464348662
B77: Farelo de soja | C77: kg | D77: =BioQavHEFA!D97 -> 800.3839 | E77: =D77*'Dados auxiliares'!$D$40 -> 12325.91206 | F77: =E77/SUM($E$76:$E$77) -> 0.6535651338
B78: Entradas | C78: Unidade | D78: 1 t soja | F78: g CO2 eq/t soja | CA78: =(D76+D77)*F76 -> 343.7750987
B79: Processamento dos grãos
B80: Processamento com secagem | C80: m³ | D80: =0.00004878*0.6 -> 2.9268e-05 | F80: =D80*'Dados auxiliares'!$H$77 -> 9.398038799e-07 | G80: =(((F80*$F$76)/$D$76)*1000*$F$127)/$E$127 -> 5.007518603e-11
B81: Processamento sem secagem | C81: m³ | D81: =0.00004878*0.4 -> 1.9512e-05 | F81: =D81*'Dados auxiliares'!$H$76 -> 3.085069051e-07 | G81: =(((F81*$F$76)/$D$76)*1000*$F$127)/$E$127 -> 1.643804734e-11
B82: Insumos
B83: Soja (grãos) | C83: t | D83: 1 | F83: =D83*F71 -> 386726.748 | G83: =(((F83*$F$76)/$D$76)*1000*$F$127)/$E$127 -> 20.60580326 | CA83: =CA78*F122 -> 270497.749 | CB83: =(CA78*#REF!)/1000 -> 
B84: Transporte da soja em grãos até a usina | C84: tkm | D84: =D83*BioQavHEFA!$D$95 -> 334.925 | F84: =D84*'Dados auxiliares'!$H$125 -> 40219.4607 | G84: =(((F84*$F$76)/$D$76)*1000*$F$127)/$E$127 -> 2.142997087
B85: Hexano | C85: kg | D85: 1.1 | F85: =D85*'Dados auxiliares'!$H$96 -> 339.5816291 | G85: =(((F85*$F$76)/$D$76)*1000*$F$127)/$E$127 -> 0.01809378916
B86: Água | C86: kg | D86: =(2.34*992.3224568)/5.17 -> 449.1362764 | F86: =D86*'Dados auxiliares'!H79 -> 3.953105455 | G86: =(((F86*$F$76)/$D$76)*1000*$F$127)/$E$127 -> 0.0002106317023
B87: Combustíveis e eletricidade
B88: Eletricidade da rede - mix médio | C88: kWh | D88: =BioQavHEFA!D100 -> 34.54894434 | F88: =D88*'Dados auxiliares'!$H$103 -> 5037.298272 | G88: =(((F88*$F$76)/$D$76)*1000*$F$127)/$E$127 -> 0.2684003051
B89: Eletricidade - PCH | C89: kWh | D89: =BioQavHEFA!D101 -> 0 | F89: =D89*'Dados auxiliares'!$H$104 -> 0 | G89: 0
B90: Eletricidade - biomassa | C90: kWh | D90: =BioQavHEFA!D102 -> 0 | F90: =D90*'Dados auxiliares'!$H$105 -> 0 | G90: 0
B91: Eletricidade - eólica | C91: kWh | D91: =BioQavHEFA!D103 -> 0 | F91: =D91*'Dados auxiliares'!$H$106 -> 0 | G91: 0
B92: Eletricidade - solar | C92: kWh | D92: =BioQavHEFA!D104 -> 0 | F92: =D92*'Dados auxiliares'!$H$107 -> 0 | G92: 0
B93: Diesel B0 | C93: kg | D93: =(BioQavHEFA!$D$105*(1-0.08)+BioQavHEFA!$D$106*(1-0.1)+BioQavHEFA!$D$107*(1-BioQavHEFA!$G$107)+BioQavHEFA!$D$108*(1-0.2)+BioQavHEFA!$D$109*(1-0.3)+BioQavHEFA!$D$110*(1-1))*('Dados auxiliares'!$D$24) -> 0.08829174664 | F93: =D93*'Dados auxiliares'!$H$112 -> 49.10162777 | G93: 0.002616261965
B94: Biodiesel B100 | C94: kg | D94: =(BioQavHEFA!$D$105*(0.08)+BioQavHEFA!$D$106*(0.1)+BioQavHEFA!$D$107*(BioQavHEFA!$G$107)+BioQavHEFA!$D$108*(0.2)+BioQavHEFA!$D$109*(0.3)+BioQavHEFA!$D$110*(1))*('Dados auxiliares'!$D$17) -> 0.008043140481 | F94: =D94*'Dados auxiliares'!$H$113 -> 7.93769599 | G94: 0.0004229410113
B95: Biometano de terceiros | C95: Nm³ | D95: =BioQavHEFA!D111 -> 0 | F95: =E95*'Dados auxiliares'!$F$18 -> 0 | G95: 0
B96: Gás natural | C96: Nm³ | D96: =BioQavHEFA!D113 -> 0 | F96: =D96*'Dados auxiliares'!$H$111 -> 0 | G96: 0
B97: Cavaco de madeira | C97: kg base seca | D97: =BioQavHEFA!$D$115*(1-BioQavHEFA!$D$116) -> 56.14203455 | F97: =D97*'Dados auxiliares'!$H$119 -> 1920.818047 | G97: 0.102346163
B98: Transporte de cavaco de madeira | C98: tkm | D98: =((D97/1000)*BioQavHEFA!$D$117) -> 8.421305182 | F98: =D98*'Dados auxiliares'!$H$125 -> 1011.272234 | G98: 0.05388320511
B99: Lenha | C99: kg base seca | D99: =BioQavHEFA!$D$119*(1-BioQavHEFA!$D$120) -> 0 | F99: =D99*'Dados auxiliares'!$H$120 -> 0 | G99: 0
B100: Transporte de lenha | C100: tkm | D100: =((D99/1000)*BioQavHEFA!$D$121) -> 0 | F100: =D100*'Dados auxiliares'!$H$125 -> 0 | G100: 0
B101: Resíduos florestais | C101: kg base seca | D101: =BioQavHEFA!$D$123*(1-BioQavHEFA!$D$124) -> 0 | F101: 0 | G101: 0
B102: Transporte de resíduos florestais | C102: tkm | D102: =((D101/1000)*BioQavHEFA!$D$125) -> 0 | F102: =D102*'Dados auxiliares'!$H$125 -> 0 | G102: 0
B103: Bagaço de cana-de-açúcar | C103: kg base seca | D103: =BioQavHEFA!$D$127*(1-BioQavHEFA!$D$128) -> 0 | F103: 0 | G103: 0
B104: Transporte de bagaço de cana-de-açúcar | C104: tkm | D104: =((D103/1000)*BioQavHEFA!$D$129) -> 0 | F104: =D104*'Dados auxiliares'!$H$125 -> 0 | G104: 0
B105: Palha de cana-de-açúcar | C105: kg base seca | D105: =BioQavHEFA!$D$131*(1-BioQavHEFA!$D$132) -> 0 | F105: =D105*'Dados auxiliares'!$H$74 -> 0 | G105: 0
B106: Transporte de palha de cana-de-açúcar | C106: tkm | D106: =((D105/1000)*BioQavHEFA!$D$133) -> 0 | F106: =D106*'Dados auxiliares'!$H$125 -> 0 | G106: 0
B107: Emissões | C107: Unidade | D107: 1 t soja | F107: g CO2 eq/t soja | CB107: Emissão desconsiderada
B108: CO₂ eq - queima do diesel | C108: kg | D108: =D93*'FE''s queima combustíveis'!$I$45/1000 -> 0.2776011708 | F108: =D108*1000 -> 277.6011708 | G108: =(((F108*$F$76)/$D$76)*1000*$F$127)/$E$127 -> 0.01479130973
B109: CO₂ eq - queima do biodiesel | C109: kg | D109: =D94*'FE''s queima combustíveis'!$I$46/1000 -> 8.188721323e-05 | F109: 0.08188721323 | G109: 4.363162915e-06
B110: CO₂ eq - queima do biometano | C110: kg | D110: =(D95+BioQavHEFA!D112)*'FE''s queima combustíveis'!$I$39/1000 -> 0 | F110: 0 | G110: 0
B111: CO₂ eq - queima da gás natural | C111: kg | D111: =D96*'FE''s queima combustíveis'!$I$41*('Dados auxiliares'!$D$25/1000)/1000 -> 0 | F111: 0 | G111: 0
B112: CO₂ eq - queima do bagaço de cana-de-açúcar | C112: kg | D112: =D103*'FE''s queima combustíveis'!$I$33/1000 -> 0 | F112: 0 | G112: 0
B113: CO₂ eq - queima da palha de cana-de-açúcar | C113: kg | D113: =D105*'FE''s queima combustíveis'!$I$34/1000 -> 0 | F113: 0 | G113: 0
B114: CO₂ eq - queima dos cavacos de madeira | C114: kg | D114: =D97*'FE''s queima combustíveis'!$I$35/1000 -> 0.349315739 | F114: 349.315739 | G114: 0.01861244775
B115: CO₂ eq - queima da lenha | C115: kg | D115: =D99*'FE''s queima combustíveis'!$I$36/1000 -> 0 | F115: 0 | G115: 0
B116: CO₂ eq - queima dos resíduos florestais | C116: kg | D116: =D101*'FE''s queima combustíveis'!$I$37/1000 -> 0 | F116: 0 | G116: 0
B118: Emissões do processo | C118: g CO2 eq/t soja | F118: =SUM(F108:F116) -> 626.998797 | G118: =(((F118*$F$76)/$D$76)*1000*$F$127)/$E$127 -> 0.03340812064
B119: Emissões background | C119: g CO2 eq/t soja | F119: =SUM(F80:F106) -> 435316.1714 | G119: =(((F119*$F$76)/$D$76)*1000*$F$127)/$E$127 -> 23.19477364
B120: Emissões totais | C120: g CO2 eq/t soja | F120: =F118+F119 -> 435943.1701 | G120: =(((F120*$F$76)/$D$76)*1000*$F$127)/$E$127 -> 23.22818176
B122: Emissões totais | C122: g CO2 eq/kg óleo de soja | F122: =F120*F76/$D$76 -> 786.8450917
B125: Etapa industrial - Produção de bioquerosene | BY125: =F122*CC130 -> 
B126: Produtos | C126: Unidade | D126: 1 t soja | E126: MJ | F126: Alocação
B127: Bioquerosene | C127: kg | D127: =BioQavHEFA!D140 -> 492.7906977 | E127: =D127*'Dados auxiliares'!$F$19 -> 21457.42095 | F127: =E127/SUM($E$127:$E$129) -> 0.6334371014
B128: Gasolina verde | C128: kg | D128: =BioQavHEFA!D141 -> 59.34883721 | E128: =D128*'Dados auxiliares'!$F$21 -> 2596.511628 | F128: =E128/SUM($E$127:$E$129) -> 0.07665072158
B129: Diesel verde | C129: kg | D129: =BioQavHEFA!D142 -> 232.3953488 | E129: =D129*'Dados auxiliares'!$F$20 -> 9820.655609 | F129: 0.2899121771
B130: Entradas | C130: Unidade | D130: 1 t óleo | F130: g CO2 eq/t óleo | CA130: =D127/BZ130 ->  | CB130: =CA130*1000 ->  | CC130: =CB130/D127 -> 
B131: Óleo de soja | C131: kg | D131: 1 | F131: =$D$131*$F$122*1000 -> 786845.0917 | G131: =(F131*$F$127)/$E$127 -> 23.22818176
B132: Transporte da soja em grãos até a usina | C132: tkm | D132: =D131*BioQavHEFA!D139 -> 0 | F132: =D132*'Dados auxiliares'!$H$126 -> 0 | G132: 0
B133: Água | C133: kg | D133: 383.5348837 | F133: =D133*'Dados auxiliares'!$H$79 -> 3.375710048 | G133: 9.965316858e-05
B134: Hidrogênio | C134: kg | D134: =BioQavHEFA!D145 -> 0 | F134: =D134*'Dados auxiliares'!$H$98 -> 0 | G134: 0
B135: Eletricidade da rede - mix médio | C135: kWh | D135: =BioQavHEFA!D147 -> 2259.251072 | F135: =D135*'Dados auxiliares'!$H$103 -> 329402.873 | G135: 9.724188265
B136: Eletricidade - PCH | C136: kWh | D136: =BioQavHEFA!D148 -> 0 | F136: =D136*'Dados auxiliares'!$H$104 -> 0 | G136: 0
B137: Eletricidade - biomassa | C137: kWh | D137: =BioQavHEFA!D149 -> 0 | F137: =D137*'Dados auxiliares'!$H$105 -> 0 | G137: 0
B138: Eletricidade - eólica | C138: kWh | D138: =BioQavHEFA!D150 -> 0 | F138: =D138*'Dados auxiliares'!$H$106 -> 0 | G138: 0
B139: Eletricidade - solar | C139: kWh | D139: =BioQavHEFA!D151 -> 0 | F139: =D139*'Dados auxiliares'!$H$107 -> 0 | G139: 0
B140: Diesel B0 | C140: kg | D140: =(BioQavHEFA!$D$152*(1-0.08)+BioQavHEFA!$D$153*(1-0.1)+BioQavHEFA!$D$154*(1-BioQavHEFA!$G$154)+BioQavHEFA!$D$155*(1-0.2)+BioQavHEFA!$D$156*(1-0.3)+BioQavHEFA!$D$157*(1-1))*('Dados auxiliares'!$D$24) -> 0.004789183099 | F140: =D140*'Dados auxiliares'!$H$112 -> 2.663405072 | G140: 7.862545981e-05
B141: Biodiesel B100 | C141: kg | D141: =(BioQavHEFA!$D$152*(0.08)+BioQavHEFA!$D$153*(0.1)+BioQavHEFA!$D$154*(BioQavHEFA!$G$154)+BioQavHEFA!$D$155*(0.2)+BioQavHEFA!$D$156*(0.3)+BioQavHEFA!$D$157*(1))*('Dados auxiliares'!$D$17) -> 0.0004362816901 | F141: =D141*'Dados auxiliares'!$H$113 -> 0.4305620958 | G141: 1.271047469e-05
B142: Biometano de terceiros | C142: Nm³ | D142: =BioQavHEFA!D158 -> 0 | F142: =E142*'Dados auxiliares'!$F$18 -> 0 | G142: 0
B143: Gás natural | C143: Nm³ | D143: =BioQavHEFA!D160 -> 0 | F143: =D143*'Dados auxiliares'!$H$111 -> 0 | G143: 0
B144: Cavaco de madeira | C144: kg base seca | D144: =BioQavHEFA!$D$162*(1-BioQavHEFA!$D$163) -> 44.76340962 | F144: =D144*'Dados auxiliares'!$H$119 -> 1531.514947 | G144: 0.04521132296
B145: Transporte de cavaco de madeira | C145: tkm | D145: =((D144/1000)*BioQavHEFA!$D$164) -> 6.714511444 | F145: =D145*'Dados auxiliares'!$H$125 -> 806.3119479 | G145: 0.02380285609
B146: Lenha | C146: kg base seca | D146: =BioQavHEFA!$D$166*(1-BioQavHEFA!$D$167) -> 0 | F146: =D146*'Dados auxiliares'!$H$120 -> 0 | G146: 0
B147: Transporte de lenha | C147: tkm | D147: =((D146/1000)*BioQavHEFA!$D$168) -> 0 | F147: =D147*'Dados auxiliares'!$H$125 -> 0 | G147: 0
B148: Resíduos florestais | C148: kg base seca | D148: =BioQavHEFA!$D$170*(1-BioQavHEFA!$D$171) -> 0 | F148: 0 | G148: 0
B149: Transporte de resíduos florestais | C149: tkm | D149: =((D148/1000)*BioQavHEFA!$D$172) -> 0 | F149: =D149*'Dados auxiliares'!$H$125 -> 0 | G149: 0
B150: Bagaço de cana-de-açúcar | C150: kg base seca | D150: =BioQavHEFA!$D$174*(1-BioQavHEFA!$D$175) -> 0 | F150: 0 | G150: 0
B151: Transporte de bagaço de cana-de-açúcar | C151: tkm | D151: =((D150/1000)*BioQavHEFA!$D$176) -> 0 | F151: =D151*'Dados auxiliares'!$H$125 -> 0 | G151: 0
B152: Palha de cana-de-açúcar | C152: kg base seca | D152: =BioQavHEFA!$D$178*(1-BioQavHEFA!$D$179) -> 0 | F152: =D152*'Dados auxiliares'!$H$74 -> 0 | G152: 0
B153: Transporte de palha de cana-de-açúcar | C153: tkm | D153: =((D152/1000)*BioQavHEFA!$D$180) -> 0 | F153: =D153*'Dados auxiliares'!$H$125 -> 0 | G153: 0
B154: Emissões | C154: Unidade | D154: 1 t óleo | F154: g CO2 eq/t óleo
B155: CO₂ eq - queima do diesel | C155: kg | D155: =D140*'FE''s queima combustíveis'!$I$45/1000 -> 0.0150578382 | F155: =D155*1000 -> 15.0578382 | G155: =(((F155*$F$76)/$D$76)*1000*$F$127)/$E$127 -> 0.0008023206387
B156: CO₂ eq - queima do biodiesel | C156: kg | D156: =D141*'FE''s queima combustíveis'!$I$46/1000 -> 4.441783887e-06 | F156: 0.004441783887 | G156: =(((F156*$F$76)/$D$76)*1000*$F$127)/$E$127 -> 2.366697555e-07
B157: CO₂ eq - queima do biometano | C157: kg | D157: =(D142+BioQavHEFA!D159)*'FE''s queima combustíveis'!$I$39/1000 -> 2.021993639 | F157: 2021.993639 | G157: 0.1077370607
B158: CO₂ eq - queima da gás natural | C158: kg | D158: =D143*'FE''s queima combustíveis'!$I$41*('Dados auxiliares'!$D$25/1000)/1000 -> 0 | F158: 0 | G158: 0
B159: CO₂ eq - queima do bagaço de cana-de-açúcar | C159: kg | D159: =D150*'FE''s queima combustíveis'!$I$33/1000 -> 0 | F159: 0 | G159: 0
B160: CO₂ eq - queima da palha de cana-de-açúcar | C160: kg | D160: =D152*'FE''s queima combustíveis'!$I$34/1000 -> 0 | F160: 0 | G160: 0
B161: CO₂ eq - queima dos cavacos de madeira | C161: kg | D161: =D144*'FE''s queima combustíveis'!$I$35/1000 -> 0.2785179347 | F161: 278.5179347 | G161: 0.01484015728
B162: CO₂ eq - queima da lenha | C162: kg | D162: =D146*'FE''s queima combustíveis'!$I$36/1000 -> 0 | F162: 0 | G162: 0
B163: CO₂ eq - queima dos resíduos florestais | C163: kg | D163: =D148*'FE''s queima combustíveis'!$I$37/1000 -> 0 | F163: 0 | G163: 0
B165: Emissões do processo | C165: g CO2 eq/kg óleo | F165: =SUM(F155:F163) -> 2315.573854 | G165: =(F165*$F$127)/$E$127 -> 0.06835725472
B166: Emissões background | C166: g CO2 eq/kg óleo | F166: =SUM(F131:F153) -> 1118592.261 | G166: 33.0215752
B167: Emissões totais | C167: g CO2 eq/kg óleo | F167: =F166+F165 -> 1120907.835 | G167: 33.08993245
B169: Emissões totais | C169: g CO2 eq/kg óleo de soja
B171: Etapa distribuição
B172: Sistema logiístico rodoviário
B173: Parâmetro | C173: Unidade | D173: Etanol anidro
B174: Massa | C174: kg/t óleo | D174: =$D$127*BioQavHEFA!D185 -> 492.7906977
B175: Distância de transporte rodoviário | C175: km | D175: 1500
B176: Transporte rodoviário | C176: tkm/t óleo | D176: =D174/1000*D175 -> 739.1860465
B177: Emissões | C177: g CO2 eq/t óleo | D177: =D176*'Dados auxiliares'!$H$126 -> 23954.36571
B178: Emissões | C178: g CO2 eq/MJ | D178: =D177/$E$127 -> 1.116367422
B179: Sistema logiístico rodoviário + dutoviário
B180: Parâmetro | C180: Unidade | D180: Etanol anidro
B181: Massa | C181: kg/t óleo | D181: =$D$127*BioQavHEFA!D186 -> 0
B182: Distância de transporte rodoviário | C182: km | D182: 900
B183: Transporte rodoviário | C183: tkm/t óleo | D183: =D181/1000*D182 -> 0
B184: Distância de transporte dutoviário | C184: km | D184: 600
B185: Transporte dutoviário | C185: tkm/t óleo | D185: =D181/1000*D184 -> 0
B186: Emissões | C186: g CO2 eq/t óleo | D186: =D183*'Dados auxiliares'!$H$126+D185*'Dados auxiliares'!$H$130 -> 0
B187: Emissões | C187: g CO2 eq/MJ | D187: =D186/$E$127 -> 0
B188: Sistema logiístico rodoviário + ferroviário
B189: Parâmetro | C189: Unidade | D189: Etanol anidro
B190: Massa | C190: kg/t óleo | D190: =$D$127*BioQavHEFA!D187 -> 0
B191: Distância de transporte rodoviário | C191: km | D191: 900
B192: Transporte rodoviário | C192: tkm/t óleo | D192: =D190/1000*D191 -> 0
B193: Distância de transporte ferroviário | C193: km | D193: 600
B194: Transporte ferroviário | C194: tkm/t óleo | D194: =D190/1000*D193 -> 0
B195: Emissões | C195: g CO2 eq/t óleo | D195: =D192*'Dados auxiliares'!$H$126+D194*'Dados auxiliares'!$H$129 -> 0
B196: Emissões | C196: g CO2 eq/MJ | D196: =D195/$E$127 -> 0
B198: Emissões totais | C198: g CO2 eq/MJ | D198: =D178+D187+D196 -> 1.116367422

Sheet Biometano
B2: Produção de Biometano de Resíduos
B4: Nome da Usina: | C4: Usina Hipotética
B6: CNPJ | C6: 00.000.000/0000-00
B8: Responsável pelo preenchimento: | C8: GT ACV RenovaCalc
B10: Telefone : | C10: (00) 0000-0000
C13: Biometano
B15: Intensidade de Carbono (g CO₂eq/MJ) | C15: =SUM(C18:C20) -> 7.439414068 | D15: Nota de Eficiência Energético-Ambiental (g CO₂eq/MJ) | G15: =G18-C15 -> 79.26058593
G17: Fóssil de referência: Média entre Gasolina, Diesel e GNV
B18: industrial | C18: =_Biometano!C5 -> 3.671391479 | G18: 86.7
B19: transporte | C19: =_Biometano!C6 -> 0.07129100925 | G19: Redução de emissões
B20: uso | C20: =_Biometano!C7 -> 3.696731579 | G20: =(G18-C15)/G18 -> 0.9141936094
B23: Fase industrial - produção de biometano
B24: Biomassas
D25: Biomassa 1
C26: Biogás de Aterro Sanitário
C27: Quantidade | E27: t/ano
C28: Distância de transporte | D28: 0 | E28: km
D30: Biomassa 2
C31: Especificar
C32: Quantidade | D32: 0 | E32: t/ano
C33: Distância de transporte | D33: 0 | E33: km
D35: Biomassa 3
C36: Especificar
C37: Quantidade | D37: 0 | E37: t/ano
C38: Distância de transporte | D38: 0 | E38: km
D40: Biomassa 4
C41: Especificar
C42: Quantidade | D42: 0 | E42: t/ano
C43: Distância de transporte | D43: 0 | E43: km
D45: Biomassa 5
C46: Especificar
C47: Quantidade | D47: 0 | E47: t/ano
C48: Distância de transporte | D48: 0 | E48: km
B50: Produtos
C51: Produção de biometano | D51: 5895000 | E51: Nm³/ano | F51: Poder calorífico inferior | G51: 34.4381034 | H51: MJ/Nm³
F52: Teor de metano | G52: 0.965 | H52: % molar
C53: Eletricidade comercializada | D53: 0 | E53: kWh/ano
B55: Combustíveis e energia
C56: Eletricidade da rede - mix médio | D56: =(149+263+4700) -> 5112 | E56: MWh/ano
C57: Eletricidade - PCH | D57: 0 | E57: MWh/ano
C58: Eletricidade - biomassa | D58: 0 | E58: MWh/ano
C59: Eletricidade - eólica | D59: 0 | E59: MWh/ano
C60: Eletricidade - solar | D60: 0 | E60: MWh/ano
C61: Diesel - B8 | D61: 0 | E61: m³/ano
C62: Diesel - B10 | D62: 0 | E62: m³/ano
C63: Diesel - BX | D63: 0 | E63: m³/ano | F63: Teor de biodiesel na mistura | G63: 0.11
C64: Diesel - B20 | D64: 0 | E64: m³/ano
C65: Diesel - B30 | D65: 0 | E65: m³/ano
C66: Biodiesel - B100 | D66: 0 | E66: m³/ano
C67: Biometano de terceiros | D67: 0 | E67: Nm³/ano
C68: Biometano próprio | D68: 0 | E68: Nm³/ano
C69: Gás natural | D69: 0 | E69: Nm³/ano
C70: Cavaco de madeira
C71: Quantidade (base úmida) | D71: 0 | E71: t/ano
C72: Umidade | D72: 0
C73: Distância de transporte | D73: 0 | E73: km
C74: Lenha
C75: Quantidade (base úmida) | D75: 0 | E75: t/ano
C76: Umidade | D76: 0
C77: Distância de transporte | D77: 0 | E77: km
C78: Resíduos florestais
C79: Quantidade (base úmida) | D79: 0 | E79: t/ano
C80: Umidade | D80: 0
C81: Distância de transporte | D81: 0 | E81: km
C82: Bagaço de cana
C83: Quantidade (base úmida) | D83: 0 | E83: t/ano
C84: Umidade | D84: 0
C85: Distância de transporte | D85: 0 | E85: km
C86: Palha de cana
C87: Quantidade (base úmida) | D87: 0 | E87: t/ano
C88: Umidade | D88: 0
C89: Distância de transporte | D89: 0 | E89: km
B92: Distribuição do biometano
C94: Rodoviário | D94: 1 | E94: %
C95: Dutoviário | D95: 0 | E95: %

Sheet _Biometano
B2: Emissões totais - g CO₂ eq
C3: Biodiesel
B4: Total | C4: =SUM(C5:C7) -> 7.439414068
B5: Industrial | C5: =G59 -> 3.671391479 | D5: =C5/$C$4 -> 0.4935054624
B6: Transporte | C6: =D79 -> 0.07129100925 | D6: 0.009582879593
B7: Uso | C7: ='FE''s queima combustíveis'!$I$12 -> 3.696731579 | D7: 0.4969116581
B10: Etapa industrial - Produção de biogás | BY10: =#REF!*CC14 -> 
B11: Produtos | C11: Unidade | D11: Unidade/ano | E11: MJ | F11: Alocação
B12: Biogás | C12: Nm³ | D12: =Biometano!D51 -> 5895000 | E12: =D12*Biometano!G51 -> 203012619.6 | F12: =E12/SUM($E$12:$E$13) -> 1
B13: Eletricidade | C13: kWh | D13: =Biometano!D53 -> 0 | E13: =CONVERT(D13,"kWh","MJ") -> 0 | F13: =E13/SUM($E$12:$E$13) -> 0
B14: Entradas | C14: Unidade | D14: Unidade/ano | F14: g CO2 eq/ano | CA14: =D12/BZ14 ->  | CB14: =CA14*1000 ->  | CC14: =CB14/D12 -> 
B15: Matérias-primas
B16: Matéria-prima 1 | C16: t | D16: =Biometano!$D$27 -> 0 | F16: 0 | G16: =(F16*$F$12)/$E$12 -> 0
B17: Transporte matéria-prima 1 até a usina | C17: tkm | D17: =D16*Biometano!$D$28 -> 0 | F17: =D17*'Dados auxiliares'!$H$126 -> 0 | G17: =(F17*$F$12)/$E$12 -> 0
B18: Matéria-prima 2 | C18: t | D18: =Biometano!$D$32 -> 0 | F18: 0 | G18: 0
B19: Transporte matéria-prima 2 até a usina | C19: tkm | D19: =D18*Biometano!$D$33 -> 0 | F19: =D19*'Dados auxiliares'!$H$126 -> 0 | G19: 0
B20: Matéria-prima 3 | C20: t | D20: =Biometano!$D$37 -> 0 | F20: 0 | G20: 0
B21: Transporte matéria-prima 3 até a usina | C21: tkm | D21: =D20*Biometano!$D$38 -> 0 | F21: =D21*'Dados auxiliares'!$H$126 -> 0 | G21: 0
B22: Matéria-prima 4 | C22: t | D22: =Biometano!$D$42 -> 0 | F22: 0 | G22: 0
B23: Transporte matéria-prima 4 até a usina | C23: tkm | D23: =D22*Biometano!$D$43 -> 0 | F23: =D23*'Dados auxiliares'!$H$126 -> 0 | G23: 0
B24: Matéria-prima 5 | C24: t | D24: =Biometano!$D$47 -> 0 | F24: 0 | G24: 0
B25: Transporte matéria-prima 5 até a usina | C25: tkm | D25: =D24*Biometano!$D$48 -> 0 | F25: =D25*'Dados auxiliares'!$H$126 -> 0 | G25: 0
B26: Insumos
B27: Eletricidade da rede - mix médio | C27: kWh | D27: =Biometano!D56*1000 -> 5112000 | F27: =D27*'Dados auxiliares'!$H$103 -> 745338801.6 | G27: 3.671391479
B28: Eletricidade - PCH | C28: kWh | D28: =Biometano!D57*1000 -> 0 | F28: =D28*'Dados auxiliares'!$H$104 -> 0 | G28: 0
B29: Eletricidade - biomassa | C29: kWh | D29: =Biometano!D58*1000 -> 0 | F29: =D29*'Dados auxiliares'!$H$105 -> 0 | G29: 0
B30: Eletricidade - eólica | C30: kWh | D30: =Biometano!D59*1000 -> 0 | F30: =D30*'Dados auxiliares'!$H$106 -> 0 | G30: 0
B31: Eletricidade - solar | C31: kWh | D31: =Biometano!D60*1000 -> 0 | F31: =D31*'Dados auxiliares'!$H$107 -> 0 | G31: 0
B32: Diesel B0 | C32: kg | D32: =((Biometano!$D$61*(1-0.08)+Biometano!$D$62*(1-0.1)+Biometano!$D$63*(1-Biometano!$G$63)+Biometano!$D$64*(1-0.2)+Biometano!$D$65*(1-0.3)+Biometano!$D$66*(1-1))*('Dados auxiliares'!$D$24))*1000 -> 0 | F32: =D32*'Dados auxiliares'!$H$112 -> 0 | G32: 0
B33: Biodiesel B100 | C33: kg | D33: =((Biometano!$D$61*(0.08)+Biometano!$D$62*(0.1)+Biometano!$D$63*(Biometano!$G$63)+Biometano!$D$64*(0.2)+Biometano!$D$65*(0.3)+Biometano!$D$66*(1))*('Dados auxiliares'!$D$17))*1000 -> 0 | F33: =D33*'Dados auxiliares'!$H$113 -> 0 | G33: 0
B34: Biometano de terceiros | C34: Nm³ | D34: =Biometano!D67 -> 0 | F34: =E34*'Dados auxiliares'!$F$18 -> 0 | G34: 0
B35: Gás natural | C35: Nm³ | D35: =Biometano!D69 -> 0 | F35: =D35*'Dados auxiliares'!$H$111 -> 0 | G35: 0
B36: Cavaco de madeira | C36: kg base seca | D36: =Biometano!$D$71*(1-Biometano!$D$72)*1000 -> 0 | F36: =D36*'Dados auxiliares'!$H$119 -> 0 | G36: 0
B37: Transporte de cavaco de madeira | C37: tkm | D37: =((D36/1000)*Biometano!$D$73) -> 0 | F37: =D37*'Dados auxiliares'!$H$125 -> 0 | G37: 0
B38: Lenha | C38: kg base seca | D38: =Biometano!$D$75*(1-Biometano!$D$76)*1000 -> 0 | F38: =D38*'Dados auxiliares'!$H$120 -> 0 | G38: 0
B39: Transporte de lenha | C39: tkm | D39: =((D38/1000)*Biometano!$D$77) -> 0 | F39: =D39*'Dados auxiliares'!$H$125 -> 0 | G39: 0
B40: Resíduos florestais | C40: kg base seca | D40: =Biometano!$D$79*(1-Biometano!$D$80)*1000 -> 0 | F40: 0 | G40: 0
B41: Transporte de resíduos florestais | C41: tkm | D41: =((D40/1000)*Biometano!$D$81) -> 0 | F41: =D41*'Dados auxiliares'!$H$125 -> 0 | G41: 0
B42: Bagaço de cana-de-açúcar | C42: kg base seca | D42: =Biometano!$D$83*(1-Biometano!$D$84)*1000 -> 0 | F42: 0 | G42: 0
B43: Transporte de bagaço de cana-de-açúcar | C43: tkm | D43: =((D42/1000)*Biometano!$D$85) -> 0 | F43: =D43*'Dados auxiliares'!$H$125 -> 0 | G43: 0
B44: Palha de cana-de-açúcar | C44: kg base seca | D44: =Biometano!$D$87*(1-Biometano!$D$88)*1000 -> 0 | F44: =D44*'Dados auxiliares'!$H$74 -> 0 | G44: 0
B45: Transporte de palha de cana-de-açúcar | C45: tkm | D45: =((D44/1000)*Biometano!$D$89) -> 0 | F45: =D45*'Dados auxiliares'!$H$125 -> 0 | G45: 0
B46: Emissões | C46: Unidade | D46: 1 t óleo | F46: g CO2 eq/t óleo
B47: CO₂ eq - queima do diesel | C47: kg | D47: =D32*'FE''s queima combustíveis'!$I$45/1000 -> 0 | F47: =D47*1000 -> 0 | G47: 0
B48: CO₂ eq - queima do biodiesel | C48: kg | D48: =D33*'FE''s queima combustíveis'!$I$46/1000 -> 0 | F48: 0 | G48: 0
B49: CO₂ eq - queima do biometano | C49: kg | D49: =(D34+Biometano!$D$68)*'FE''s queima combustíveis'!$I$39/1000 -> 0 | F49: 0 | G49: 0
B50: CO₂ eq - queima da gás natural | C50: kg | D50: =D35*'FE''s queima combustíveis'!$I$41*('Dados auxiliares'!$D$25/1000)/1000 -> 0 | F50: 0 | G50: 0
B51: CO₂ eq - queima do bagaço de cana-de-açúcar | C51: kg | D51: =D42*'FE''s queima combustíveis'!$I$33/1000 -> 0 | F51: 0 | G51: 0
B52: CO₂ eq - queima da palha de cana-de-açúcar | C52: kg | D52: =D44*'FE''s queima combustíveis'!$I$34/1000 -> 0 | F52: 0 | G52: 0
B53: CO₂ eq - queima dos cavacos de madeira | C53: kg | D53: =D36*'FE''s queima combustíveis'!$I$35/1000 -> 0 | F53: 0 | G53: 0
B54: CO₂ eq - queima da lenha | C54: kg | D54: =D38*'FE''s queima combustíveis'!$I$36/1000 -> 0 | F54: 0 | G54: 0
B55: CO₂ eq - queima dos resíduos florestais | C55: kg | D55: =D40*'FE''s queima combustíveis'!$I$37/1000 -> 0 | F55: 0 | G55: 0
B57: Emissões do processo | C57: g CO2 eq/kg óleo | F57: =SUM(F47:F55) -> 0 | G57: 0
B58: Emissões background | C58: g CO2 eq/kg óleo | F58: =SUM(F16:F45) -> 745338801.6 | G58: 3.671391479
B59: Emissões totais | C59: g CO2 eq/kg óleo | F59: =F58+F57 -> 745338801.6 | G59: 3.671391479
B61: Emissões totais | C61: g CO2 eq/kg óleo de soja
B63: Etapa distribuição
B64: Sistema logiístico rodoviário
B65: Parâmetro | C65: Unidade | D65: Etanol anidro
B66: Massa | C66: t | D66: =$D$12*'Dados auxiliares'!D18*Biometano!$D$94 -> 4466.083954
B67: Distância de transporte rodoviário | C67: km | D67: 100
B68: Transporte rodoviário | C68: tkm | D68: =D66*D67 -> 446608.3954
B69: Emissões | C69: g CO2 eq | D69: =D68*'Dados auxiliares'!$H$126 -> 14472974.54
B70: Emissões | C70: g CO2 eq/MJ | D70: =D69/E12 -> 0.07129100925
B71: Sistema logiístico rodoviário + dutoviário
B72: Parâmetro | C72: Unidade | D72: Etanol anidro
B73: Massa | C73: t | D73: =$D$12*'Dados auxiliares'!D25*Biometano!$D$95 -> 0
B74: Distância de transporte dutoviário | C74: km | D74: 100
B75: Transporte dutoviário | C75: tkm/t óleo | D75: =D73*D74 -> 0
B76: Emissões | C76: g CO2 eq/t óleo | D76: =D75*'Dados auxiliares'!$H$130 -> 0
B77: Emissões | C77: g CO2 eq/MJ | D77: =D76/E12 -> 0
B79: Emissões totais | C79: g CO2 eq/MJ | D79: =D70+D77 -> 0.07129100925

Sheet Dados auxiliares
B3: Fatores de caracterização dos gases causadores do efeito estufa
B4: Gases de Efeito Estufa | D4: GWP | E4: Referência
D5: kg CO2eq/kg
B6: CO2 - Dióxido de Carbono Fóssil | D6: 1 | E6: AR5 (IPCC)
B7: CH4 - Metano Fóssil | D7: 30 | E7: AR5 (IPCC)
B8: CH4 - biogênico - Metano Biogênico | D8: 28 | E8: AR5 (IPCC)
B9: N2O - Óxido Nitroso | D9: 265 | E9: AR5 (IPCC)
B12: Massa específica e poder calorífico inferior dos combustíveis
B13: Combustíveis | D13: Massa específica | E13: PCI | G13: Referência
D14: kg/L | E14: kcal/kg | F14: MJ/kg
B15: Etanol anidro | D15: =0.791 -> 0.791 | E15: 6750 | F15: =CONVERT(E15,"kcal","MJ") -> 28.26086521 | G15: ANP
B16: Etanol hidratado | D16: =0.809 -> 0.809 | E16: 6300 | F16: =CONVERT(E16,"kcal","MJ") -> 26.37680753 | G16: ANP
B17: Biodiesel (B100) | D17: =0.88 -> 0.88 | E17: 9000 | F17: =CONVERT(E17,"kcal","MJ") -> 37.68115362 | G17: ANP
B18: Biometano (96,5% metano) | D18: 0.0007576054205 | E18: =CONVERT(F18,"MJ","kcal") -> 10857.11584 | F18: 45.45651664 | G18: RenovaBio
B19: BioQav | D19: 0.735 | E19: 10400 | F19: =CONVERT(E19,"kcal","MJ") -> 43.5426664 | G19: KLEIN et al. (2018) - CTBE
B20: Diesel verde | D20: 0.757 | E20: =CONVERT(F20,"MJ","kcal") -> 10093.25786 | F20: 42.2584 | G20: KLEIN et al. (2018) - CTBE
B21: Gasolina verde | D21: 0.678 | E21: =CONVERT(F21,"MJ","kcal") -> 10449.52084 | F21: 43.75 | G21: KLEIN et al. (2018) - CTBE
B22: Gasolina A | D22: 0.742 | E22: 10400 | F22: =CONVERT(E22,"kcal","MJ") -> 43.5426664 | G22: ANP
B23: Gasolina C | D23: 0.75425 | E23: 9400 | F23: 39.35587155 | G23: ANP
B24: Diesel A (B0) | D24: =0.84 -> 0.84 | E24: 10100 | F24: 42.28662795 | G24: ANP
B25: Gás natural seco | D25: 0.00074 | E25: 8800 | F25: 36.84379465 | G25: ANP
B26: Querosene de Aviação | D26: 0.799 | E26: 10400 | F26: 43.5426664 | G26: ANP
B27: GLP | D27: =0.552 -> 0.552 | E27: 11100 | F27: 46.47342279 | G27: ANP
B30: Poder calorífico inferior de outros co-produtos
B31: Produto | D31: PCI | E31: Referência
D32: MJ/kg
B33: Açúcar | D33: 16.19 | E33: TACO (2011)
B34: DDG – “Dried Distillers Grains” | D34: 20.243178 | E34: Assumido igual ao do DDGS
B35: DDGS – “Dried Distillers Grains with Solubles” | D35: 20.243178 | E35: Aurora et al (2010)
B36: CGM - "Corn Gluten Meal" | D36: 18.608 | E36: Shapouri et al (2002)
B37: CGF - "Corn Gluten Feed" | D37: 18.608 | E37: Shapouri et al (2002)
B38: Óleo de Milho | D38: 37.216 | E38: Aurora et al (2010)
B39: Óleo de Soja | D39: 34.04 | E39: Mourad & Walter (2011)
B40: Farelo de Soja | D40: 15.4 | E40: Mourad & Walter (2011)
B41: Glicerina purificada | D41: 16.2 | E41: Mourad & Walter (2011)
B44: Emissões do ciclo de vida dos insumos e outros processos à montante
B45: Insumo | C45: Unidade | D45: Emissões do ciclo de vida [kg/unidade] | H45: g CO₂ eq/ unidade | I45: Fonte dos dados | J45: Processo de referência
D46: CO₂ | E46: N₂O | F46: CH₄ biog | G46: CH₄
B47: Insumos agrícolas
B48: Calcário calcítico | C48: kg | D48: 0.03400195696 | E48: 1.450669659e-06 | F48: 1.786883245e-06 | G48: 7.997402775e-05 | H48: =(D48+(E48*$D$9)+(F48*$D$8)+(G48*$D$7))*1000 -> 36.83563798 | I48: Ecoinvent V.3.1 | J48: Lime {RoW}| production, milled, loose | Alloc Rec, U
B49: Calcário dolomítico | C49: kg | D49: 0.03400195696 | E49: 1.450669659e-06 | F49: 1.786883245e-06 | G49: 7.997402775e-05 | H49: 36.83563798 | I49: Ecoinvent V.3.1 | J49: Lime {RoW}| production, milled, loose | Alloc Rec, U
B50: Gesso | C50: kg | D50: 0.002551358999 | E50: 6.599441574e-07 | F50: 1.140176214e-07 | G50: 3.314587811e-06 | H50: 2.828874328 | I50: Ecoinvent V.3.1 | J50: Gypsum, mineral {RoW}| gypsum quarry operation | Alloc Rec, U
B51: N - Ureia | C51: kg | D51: 2.99725367 | E51: 6.434038225e-05 | F51: 8.120179483e-05 | G51: 0.00648789048 | H51: 3211.214236 | I51: Ecoinvent V.3.1 | J51: Urea, as N {RoW}| production | Alloc Rec, U
B52: N - MAP - Fosfato Monoamônico | C52: kg | D52: 3.073802815 | E52: 9.607851595e-05 | F52: 0.0002016246283 | G52: 0.005253209653 | H52: 3262.505401 | I52: Ecoinvent V.3.1 | J52: Nitrogen fertiliser, as N {RER}| monoammonium phosphate production | Alloc Rec, U
B53: P₂O₅ - MAP - Fosfato Monoamônico | C53: kg | D53: 1.566144768 | E53: 4.895332398e-05 | F53: 0.0001027305184 | G53: 0.002676582497 | H53: 1662.291328 | I53: Ecoinvent V.3.1 | J53: Phosphate fertiliser, as P2O5 {RER}| monoammonium phosphate production | Alloc Rec, U
B54: N - DAP - Fosfato diamônico | C54: kg | D54: 3.196614099 | E54: 9.52709086e-05 | F54: 0.0001710625028 | G54: 0.004775382926 | H54: 3369.912128 | I54: Ecoinvent V.3.1 | J54: Nitrogen fertiliser, as N {RER}| diammonium phosphate production | Alloc Rec, U
B55: P₂O₅ - DAP - Fosfato diamônico | C55: kg | D55: 1.33449 | E55: 3.8509173e-05 | F55: 3.5445093e-05 | G55: 0.003361019735 | H55: 1446.517986 | I55: Ecoinvent V.3.1 | J55: Phosphate fertiliser, as P2O5 {RoW}| diammonium phosphate production | Alloc Rec, U
B56: N - Nitrato de Amônio | C56: kg | D56: 3.057679838 | E56: 0.01894325204 | F56: 7.751787781e-05 | G56: 0.00489206088 | H56: 8226.573955 | I56: Ecoinvent V.3.1 | J56: Ammonium nitrate, as N {RoW}| ammonium nitrate production | Alloc Rec, U
B57: N - UAN - Nitrato de amônio Ureia | C57: kg | D57: 2.997445561 | E57: 0.009545368551 | F57: 8.353328841e-05 | G57: 0.005589378829 | H57: 5696.988524 | I57: Ecoinvent V.3.1 | J57: Nitrogen fertiliser, as N {RoW}| urea ammonium nitrate production | Alloc Rec, U
B58: N - Amônia anidra | C58: kg | D58: 1.7437523 | E58: 2.4352648e-05 | F58: 0.003894214761 | G58: 0.003894214761 | H58: 1976.070208 | I58: Ecoinvent V.3.2 | J58: Ammonia, liquid {RoW}| ammonia production, steam reforming, liquid | Alloc Def, U
B59: N - Sulfato de Amônio | C59: kg | D59: 1.649475632 | E59: 4.824921333e-05 | F59: 6.959736467e-05 | G59: 0.004637738486 | H59: 1803.342554 | I59: Ecoinvent V.3.1 | J59: Ammonium sulfate, as N {RoW}| ammonium sulfate production | Alloc Rec, U
B60: N - CAN - Nitrato de amônio cálcio | C60: kg | D60: 3.137276223 | E60: 0.01894696142 | F60: 8.607073443e-05 | G60: 0.005084327109 | H60: 8313.160793 | I60: Ecoinvent V.3.1 | J60: Nitrogen fertiliser, as N {RoW}| calcium ammonium nitrate production | Alloc Rec, U
B61: N - Nitrato de cálcio | C61: kg | D61: 1.203454487 | E61: 0.00574857306 | F61: 3.658316637e-05 | G61: 0.001750295357 | H61: 2780.359537 | I61: Ecoinvent V.3.1 | J61: Ammonium nitrate, as N {RoW}| calcium nitrate production | Alloc Rec, U
B62: P₂O₅ - SSP - Superfosfato Simples | C62: kg | D62: 2.170288146 | E62: 9.802688282e-05 | F62: 0.0002709454145 | G62: 0.005460155865 | H62: 2367.656417 | I62: Ecoinvent V.3.1 | J62: Phosphate fertiliser, as P2O5 {RoW}| single superphosphate production | Alloc Rec, U
B63: P₂O₅ - TSP - Superfosfato Triplo | C63: kg | D63: 1.732015848 | E63: 6.83545249e-05 | F63: 0.000176456132 | G63: 0.004043720177 | H63: 1876.382174 | I63: Ecoinvent V.3.1 | J63: Phosphate fertiliser, as P2O5 {RoW}| triple superphosphate production | Alloc Rec, U
B64: K₂O - KCl - Cloreto de potássio | C64: kg | D64: 0.4105007436 | E64: 2.326439478e-05 | F64: 2.97998386e-05 | G64: 0.001256918574 | H64: 455.2077609 | I64: Ecoinvent V.3.1 | J64: Potassium chloride, as K2O {RoW}| potassium chloride production | Alloc Rec, U
B65: N - Outros | C65: kg | D65: 2.99725367 | E65: 6.434038225e-05 | F65: 8.120179483e-05 | G65: 0.00648789048 | H65: 3211.214236 | I65: Ecoinvent V.3.2 | J65: Urea, as N {RoW}| production | Alloc Rec, U
B66: P₂O₅ - Outros | C66: kg | D66: 2.170288146 | E66: 9.802688282e-05 | F66: 0.0002709454145 | G66: 0.005460155865 | H66: 2367.656417 | I66: Ecoinvent V.3.3 | J66: Phosphate fertiliser, as P2O5 {RoW}| single superphosphate production | Alloc Rec, U
B67: K₂O - Outros | C67: kg | D67: 0.4105007436 | E67: 2.326439478e-05 | F67: 2.97998386e-05 | G67: 0.001256918574 | H67: 455.2077609 | I67: Ecoinvent V.3.4 | J67: Potassium chloride, as K2O {RoW}| potassium chloride production | Alloc Rec, U
B68: Glifosato | C68: kg | D68: 10.40099593 | E68: 0.0003884181691 | F68: 0.0009528207018 | G68: 0.03250336112 | H68: 11505.70656 | I68: Ecoinvent V.3.1 | J68: Glyphosate {RoW}| production | Alloc Rec, U
B69: 2,4 - D | C69: kg | D69: 4.471838954 | E69: 0.0001278045147 | F69: 0.0003485344374 | G69: 0.01887350383 | H69: 5081.67123 | I69: Ecoinvent V.3.1 | J69: 2,4-dichlorophenol {RoW}| production | Alloc Rec, U
B70: Pesticidas, geral | C70: kg | D70: 9.247839055 | E70: 0.002015447545 | F70: 0.0007630983399 | G70: 0.03130739931 | H70: 10742.52139 | I70: Ecoinvent V.3.1 | J70: Pesticide, unspecified {RoW}| production | Alloc Rec, U
B71: Sementes de milho | C71: kg | D71: 0.9708155196 | E71: 0.00199933456 | F71: 5.578538799e-05 | G71: 0.002129655538 | H71: 1566.090835 | I71: Ecoinvent V.3.1 | J71: Maize seed, Swiss integrated production, at farm {CH}| production | Alloc Rec, U
B72: Sementes de soja | C72: kg | D72: 1.548919339 | E72: 0.0009029448071 | F72: 3.826157715e-05 | G72: 0.0004382217316 | H72: 1802.417689 | I72: Ecoinvent V.3.1 | J72: Soybean seed, for sowing {RoW}| production | Alloc Rec, U
B73: Operações agrícolas
B74: Recolhimento de palha de cana | C74: kg palha (bs) | H74: 11.95349029 | I74: CTBE | J74: Recolhimento de palha enfardada, com 50% de recolhimento
B75: Secagem de grãos | C75: m³ | H75: 0.01629915 | I75: Embrapa | J75: Drying of maize grain sozinho {BR - Renovabio}
B76: Processamento de grãos secos (limpeza e armazenamento) | C76: m³ | H76: =H77-H75 -> 0.015811137 | I76: Embrapa
B77: Processamento de grãos incluindo secagem(limpeza, secagem e armazenamento) | C77: m³ | H77: 0.032110287 | I77: Embrapa | J77: Processamento do milho {BR - Renovabio}| limpeza, secagem e armazenamento | Alloc Def, U
B78: Insumos industriais
B79: Água | C79: kg | D79: 8.261610519e-06 | E79: 1.747185929e-10 | F79: 4.732176921e-10 | G79: 1.601371201e-08 | H79: =(D79+(E79*$D$9)+(F79*$D$8)+(G79*$D$7))*1000 -> 0.008801572402 | I79: Ecoinvent V.3.1. | J79: Water, decarbonised, at user {RoW}| water production and supply, decarbonised | Alloc Rec, U
B80: Cal (CaO) | C80: kg | D80: 0.9559166369 | E80: 2.601050303e-06 | F80: 2.036897088e-06 | G80: 0.0001691403399 | H80: 961.7371585 | I80: Ecoinvent V.3.1. | J80: Quicklime, milled, loose {RoW}| production | Alloc Rec, U
B81: Ácido cítrico | C81: kg | D81: 24.9609306 | E81: 0.003242877882 | F81: 0.002066223246 | G81: 0.05307168658 | H81: 27470.29808 | I81: Ecoinvent V.3.1. | J81: Citric acid {RoW}| production | Alloc Def, U
B82: Ácido Clorídrico | C82: kg | D82: 1.523518559 | E82: 6.980338594e-05 | F82: 0.0001899003681 | G82: 0.004278032897 | H82: 1675.674654 | I82: Ecoinvent V.3.1. | J82: Hydrochloric acid, without water, in 30% solution state {RoW}| hydrochloric acid production, from the reaction of hydrogen with chlorine | Alloc Def, U
B83: Ácido Clorídrico - solução 30% | C83: kg | D83: 0.6486767053 | E83: 4.226664525e-05 | F83: 0.002846972632 | G83: 0.001356999294 | H83: 780.3025788 | I83: Ecoinvent | J83: Hydrochloric acid, 30% in H2O, at plant/BR U
B84: Ácido sulfúrico | C84: kg | D84: 0.09840532511 | E84: 3.363213968e-06 | F84: 2.76780375e-05 | G84: 0.0003096099279 | H84: 109.3598597 | I84: Ecoinvent V.3.1. | J84: Sulfuric acid {RoW}| production | Alloc Def, U
B85: Ácido fosfórico | C85: kg | D85: 1.417039617 | E85: 4.195496608e-05 | F85: 0.0001108365852 | G85: 0.002722194837 | H85: 1512.926953 | I85: Ecoinvent V.3.1. | J85: Phosphoric acid, industrial grade, without water, in 85% solution state {RER}| purification of wet-process phosphoric acid to industrial grade, product in 85% solution state | Alloc Def, U
B86: Metilato de sódio | C86: kg | D86: 1.625019718 | E86: 6.589332142e-05 | F86: 0.000152183932 | G86: 0.006291820047 | H86: 1835.4972 | I86: Ecoinvent V.3.1. | J86: Sodium methoxide {GLO}| production | Alloc Def, U
